Workbook

Sheet Title
B2: Central Hydrogen Production - Project Information
B5: Title: | C5: Current Central Hydrogen Production from Coal Gasification with CO₂ Capture and Sequestration
B6: Authors: | C6: M. Penev
B7: Contact: | C7: Michael Penev
B8: Contact phone: | C8: 303 275 3880
B9: Contact e-mail: | C9: mike.penev@nrel.gov
B10: Organization: | C10: NREL
B11: Date: | C11: 2022-04-05
B12: Web Site: | C12: www.nrel.gov
B14: Plant Design Capacity (kg/day): | C14: 660000
B15: Start-up Year: | C15: 2015
B16: Primary Product Feedstock Source: | C16: Illionois #6 coal
B17: Secondary Feedstock Source: | C17: none
B18: Process Energy Source: | C18: Standard fossil energy sources
B19: Conversion Technology: | C19: Gasifier based on Shell technology includes coal and water handling and preparation, air separation unit, Shell based gasifier, syngas cleanup, syngas desulfurization, PSA hydrogen purification, CO₂ removal, CO₂ drying and pressurization to 2200 psia
B20: Primary By-Product: | C20: none
B21: Secondary By-Product: | C21: none
B22: Based on Number of Plants Installed per Year (per manufacturer): | C22: Nth plant
B23: H2 Onsite Storage Type | C23: none
B24: Assumed plant location: | C24: USA, average
B26: Reporting Spreadsheet Change History:
B27: Date spreadsheet created / modified | C27: Name | D27: Comments
B28: 2022-04-26 | C28: M. Penev | D28: Based on Case 2 of NETL 2022 Comparison of Commercial, State-of-the-Art, Fossil-Based Hydrogen Production Technologies ↓
D29: https://netl.doe.gov/energy-analysis/details?id=ed4825aa-8f04-4df7-abef-60e564f636c9
B30: 2022-04-05 | C30: M. Penev | D30: Based on August 12, 2021 NETL Comparison of Commercial, State-Of-The-Art, Fossil-Based Hydrogen Production Technologies
B31: 2022-04-05 | C31: M. Penev | D31: Updated CO₂ Sequestration tab to be based on: * FE/NETL CO₂ Transport Cost Model (2022) * FE/NETL CO₂ Saline Storage Cost Model (2017) See links below
D32: https://www.netl.doe.gov/energy-analysis/details?id=b37414b7-20d3-4fb2-bca6-b6146b26198a
D33: https://edx.netl.doe.gov/dataset/fe-netl-co2-saline-storage-cost-model-2017

Sheet Description
B2: Central Hydrogen Production - Description
B6: Purpose:
B7: The objective is to articulate capital and operating cost data to be used to arrive at a plant gate cost for hydrogen produced from coal gasification. Hydrogen cost was determined by analyzing a Shell-based plant design for hydrogen production, a currently available process technology. This baseline plant captures CO₂ which is transported and injected into a sequestration gelogic site.
B10: System Description:
B11: There are two Shell dry feed, pressurized, up-flow, entrained, slagging gasifiers, operating at 4.2 MPa (615 psia). The air separation plant supplies 95 percent O₂ to the gasifiers. Coal reacts with O₂ and steam at a temperature of 1,427°C (2,600°F) in the gasifier to produce principally H₂ and CO with little CO₂ formed. The gasifier’s refractory-lined water wall is protected by molten slag that solidifies on the cooled walls. Syngas exiting the gasifier is converted to a CO₂ and H₂-rich syngas to maximize H₂ product yield and maximize the extent of CO₂ separation that can be performed on the high-pressure syngas stream. CO is converted to CO₂ by reacting with steam over a bed of water gas shift catalyst. CO₂ and H₂S are removed via acid gas removal (AGR), which is a two-stage Selexol process. Hydrogen is further purified using a PSA system. CO₂ is transported via 100 mile pipeline and injected into a geologic saline storage site.
B12: Note 1: while the process flow shows compression past 300 psia, H2A model framework excludes compression for transmission and distribution. Hence, entailed analysis does not include capital or energy use for the product hydrogen compressor.
B15: Analysis Methodology Summary:
B16: The methodology for developing the performance results presented in this report included performing steady-state simulations of the hydrogen plant configurations at the design capacity using the Aspen Plus® (Aspen) process modeling software. The major plant equipment performance and process limits were based on published reports, information obtained from vendors and users of the technology, performance data from design/build utility projects, and/or best engineering judgment. Mass and energy balance data from the Aspen models were used to size major pieces of equipment, which formed the basis for developing the cost estimates presented. Full, bottom-up estimates for each case in this study were not pursued. Instead, the capital and operation and maintenance (O&M) costs for each of the cases were estimated using a combined bottom-up and scaling approach. Black & Veatch (B&V) leveraged an in-house database and conceptual estimating models. Costs were further calibrated using a combination of adjusted vendor-furnished data and scaled estimates from previous design/build projects. In addition, cost scaling was performed on select plant areas using reference costs from prior NETL studies according to the 2019 revision of the QGESS document “Capital Cost Scaling Methodology: Revision 4 Report.”
B19: Plant Ownership and Entity Type Assumptions:
B20: Corporate ownership, with 1.5 debt to equity financing capital structure.
B22: References:
B23: Lewis, E. et al. 2022. Comparison of commercial, state-of-the-art, fossil-based hydrogen production technologies. National Energy Technology Laboratory (NETL).
B24: https://netl.doe.gov/energy-analysis/details?id=ed4825aa-8f04-4df7-abef-60e564f636c9

Sheet ProcessFlow
B2: Central Hydrogen Production - Process Flow Diagram | H2: Process Flow Diagram
B9: Feedstock & Utilities Values
B10: Illinois #6 Coal flow (kg/h) | C10: =+H64 -> 211967
B11: H2A Coal flow rate equivalent (kg/h) | C11: =+C10*C25/C26 -> 239985.1535
B12: H2 flow (kg/h) | C12: =+AJ63 -> 27500
B13: H2 flow (kg/day) | C13: =+C12*24 -> 660000
B14: Total input carbon (kmol/h) | C14: =+SUM(X87:X90)+SUM(Y87:Y90)+SUM(AA87:AA90)+SUM(AE87:AE90) -SUM(I87:I90)-SUM(P87:P90)-SUM(Q87:Q90)-SUM(S87:S90)-SUM(W87:W90)-SUM(Z87:Z90)-SUM(J87:J90)-SUM(R87:R90)-SUM(N87:N90)-SUM(F87:F90)-SUM(G87:G90) -> 11372.4904
B15: Total carbon capture (kmol/h) | C15: =+AU88+AU89 -> 10362.996
B16: Carbon capture in CO₂ product % | C16: =+C15/C14 -> 0.9112336556
B17: Carbon capture in slag product % | C17: =(676/12.0107)/C14 -> 0.004949060896
B19: Electricity production (kWh/h) | C19: =+C108*1000 -> 109000
B20: Electricity utility use (kWh/h) | C20: =+SUM(C111:C144)-C129 -> 137710
B21: Net electricity use (kWh/h) | C21: =+C20-C19 -> 28710
B22: Net water flow (gal/min) | C22: 3638
B24: Coal energy density
B25: Illionois #6 HHV content (BTU HHV/lb) | C25: 11666
B26: Electric utility steam coal (BTU HHV/lb) | C26: 10304
B28: Normalized values per kg H₂ production
B29: Electric utility steam coal (kg/kg H₂) | C29: =+C11/C12 -> 8.726732856
B30: Net electricity use use (kWh/kg H₂) | C30: =+C21/C12 -> 1.044
B31: Water use (gal/kg H₂) | C31: =+C22*60/C12 -> 7.937454545
B41: Stream Summaries
C42: 1 | D42: 2 | E42: 3 | F42: 4 | G42: 5 | H42: 6 | I42: 7 | J42: 8 | K42: 9 | L42: 10 | M42: 11 | N42: 12 | O42: 13 | P42: 14 | Q42: 15 | R42: 16 | S42: 17 | T42: 18 | U42: 19 | V42: 20 | W42: 21 | X42: 22 | Y42: 23 | Z42: 24 | AA42: 25 | AB42: 26 | AC42: 27 | AD42: 28 | AE42: 29 | AF42: 30 | AG42: 31 | AH42: 32 | AI42: 33 | AJ42: 34 | AK42: 35 | AL42: 36 | AM42: 37 | AN42: 38 | AO42: 39 | AP42: 40 | AQ42: 41 | AR42: 42 | AS42: 43 | AT42: 44 | AU42: 45
B43: V-L Mole Fraction
B44: Ar | C44: 0.0092 | D44: 0.0343 | E44: 0.0025 | F44: 0.0343 | G44: 0 | H44: 0 | I44: 0.0092 | J44: 0.0096 | K44: 0 | L44: 0.0082 | M44: 0 | N44: 0 | O44: 0.0059 | P44: 0 | Q44: 0 | R44: 0 | S44: 0 | T44: 0.0048 | U44: 0 | V44: 0 | W44: 0 | X44: 0 | Y44: 0.006 | Z44: 0 | AA44: 0 | AB44: 0.006 | AC44: 0.0096 | AD44: 0 | AE44: 0.0093 | AF44: 0 | AG44: 0 | AH44: 0.0004 | AI44: 0.0096 | AJ44: 0.0008 | AK44: 0.0008 | AL44: 0.0364 | AM44: 0.0092 | AN44: 0 | AO44: 0.0095 | AP44: 0.0001 | AQ44: 0 | AR44: 0 | AS44: 0 | AT44: 0 | AU44: 0
B45: CH4 | C45: 0 | D45: 0 | E45: 0 | F45: 0 | G45: 0 | H45: 0 | I45: 0 | J45: 0.0004 | K45: 0 | L45: 0.0004 | M45: 0 | N45: 0 | O45: 0.0003 | P45: 0 | Q45: 0 | R45: 0 | S45: 0 | T45: 0.0002 | U45: 0 | V45: 0 | W45: 0 | X45: 0 | Y45: 0.0003 | Z45: 0 | AA45: 0 | AB45: 0.0003 | AC45: 0.0004 | AD45: 0 | AE45: 0 | AF45: 0 | AG45: 0 | AH45: 0 | AI45: 0.0004 | AJ45: 0 | AK45: 0 | AL45: 0.0016 | AM45: 0 | AN45: 0 | AO45: 0 | AP45: 0.0001 | AQ45: 0 | AR45: 0 | AS45: 0 | AT45: 0 | AU45: 0
B46: CO | C46: 0 | D46: 0 | E46: 0 | F46: 0 | G46: 0 | H46: 0 | I46: 0 | J46: 0.0167 | K46: 0 | L46: 0.5163 | M46: 0 | N46: 0 | O46: 0.3728 | P46: 0 | Q46: 0 | R46: 0 | S46: 0 | T46: 0.0084 | U46: 0.0002 | V46: 0 | W46: 0 | X46: 0 | Y46: 0.0106 | Z46: 0 | AA46: 0 | AB46: 0.0106 | AC46: 0.0167 | AD46: 0.0004 | AE46: 0.0053 | AF46: 0 | AG46: 0 | AH46: 0.0042 | AI46: 0.0167 | AJ46: 0 | AK46: 0 | AL46: 0.0671 | AM46: 0 | AN46: 0 | AO46: 0 | AP46: 0.0005 | AQ46: 0.0001 | AR46: 0.0004 | AS46: 0.0004 | AT46: 0 | AU46: 0.0004
B47: CO2 | C47: 0.0003 | D47: 0 | E47: 0.0004 | F47: 0 | G47: 0 | H47: 0 | I47: 0.0003 | J47: 0.0286 | K47: 0 | L47: 0.017 | M47: 0 | N47: 0.001 | O47: 0.0125 | P47: 0 | Q47: 0 | R47: 0 | S47: 0.0007 | T47: 0.301 | U47: 0.0001 | V47: 0 | W47: 0.0007 | X47: 0.001 | Y47: 0.3783 | Z47: 0 | AA47: 0.0002 | AB47: 0.3816 | AC47: 0.0286 | AD47: 0.5187 | AE47: 0.644 | AF47: 0 | AG47: 0 | AH47: 0.3172 | AI47: 0.0286 | AJ47: 0 | AK47: 0 | AL47: 0.115 | AM47: 0.0003 | AN47: 0 | AO47: 0.0254 | AP47: 0.9841 | AQ47: 0.9984 | AR47: 0.9879 | AS47: 0.9908 | AT47: 0.05 | AU47: 0.9908
B48: COS | C48: 0 | D48: 0 | E48: 0 | F48: 0 | G48: 0 | H48: 0 | I48: 0 | J48: 0 | K48: 0 | L48: 0.0006 | M48: 0 | N48: 0 | O48: 0.0005 | P48: 0 | Q48: 0 | R48: 0 | S48: 0 | T48: 0 | U48: 0 | V48: 0 | W48: 0 | X48: 0 | Y48: 0 | Z48: 0 | AA48: 0 | AB48: 0 | AC48: 0 | AD48: 0.0009 | AE48: 0 | AF48: 0 | AG48: 0 | AH48: 0 | AI48: 0 | AJ48: 0 | AK48: 0 | AL48: 0 | AM48: 0 | AN48: 0 | AO48: 0 | AP48: 0 | AQ48: 0 | AR48: 0 | AS48: 0 | AT48: 0 | AU48: 0
B49: H2 | C49: 0 | D49: 0 | E49: 0 | F49: 0 | G49: 0 | H49: 0 | I49: 0 | J49: 0.8832 | K49: 0 | L49: 0.2637 | M49: 0 | N49: 0 | O49: 0.1904 | P49: 0 | Q49: 0 | R49: 0 | S49: 0 | T49: 0.4433 | U49: 0.0001 | V49: 0 | W49: 0 | X49: 0 | Y49: 0.5597 | Z49: 0 | AA49: 0 | AB49: 0.5557 | AC49: 0.8832 | AD49: 0.0122 | AE49: 0.2388 | AF49: 0 | AG49: 0 | AH49: 0.0283 | AI49: 0.8832 | AJ49: 0.999 | AK49: 0.999 | AL49: 0.5331 | AM49: 0 | AN49: 0 | AO49: 0 | AP49: 0.0106 | AQ49: 0.0008 | AR49: 0.008 | AS49: 0.008 | AT49: 0 | AU49: 0.008
B50: H2O | C50: 0.0099 | D50: 0 | E50: 0.0091 | F50: 0 | G50: 0 | H50: 0 | I50: 0.0099 | J50: 0.0001 | K50: 0 | L50: 0.1293 | M50: 0.9998 | N50: 0.9796 | O50: 0.3657 | P50: 1 | Q50: 0.6895 | R50: 0.1 | S50: 0.9799 | T50: 0.2004 | U50: 0.9931 | V50: 0.9993 | W50: 0.9799 | X50: 0.9791 | Y50: 0.0016 | Z50: 0.9999 | AA50: 0.9832 | AB50: 0.0016 | AC50: 0.0001 | AD50: 0.0226 | AE50: 0.0024 | AF50: 0 | AG50: 1 | AH50: 0.1566 | AI50: 0.0001 | AJ50: 0 | AK50: 0 | AL50: 0.0005 | AM50: 0.0099 | AN50: 1 | AO50: 0.1124 | AP50: 0.0043 | AQ50: 0.0007 | AR50: 0.0034 | AS50: 0.0005 | AT50: 0.95 | AU50: 0.0005
B51: HCl | C51: 0 | D51: 0 | E51: 0 | F51: 0 | G51: 0 | H51: 0 | I51: 0 | J51: 0 | K51: 0 | L51: 0.0004 | M51: 0 | N51: 0 | O51: 0.0003 | P51: 0 | Q51: 0 | R51: 0 | S51: 0 | T51: 0 | U51: 0 | V51: 0 | W51: 0 | X51: 0 | Y51: 0 | Z51: 0 | AA51: 0 | AB51: 0 | AC51: 0 | AD51: 0 | AE51: 0 | AF51: 0 | AG51: 0 | AH51: 0 | AI51: 0 | AJ51: 0 | AK51: 0 | AL51: 0 | AM51: 0 | AN51: 0 | AO51: 0 | AP51: 0 | AQ51: 0 | AR51: 0 | AS51: 0 | AT51: 0 | AU51: 0
B52: H2S | C52: 0 | D52: 0 | E52: 0 | F52: 0 | G52: 0 | H52: 0 | I52: 0 | J52: 0 | K52: 0 | L52: 0.0073 | M52: 0 | N52: 0.0001 | O52: 0.0053 | P52: 0 | Q52: 0 | R52: 0 | S52: 0.0001 | T52: 0.0046 | U52: 0.0001 | V52: 0 | W52: 0.0001 | X52: 0.0001 | Y52: 0.0057 | Z52: 0 | AA52: 0.0003 | AB52: 0.0057 | AC52: 0 | AD52: 0.4441 | AE52: 0.005 | AF52: 0 | AG52: 0 | AH52: 0.0123 | AI52: 0 | AJ52: 0 | AK52: 0 | AL52: 0 | AM52: 0 | AN52: 0 | AO52: 0 | AP52: 0 | AQ52: 0 | AR52: 0 | AS52: 0 | AT52: 0 | AU52: 0
B53: H2SO4 | C53: 0 | D53: 0 | E53: 0 | F53: 0 | G53: 0 | H53: 0 | I53: 0 | J53: 0 | K53: 0 | L53: 0 | M53: 0 | N53: 0 | O53: 0 | P53: 0 | Q53: 0 | R53: 0.9 | S53: 0 | T53: 0 | U53: 0 | V53: 0 | W53: 0 | X53: 0 | Y53: 0 | Z53: 0 | AA53: 0 | AB53: 0 | AC53: 0 | AD53: 0 | AE53: 0 | AF53: 0 | AG53: 0 | AH53: 0 | AI53: 0 | AJ53: 0 | AK53: 0 | AL53: 0 | AM53: 0 | AN53: 0 | AO53: 0 | AP53: 0 | AQ53: 0 | AR53: 0 | AS53: 0 | AT53: 0 | AU53: 0
B54: N2 | C54: 0.7732 | D54: 0.0157 | E54: 0.9844 | F54: 0.0157 | G54: 0.9964 | H54: 0 | I54: 0.7732 | J54: 0.0614 | K54: 0 | L54: 0.0516 | M54: 0 | N54: 0 | O54: 0.0373 | P54: 0 | Q54: 0 | R54: 0 | S54: 0 | T54: 0.0299 | U54: 0 | V54: 0 | W54: 0 | X54: 0 | Y54: 0.0378 | Z54: 0 | AA54: 0 | AB54: 0.0385 | AC54: 0.0614 | AD54: 0.0003 | AE54: 0.0952 | AF54: 0 | AG54: 0 | AH54: 0.0015 | AI54: 0.0614 | AJ54: 0.0002 | AK54: 0.0002 | AL54: 0.2464 | AM54: 0.7732 | AN54: 0 | AO54: 0.8242 | AP54: 0.0004 | AQ54: 0 | AR54: 0.0003 | AS54: 0.0003 | AT54: 0 | AU54: 0.0003
B55: NH3 | C55: 0 | D55: 0 | E55: 0 | F55: 0 | G55: 0 | H55: 0 | I55: 0 | J55: 0 | K55: 0 | L55: 0.0051 | M55: 0.0002 | N55: 0.0193 | O55: 0.0091 | P55: 0 | Q55: 0 | R55: 0 | S55: 0.0192 | T55: 0.0073 | U55: 0.0038 | V55: 0.0007 | W55: 0.0192 | X55: 0.0197 | Y55: 0 | Z55: 0 | AA55: 0.0164 | AB55: 0 | AC55: 0 | AD55: 0.0007 | AE55: 0 | AF55: 0 | AG55: 0 | AH55: 0.4796 | AI55: 0 | AJ55: 0 | AK55: 0 | AL55: 0 | AM55: 0 | AN55: 0 | AO55: 0 | AP55: 0 | AQ55: 0 | AR55: 0 | AS55: 0 | AT55: 0 | AU55: 0
B56: O2 | C56: 0.2074 | D56: 0.9501 | E56: 0.0035 | F56: 0.9501 | G56: 0.0036 | H56: 0 | I56: 0.2074 | J56: 0 | K56: 0 | L56: 0 | M56: 0 | N56: 0 | O56: 0 | P56: 0 | Q56: 0 | R56: 0 | S56: 0 | T56: 0 | U56: 0 | V56: 0 | W56: 0 | X56: 0 | Y56: 0 | Z56: 0 | AA56: 0 | AB56: 0 | AC56: 0 | AD56: 0 | AE56: 0 | AF56: 0 | AG56: 0 | AH56: 0 | AI56: 0 | AJ56: 0 | AK56: 0 | AL56: 0 | AM56: 0.2074 | AN56: 0 | AO56: 0.0285 | AP56: 0 | AQ56: 0 | AR56: 0 | AS56: 0 | AT56: 0 | AU56: 0
B57: SO2 | C57: 0 | D57: 0 | E57: 0 | F57: 0 | G57: 0 | H57: 0 | I57: 0 | J57: 0 | K57: 0 | L57: 0 | M57: 0 | N57: 0 | O57: 0 | P57: 0 | Q57: 0 | R57: 0 | S57: 0 | T57: 0 | U57: 0 | V57: 0 | W57: 0 | X57: 0 | Y57: 0 | Z57: 0 | AA57: 0 | AB57: 0 | AC57: 0 | AD57: 0 | AE57: 0 | AF57: 0 | AG57: 0 | AH57: 0 | AI57: 0 | AJ57: 0 | AK57: 0 | AL57: 0 | AM57: 0 | AN57: 0 | AO57: 0 | AP57: 0 | AQ57: 0 | AR57: 0 | AS57: 0 | AT57: 0 | AU57: 0
B58: NaCl | C58: 0 | D58: 0 | E58: 0 | F58: 0 | G58: 0 | H58: 0 | I58: 0 | J58: 0 | K58: 0 | L58: 0 | M58: 0 | N58: 0 | O58: 0 | P58: 0 | Q58: 0 | R58: 0 | S58: 0 | T58: 0 | U58: 0.0026 | V58: 0 | W58: 0 | X58: 0 | Y58: 0 | Z58: 0.0001 | AA58: 0 | AB58: 0 | AC58: 0 | AD58: 0 | AE58: 0 | AF58: 0 | AG58: 0 | AH58: 0 | AI58: 0 | AJ58: 0 | AK58: 0 | AL58: 0 | AM58: 0 | AN58: 0 | AO58: 0 | AP58: 0 | AQ58: 0 | AR58: 0 | AS58: 0 | AT58: 0 | AU58: 0
B59: NaOH | C59: 0 | D59: 0 | E59: 0 | F59: 0 | G59: 0 | H59: 0 | I59: 0 | J59: 0 | K59: 0 | L59: 0 | M59: 0 | N59: 0 | O59: 0 | P59: 0 | Q59: 0.3105 | R59: 0 | S59: 0 | T59: 0 | U59: 0.0001 | V59: 0 | W59: 0 | X59: 0 | Y59: 0 | Z59: 0 | AA59: 0 | AB59: 0 | AC59: 0 | AD59: 0 | AE59: 0 | AF59: 0 | AG59: 0 | AH59: 0 | AI59: 0 | AJ59: 0 | AK59: 0 | AL59: 0 | AM59: 0 | AN59: 0 | AO59: 0 | AP59: 0 | AQ59: 0 | AR59: 0 | AS59: 0 | AT59: 0 | AU59: 0
B60: Total | C60: 1 | D60: 1 | E60: 1 | F60: 1 | G60: 1 | H60: 0 | I60: 1 | J60: 1 | K60: 0 | L60: 1 | M60: 1 | N60: 1 | O60: 1 | P60: 1 | Q60: 1 | R60: 1 | S60: 1 | T60: 1 | U60: 1 | V60: 1 | W60: 1 | X60: 1 | Y60: 1 | Z60: 1 | AA60: 1 | AB60: 1 | AC60: 1 | AD60: 1 | AE60: 1 | AF60: 0 | AG60: 1 | AH60: 1 | AI60: 1 | AJ60: 1 | AK60: 1 | AL60: 1 | AM60: 1 | AN60: 1 | AO60: 1 | AP60: 1 | AQ60: 1 | AR60: 1 | AS60: 1 | AT60: 1 | AU60: 1
B62: V-L Flowrate (kgmol/hr) | C62: 23745 | D62: 97 | E62: 17612 | F62: 5017 | G62: 945 | H62: 0 | I62: 1003 | J62: 305 | K62: 0 | L62: 26522 | M62: 1130 | N62: 10214 | O62: 29022 | P62: 8265 | Q62: 29 | R62: 0 | S62: 709 | T62: 36173 | U62: 3480 | V62: 1627 | W62: 3331 | X62: 13357 | Y62: 28645 | Z62: 2627 | AA62: 685 | AB62: 29011 | AC62: 18152 | AD62: 373 | AE62: 366 | AF62: 0 | AG62: 214 | AH62: 137 | AI62: 17847 | AJ62: 13412 | AK62: 13412 | AL62: 4435 | AM62: 10388 | AN62: 13270 | AO62: 33068 | AP62: 7648 | AQ62: 2839 | AR62: 10487 | AS62: 10455 | AT62: 32 | AU62: 10455
B63: V-L Flowrate (kg/hr) | C63: 685216 | D63: 3129 | E63: 492660 | F63: 161608 | G63: 26484 | H63: 0 | I63: 28929 | J63: 1716 | K63: 0 | L63: 536844 | M63: 20363 | N63: 184111 | O63: 569546 | P63: 148903 | Q63: 731 | R63: 13 | S63: 12771 | T63: 698204 | U63: 63063 | V63: 29316 | W63: 60014 | X63: 240775 | Y63: 561467 | Z63: 47343 | AA63: 12327 | AB63: 573275 | AC63: 101962 | AD63: 14340 | AE63: 11808 | AF63: 0 | AG63: 3864 | AH63: 3515 | AI63: 100246 | AJ63: 27500 | AK63: 27500 | AL63: 72746 | AM63: 299768 | AN63: 239062 | AO63: 910167 | AP63: 332195 | AQ63: 124778 | AR63: 456973 | AS63: 456364 | AT63: 609 | AU63: 456364
B64: Solids Flowrate (kg/hr) | C64: 0 | D64: 0 | E64: 0 | F64: 0 | G64: 0 | H64: 211967 | I64: 0 | J64: 0 | K64: 21230 | L64: 0 | M64: 0 | N64: 0 | O64: 0 | P64: 0 | Q64: 0 | R64: 0 | S64: 0 | T64: 0 | U64: 0 | V64: 0 | W64: 0 | X64: 0 | Y64: 0 | Z64: 0 | AA64: 0 | AB64: 0 | AC64: 0 | AD64: 0 | AE64: 0 | AF64: 5312 | AG64: 0 | AH64: 0 | AI64: 0 | AJ64: 0 | AK64: 0 | AL64: 0 | AM64: 0 | AN64: 0 | AO64: 0 | AP64: 0 | AQ64: 0 | AR64: 0 | AS64: 0 | AT64: 0 | AU64: 0
B66: Temperature (°C) | C66: 15 | D66: 27 | E66: 21 | F66: 27 | G66: 130 | H66: 15 | I66: 15 | J66: 18 | K66: 1427 | L66: 1079 | M66: 343 | N66: 188 | O66: 232 | P66: 288 | Q66: 16 | R66: 15 | S66: 67 | T66: 202 | U66: 190 | V66: 88 | W66: 67 | X66: 69 | Y66: 29 | Z66: 15 | AA66: 30 | AB66: 37 | AC66: 18 | AD66: 27 | AE66: 38 | AF66: 184 | AG66: 50 | AH66: 160 | AI66: 18 | AJ66: 18 | AK66: 30 | AL66: 193 | AM66: 15 | AN66: 510 | AO66: 50 | AP66: -3 | AQ66: -11 | AR66: 29 | AS66: 29 | AT66: 29 | AU66: 30
B67: Pressure (MPa, abs) | C67: 0.1 | D67: 0.86 | E67: 0.45 | F67: 5.1 | G67: 5.62 | H67: 0.1 | I67: 0.1 | J67: 2.89 | K67: 4.24 | L67: 4.24 | M67: 5.1 | N67: 4.98 | O67: 3.98 | P67: 3.88 | Q67: 4.81 | R67: 0.13 | S67: 0.47 | T67: 3.49 | U67: 3.88 | V67: 0.13 | W67: 0.47 | X67: 0.45 | Y67: 3.18 | Z67: 0.1 | AA67: 0.24 | AB67: 3.07 | AC67: 2.89 | AD67: 0.18 | AE67: 3.07 | AF67: 0.12 | AG67: 0.11 | AH67: 0.45 | AI67: 2.89 | AJ67: 2.82 | AK67: 6.48 | AL67: 0.5 | AM67: 0.1 | AN67: 12.51 | AO67: 0.11 | AP67: 0.55 | AQ67: 0.12 | AR67: 2.5 | AS67: 2.39 | AT67: 2.5 | AU67: 15.27
B68: Steam Table Enthalpy (kJ/kg)A | C68: 30.23 | D68: 21.53 | E68: 28.11 | F68: 9.82 | G68: 129.22 | H68: --- | I68: 30.23 | J68: 94.16 | K68: --- | L68: 2034.56 | M68: 3083.36 | N68: 767.78 | O68: 1189.11 | P68: 2971.61 | Q68: -338.78 | R68: -8206.86 | S68: 238.31 | T68: 804.5 | U68: 792.23 | V68: 368.02 | W68: 238.31 | X68: 247.89 | Y68: 39.45 | Z68: 62.75 | AA68: 90.75 | AB68: 50.96 | AC68: 94.16 | AD68: 40.84 | AE68: 23.14 | AF68: --- | AG68: 109.79 | AH68: 503.09 | AI68: 94.16 | AJ68: 263.41 | AK68: 440.05 | AL68: 356.19 | AM68: 30.23 | AN68: 3369.21 | AO68: 216.61 | AP68: -8.36 | AQ68: -9.6 | AR68: 2.3 | AS68: 0.54 | AT68: 138.13 | AU68: -226.95
B69: AspenPlus Enthalpy (kJ/kg)B | C69: -97.58 | D69: -0.97 | E69: -97.45 | F69: -12.68 | G69: 103.25 | H69: -2119.02 | I69: -97.58 | J69: -2374.94 | K69: 2165.43 | L69: -3011.7 | M69: -12884.3 | N69: -14939.49 | O69: -6579.94 | P69: -13008.68 | Q69: -13665 | R69: -8526.27 | S69: -15475.1 | T69: -8423.95 | U69: -15049.56 | V69: -15593.09 | W69: -15475.1 | X69: -15452.9 | Y69: -7685.67 | Z69: -15905.25 | AA69: -15663.68 | AB69: -7678.43 | AC69: -2374.94 | AD69: -5697.83 | AE69: -7909.59 | AF69: 147.51 | AG69: -15860.13 | AH69: -7050.59 | AI69: -2374.94 | AJ69: -86.91 | AK69: 89.72 | AL69: -2913.87 | AM69: -97.58 | AN69: -12611.09 | AO69: -1345.41 | AP69: -8974.8 | AQ69: -8972.84 | AR69: -8963.44 | AS69: -8956.66 | AT69: -15225.03 | AU69: -9184.16
B70: Density (kg/m3) | C70: 1.2 | D70: 11.2 | E70: 5.2 | F70: 68.6 | G70: 46.4 | H70: --- | I70: 1.2 | J70: 6.6 | K70: --- | L70: 7.6 | M70: 19.9 | N70: 835.9 | O70: 19 | P70: 16.9 | Q70: 1531.7 | R70: 1791.5 | S70: 964.7 | T70: 17.2 | U70: 873.9 | V70: 965.6 | W70: 964.7 | X70: 962.3 | Y70: 25.2 | Z70: 999.4 | AA70: 985.6 | AB70: 23.9 | AC70: 6.6 | AD70: 2.9 | AE70: 41 | AF70: 5266.6 | AG70: 968.5 | AH70: 3.2 | AI70: 6.6 | AJ70: 2.4 | AK70: 5.1 | AL70: 2.1 | AM70: 1.2 | AN70: 38.4 | AO70: 1.1 | AP70: 11.2 | AQ70: 2.3 | AR70: 49.8 | AS70: 47.2 | AT70: 319 | AU70: 838.1
B71: V-L Molecular Weight | C71: 28.857 | D71: 32.209 | E71: 27.974 | F71: 32.209 | G71: 28.028 | H71: --- | I71: 28.857 | J71: 5.617 | K71: --- | L71: 20.241 | M71: 18.015 | N71: 18.025 | O71: 19.625 | P71: 18.015 | Q71: 24.842 | R71: 90.073 | S71: 18.017 | T71: 19.302 | U71: 18.12 | V71: 18.015 | W71: 18.017 | X71: 18.026 | Y71: 19.601 | Z71: 18.019 | AA71: 18.008 | AB71: 19.76 | AC71: 5.617 | AD71: 38.486 | AE71: 32.224 | AF71: --- | AG71: 18.016 | AH71: 25.597 | AI71: 5.617 | AJ71: 2.05 | AK71: 2.05 | AL71: 16.403 | AM71: 28.857 | AN71: 18.015 | AO71: 27.524 | AP71: 43.435 | AQ71: 43.956 | AR71: 43.576 | AS71: 43.65 | AT71: 19.315 | AU71: 43.65
B73: V-L Flowrate (lbmol/hr) | C73: 52349 | D73: 214 | E73: 38827 | F73: 11062 | G73: 2083 | H73: 0 | I73: 2210 | J73: 673 | K73: 0 | L73: 58472 | M73: 2492 | N73: 22518 | O73: 63982 | P73: 18222 | Q73: 65 | R73: 0 | S73: 1563 | T73: 79747 | U73: 7673 | V73: 3588 | W73: 7343 | X73: 29447 | Y73: 63152 | Z73: 5793 | AA73: 1509 | AB73: 63959 | AC73: 40019 | AD73: 821 | AE73: 808 | AF73: 0 | AG73: 473 | AH73: 303 | AI73: 39345 | AJ73: 29568 | AK73: 29568 | AL73: 9777 | AM73: 22902 | AN73: 29255 | AO73: 72903 | AP73: 16861 | AQ73: 6258 | AR73: 23119 | AS73: 23050 | AT73: 70 | AU73: 23050
B74: V-L Flowrate (lb/hr) | C74: 1510643 | D74: 6897 | E74: 1086129 | F74: 356286 | G74: 58388 | H74: 0 | I74: 63778 | J74: 3783 | K74: 0 | L74: 1183539 | M74: 44892 | N74: 405896 | O74: 1255634 | P74: 328274 | Q74: 1612 | R74: 29 | S74: 28156 | T74: 1539277 | U74: 139029 | V74: 64631 | W74: 132308 | X74: 530818 | Y74: 1237823 | Z74: 104373 | AA74: 27175 | AB74: 1263856 | AC74: 224788 | AD74: 31615 | AE74: 26032 | AF74: 0 | AG74: 8518 | AH74: 7749 | AI74: 221005 | AJ74: 60627 | AK74: 60627 | AL74: 160378 | AM74: 660875 | AN74: 527042 | AO74: 2006574 | AP74: 732364 | AQ74: 275089 | AR74: 1007453 | AS74: 1006110 | AT74: 1343 | AU74: 1006110
B75: Solids Flowrate (lb/hr) | C75: 0 | D75: 0 | E75: 0 | F75: 0 | G75: 0 | H75: 467308 | I75: 0 | J75: 0 | K75: 46803 | L75: 0 | M75: 0 | N75: 0 | O75: 0 | P75: 0 | Q75: 0 | R75: 0 | S75: 0 | T75: 0 | U75: 0 | V75: 0 | W75: 0 | X75: 0 | Y75: 0 | Z75: 0 | AA75: 0 | AB75: 0 | AC75: 0 | AD75: 0 | AE75: 0 | AF75: 11711 | AG75: 0 | AH75: 0 | AI75: 0 | AJ75: 0 | AK75: 0 | AL75: 0 | AM75: 0 | AN75: 0 | AO75: 0 | AP75: 0 | AQ75: 0 | AR75: 0 | AS75: 0 | AT75: 0 | AU75: 0
B77: Temperature (°F) | C77: 59 | D77: 80 | E77: 70 | F77: 80 | G77: 267 | H77: 59 | I77: 59 | J77: 65 | K77: 2600 | L77: 1974 | M77: 650 | N77: 371 | O77: 450 | P77: 550 | Q77: 61 | R77: 59 | S77: 152 | T77: 395 | U77: 373 | V77: 191 | W77: 152 | X77: 157 | Y77: 84 | Z77: 59 | AA77: 85 | AB77: 99 | AC77: 65 | AD77: 80 | AE77: 100 | AF77: 364 | AG77: 121 | AH77: 320 | AI77: 65 | AJ77: 65 | AK77: 86 | AL77: 380 | AM77: 59 | AN77: 950 | AO77: 122 | AP77: 26 | AQ77: 12 | AR77: 85 | AS77: 85 | AT77: 85 | AU77: 86
B78: Pressure (psia) | C78: 14.7 | D78: 125 | E78: 65 | F78: 740 | G78: 815 | H78: 14.7 | I78: 14.7 | J78: 418.7 | K78: 615 | L78: 615 | M78: 740 | N78: 722.7 | O78: 577.7 | P78: 562.7 | Q78: 697.7 | R78: 18.2 | S78: 67.7 | T78: 506.1 | U78: 562.7 | V78: 19.3 | W78: 67.7 | X78: 65 | Y78: 460.7 | Z78: 14.7 | AA78: 35 | AB78: 445.2 | AC78: 418.7 | AD78: 26.7 | AE78: 445.2 | AF78: 16.8 | AG78: 15.9 | AH78: 65 | AI78: 418.7 | AJ78: 408.7 | AK78: 939.7 | AL78: 72.5 | AM78: 14.7 | AN78: 1814.7 | AO78: 15.4 | AP78: 80 | AQ78: 16.7 | AR78: 363 | AS78: 346.5 | AT78: 363 | AU78: 2214.7
B79: Steam Table Enthalpy (Btu/lb)A | C79: 13 | D79: 9.3 | E79: 12.1 | F79: 4.2 | G79: 55.6 | H79: --- | I79: 13 | J79: 40.5 | K79: --- | L79: 874.7 | M79: 1325.6 | N79: 330.1 | O79: 511.2 | P79: 1277.6 | Q79: -145.7 | R79: -3528.3 | S79: 102.5 | T79: 345.9 | U79: 340.6 | V79: 158.2 | W79: 102.5 | X79: 106.6 | Y79: 17 | Z79: 27 | AA79: 39 | AB79: 21.9 | AC79: 40.5 | AD79: 17.6 | AE79: 9.9 | AF79: --- | AG79: 47.2 | AH79: 216.3 | AI79: 40.5 | AJ79: 113.2 | AK79: 189.2 | AL79: 153.1 | AM79: 13 | AN79: 1448.5 | AO79: 93.1 | AP79: -3.6 | AQ79: -4.1 | AR79: 1 | AS79: 0.2 | AT79: 59.4 | AU79: -97.6
B80: AspenPlus Enthalpy (Btu/lb)B | C80: -42 | D80: -0.4 | E80: -41.9 | F80: -5.5 | G80: 44.4 | H80: -911 | I80: -42 | J80: -1021 | K80: 931 | L80: -1294.8 | M80: -5539.3 | N80: -6422.8 | O80: -2828.9 | P80: -5592.7 | Q80: -5874.9 | R80: -3665.6 | S80: -6653.1 | T80: -3621.6 | U80: -6470.1 | V80: -6703.8 | W80: -6653.1 | X80: -6643.6 | Y80: -3304.2 | Z80: -6838 | AA80: -6734.2 | AB80: -3301.1 | AC80: -1021 | AD80: -2449.6 | AE80: -3400.5 | AF80: 63.4 | AG80: -6818.6 | AH80: -3031.2 | AI80: -1021 | AJ80: -37.4 | AK80: 38.6 | AL80: -1252.7 | AM80: -42 | AN80: -5421.8 | AO80: -578.4 | AP80: -3858.5 | AQ80: -3857.6 | AR80: -3853.6 | AS80: -3850.7 | AT80: -6545.6 | AU80: -3948.5
B81: Density (lb/ft3) | C81: 0.076 | D81: 0.7 | E81: 0.322 | F81: 4.283 | G81: 2.894 | H81: --- | I81: 0.076 | J81: 0.412 | K81: --- | L81: 0.473 | M81: 1.24 | N81: 52.186 | O81: 1.183 | P81: 1.055 | Q81: 95.623 | R81: 111.841 | S81: 60.225 | T81: 1.075 | U81: 54.553 | V81: 60.28 | W81: 60.225 | X81: 60.075 | Y81: 1.572 | Z81: 62.391 | AA81: 61.529 | AB81: 1.491 | AC81: 0.412 | AD81: 0.181 | AE81: 2.561 | AF81: 328.78 | AG81: 60.459 | AH81: 0.201 | AI81: 0.412 | AJ81: 0.147 | AK81: 0.319 | AL81: 0.132 | AM81: 0.076 | AN81: 2.395 | AO81: 0.069 | AP81: 0.698 | AQ81: 0.146 | AR81: 3.108 | AS81: 2.947 | AT81: 19.917 | AU81: 52.32
B85: Mol flow basis kmol/h | C85: =+C42 -> 1 | D85: =+D42 -> 2 | E85: 3 | F85: 4 | G85: 5 | H85: 6 | I85: 7 | J85: 8 | K85: 9 | L85: 10 | M85: 11 | N85: 12 | O85: 13 | P85: 14 | Q85: 15 | R85: 16 | S85: 17 | T85: 18 | U85: 19 | V85: 20 | W85: 21 | X85: 22 | Y85: 23 | Z85: 24 | AA85: 25 | AB85: 26 | AC85: 27 | AD85: 28 | AE85: 29 | AF85: 30 | AG85: 31 | AH85: 32 | AI85: 33 | AJ85: 34 | AK85: 35 | AL85: 36 | AM85: 37 | AN85: 38 | AO85: 39 | AP85: 40 | AQ85: 41 | AR85: 42 | AS85: 43 | AT85: 44 | AU85: 45 | AX85: dHf (g, kJ/mol) | AY85: dHf (l, kJ/mol) | AZ85: Heat of combustion (LHV, kJ/mol) | BA85: Heat of combustion (HHV, kJ/mol)
B86: =+B44 -> Ar | C86: =+C44*C$62 -> 218.454 | D86: =+D44*D$62 -> 3.3271 | E86: 44.03 | F86: 172.0831 | G86: 0 | H86: 0 | I86: 9.2276 | J86: 2.928 | K86: 0 | L86: 217.4804 | M86: 0 | N86: 0 | O86: 171.2298 | P86: 0 | Q86: 0 | R86: 0 | S86: 0 | T86: 173.6304 | U86: 0 | V86: 0 | W86: 0 | X86: 0 | Y86: 171.87 | Z86: 0 | AA86: 0 | AB86: 174.066 | AC86: 174.2592 | AD86: 0 | AE86: 3.4038 | AF86: 0 | AG86: 0 | AH86: 0.0548 | AI86: 171.3312 | AJ86: 10.7296 | AK86: 10.7296 | AL86: 161.434 | AM86: 95.5696 | AN86: 0 | AO86: 314.146 | AP86: 0.7648 | AQ86: 0 | AR86: 0 | AS86: 0 | AT86: 0 | AU86: 0 | AX86: 0
B87: =+B45 -> CH4 | C87: =+C45*C$62 -> 0 | D87: 0 | E87: 0 | F87: 0 | G87: 0 | H87: 0 | I87: 0 | J87: 0.122 | K87: 0 | L87: 10.6088 | M87: 0 | N87: 0 | O87: 8.7066 | P87: 0 | Q87: 0 | R87: 0 | S87: 0 | T87: 7.2346 | U87: 0 | V87: 0 | W87: 0 | X87: 0 | Y87: 8.5935 | Z87: 0 | AA87: 0 | AB87: 8.7033 | AC87: 7.2608 | AD87: 0 | AE87: 0 | AF87: 0 | AG87: 0 | AH87: 0 | AI87: 7.1388 | AJ87: 0 | AK87: 0 | AL87: 7.096 | AM87: 0 | AN87: 0 | AO87: 0 | AP87: 0.7648 | AQ87: 0 | AR87: 0 | AS87: 0 | AT87: 0 | AU87: 0 | AX87: -74.6 | AZ87: =2*AX92+AX89-AX87 -> -802.562 | BA87: =2*AY92+AX89-AX87 -> -890.57
B88: CO | C88: 0 | D88: 0 | E88: 0 | F88: 0 | G88: 0 | H88: 0 | I88: 0 | J88: 5.0935 | K88: 0 | L88: 13693.3086 | M88: 0 | N88: 0 | O88: 10819.4016 | P88: 0 | Q88: 0 | R88: 0 | S88: 0 | T88: 303.8532 | U88: 0.696 | V88: 0 | W88: 0 | X88: 0 | Y88: 303.637 | Z88: 0 | AA88: 0 | AB88: 307.5166 | AC88: 303.1384 | AD88: 0.1492 | AE88: 1.9398 | AF88: 0 | AG88: 0 | AH88: 0.5754 | AI88: 298.0449 | AJ88: 0 | AK88: 0 | AL88: 297.5885 | AM88: 0 | AN88: 0 | AO88: 0 | AP88: 3.824 | AQ88: 0.2839 | AR88: 4.1948 | AS88: 4.182 | AT88: 0 | AU88: 4.182 | AX88: -110.53
B89: CO2 | C89: 7.1235 | D89: 0 | E89: 7.0448 | F89: 0 | G89: 0 | H89: 0 | I89: 0.3009 | J89: 8.723 | K89: 0 | L89: 450.874 | M89: 0 | N89: 10.214 | O89: 362.775 | P89: 0 | Q89: 0 | R89: 0 | S89: 0.4963 | T89: 10888.073 | U89: 0.348 | V89: 0 | W89: 2.3317 | X89: 13.357 | Y89: 10836.4035 | Z89: 0 | AA89: 0.137 | AB89: 11070.5976 | AC89: 519.1472 | AD89: 193.4751 | AE89: 235.704 | AF89: 0 | AG89: 0 | AH89: 43.4564 | AI89: 510.4242 | AJ89: 0 | AK89: 0 | AL89: 510.025 | AM89: 3.1164 | AN89: 0 | AO89: 839.9272 | AP89: 7526.3968 | AQ89: 2834.4576 | AR89: 10360.1073 | AS89: 10358.814 | AT89: 1.6 | AU89: 10358.814 | AX89: -393.51
B90: COS | C90: 0 | D90: 0 | E90: 0 | F90: 0 | G90: 0 | H90: 0 | I90: 0 | J90: 0 | K90: 0 | L90: 15.9132 | M90: 0 | N90: 0 | O90: 14.511 | P90: 0 | Q90: 0 | R90: 0 | S90: 0 | T90: 0 | U90: 0 | V90: 0 | W90: 0 | X90: 0 | Y90: 0 | Z90: 0 | AA90: 0 | AB90: 0 | AC90: 0 | AD90: 0.3357 | AE90: 0 | AF90: 0 | AG90: 0 | AH90: 0 | AI90: 0 | AJ90: 0 | AK90: 0 | AL90: 0 | AM90: 0 | AN90: 0 | AO90: 0 | AP90: 0 | AQ90: 0 | AR90: 0 | AS90: 0 | AT90: 0 | AU90: 0 | AX90: -138.41
B91: H2 | C91: 0 | D91: 0 | E91: 0 | F91: 0 | G91: 0 | H91: 0 | I91: 0 | J91: 269.376 | K91: 0 | L91: 6993.8514 | M91: 0 | N91: 0 | O91: 5525.7888 | P91: 0 | Q91: 0 | R91: 0 | S91: 0 | T91: 16035.4909 | U91: 0.348 | V91: 0 | W91: 0 | X91: 0 | Y91: 16032.6065 | Z91: 0 | AA91: 0 | AB91: 16121.4127 | AC91: 16031.8464 | AD91: 4.5506 | AE91: 87.4008 | AF91: 0 | AG91: 0 | AH91: 3.8771 | AI91: 15762.4704 | AJ91: 13398.588 | AK91: 13398.588 | AL91: 2364.2985 | AM91: 0 | AN91: 0 | AO91: 0 | AP91: 81.0688 | AQ91: 2.2712 | AR91: 83.896 | AS91: 83.64 | AT91: 0 | AU91: 83.64 | AX91: 0 | AZ91: =AX92 -> -241.826 | BA91: =+AY92 -> -285.83
B92: H2O | C92: 235.0755 | D92: 0 | E92: 160.2692 | F92: 0 | G92: 0 | H92: 0 | I92: 9.9297 | J92: 0.0305 | K92: 0 | L92: 3429.2946 | M92: 1129.774 | N92: 10005.6344 | O92: 10613.3454 | P92: 8265 | Q92: 19.9955 | R92: 0 | S92: 694.7491 | T92: 7249.0692 | U92: 3455.988 | V92: 1625.8611 | W92: 3264.0469 | X92: 13077.8387 | Y92: 45.832 | Z92: 2626.7373 | AA92: 673.492 | AB92: 46.4176 | AC92: 1.8152 | AD92: 8.4298 | AE92: 0.8784 | AF92: 0 | AG92: 214 | AH92: 21.4542 | AI92: 1.7847 | AJ92: 0 | AK92: 0 | AL92: 2.2175 | AM92: =+AM50*AM$62 -> 102.8412 | AN92: 13270 | AO92: 3716.8432 | AP92: 32.8864 | AQ92: 1.9873 | AR92: 35.6558 | AS92: 5.2275 | AT92: 30.4 | AU92: 5.2275 | AX92: -241.826 | AY92: -285.83
B93: HCl | C93: =+C51*C$62 -> 0 | D93: 0 | E93: 0 | F93: 0 | G93: 0 | H93: 0 | I93: 0 | J93: 0 | K93: 0 | L93: 10.6088 | M93: 0 | N93: 0 | O93: 8.7066 | P93: 0 | Q93: 0 | R93: 0 | S93: 0 | T93: 0 | U93: 0 | V93: 0 | W93: 0 | X93: 0 | Y93: 0 | Z93: 0 | AA93: 0 | AB93: 0 | AC93: 0 | AD93: 0 | AE93: 0 | AF93: 0 | AG93: 0 | AH93: 0 | AI93: 0 | AJ93: 0 | AK93: 0 | AL93: 0 | AM93: 0 | AN93: 0 | AO93: 0 | AP93: 0 | AQ93: 0 | AR93: 0 | AS93: 0 | AT93: 0 | AU93: 0 | AX93: -92.31
B94: H2S | C94: 0 | D94: 0 | E94: 0 | F94: 0 | G94: 0 | H94: 0 | I94: 0 | J94: 0 | K94: 0 | L94: 193.6106 | M94: 0 | N94: 1.0214 | O94: 153.8166 | P94: 0 | Q94: 0 | R94: 0 | S94: 0.0709 | T94: 166.3958 | U94: 0.348 | V94: 0 | W94: 0.3331 | X94: 1.3357 | Y94: 163.2765 | Z94: 0 | AA94: 0.2055 | AB94: 165.3627 | AC94: 0 | AD94: 165.6493 | AE94: 1.83 | AF94: 0 | AG94: 0 | AH94: 1.6851 | AI94: 0 | AJ94: 0 | AK94: 0 | AL94: 0 | AM94: 0 | AN94: 0 | AO94: 0 | AP94: 0 | AQ94: 0 | AR94: 0 | AS94: 0 | AT94: 0 | AU94: 0 | AX94: -20.5
B95: H2SO4 | C95: 0 | D95: 0 | E95: 0 | F95: 0 | G95: 0 | H95: 0 | I95: 0 | J95: 0 | K95: 0 | L95: 0 | M95: 0 | N95: 0 | O95: 0 | P95: 0 | Q95: 0 | R95: 0 | S95: 0 | T95: 0 | U95: 0 | V95: 0 | W95: 0 | X95: 0 | Y95: 0 | Z95: 0 | AA95: 0 | AB95: 0 | AC95: 0 | AD95: 0 | AE95: 0 | AF95: 0 | AG95: 0 | AH95: 0 | AI95: 0 | AJ95: 0 | AK95: 0 | AL95: 0 | AM95: 0 | AN95: 0 | AO95: 0 | AP95: 0 | AQ95: 0 | AR95: 0 | AS95: 0 | AT95: 0 | AU95: 0 | AX95: -735.13
B96: N2 | C96: 18359.634 | D96: 1.5229 | E96: 17337.2528 | F96: 78.7669 | G96: 941.598 | H96: 0 | I96: 775.5196 | J96: 18.727 | K96: 0 | L96: 1368.5352 | M96: 0 | N96: 0 | O96: 1082.5206 | P96: 0 | Q96: 0 | R96: 0 | S96: 0 | T96: 1081.5727 | U96: 0 | V96: 0 | W96: 0 | X96: 0 | Y96: 1082.781 | Z96: 0 | AA96: 0 | AB96: 1116.9235 | AC96: 1114.5328 | AD96: 0.1119 | AE96: 34.8432 | AF96: 0 | AG96: 0 | AH96: 0.2055 | AI96: 1095.8058 | AJ96: 2.6824 | AK96: 2.6824 | AL96: 1092.784 | AM96: 8032.0016 | AN96: 0 | AO96: 27254.6456 | AP96: 3.0592 | AQ96: 0 | AR96: 3.1461 | AS96: 3.1365 | AT96: 0 | AU96: 3.1365 | AX96: 0
B97: NH3 | C97: 0 | D97: 0 | E97: 0 | F97: 0 | G97: 0 | H97: 0 | I97: 0 | J97: 0 | K97: 0 | L97: 135.2622 | M97: 0.226 | N97: 197.1302 | O97: 264.1002 | P97: 0 | Q97: 0 | R97: 0 | S97: 13.6128 | T97: 264.0629 | U97: 13.224 | V97: 1.1389 | W97: 63.9552 | X97: 263.1329 | Y97: 0 | Z97: 0 | AA97: 11.234 | AB97: 0 | AC97: 0 | AD97: 0.2611 | AE97: 0 | AF97: 0 | AG97: 0 | AH97: 65.7052 | AI97: 0 | AJ97: 0 | AK97: 0 | AL97: 0 | AM97: 0 | AN97: 0 | AO97: 0 | AP97: 0 | AQ97: 0 | AR97: 0 | AS97: 0 | AT97: 0 | AU97: 0 | AX97: -45.9
B98: O2 | C98: 4924.713 | D98: 92.1597 | E98: 61.642 | F98: 4766.6517 | G98: 3.402 | H98: 0 | I98: 208.0222 | J98: 0 | K98: 0 | L98: 0 | M98: 0 | N98: 0 | O98: 0 | P98: 0 | Q98: 0 | R98: 0 | S98: 0 | T98: 0 | U98: 0 | V98: 0 | W98: 0 | X98: 0 | Y98: 0 | Z98: 0 | AA98: 0 | AB98: 0 | AC98: 0 | AD98: 0 | AE98: 0 | AF98: 0 | AG98: 0 | AH98: 0 | AI98: 0 | AJ98: 0 | AK98: 0 | AL98: 0 | AM98: =+AM56*AM$62 -> 2154.4712 | AN98: 0 | AO98: 942.438 | AP98: 0 | AQ98: 0 | AR98: 0 | AS98: 0 | AT98: 0 | AU98: 0 | AX98: 0
B99: SO2 | C99: =+C57*C$62 -> 0 | D99: 0 | E99: 0 | F99: 0 | G99: 0 | H99: 0 | I99: 0 | J99: 0 | K99: 0 | L99: 0 | M99: 0 | N99: 0 | O99: 0 | P99: 0 | Q99: 0 | R99: 0 | S99: 0 | T99: 0 | U99: 0 | V99: 0 | W99: 0 | X99: 0 | Y99: 0 | Z99: 0 | AA99: 0 | AB99: 0 | AC99: 0 | AD99: 0 | AE99: 0 | AF99: 0 | AG99: 0 | AH99: 0 | AI99: 0 | AJ99: 0 | AK99: 0 | AL99: 0 | AM99: 0 | AN99: 0 | AO99: 0 | AP99: 0 | AQ99: 0 | AR99: 0 | AS99: 0 | AT99: 0 | AU99: 0 | AX99: -296.81
B100: NaCl | C100: 0 | D100: 0 | E100: 0 | F100: 0 | G100: 0 | H100: 0 | I100: 0 | J100: 0 | K100: 0 | L100: 0 | M100: 0 | N100: 0 | O100: 0 | P100: 0 | Q100: 0 | R100: 0 | S100: 0 | T100: 0 | U100: 9.048 | V100: 0 | W100: 0 | X100: 0 | Y100: 0 | Z100: 0.2627 | AA100: 0 | AB100: 0 | AC100: 0 | AD100: 0 | AE100: 0 | AF100: 0 | AG100: 0 | AH100: 0 | AI100: 0 | AJ100: 0 | AK100: 0 | AL100: 0 | AM100: 0 | AN100: 0 | AO100: 0 | AP100: 0 | AQ100: 0 | AR100: 0 | AS100: 0 | AT100: 0 | AU100: 0 | AX100: -181.42
B101: NaOH | C101: 0 | D101: 0 | E101: 0 | F101: 0 | G101: 0 | H101: 0 | I101: 0 | J101: 0 | K101: 0 | L101: 0 | M101: 0 | N101: 0 | O101: 0 | P101: 0 | Q101: 9.0045 | R101: 0 | S101: 0 | T101: 0 | U101: 0.348 | V101: 0 | W101: 0 | X101: 0 | Y101: 0 | Z101: 0 | AA101: 0 | AB101: 0 | AC101: 0 | AD101: 0 | AE101: 0 | AF101: 0 | AG101: 0 | AH101: 0 | AI101: 0 | AJ101: 0 | AK101: 0 | AL101: 0 | AM101: 0 | AN101: 0 | AO101: 0 | AP101: 0 | AQ101: 0 | AR101: 0 | AS101: 0 | AT101: 0 | AU101: 0
B102: Total | C102: =+SUM(C86:C101) -> 23745 | D102: =+SUM(D86:D101) -> 97.0097 | E102: 17610.2388 | F102: 5017.5017 | G102: 945 | H102: 0 | I102: 1003 | J102: 305 | K102: 0 | L102: 26519.3478 | M102: 1130 | N102: 10214 | O102: 29024.9022 | P102: 8265 | Q102: 29 | R102: 0 | S102: 708.9291 | T102: 36169.3827 | U102: 3480.348 | V102: 1627 | W102: 3330.6669 | X102: 13355.6643 | Y102: 28645 | Z102: 2627 | AA102: 685.0685 | AB102: 29011 | AC102: 18152 | AD102: 372.9627 | AE102: 366 | AF102: 0 | AG102: 214 | AH102: 137.0137 | AI102: 17847 | AJ102: 13412 | AK102: 13412 | AL102: 4435.4435 | AM102: 10388 | AN102: 13270 | AO102: 33068 | AP102: 7648.7648 | AQ102: 2839 | AR102: 10487 | AS102: 10455 | AT102: 32 | AU102: 10455
B107: Power Summary
B108: Steam Turbine Power, MWe | C108: 109
B109: Total Gross Power, MWe | C109: 109
B110: Auxiliary Load Summary
B111: Acid Gas Removal, kWe | C111: 11640
B112: Air Blower, kWe | C112: 780
B113: Air Separation Unit Auxiliaries, kWe | C113: 1000
B114: Air Separation Unit Main Air Compressor, kWe | C114: 65800
B115: Air Separation Unit Booster Compressor, kWe | C115: 5170
B116: Ammonia Wash Pumps, kWe | C116: 120
B117: Circulating Water Pumps, kWe | C117: 3340
B118: Claus Plant TG Recycle Compressor, kWe | C118: 1240
B119: Claus Plant/TGTU Auxiliaries, kWe | C119: 250
B120: CO2 Compression, kWe | C120: =31880 -> 31880
B121: Coal Handling, kWe | C121: 460
B122: Coal Milling, kWe | C122: 2180
B123: Condensate Pumps, kWe | C123: 150
B124: Cooling Tower Fans, kWe | C124: 1730
B125: Dryer Air Compressor, kWe | C125: 80
B126: Feedwater Pumps, kWe | C126: 1600
B127: Gasifier Water Pump, kWe | C127: 40
B128: Ground Water Pumps, kWe | C128: 330
B129: Hydrogen Compressor, kWe | C129: 10720 | D129: ← Not in scope for H2A framework
B130: Miscellaneous Balance of PlantA, kWe | C130: 2520
B131: N2 Compressors, kWe | C131: 2390
B132: O2 Pump, kWe | C132: 330
B133: Quench Water Pump, kWe | C133: 330
B134: Shift Steam Pump, kWe | C134: 310
B135: Slag Handling, kWe | C135: 550
B136: Slag Reclaim Water Recycle Pump, kWe | C136: 0
B137: Slurry Water Pump, kWe | C137: 0
B138: Sour Gas Compressors, kWe | C138: 140
B139: Sour Water Recycle Pumps, kWe | C139: 0
B140: Steam Turbine Auxiliaries, kWe | C140: 90
B141: Syngas Recycle Compressor, kWe | C141: 880
B142: Syngas Scrubber Pumps, kWe | C142: 120
B143: Process Water Treatment Auxiliaries, kWe | C143: 1310
B144: Transformer Losses, kWe | C144: 950
B145: Total Auxiliaries, MWe | C145: 148
B146: Net Power, MWe | C146: -39
B149: Description | C149: $/1,000
B150: Pre-Production Costs
B151: 6 Months All Labor | C151: 24741
B152: 1 Month Maintenance Materials | C152: 6216
B153: 1 Month Non-Fuel Consumables | C153: 3229
B154: 1 Month Waste Disposal | C154: 701
B155: 25% of 1 Months Fuel Cost at 100% CF | C155: 2216
B156: 2% of TPC | C156: 61203
B157: Total | C157: 98306
B158: Inventory Capital
B159: 60-day supply of fuel and consumables at 100% CF | C159: 19784
B160: 0.5% of TPC (spare parts) | C160: 15301
B161: Total | C161: 35085
B162: Other Costs
B163: Initial Cost for Catalyst and Chemicals | C163: 41169
B164: Land | C164: 900
B165: Other Owner’s Costs | C165: 459023
B166: Financing Costs | C166: 82624
B167: Total Overnight Costs (TOC) | C167: 3777257
B168: TASC Multiplier (IOU, 35 year) | C168: 1.116
B169: Total As-Spent Cost (TASC) | C169: 4216689
B172: Other deprecialbe capital | C172: =+C157+C161+C163+C165+C169-C167 -> 1073015

Sheet Input_Sheet_Template
A1: a
B2: H2A Hydrogen Production Cash Flow Analysis Tool v3.2018
A3: title | B3: Current Central Hydrogen Production from Coal Gasification with CO₂ Capture and Sequestration
B5: Table of Contents
B6: View and edit project information
B8: H2A cell color coding
B10: Use H2A default values
B14: Technical Operating Parameters and Specifications
B15: Financial Input Values
B16: Energy Feedstocks, Utilities and Byproducts | H16: Cash Flow NPV (Error if not 0)
B17: Capital Cost | H17: =+NPV -> 3.25639631e-06
B18: Fixed Operating Costs
B19: Variable Operating Costs - Other Materials and Byproducts
B20: Variable Operating Costs - Other Variable Operating Costs
B24: Technical Operating Parameters and Specifications | E24: Notes
A25: cap_factor | B25: Operating Capacity Factor (%) | C25: =0.9*sensitivity_01 -> 0.9
A26: design_cap | B26: Plant Design Capacity (kg of H2/day) | C26: =ProcessFlow!C13*sensitivity_02 -> 660000
B27: Plant Output (kg/day) | C27: =design_cap*cap_factor -> 594000
A28: Soutput_kgyear | B28: Plant Output (kg/year) | C28: =output_kgpday*365 -> 216810000
B29: Financial Input Values | E29: Notes
A30: ref_year | B30: Reference year | C30: 2016
A31: startup_year | B31: Assumed start-up year | C31: 2015
B32: Basis year | C32: 2018 | D32: Costs must be entered in basis year dollars
A33: construct | B33: Length of Construction Period (years) | C33: 3
A34: percent_cap1 | B34: % of Capital Spent in 1st Year of Construction | C34: 1
A35: percent_cap2 | B35: % of Capital Spent in 2nd Year of Construction | C35: 0
A36: percent_cap3 | B36: % of Capital Spent in 3rd Year of Construction | C36: 0
A37: percent_cap4 | B37: % of Capital Spent in 4th Year of Construction
A38: start_time | B38: Start-up Time (years) | C38: 1
A39: plant_life | B39: Plant life (years) | C39: 40
A40: anal_period | B40: Analysis period (years) | C40: 40
A41: depr_length | B41: Depreciation Schedule Length (years) | C41: 20
A42: depr_type | B42: Depreciation Type | C42: MACRS
A43: equity | B43: % Equity Financing | C43: 0.4
A44: debt_interest | B44: Interest rate on debt, if applicable (%) | C44: 0.037
A45: debt_period | B45: Debt period (years) | C45: 0 | E45: Enter 0 to enable constant outstanding debt.
A46: percnt_fixed | B46: % of Fixed Operating Costs During Start-up (%) | C46: 1
A47: percnt_revs | B47: % of Revenues During Start-up (%) | C47: 1
A48: percnt_var | B48: % of Variable Operating Costs During Start-up (%) | C48: 1
A49: decom_percent | B49: Decommissioning costs (% of depreciable capital investment) | C49: 0.1
A50: salvage_perct | B50: Salvage value (% of total capital investment) | C50: 0.1
A51: inflation_rate | B51: Inflation rate (%) | C51: 0.019
A52: real_irr | B52: After-tax Real IRR (%) | C52: =0.08*sensitivity_03 -> 0.08
A53: state_tax_rate | B53: State Taxes (%) | C53: 0.06
A54: fed_tax_rate | B54: Federal Taxes (%) | C54: 0.21
A55: Stotal_tax_rate | B55: Total Tax Rate (%) | C55: =fed_tax_rate+state_tax_rate*(1-fed_tax_rate) -> 0.2574
A56: WorkingCap | B56: WORKING CAPITAL (% of yearly change in operating costs) | C56: 0.15
B57: Energy Feedstocks, Utilities, and Byproducts
B58: Select the Price Table to Use
B59: AEO_2017_Reference_Case | F59: To use a new feedstock, utility or byproduct, select the price table and product from the dropdown lists and enter the usage (or byproduct) amount. Click the "Add" button to add the product to the "In Use" list. Important; only materials on the "In Use" list will be used in H2A calculations. To delete materials from the list, click the "Delete" button below
B60: Select the Use
B61: feedstock | C61: =IF(OR(TMP_FeedType="Feedstock",TMP_FeedType = "Utility")," Enter usage in","Enter production in") -> Enter usage in | D61: =VLOOKUP(TMP_FeedName,INDIRECT(TMP_PriceTable),4,FALSE) -> kWh
B62: Select the Feed Type
B63: Industrial Electricity
B65: =SELECTED_FEED -> feedstock | C65: =TMP_FeedName -> Industrial Electricity
B66: ="Price Conversion Factor (GJ/"&TMP_Units&")" -> Price Conversion Factor (GJ/kWh) | C66: =VLOOKUP(TMP_FeedName,MASTER_PROPERTY_TABLE,9,FALSE) -> 0.0036
B67: ="Price in Startup Year ($" & ref_year & ")/" & TMP_Units -> Price in Startup Year ($2016)/kWh | C67: =HLOOKUP(startup_year,INDIRECT(TMP_PriceTable),MATCH(TMP_FeedName,INDIRECT(Energy_Feed_List),0),FALSE)*TMP_Conversion -> 0.06998061126
B68: =IF(OR(TMP_FeedType="Feedstock",TMP_FeedType = "Utility"),"Usage ("&TMP_Units&"/kg H2)","Production ("&TMP_Units&"/kg H2)") -> Usage (kWh/kg H2) | C68: =+ProcessFlow!C30 -> 1.044
B69: =IF(OR(TMP_FeedType = "Feedstock",TMP_FeedType = "Utility"), "Cost in Startup Year","Income in Startup Year") -> Cost in Startup Year | C69: =design_cap*365*cap_factor*TMP_Usage*TMP_StartPrice -> 15840086.17
B70: Lookup Prices | C70: yes
B72: Energy feedstocks, utilities, and byproducts currently in use
A73: START_TOP
B74: feedstock | C74: Price Conversion Factor (GJ/kg) | D74: Price in Startup Year ($2016)/kg | E74: Usage (kg/kg H2) | F74: Cost in Startup Year | G74: Lookup Prices
B75: Electric Utility Steam Coal | C75: 0.02273503452 | D75: 0.04756253033 | E75: =+ProcessFlow!C29 -> 8.726732856 | F75: =+output_kgyear*feedstockElectric_Utility_Steam_Coal_Price*feedstockElectric_Utility_Steam_Coal_Usage -> 89990350.22 | G75: yes
B76: feedstock | C76: Price Conversion Factor (GJ/kWh) | D76: Price in Startup Year ($2016)/kWh | E76: Usage (kWh/kg H2) | F76: Cost in Startup Year | G76: Lookup Prices
B77: Industrial Electricity | C77: 0.0036 | D77: 0.06998061126 | E77: =ProcessFlow!C30 -> 1.044 | F77: =+output_kgyear*feedstockIndustrial_Electricity_Price*feedstockIndustrial_Electricity_Usage -> 15840086.17 | G77: yes
A78: START_TOP
A79: START_UTILITY
A80: START_BYPROD
F81: Total
A82: Total_Energy_Feed_Cost | B82: Total Energy Feedstock Cost ($/year) | F82: =SUM(Dynamic_Feed_Total) -> 105830436.4
A83: Total_Energy_Utilities_Cost | B83: Total Energy Utilities Cost ($/year) | F83: =SUM(Dynamic_Utilities_Total) -> 0
A84: Total_Energy_Byproduct_Credit | B84: Total Energy Byproduct Credit ($/year) | F84: =SUM(Dynamic_Byproduct_Total) -> 0
D85: Notes:
B87: Capital Costs | E87: Notes
A88: direct_cap | B88: H2A Total Direct Capital Cost | C88: =Det_scaled_cap -> 2070222472 | E88: Click to enter details on the Cost Detail Sheet
B90: Indirect Depreciable Capital Costs | C90: ="Enter values in basis year (" & BasisYear & ") dollars" -> Enter values in basis year (2018) dollars | D90: Combined Plant Scaling and Escalation Factor | E90: ="Reference Year ("& ref_year & ") Dollars" -> Reference Year (2016) Dollars
A91: Site_prep | B91: Site Preparation ($) (may change to construction costs) | C91: =0.0166852410459109*(direct_cap)/(CEPCIinflator*CPIinflator) -> 36038358.81 | D91: =CEPCIinflator*CPIinflator -> 0.9584831859 | E91: =C91*D91 -> 34542160.97 | F91: Includes buildings and other site improvements
A92: Engin | B92: Engineering & design ($) | C92: =0.0762517893318672*(direct_cap)/(CEPCIinflator*CPIinflator) -> 164695813.3 | D92: 0.9584831859 | E92: =C92*D92 -> 157858167.8
A93: Process_cont | B93: Process contingency ($) | C93: =0.0901639993858072*(direct_cap)/(CEPCIinflator*CPIinflator) -> 194744717.9 | D93: 0.9584831859 | E93: 186659537.7
A94: Project_cont | B94: Project contingency ($) | C94: =0.22421058888212*(direct_cap)/(CEPCIinflator*CPIinflator) -> 484271196.8 | D94: 0.9584831859 | E94: 464165799.6
A95: Other_indirect | B95: Other (Depreciable) capital ($) | C95: 485249000 | D95: 0.9584831859 | E95: 465103007.5
A96: Fees | B96: One-time Licensing Fees ($) | D96: 0.9584831859 | E96: 0
A97: Permitting | B97: Up-Front Permitting Costs ($) (legal and contractors fees included here) | C97: =0.0762517893318672*(direct_cap)/(CEPCIinflator*CPIinflator) -> 164695813.3 | D97: 0.9584831859 | E97: 157858167.8
A98: Sdepr_cap | B98: Total Depreciable Capital Costs | E98: =direct_cap+SUM($E$91:$E$97) -> 3536409313
D99: Combined Plant Scaling and Escalation Factor
B100: Non-Depreciable Capital Costs | C100: ="Enter values in basis year (" & BasisYear & ") dollars" -> Enter values in basis year (2018) dollars | E100: ="Reference Year ("& ref_year & ") Dollars" -> Reference Year (2016) Dollars
A101: acre_cost | B101: Cost of land ($/acre) | C101: 50000 | D101: =CPIinflator -> 0.9584831859 | E101: =C101*D101 -> 47924.1593
A102: acres | B102: Land required (acres) | C102: 300 | D102: =Scale_Factor *1 -> 1 | E102: =C102*D102 -> 300 | F102: Estimated based on site total cost in NETL report.
A103: Sland_cost | B103: Land Cost ($) | E103: =acre_cost*acres -> 14377247.79
B104: Other non depreciable capital costs | D104: =CPIinflator -> 0.9584831859 | E104: =C104*D104 -> 0
A105: Snon_dep_cap | B105: Total Non-Depreciable Capital Costs | E105: =land_cost+$E$104 -> 14377247.79
A107: Stotal_cap | B107: Total Capital Costs | C107: =(depr_cap+non_dep_cap)*sensitivity_06 -> 3550786561
B109: Fixed Operating Costs | C109: ="Enter values in basis year (" & BasisYear & ") dollars" -> Enter values in basis year (2018) dollars | D109: Combined Plant Scaling and Escalation Factor | E109: ="Reference Year ("& ref_year & ") Dollars" -> Reference Year (2016) Dollars
A110: FTEs | B110: Total plant staff (number of FTEs employed by plant) | C110: 60 | D110: =Scale_Ratio^0.25 -> 1 | E110: =C110*D110 -> 60
A111: FTE_cost | B111: Burdened labor cost, including overhead ($/man-hr) | C111: 50 | D111: =VLOOKUP(ref_year,Tbl_labor_indexes,2,FALSE)/VLOOKUP(BasisYear,Tbl_labor_indexes,2,FALSE) -> 0.8920962199 | E111: =C111*D111 -> 44.604811 | F111: Using H2A default
A112: Slabor_cost | B112: Labor cost, $/year | E112: =FTEs*2080*FTE_cost -> 5566680.412
A113: overhead_rate | B113: G&A rate (% of labor cost) | C113: 0.2 | F113: Using H2A default
A114: Soverhead_GA | B114: G&A ($/year) | E114: =labor_cost*overhead_rate -> 1113336.082
A115: licensing | B115: Licensing, Permits and Fees ($/year) | C115: 0 | D115: =Scale_Factor *CEPCIinflator*CPIinflator -> 0.9584831859 | E115: =C115*D115 -> 0
A116: tax_ins_rate | B116: Property tax and insurance rate (% of total capital investment per year) | C116: 0.02
A117: Stax_insurance | B117: Property taxes and insurance ($/year) | E117: =tax_ins_rate*total_cap -> 71015731.22
A118: rent | B118: Rent ($/year) | C118: 0 | D118: =Scale_Factor *CPIinflator -> 0.9584831859 | E118: =C118*D118 -> 0
A119: material | B119: Material costs for maintenance and repairs ($/year) | C119: 63082337 | D119: =Scale_Factor *CEPCIinflator*CPIinflator -> 0.9584831859 | E119: =C119*D119 -> 60463359.34
A120: prod_maint | B120: Production Maintenance and Repairs ($/year) | C120: 33967412 | D120: =Scale_Factor *CEPCIinflator*CPIinflator -> 0.9584831859 | E120: =C120*D120 -> 32557193.27 | F120: Maintenance labor
A121: other_fees | B121: Other Fees ($/year) | C121: 10355215 | D121: =Scale_Ratio * CEPCIinflator*CPIinflator -> 0.9584831859 | E121: =C121*D121 -> 9925299.464 | F121: Administrative & support labor
A122: other_fixed | B122: Other Fixed O&M Costs ($/year) | C122: 0 | D122: =Scale_Factor *CEPCIinflator*CPIinflator -> 0.9584831859 | E122: =C122*D122 -> 0
A123: Sfixed | B123: Total Fixed Operating Costs | E123: =(labor_cost+overhead_GA+tax_insurance+licensing+SUM(E118:E122))*sensitivity_07 -> 180641599.8
B125: Variable Operating Costs
B126: Other Materials and Byproducts
B128: Select the Material
B129: Process Water
B130: Feed or utility | C130: =B129 -> Process Water
B131: ="$(" & ref_year & ")/ " & VLOOKUP(TMP_NonE_Feed,Tbl_Other_Inputs_and_Byproducts,2,FALSE) -> $(2016)/ gal | C131: =HLOOKUP(startup_year,Tbl_Other_Inputs_and_Byproducts,MATCH(TMP_NonE_Feed,Other_Inputs_List,0),FALSE) -> 0.002374951095
B132: =IF(TMP_NonE_Type="Feed or utility","Usage per kg H2","Production per kg H2") -> Usage per kg H2
B133: =IF(TMP_NonE_Type = "Feed or utility", "Cost in Startup Year","Income in Startup Year") -> Cost in Startup Year | C133: =design_cap*365*cap_factor*TMP_NonE_Usage*TMP_NonE_StartPrice -> 0
B134: Lookup Prices | C134: Yes
A135: START_NONE_TOP
B136: Feed or utility | C136: $(2016)/ gal | D136: Usage per kg H2 | E136: Cost in Startup Year | F136: Lookup Prices
B137: Process Water | C137: 0.002374951095 | D137: =+ProcessFlow!C31 -> 7.937454545 | E137: =+output_kgyear*C137*D137 -> 4087099.698 | F137: Yes
A138: START_NONE_FEED
A139: START_NONE_BYPROD
B140: Total Non Energy Utility and Material Costs ($/year) | C140: =SUM(Dynamic_NonE_Feed_Total) -> 4087099.698
A141: total_non_energy_byproduct_credit | B141: Total Non Energy Byproduct Credits ($/year) | C141: =SUM(Dynamic_NonE_Byprod_Total) -> 0
A143: Stotal_feedstock | B143: Total Feedstock Costs ($/year) | C143: =Total_Energy_Feed_Cost -> 105830436.4
A144: Stotal_utilities | B144: Total Utility Costs ($/year) | C144: =Total_Energy_Utilities_Cost+Total_Non_Energy_Feed_Cost -> 4087099.698
A145: Stotal_byproducts | B145: Total Byproduct Credits ($/year) | C145: =Total_Energy_Byproduct_Credit+total_non_energy_byproduct_credit -> 0
B146: Other Variable operating costs (for the first year) | C146: ="Enter values in basis year (" & BasisYear & ") dollars" -> Enter values in basis year (2018) dollars | D146: Combined Plant Scaling and Escalation Factor | E146: ="Reference Year ("& ref_year & ") Dollars" -> Reference Year (2016) Dollars
A147: var_misc | B147: Other variable operating costs (e.g. environmental surcharges) ($/year) | C147: 0 | D147: =Scale_Ratio * VLOOKUP(ref_year,Chemical_price_indexes,2,FALSE)/VLOOKUP(BasisYear,Chemical_price_indexes,2,FALSE) -> 0.9205808476 | E147: =C147*D147 -> 0
A148: total_other_raw | B148: Other Material Costs ($/year) | C148: =31000972-1453327-19661792 -> 9885853 | D148: =Scale_Ratio * VLOOKUP(ref_year,Chemical_price_indexes,2,FALSE)/VLOOKUP(BasisYear,Chemical_price_indexes,2,FALSE) -> 0.9205808476 | E148: =C148*D148 -> 9100726.934
A149: waste_treat | B149: Waste treatment costs ($/year) | C149: =6731529 -> 6731529 | D149: =Scale_Ratio * VLOOKUP(ref_year,Chemical_price_indexes,2,FALSE)/VLOOKUP(BasisYear,Chemical_price_indexes,2,FALSE) -> 0.9205808476 | E149: =C149*D149 -> 6196916.672
A150: solidwaste_treat | B150: Solid waste disposal costs ($/year) | C150: 0 | D150: =Scale_Ratio * VLOOKUP(ref_year,Chemical_price_indexes,2,FALSE)/VLOOKUP(BasisYear,Chemical_price_indexes,2,FALSE) -> 0.9205808476 | E150: =C150*D150 -> 0
A151: replace_factor | B151: Total Unplanned Replacement Capital Cost Factor (% of total direct depreciable costs/year) | C151: 0.005 | E151: Value added to match other central cases. Use this value for all central cases
A152: royalties | B152: Royalties ($/year) | C152: 0 | D152: =Scale_Ratio * CPIinflator -> 0.9584831859 | E152: 0
A153: operator_profit | B153: Operator Profit ($/year) | C153: 0 | D153: =Scale_Ratio * CPIinflator -> 0.9584831859 | E153: 0
A154: tax_credit | B154: Subsidies, Tax Incentives ($/year) | C154: 0 | D154: =Scale_Ratio * CPIinflator -> 0.9584831859 | E154: 0
A155: CO2_seq | B155: CO2 sequestration O&M costs and credits ($/year) | E155: =+'Carbon Sequestration'!F39 -> 62897525.06
B156: Process Carbon Tax ($/metric ton carbon produced as CO2) | C156: 0 | D156: =CPIinflator -> 0.9584831859 | E156: 0
B157: Process Carbon Tax ($/year) | E157: =ROUND(Proc_CO2_tax*12/44*Proc_CO2_MTpY,-2) -> 0
B158: Upstream Carbon Tax ($/metric ton upstream GHG CO2 eq) | C158: 0 | D158: =CPIinflator -> 0.9584831859 | E158: 0
B159: Upstream Carbon Tax ($/year) | E159: =ROUND(Upstream_CO2_tax/1000*Upstream_GHG_total*output_kgyear,2) -> 0
A160: Stotal_var | B160: Total Variable Operating Costs ($/year) | E160: =ROUND(total_feedstock+total_utilities+total_other_raw-total_byproducts+var_misc+waste_treat+solidwaste_treat+royalties+operator_profit-tax_credit+CO2_OandMcost+Proc_CO2_taxpYear + Upstream_CO2_taxpYear,-2) -> 188112700

Sheet Replacement Costs
A2: Replacement Costs
C5: Color Key
A9: ="NOTE: Enter costs in year "&TEXT(BasisYear,"0")&" $ - Do not inflate" -> NOTE: Enter costs in year 2018 $ - Do not inflate
A10: NOTE: All replacement costs are assumed to be equity financed.
A13: Unplanned Yearly Replacement Capital (Depreciable)
C14: Comments | F14: Source | G14: Information
A15: Total Unplanned Replacement Capital Cost Factor (% of total depreciable capital costs/year) | B15: =replace_factor -> 0.005 | G15: Enter a fixed percentage. This input is meant to include, in the Cash Flow Analysis, a factor for unplanned capital expenditures.
A16: Actual Year | B16: Analysis Year | C16: Operations Year | D16: Specified Yearly Replacement Costs | E16: Carbon Sequestration Related Replacement Costs | F16: Specified Yearly Replacement Costs | G16: Unplanned Replacement Costs | H16: Total Yearly Replacement Costs | I16: Uninstalled costs | J16: Installation factor | K16: Comments: | L16: Data source:
D17: ="Year "&TEXT(BasisYear,"0")&" $" -> Year 2018 $ | E17: ="Year "&TEXT(ref_year,"0")&" $" -> Year 2016 $ | F17: ="Year "&TEXT(ref_year,"0")&" $" -> Year 2016 $ | G17: ="Year "&TEXT(ref_year,"0")&" $" -> Year 2016 $ | H17: Inflated to Start-up Year
A18: =IF(C18<>"",'Cash Flow Analysis'!A65,"") -> 2012 | B18: =construct+1 -> 4 | C18: 1 | E18: 0 | F18: =(D18)*CPIinflator*CEPCIinflator+E18 -> 0 | G18: =IF(C18>anal_period,0,IF(replace_factor<>"",replace_factor*depr_cap,0)) -> 17682046.57 | H18: =(F18+G18)*((1+inflation_rate)^(startup_year-ref_year)) -> 17352351.88
A19: =IF(C19<>"",'Cash Flow Analysis'!A66,"") -> 2013 | B19: =IF(B18<anal_period+construct,B18+1,"") -> 5 | C19: =IF(B19="","",C18+1) -> 2 | E19: 0 | F19: 0 | G19: =IF(C19>anal_period,0,IF(replace_factor<>"",replace_factor*depr_cap,0)) -> 17682046.57 | H19: =(F19+G19)*((1+inflation_rate)^(startup_year-ref_year)) -> 17352351.88
A20: =IF(C20<>"",'Cash Flow Analysis'!A67,"") -> 2014 | B20: 6 | C20: 3 | E20: 0 | F20: 0 | G20: 17682046.57 | H20: 17352351.88
A21: =IF(C21<>"",'Cash Flow Analysis'!A68,"") -> 2015 | B21: 7 | C21: 4 | E21: 0 | F21: 0 | G21: 17682046.57 | H21: 17352351.88
A22: =IF(C22<>"",'Cash Flow Analysis'!A69,"") -> 2016 | B22: 8 | C22: 5 | E22: 0 | F22: 0 | G22: 17682046.57 | H22: 17352351.88
A23: =IF(C23<>"",'Cash Flow Analysis'!A70,"") -> 2017 | B23: 9 | C23: 6 | E23: 0 | F23: 0 | G23: 17682046.57 | H23: 17352351.88
A24: =IF(C24<>"",'Cash Flow Analysis'!A71,"") -> 2018 | B24: 10 | C24: 7 | E24: 0 | F24: 0 | G24: 17682046.57 | H24: 17352351.88
A25: =IF(C25<>"",'Cash Flow Analysis'!A72,"") -> 2019 | B25: 11 | C25: 8 | E25: 0 | F25: 0 | G25: 17682046.57 | H25: 17352351.88
A26: =IF(C26<>"",'Cash Flow Analysis'!A73,"") -> 2020 | B26: 12 | C26: 9 | E26: 0 | F26: 0 | G26: 17682046.57 | H26: 17352351.88
A27: =IF(C27<>"",'Cash Flow Analysis'!A74,"") -> 2021 | B27: 13 | C27: 10 | E27: 0 | F27: 0 | G27: 17682046.57 | H27: 17352351.88
A28: =IF(C28<>"",'Cash Flow Analysis'!A75,"") -> 2022 | B28: 14 | C28: 11 | E28: 0 | F28: 0 | G28: 17682046.57 | H28: 17352351.88
A29: =IF(C29<>"",'Cash Flow Analysis'!A76,"") -> 2023 | B29: 15 | C29: 12 | E29: 0 | F29: 0 | G29: 17682046.57 | H29: 17352351.88
A30: =IF(C30<>"",'Cash Flow Analysis'!A77,"") -> 2024 | B30: 16 | C30: 13 | E30: 0 | F30: 0 | G30: 17682046.57 | H30: 17352351.88
A31: =IF(C31<>"",'Cash Flow Analysis'!A78,"") -> 2025 | B31: 17 | C31: 14 | E31: 0 | F31: 0 | G31: 17682046.57 | H31: 17352351.88
A32: =IF(C32<>"",'Cash Flow Analysis'!A79,"") -> 2026 | B32: 18 | C32: 15 | E32: 0 | F32: 0 | G32: 17682046.57 | H32: 17352351.88
A33: =IF(C33<>"",'Cash Flow Analysis'!A80,"") -> 2027 | B33: 19 | C33: 16 | E33: 0 | F33: 0 | G33: 17682046.57 | H33: 17352351.88
A34: =IF(C34<>"",'Cash Flow Analysis'!A81,"") -> 2028 | B34: 20 | C34: 17 | E34: 0 | F34: 0 | G34: 17682046.57 | H34: 17352351.88
A35: =IF(C35<>"",'Cash Flow Analysis'!A82,"") -> 2029 | B35: 21 | C35: 18 | E35: 0 | F35: 0 | G35: 17682046.57 | H35: 17352351.88
A36: =IF(C36<>"",'Cash Flow Analysis'!A83,"") -> 2030 | B36: 22 | C36: 19 | E36: 0 | F36: 0 | G36: 17682046.57 | H36: 17352351.88
A37: =IF(C37<>"",'Cash Flow Analysis'!A84,"") -> 2031 | B37: 23 | C37: 20 | E37: 0 | F37: 0 | G37: 17682046.57 | H37: 17352351.88
A38: =IF(C38<>"",'Cash Flow Analysis'!A85,"") -> 2032 | B38: 24 | C38: 21 | E38: 0 | F38: 0 | G38: 17682046.57 | H38: 17352351.88
A39: =IF(C39<>"",'Cash Flow Analysis'!A86,"") -> 2033 | B39: 25 | C39: 22 | E39: 0 | F39: 0 | G39: 17682046.57 | H39: 17352351.88
A40: =IF(C40<>"",'Cash Flow Analysis'!A87,"") -> 2034 | B40: 26 | C40: 23 | E40: 0 | F40: 0 | G40: 17682046.57 | H40: 17352351.88
A41: =IF(C41<>"",'Cash Flow Analysis'!A88,"") -> 2035 | B41: 27 | C41: 24 | E41: 0 | F41: 0 | G41: 17682046.57 | H41: 17352351.88
A42: =IF(C42<>"",'Cash Flow Analysis'!A89,"") -> 2036 | B42: 28 | C42: 25 | E42: 0 | F42: 0 | G42: 17682046.57 | H42: 17352351.88
A43: =IF(C43<>"",'Cash Flow Analysis'!A90,"") -> 2037 | B43: 29 | C43: 26 | E43: 0 | F43: 0 | G43: 17682046.57 | H43: 17352351.88
A44: =IF(C44<>"",'Cash Flow Analysis'!A91,"") -> 2038 | B44: 30 | C44: 27 | E44: 0 | F44: 0 | G44: 17682046.57 | H44: 17352351.88
A45: =IF(C45<>"",'Cash Flow Analysis'!A92,"") -> 2039 | B45: 31 | C45: 28 | E45: 0 | F45: 0 | G45: 17682046.57 | H45: 17352351.88
A46: =IF(C46<>"",'Cash Flow Analysis'!A93,"") -> 2040 | B46: 32 | C46: 29 | E46: 0 | F46: 0 | G46: 17682046.57 | H46: 17352351.88
A47: =IF(C47<>"",'Cash Flow Analysis'!A94,"") -> 2041 | B47: 33 | C47: 30 | E47: 0 | F47: 0 | G47: 17682046.57 | H47: 17352351.88
A48: =IF(C48<>"",'Cash Flow Analysis'!A95,"") -> 2042 | B48: 34 | C48: 31 | E48: 0 | F48: 0 | G48: 17682046.57 | H48: 17352351.88
A49: =IF(C49<>"",'Cash Flow Analysis'!A96,"") -> 2043 | B49: 35 | C49: 32 | E49: 0 | F49: 0 | G49: 17682046.57 | H49: 17352351.88
A50: =IF(C50<>"",'Cash Flow Analysis'!A97,"") -> 2044 | B50: 36 | C50: 33 | E50: 0 | F50: 0 | G50: 17682046.57 | H50: 17352351.88
A51: =IF(C51<>"",'Cash Flow Analysis'!A98,"") -> 2045 | B51: 37 | C51: 34 | E51: 0 | F51: 0 | G51: 17682046.57 | H51: 17352351.88
A52: =IF(C52<>"",'Cash Flow Analysis'!A99,"") -> 2046 | B52: 38 | C52: 35 | E52: 0 | F52: 0 | G52: 17682046.57 | H52: 17352351.88
A53: =IF(C53<>"",'Cash Flow Analysis'!A100,"") -> 2047 | B53: 39 | C53: 36 | E53: 0 | F53: 0 | G53: 17682046.57 | H53: 17352351.88
A54: =IF(C54<>"",'Cash Flow Analysis'!A101,"") -> 2048 | B54: 40 | C54: 37 | E54: 0 | F54: 0 | G54: 17682046.57 | H54: 17352351.88
A55: =IF(C55<>"",'Cash Flow Analysis'!A102,"") -> 2049 | B55: 41 | C55: 38 | E55: 0 | F55: 0 | G55: 17682046.57 | H55: 17352351.88
A56: =IF(C56<>"",'Cash Flow Analysis'!A103,"") -> 2050 | B56: 42 | C56: 39 | E56: 0 | F56: 0 | G56: 17682046.57 | H56: 17352351.88
A57: =IF(C57<>"",'Cash Flow Analysis'!A104,"") -> 2051 | B57: 43 | C57: 40 | E57: 0 | F57: 0 | G57: 17682046.57 | H57: 17352351.88

Sheet Capital Costs
B2: Capital Costs
C4: Color Key
B7: Design Plant Hydrogen Production (kg/day) | C7: 660000 | D7: Capital costs for the design plant (baseline) are entered on this sheet. Use the Plant Scaling sheet to set scaling parameters for scaling up or down in size from the baseline plant. Enter the output kg/day for the plant you wish to analyze on the Input Sheet
D8: Comments
B9: Basis year for capital costs | C9: =BasisYear -> 2018
B10: Enter current year for capital costs | C10: 2018
B11: ="CEPCI Inflator ("&BasisYear&" to "&CurrentYear&")" -> CEPCI Inflator (2018 to 2018) | C11: =VLOOKUP(CurrentYear,Tbl_PlantCostIndexes,2,FALSE)/VLOOKUP(BasisYear,Tbl_PlantCostIndexes,2,FALSE) -> 1 | D11: The Chemical Engineering Plant Cost Index (CEPCI) is used to adjust the capital cost of the H2 Production facility from the basis year to the current year.
B12: ="Consumer Price Inflator ("&CurrentYear&" to "&ref_year&")" -> Consumer Price Inflator (2018 to 2016) | C12: =VLOOKUP(ref_year,DeflatorTable,2,FALSE)/VLOOKUP(CurrentYear,DeflatorTable,2,FALSE) -> 0.9584831859 | D12: The Consumer Price Inflator (CPI) is used to deflate all dollars from the current year to the Reference Year.
B14: ="CAPITAL INVESTMENT (Inputs REQUIRED in Basis Year, (" & BasisYear & ") $)" -> CAPITAL INVESTMENT (Inputs REQUIRED in Basis Year, (2018) $)
B15: Major pieces/systems of equipment | C15: ="Baseline Uninstalled Costs $"&BasisYear&" Dollars" -> Baseline Uninstalled Costs $2018 Dollars | D15: ="Baseline Uninstalled Costs $"&ref_year&" Dollars" -> Baseline Uninstalled Costs $2016 Dollars | E15: Installation Cost Factor | F15: Baseline Installed Costs | G15: Comments | H15: Data Source
B16: Coal Handling | C16: 39214000 | D16: =C16*CEPCIinflator*CPIinflator -> 37585959.65 | E16: 1.260442699 | F16: =D16*E16 -> 47374948.43
B17: Coal Preparation & Feed | C17: 23728000 | D17: =C17*CEPCIinflator*CPIinflator -> 22742889.04 | E17: 1.224165543 | F17: =D17*E17 -> 27841061.1
B18: Cooling Water System | C18: 24907000 | D18: 23872940.71 | E18: 1.400168627 | F18: 33426142.63
B19: Feedwater & Miscellaneous BOP Systems | C19: 67435000 | D19: 64635313.64 | E19: 1.565863424 | F19: 101210073.5
B20: Gasifier, ASU, & Accessories | C20: =(841657+29170)*1000 -> 870827000 | D20: 834673037.3 | E20: 1.421987842 | F20: 1186894911
B21: Hydrogen Production | C21: 20163000 | D21: 19325896.48 | E21: 1.082279423 | F21: 20916020.08 | G21: Removed H₂ compressor to pipeline pressure as it is out of scope for H2A production cases
B22: Instrumentation & Control | C22: 15329000 | D22: 14692588.76 | E22: 1.24717855 | F22: 18324281.55
B23: Off Gas Fired Boiler, Ductwork, & Stack | C23: 5629000 | D23: 5395301.854 | E23: 1.358145319 | F23: 7327603.956
B24: Slag Recovery & Handling | C24: 5618000 | D24: 5384758.538 | E24: 1.642933428 | F24: 8846799.806
B25: Steam Turbine & Accessories | C25: 36039000 | D25: 34542775.54 | E25: 1.183634396 | F25: 40886017.26
B26: Syngas Cleanup | C26: 402506000 | D26: 385795233.2 | E26: 1.496064655 | F26: 577174612.5
D27: 0 | F27: 0
D28: 0 | F28: 0
D29: 0 | F29: 0
D30: 0 | F30: 0
D31: 0 | F31: 0
D32: 0 | F32: 0
D33: 0 | F33: 0
D34: 0 | F34: 0
D35: 0 | F35: 0
C36: =SUM(C16:C35) -> 1511395000 | D36: =SUM(D16:D35) -> 1448646695 | F36: =SUM(F16:F35) -> 2070222472

Sheet Plant Scaling
B1: leave this sheet as is for scaled costs
B2: Plant Scaling Factors
B3: Baseline Design Capacity (kg H2/day) | C3: =Baseline_Design_Capacity -> 660000 | D3: Design capacity for original H2A case. Imported from capital cost sheet
B4: Scale Ratio | C4: =design_cap/Baseline_Design_Capacity -> 1 | D4: Ratio of new design capacity (enter on Input Sheet) to the Baseline Design Capacity. Used for linear scaling
B5: Scale Factor | C5: =$G$27/Det_direct_cap -> 1 | D5: Ratio of total scaled installed capital capital cost to total baseline installed capital costs. Used for exponential scaling.
B6: Default Scaling Factor Exponent | C6: 0.6 | D6: Scaling factor exponent used for scaling all capital equipment where an individual factor has not been entered below.
B7: Lower Limit for Scaling Capacity (kg H2/day) | C7: =660000*0.5 -> 330000 | D7: http://www.chemicals-technology.com/projects/air-products-plant/
B8: Upper Limit for Scaling Capacity (kg H2/day) | C8: =660000*2 -> 1320000 | D8: http://hydrogen.pnl.gov/filedownloads/hydrogen/datasheets/hydrogen_production_capacity_by_state.xls
B11: ="CAPITAL INVESTMENT (Inputs REQUIRED in Reference Year, (" & ref_year & ") $)" -> CAPITAL INVESTMENT (Inputs REQUIRED in Reference Year, (2016) $)
B12: Major pieces/systems of equipment | C12: Baseline Uninstalled Costs | D12: Scaling Factor Exponent | E12: Scaled Uninstalled Costs | F12: Installation Cost Factor | G12: Installed Cost (scaled) | H12: Installed Cost (baseline) | I12: Comments | J12: Data Source
B13: ='Capital Costs'!B16 -> Coal Handling | C13: ='Capital Costs'!D16 -> 37585959.65 | D13: 0.62 | E13: =IF($D13="",$C13*Scale_Ratio^Scaling_Factor_Exponent,$C13*Scale_Ratio^$D13) -> 37585959.65 | F13: ='Capital Costs'!E16 -> 1.260442699 | G13: =$E13*$F13 -> 47374948.43 | H13: =C13*F13 -> 47374948.43 | I13: Weighted average by sub-component list | J13: https://netl.doe.gov/projects/files/QualityGuidelinesforEnergySystemStudiesCapitalCostScalingMethodologyRevision4Report_110719.pdf
B14: ='Capital Costs'!B17 -> Coal Preparation & Feed | C14: ='Capital Costs'!D17 -> 22742889.04 | D14: 0.66 | E14: =IF($D14="",$C14*Scale_Ratio^Scaling_Factor_Exponent,$C14*Scale_Ratio^$D14) -> 22742889.04 | F14: ='Capital Costs'!E17 -> 1.224165543 | G14: =$E14*$F14 -> 27841061.1 | H14: =C14*F14 -> 27841061.1 | J14: https://netl.doe.gov/projects/files/QualityGuidelinesforEnergySystemStudiesCapitalCostScalingMethodologyRevision4Report_110719.pdf
B15: ='Capital Costs'!B18 -> Cooling Water System | C15: ='Capital Costs'!D18 -> 23872940.71 | D15: 0.6772483329 | E15: 23872940.71 | F15: ='Capital Costs'!E18 -> 1.400168627 | G15: 33426142.63 | H15: 33426142.63 | J15: https://netl.doe.gov/projects/files/QualityGuidelinesforEnergySystemStudiesCapitalCostScalingMethodologyRevision4Report_110719.pdf
B16: ='Capital Costs'!B19 -> Feedwater & Miscellaneous BOP Systems | C16: ='Capital Costs'!D19 -> 64635313.64 | D16: 0.6181134205 | E16: 64635313.64 | F16: ='Capital Costs'!E19 -> 1.565863424 | G16: 101210073.5 | H16: 101210073.5 | J16: https://netl.doe.gov/projects/files/QualityGuidelinesforEnergySystemStudiesCapitalCostScalingMethodologyRevision4Report_110719.pdf
B17: ='Capital Costs'!B20 -> Gasifier, ASU, & Accessories | C17: ='Capital Costs'!D20 -> 834673037.3 | D17: 0.6400715173 | E17: 834673037.3 | F17: ='Capital Costs'!E20 -> 1.421987842 | G17: 1186894911 | H17: 1186894911 | J17: https://netl.doe.gov/projects/files/QualityGuidelinesforEnergySystemStudiesCapitalCostScalingMethodologyRevision4Report_110719.pdf
B18: ='Capital Costs'!B21 -> Hydrogen Production | C18: ='Capital Costs'!D21 -> 19325896.48 | D18: 0.6 | E18: 19325896.48 | F18: ='Capital Costs'!E21 -> 1.082279423 | G18: 20916020.08 | H18: 20916020.08 | J18: https://netl.doe.gov/projects/files/QualityGuidelinesforEnergySystemStudiesCapitalCostScalingMethodologyRevision4Report_110719.pdf
B19: ='Capital Costs'!B22 -> Instrumentation & Control | C19: ='Capital Costs'!D22 -> 14692588.76 | D19: 0.1332406675 | E19: 14692588.76 | F19: ='Capital Costs'!E22 -> 1.24717855 | G19: 18324281.55 | H19: 18324281.55 | J19: https://netl.doe.gov/projects/files/QualityGuidelinesforEnergySystemStudiesCapitalCostScalingMethodologyRevision4Report_110719.pdf
B20: ='Capital Costs'!B23 -> Off Gas Fired Boiler, Ductwork, & Stack | C20: ='Capital Costs'!D23 -> 5395301.854 | D20: 0.6279747432 | E20: 5395301.854 | F20: ='Capital Costs'!E23 -> 1.358145319 | G20: 7327603.956 | H20: 7327603.956 | J20: https://netl.doe.gov/projects/files/QualityGuidelinesforEnergySystemStudiesCapitalCostScalingMethodologyRevision4Report_110719.pdf
C21: ='Capital Costs'!D24 -> 5384758.538 | D21: 0.6004418774 | E21: 5384758.538 | F21: ='Capital Costs'!E24 -> 1.642933428 | G21: 8846799.806 | H21: 8846799.806 | J21: https://netl.doe.gov/projects/files/QualityGuidelinesforEnergySystemStudiesCapitalCostScalingMethodologyRevision4Report_110719.pdf
C22: ='Capital Costs'!D25 -> 34542775.54 | D22: 0.7007178427 | E22: 34542775.54 | F22: ='Capital Costs'!E25 -> 1.183634396 | G22: 40886017.26 | H22: 40886017.26 | J22: https://netl.doe.gov/projects/files/QualityGuidelinesforEnergySystemStudiesCapitalCostScalingMethodologyRevision4Report_110719.pdf
C23: ='Capital Costs'!D26 -> 385795233.2 | D23: 0.7563344706 | E23: 385795233.2 | F23: ='Capital Costs'!E26 -> 1.496064655 | G23: 577174612.5 | H23: 577174612.5
C24: ='Capital Costs'!D27 -> 0 | E24: 0 | F24: ='Capital Costs'!E27 -> 0 | G24: 0 | H24: 0
C25: ='Capital Costs'!D28 -> 0 | E25: 0 | F25: ='Capital Costs'!E28 -> 0 | G25: 0 | H25: 0
C26: ='Capital Costs'!D29 -> 0 | E26: 0 | F26: ='Capital Costs'!E29 -> 0 | G26: 0 | H26: 0
B27: TOTALS (including scaling) | C27: =SUM(C13:C26) -> 1448646695 | E27: =SUM(E13:E26) -> 1448646695 | G27: =SUM(G13:G26) -> 2070222472 | H27: =SUM(H13:H26) -> 2070222472

Sheet Carbon Sequestration
B2: Carbon Sequestration
B4: Carbon Sequestration Calculation Information
B5: Costs for carbon (CO₂) transport to the sequestration site and injection are calculated in this section. Costs for CO₂ compression to 2,200psia are to be included in the capital and operating costs for the production facility and are not included here. In scope of the sheet below is pipeline transport to an saline geologic formation, pumping to compensate for CO₂ pressure loss, injection into formation, and post-injection site care. Detailed description and accounting can be found in the referenced models by FE/NETL.
B7: Table of Contents
B8: Color Key
B11: Use default values (checkboxes)
B15: Carbon Sequestration Input Values
B16: Summary of Output Values
B17: Carbon Sequestration Calculations
B20: Carbon Sequestration Information
B21: CO₂ Produced from Feedstock (metric tonnes CO₂/year) | C21: =Feed_CO2_MTpY -> 4420000 | D21: CO2 emissions are based on the carbon content of the feed. See the Physical Properties Table for specific values
B22: CO₂ Produced from Feedstock (kg CO₂/kg H2) | C22: =Feed_CO2_kgpkgH2 -> 20.38643445
B23: CO₂ Mass Flowrate (metric tonnes/day) | C23: =Feed_CO2_MTpY/365*CO2_Capture_Efficiency -> 11034.66509
B24: CO₂ Mass Flowrate (million metric tonnes/year) | C24: =CO2_flowrate*365/1000000 -> 4.027652758
B26: Carbon Sequestration Input Values
B27: Process Design Parameters
B28: Carbon Capture Efficiency (%) | C28: =+ProcessFlow!C16 -> 0.9112336556 | E28: Set to 0 to turn off CCS
B29: Carbon transport and sequestration capacity factor | C29: =+cap_factor -> 0.9
B30: Pipeline Length (km) | C30: 160
B31: CO₂ capture credit ($/metric ton CO₂ captured) | C31: 0
B32: Approx Capital Charge Rate | C32: =+'Cash Flow Analysis'!E22 -> 0.0838601615
C35: Nominal cost in flow start year: | D35: Cost (nominal $/tonne CO₂) | E35: ="First year cost in basis year dollars ("&BasisYear&"$/tonne CO₂)" -> First year cost in basis year dollars (2018$/tonne CO₂) | F35: ="First year cost ("&BasisYear&"$/year)" -> First year cost (2018$/year) | G35: ="First year cost in reference year dollars ("&ref_year&"$/tonne CO₂)" -> First year cost in reference year dollars (2016$/tonne CO₂) | H35: ="First year cost in reference year dollars ("&ref_year&"$/kg H₂)" -> First year cost in reference year dollars (2016$/kg H₂)
B36: Transport | C36: 2015 | D36: =IF(CO2_Capture_Efficiency>0,(D43 +E43*CO2_flowrate_GTpY^E44*(1/C29)^E45+ +F43*CO2_flowrate_GTpY^F44*(1/C29)^F45+ +G43*CO2_flowrate_GTpY^G44*(1/C29)^G45)*CO2_PipeLength/1.609,0) -> 3.303423033 | E36: =+D36 *INDEX('HyARC Physical Property Data'!$B$94:$B$123,MATCH(BasisYear,'HyARC Physical Property Data'!A94:A123,0),0) /INDEX('HyARC Physical Property Data'!$B$94:$B$123,MATCH(C36,'HyARC Physical Property Data'!A94:A123,0),0) -> 3.480987997 | F36: =+E36*CO2_flowrate_GTpY*1000000 -> 14020210.9 | G36: =IF(CO2_Capture_Efficiency>0, E36 *INDEX('HyARC Physical Property Data'!$B$94:$B$123,MATCH(ref_year,'HyARC Physical Property Data'!$A$94:$A$123,0),0) /INDEX('HyARC Physical Property Data'!$B$94:$B$123,MATCH(BasisYear,'HyARC Physical Property Data'!$A$94:$A$123,0),0),0) -> 3.336468465 | H36: =+F36/output_kgyear *INDEX('HyARC Physical Property Data'!$B$94:$B$123,MATCH(ref_year,'HyARC Physical Property Data'!A94:A123,0),0) /INDEX('HyARC Physical Property Data'!$B$94:$B$123,MATCH(BasisYear,'HyARC Physical Property Data'!A94:A123,0),0) -> 0.06198116515
B37: Storage | C37: 2015 | D37: =IF(CO2_Capture_Efficiency>0,(D50 +E50*CO2_flowrate_GTpY^E51*(1/C29)^E52+ +F50*CO2_flowrate_GTpY^F51*(1/C29)^F52+ +G50*CO2_flowrate_GTpY^G51*(1/C29)^G52+ +H50*CO2_flowrate_GTpY^H51*(1/C29)^H52+ +I50*CO2_flowrate_GTpY^I51*(1/C29)^I52+ +J50*CO2_flowrate_GTpY^J51*(1/C29)^J52),0) -> 11.67439298 | E37: =+D37 *INDEX('HyARC Physical Property Data'!$B$94:$B$123,MATCH(BasisYear,'HyARC Physical Property Data'!A95:A124,0),0) /INDEX('HyARC Physical Property Data'!$B$94:$B$123,MATCH(C37,'HyARC Physical Property Data'!A95:A124,0),0) -> 12.13543399 | F37: =+E37*CO2_flowrate_GTpY*1000000 -> 48877314.16 | G37: =+E37 *INDEX('HyARC Physical Property Data'!$B$94:$B$123,MATCH(ref_year,'HyARC Physical Property Data'!$A$94:$A$123,0),0) /INDEX('HyARC Physical Property Data'!$B$94:$B$123,MATCH(BasisYear,'HyARC Physical Property Data'!$A$94:$A$123,0),0) -> 11.63160943 | H37: =+F37/output_kgyear *INDEX('HyARC Physical Property Data'!$B$94:$B$123,MATCH(ref_year,'HyARC Physical Property Data'!A95:A124,0),0) /INDEX('HyARC Physical Property Data'!$B$94:$B$123,MATCH(BasisYear,'HyARC Physical Property Data'!A95:A124,0),0) -> 0.2190519502
B38: CCS credit | E38: =+G38/INDEX('HyARC Physical Property Data'!$B$94:$B$123,MATCH(ref_year,'HyARC Physical Property Data'!$A$94:$A$123,0),0) *INDEX('HyARC Physical Property Data'!$B$94:$B$123,MATCH(BasisYear,'HyARC Physical Property Data'!$A$94:$A$123,0),0) -> 0 | F38: =+E38*CO2_flowrate_GTpY*1000000 -> 0 | G38: =-CO2_credit -> 0 | H38: =+F38/output_kgyear *INDEX('HyARC Physical Property Data'!$B$94:$B$123,MATCH(ref_year,'HyARC Physical Property Data'!A96:A125,0),0) /INDEX('HyARC Physical Property Data'!$B$94:$B$123,MATCH(BasisYear,'HyARC Physical Property Data'!A96:A125,0),0) -> 0
B39: ="Total ("&startup_year&"$/metric tonne)" -> Total (2015$/metric tonne) | D39: =+SUM(D36:D38) -> 14.97781601 | E39: =+SUM(E36:E38) -> 15.61642198 | F39: =IF(CO2_Capture_Efficiency>0,SUM(F36:F38),0) -> 62897525.06 | G39: =+SUM(G36:G38) -> 14.96807789 | H39: =+F39/output_kgyear *INDEX('HyARC Physical Property Data'!$B$94:$B$123,MATCH(ref_year,'HyARC Physical Property Data'!A96:A125,0),0) /INDEX('HyARC Physical Property Data'!$B$94:$B$123,MATCH(BasisYear,'HyARC Physical Property Data'!A96:A125,0),0) -> 0.2843749327
B43: Transport model linearization coefficients | C43: Coefficients | D43: 0.001293707977 | E43: 0.06878156982 | F43: 0.01731727172 | G43: -0.0001373944218
B44: Coefficients linearizing CO₂ transport cost per metric tonne-mile based on FE/NETL CO₂ Transport Cost Model (2022) with the following adjustments: - Operating life = 40 years - First transport year = 2015 - System capacity factor = variable; linearized between 10% and 100% - CO₂ flow = variable; linearized between 0.1 and 12 million metric tonnes / year - Linearization validity is for transport distance of 30 to 1,000 miles - Cost per transported tonne of CO₂ were linearized on 2015 nominal $ basis | C44: Term exponents | D44: A: transport quantity (MMT/y) | E44: -1 | F44: -0.1561183245 | G44: 0.4706623423
D45: B: 1/capacity factor | E45: -0.01665149642 | F45: 0.824934912 | G45: 1.752424871
B46: Reference: | C46: https://www.netl.doe.gov/energy-analysis/details?id=b37414b7-20d3-4fb2-bca6-b6146b26198a
B50: Saline storage model linearization coefficients | D50: 64.30915549 | E50: -60.15023706 | F50: -0.1168006208 | G50: 0.4108292523 | H50: 6.217192063 | I50: 8.568352384 | J50: 1.048414003
B51: Coefficients linearizing CO₂ injection cost per metric tonne based on * FE/NETL CO₂ Saline Storage Cost Model (2017) with the following adjustments: - Injection formation = Woodbine1 (in East Texas) - Operating life = 40 years - First transport year = 2015 - System capacity factor = variable; linearized between 10% and 100% - CO₂ flow = variable; linearized between 0.1 and 12 million metric tonnes / year - Cost per transported tonne of CO₂ were linearized on 2015 nominal $ basis | D51: A: transport quantity (MMT/y) | E51: 0.07123033628 | F51: 0 | G51: 0.04474941387 | H51: 0.4070881196 | I51: -0.935407651 | J51: -1.456581128
D52: B: 1/capacity factor | E52: -0.0002268514953 | F52: 1.924411181 | G52: 1.542903409 | H52: 0 | I52: -0.04393912935 | J52: 0.05187420906
B53: Reference: | C53: https://edx.netl.doe.gov/dataset/fe-netl-co2-saline-storage-cost-model-2017

Sheet Results
B2: Table of Contents
B3: Specific Item Cost Calculation
B4: Energy Data
B5: Production Process Energy Efficiency
B6: Upstream Energy Usage
B7: Emissions Summary
B8: Production Process GHG Emissions Summary
B9: Production Process GHG Emissions
B10: Upstream GHG Emissions
B12: H2a Analysis Results
B14: COST RESULTS
B15: Lang Factor | C15: =total_cap/(ProcEqpCap) -> 2.451105969
B17: Specific Item Cost Calculation | F17: =IF(('Carbon Sequestration'!C28>0),"CO₂ Transport & Sequestration costs*","Carbon Sequestration is not included in this case") -> CO₂ Transport & Sequestration costs*
B18: Cost Component | C18: Cost Contribution ($/kg) | D18: Percentage of H2 Cost | F18: Cost Component | G18: Cost Contribution ($/ kg H2) | H18: Cost Contribution ($/ tonne CO2 Sequestered)
B19: Capital Costs | C19: ='Cash Flow Analysis'!D119 -> 1.192305249 | D19: ='Cash Flow Analysis'!C119 -> 0.4086814946 | F19: CO₂ Transport | G19: =+'Carbon Sequestration'!H36 -> 0.06198116515 | H19: =+'Carbon Sequestration'!G36 -> 3.336468465
B20: Decommissioning Costs | C20: ='Cash Flow Analysis'!D120 -> 0.006296347531 | D20: ='Cash Flow Analysis'!C120 -> 0.002158172768 | F20: CO₂ Injection | G20: =+'Carbon Sequestration'!H37 -> 0.2190519502 | H20: =+'Carbon Sequestration'!G37 -> 11.63160943
B21: Fixed O&M | C21: ='Cash Flow Analysis'!D121 -> 0.8331792805 | D21: ='Cash Flow Analysis'!C121 -> 0.285585385
B22: Feedstock Costs | C22: ='Cash Flow Analysis'!D122 -> 0.5061495636 | D22: ='Cash Flow Analysis'!C122 -> 0.1734907737 | F22: Total | G22: =SUM(G19:G20) -> 0.2810331153 | H22: =SUM(H19:H20) -> 14.96807789
B23: Other Raw Material Costs | C23: ='Cash Flow Analysis'!D123 -> 0.04197558661 | D23: ='Cash Flow Analysis'!C123 -> 0.01438779665 | F23: *Carbon sequestration costs presented in this table do not include carbon capture capital and operating costs.
B24: Byproduct Credits | C24: ='Cash Flow Analysis'!D124 -> 0 | D24: ='Cash Flow Analysis'!C124 -> 0
B25: Other Variable Costs (including utilities) | C25: ='Cash Flow Analysis'!D125 -> 0.3375376663 | D25: ='Cash Flow Analysis'!C125 -> 0.1156963773
B26: Total | C26: =SUM(C19:C25) -> 2.917443694
B28: ENERGY
B30: Energy Data
B31: Feedstock | C31: Energy Input (GJ/kg H2) | D31: Energy Input (kWh/kg H2) | E31: LHV (GJ/usage unit) | F31: Usage (/kg H2) | G31: Unit | H31: Unit System Conversion Factor | I31: Real levelized cost
B32: =IF('Cash Flow Analysis'!$B$131=0,"",'Cash Flow Analysis'!$B$131) -> Electric Utility Steam Coal | C32: =IF($B$32="","",$E$32*$F$32*$H$32) -> 0.1984025727 | D32: =IF($B32="","",$C32*1000*MJ_to_kWh) -> 55.11182575 | E32: =IF($B$32<>"",VLOOKUP($B$32,MASTER_PROPERTY_TABLE,MATCH("H2A LHV (GJ/ H2A usage input unit)",key_MPTable,0),FALSE),"") -> 0.02273503452 | F32: =IF('Cash Flow Analysis'!$B$133="","",'Cash Flow Analysis'!$B$133) -> 8.726732856 | G32: =IF($B$32<>"",VLOOKUP($B$32,MASTER_PROPERTY_TABLE,MATCH("H2A Usage Input Unit/ kg H2",key_MPTable,0),FALSE),"") -> kg | H32: =IF($B32="","",IF(VLOOKUP($B32,MASTER_PROPERTY_TABLE,MATCH("Unit System",key_MPTable,0),FALSE)="English",mmBTU_to_GJ,1)) -> 1 | I32: =+'Cash Flow Analysis'!$B$233 -> 0.05205535389
B33: =IF('Cash Flow Analysis'!$C$131=0,"",'Cash Flow Analysis'!$C$131) -> Industrial Electricity | C33: =IF($B$33="","",$E$33*$F$33*$H$33) -> 0.0037584 | D33: =IF($B33="","",$C33*1000*MJ_to_kWh) -> 1.044 | E33: =IF($B$33<>"",VLOOKUP($B$33,MASTER_PROPERTY_TABLE,MATCH("H2A LHV (GJ/ H2A usage input unit)",key_MPTable,0),FALSE),"") -> 0.0036 | F33: =IF('Cash Flow Analysis'!$C$133="","",'Cash Flow Analysis'!$C$133) -> 1.044 | G33: =IF($B$33<>"",VLOOKUP($B$33,MASTER_PROPERTY_TABLE,MATCH("H2A Usage Input Unit/ kg H2",key_MPTable,0),FALSE),"") -> kWh | H33: =IF($B$33="","",IF(VLOOKUP($B$33,MASTER_PROPERTY_TABLE,MATCH("Unit System",key_MPTable,0),FALSE)="English",mmBTU_to_GJ,1)) -> 1 | I33: =+'Cash Flow Analysis'!$C$233 -> 0.07785302043
B34: =IF('Cash Flow Analysis'!$D$131=0,"",'Cash Flow Analysis'!$D$131) ->  | C34: =IF($B$34="","",$E$34*$F$34*$H$34) ->  | D34: =IF($B34="","",$C34*1000*MJ_to_kWh) ->  | E34: =IF($B$34<>"",VLOOKUP($B$34,MASTER_PROPERTY_TABLE,MATCH("H2A LHV (GJ/ H2A usage input unit)",key_MPTable,0),FALSE),"") ->  | F34: =IF('Cash Flow Analysis'!$D$133="","",'Cash Flow Analysis'!$D$133) ->  | G34: =IF($B$34<>"",VLOOKUP($B$34,MASTER_PROPERTY_TABLE,MATCH("H2A Usage Input Unit/ kg H2",key_MPTable,0),FALSE),"") ->  | H34: =IF($B$34="","",IF(VLOOKUP($B$34,MASTER_PROPERTY_TABLE,MATCH("Unit System",key_MPTable,0),FALSE)="English",mmBTU_to_GJ,1)) ->  | I34: =+'Cash Flow Analysis'!$D$233 -> 
B35: =IF('Cash Flow Analysis'!$E$131=0,"",'Cash Flow Analysis'!$E$131) ->  | C35: =IF($B$35="","",$E$35*$F$35*$H$35) ->  | D35: =IF($B35="","",$C35*1000*MJ_to_kWh) ->  | E35: =IF($B$35<>"",VLOOKUP($B$35,MASTER_PROPERTY_TABLE,MATCH("H2A LHV (GJ/ H2A usage input unit)",key_MPTable,0),FALSE),"") ->  | F35: =IF('Cash Flow Analysis'!$E$133="","",'Cash Flow Analysis'!$E$133) ->  | G35: =IF($B$35<>"",VLOOKUP($B$35,MASTER_PROPERTY_TABLE,MATCH("H2A Usage Input Unit/ kg H2",key_MPTable,0),FALSE),"") ->  | H35: =IF($B$35="","",IF(VLOOKUP($B$35,MASTER_PROPERTY_TABLE,MATCH("Unit System",key_MPTable,0),FALSE)="English",mmBTU_to_GJ,1)) ->  | I35: =+'Cash Flow Analysis'!$E$233 -> 
B36: Utility
B37: =IF('Cash Flow Analysis'!$F$131=0,"",'Cash Flow Analysis'!$F$131) ->  | C37: =IF($B$37="","",$E$37*$F$37*$H$37) ->  | D37: =IF($B37="","",$C37*1000*MJ_to_kWh) ->  | E37: =IF($B37<>"",VLOOKUP($B37,MASTER_PROPERTY_TABLE,MATCH("H2A LHV (GJ/ H2A usage input unit)",key_MPTable,0),FALSE),"") ->  | F37: =IF('Cash Flow Analysis'!$F$133="","",'Cash Flow Analysis'!$F$133) ->  | G37: =IF($B$37<>"",VLOOKUP($B$37,MASTER_PROPERTY_TABLE,MATCH("H2A Usage Input Unit/ kg H2",key_MPTable,0),FALSE),"") ->  | H37: =IF($B$37="","",IF(VLOOKUP($B$37,MASTER_PROPERTY_TABLE,MATCH("Unit System",key_MPTable,0),FALSE)="English",mmBTU_to_GJ,1)) ->  | I37: =+'Cash Flow Analysis'!$F$233 -> 
B38: =IF('Cash Flow Analysis'!$G$131=0,"",'Cash Flow Analysis'!$G$131) ->  | C38: =IF($B$38="","",$E$38*$F$38*$H$38) ->  | D38: =IF($B38="","",$C38*1000*MJ_to_kWh) ->  | E38: =IF($B38<>"",VLOOKUP($B38,MASTER_PROPERTY_TABLE,MATCH("H2A LHV (GJ/ H2A usage input unit)",key_MPTable,0),FALSE),"") ->  | F38: =IF('Cash Flow Analysis'!$G$133="","",'Cash Flow Analysis'!$G$133) ->  | G38: =IF($B$38<>"",VLOOKUP($B$38,MASTER_PROPERTY_TABLE,MATCH("H2A Usage Input Unit/ kg H2",key_MPTable,0),FALSE),"") ->  | H38: =IF($B$38="","",IF(VLOOKUP($B$38,MASTER_PROPERTY_TABLE,MATCH("Unit System",key_MPTable,0),FALSE)="English",mmBTU_to_GJ,1)) ->  | I38: =+'Cash Flow Analysis'!$G$233 -> 
B39: =IF('Cash Flow Analysis'!$H$131=0,"",'Cash Flow Analysis'!$H$131) ->  | C39: =IF($B$39="","",$E$39*$F$39*$H$39) ->  | D39: =IF($B39="","",$C39*1000*MJ_to_kWh) ->  | E39: =IF($B39<>"",VLOOKUP($B39,MASTER_PROPERTY_TABLE,MATCH("H2A LHV (GJ/ H2A usage input unit)",key_MPTable,0),FALSE),"") ->  | F39: =IF('Cash Flow Analysis'!$H$133="","",'Cash Flow Analysis'!$H$133) ->  | G39: =IF($B$39<>"",VLOOKUP($B$39,MASTER_PROPERTY_TABLE,MATCH("H2A Usage Input Unit/ kg H2",key_MPTable,0),FALSE),"") ->  | H39: =IF($B$39="","",IF(VLOOKUP($B$39,MASTER_PROPERTY_TABLE,MATCH("Unit System",key_MPTable,0),FALSE)="English",mmBTU_to_GJ,1)) ->  | I39: =+'Cash Flow Analysis'!$H$233 -> 
B40: =IF('Cash Flow Analysis'!$I$131=0,"",'Cash Flow Analysis'!$I$131) ->  | C40: =IF($B$40="","",$E$40*$F$40*$H$40) ->  | D40: =IF($B40="","",$C40*1000*MJ_to_kWh) ->  | E40: =IF($B40<>"",VLOOKUP($B40,MASTER_PROPERTY_TABLE,MATCH("H2A LHV (GJ/ H2A usage input unit)",key_MPTable,0),FALSE),"") ->  | F40: =IF('Cash Flow Analysis'!$I$133="","",'Cash Flow Analysis'!$I$133) ->  | G40: =IF($B$40<>"",VLOOKUP($B$40,MASTER_PROPERTY_TABLE,MATCH("H2A Usage Input Unit/ kg H2",key_MPTable,0),FALSE),"") ->  | H40: =IF($B$40="","",IF(VLOOKUP($B$40,MASTER_PROPERTY_TABLE,MATCH("Unit System",key_MPTable,0),FALSE)="English",mmBTU_to_GJ,1)) ->  | I40: =+'Cash Flow Analysis'!$I$233 -> 
B41: Carbon Sequestration
B42: =IF('Cash Flow Analysis'!$J$131=0,"",'Cash Flow Analysis'!$J$131) ->  | C42: =IF($B$42="","",$E$42*$F$42*$H$42) ->  | D42: =IF($B42="","",$C42*1000*MJ_to_kWh) ->  | E42: =IF($B42<>"",VLOOKUP($B42,MASTER_PROPERTY_TABLE,MATCH("H2A LHV (GJ/ H2A usage input unit)",key_MPTable,0),FALSE),"") ->  | F42: =CO2_CashFlow_eUse -> 0 | G42: =IF($B$42<>"",VLOOKUP($B$42,MASTER_PROPERTY_TABLE,MATCH("H2A Usage Input Unit/ kg H2",key_MPTable,0),FALSE),"") ->  | H42: =IF($B42="","",IF(VLOOKUP($B42,MASTER_PROPERTY_TABLE,MATCH("Unit System",key_MPTable,0),FALSE)="English",mmBTU_to_GJ,1)) -> 
C43: Energy Output (GJ/kg H2) | D43: Energy Output (kWh/kg H2) | E43: LHV (GJ/usage unit) | F43: Production (/kg H2) | G43: Unit | H43: Unit System Conversion Factor
B44: Hydrogen (1 kg) | C44: =kgH2_to_GJ -> 0.1202116383 | D44: =IF($B44="","",$C44*1000*MJ_to_kWh) -> 33.39212175 | E44: =kgH2_to_GJ -> 0.1202116383 | F44: 1 | G44: kg | H44: 1
B46: Byproducts
B47: =IF('Cash Flow Analysis'!$K$131=0,"",'Cash Flow Analysis'!$K$131) ->  | C47: =IF($B$47="","",$E$47*$F$47*$H$47) ->  | D47: =IF($B47="","",$C47*1000*MJ_to_kWh) ->  | E47: =IF($B47<>"",VLOOKUP($B47,MASTER_PROPERTY_TABLE,MATCH("H2A LHV (GJ/ H2A usage input unit)",key_MPTable,0),FALSE),"") ->  | F47: =IF('Cash Flow Analysis'!$K$133="","",'Cash Flow Analysis'!$K$133) ->  | G47: =IF($B$47<>"",VLOOKUP($B$47,MASTER_PROPERTY_TABLE,MATCH("H2A Usage Input Unit/ kg H2",key_MPTable,0),FALSE),"") ->  | H47: =IF($B$47="","",IF(VLOOKUP($B$47,MASTER_PROPERTY_TABLE,MATCH("Unit System",key_MPTable,0),FALSE)="English",mmBTU_to_GJ,1)) ->  | I47: =+'Cash Flow Analysis'!$K$233 -> 
B48: =IF('Cash Flow Analysis'!$L$131=0,"",'Cash Flow Analysis'!$L$131) ->  | C48: =IF($B$48="","",$E$48*$F$48*$H$48) ->  | D48: =IF($B48="","",$C48*1000*MJ_to_kWh) ->  | E48: =IF($B48<>"",VLOOKUP($B48,MASTER_PROPERTY_TABLE,MATCH("H2A LHV (GJ/ H2A usage input unit)",key_MPTable,0),FALSE),"") ->  | F48: =IF('Cash Flow Analysis'!$L$133="","",'Cash Flow Analysis'!$L$133) ->  | G48: =IF($B$48<>"",VLOOKUP($B$48,MASTER_PROPERTY_TABLE,MATCH("H2A Usage Input Unit/ kg H2",key_MPTable,0),FALSE),"") ->  | H48: =IF($B$48="","",IF(VLOOKUP($B$48,MASTER_PROPERTY_TABLE,MATCH("Unit System",key_MPTable,0),FALSE)="English",mmBTU_to_GJ,1)) ->  | I48: =+'Cash Flow Analysis'!$L$233 -> 
B49: =IF('Cash Flow Analysis'!$M$131=0,"",'Cash Flow Analysis'!$M$131) ->  | C49: =IF($B$49="","",$E$49*$F$49*$H$49) ->  | D49: =IF($B49="","",$C49*1000*MJ_to_kWh) ->  | E49: =IF($B49<>"",VLOOKUP($B49,MASTER_PROPERTY_TABLE,MATCH("H2A LHV (GJ/ H2A usage input unit)",key_MPTable,0),FALSE),"") ->  | F49: =IF('Cash Flow Analysis'!$M$133="","",'Cash Flow Analysis'!$M$133) ->  | G49: =IF($B$49<>"",VLOOKUP($B$49,MASTER_PROPERTY_TABLE,MATCH("H2A Usage Input Unit/ kg H2",key_MPTable,0),FALSE),"") ->  | H49: =IF($B$49="","",IF(VLOOKUP($B$49,MASTER_PROPERTY_TABLE,MATCH("Unit System",key_MPTable,0),FALSE)="English",mmBTU_to_GJ,1)) ->  | I49: =+'Cash Flow Analysis'!$M$233 -> 
B50: =IF('Cash Flow Analysis'!$N$131=0,"",'Cash Flow Analysis'!$N$131) ->  | C50: =IF($B$50="","",$E$50*$F$50*$H$50) ->  | D50: =IF($B50="","",$C50*1000*MJ_to_kWh) ->  | E50: =IF($B50<>"",VLOOKUP($B50,MASTER_PROPERTY_TABLE,MATCH("H2A LHV (GJ/ H2A usage input unit)",key_MPTable,0),FALSE),"") ->  | F50: =IF('Cash Flow Analysis'!$N$133="","",'Cash Flow Analysis'!$N$133) ->  | G50: =IF($B$50<>"",VLOOKUP($B$50,MASTER_PROPERTY_TABLE,MATCH("H2A Usage Input Unit/ kg H2",key_MPTable,0),FALSE),"") ->  | H50: =IF($B$50="","",IF(VLOOKUP($B$50,MASTER_PROPERTY_TABLE,MATCH("Unit System",key_MPTable,0),FALSE)="English",mmBTU_to_GJ,1)) ->  | I50: =+'Cash Flow Analysis'!$N$233 -> 
B52: Production Process Energy Efficiency | D52: =(C56+C57)/(C53+C54+C55) -> 0.5946332603
B53: Feedstock energy input (GJ)/kg H2 | C53: =SUM(C32:C35) -> 0.2021609727
B54: Utility energy input (GJ/kg H2) | C54: =SUM(C37:C40) -> 0
B55: Carbon sequestration energy input (GJ/kg H2) | C55: =IF(C42="",0,C42) -> 0
B56: Hydrogen energy output (GJ/kg) | C56: =C44 -> 0.1202116383
B57: Byproduct energy output (GJ/kg H2) | C57: =SUM(C47:C50) -> 0
B59: Upstream Energy Usage (GJ/kg H2)
B60: Feedstock | C60: Total Energy | D60: Fossil Fuels | E60: Petroleum
B61: =B32 -> Electric Utility Steam Coal | C61: =IF($B61="","",$C32/1000000*VLOOKUP($B61,Tbl_Emissions,3,FALSE)) -> 0.2027674293 | D61: =IF($B61="","",$C32/1000000*VLOOKUP($B61,Tbl_Emissions,4,FALSE)) -> 0.2025690267 | E61: =IF($B61="","",$C32/1000000*VLOOKUP($B61,Tbl_Emissions,5,FALSE)) -> 0.003080310165
B62: =B33 -> Industrial Electricity | C62: =IF($B62="","",$C33/1000000*VLOOKUP($B62,Tbl_Emissions,3,FALSE)) -> 0.0067162608 | D62: =IF($B62="","",$C33/1000000*VLOOKUP($B62,Tbl_Emissions,4,FALSE)) -> 0.0051494256 | E62: =IF($B62="","",$C33/1000000*VLOOKUP($B62,Tbl_Emissions,5,FALSE)) -> 7.936488e-05
B63: =B34 ->  | C63: =IF($B63="","",$C34/1000000*VLOOKUP($B63,Tbl_Emissions,3,FALSE)) ->  | D63: =IF($B63="","",$C34/1000000*VLOOKUP($B63,Tbl_Emissions,4,FALSE)) ->  | E63: =IF($B63="","",$C34/1000000*VLOOKUP($B63,Tbl_Emissions,5,FALSE)) -> 
B64: =B35 ->  | C64: =IF($B64="","",$C35/1000000*VLOOKUP($B64,Tbl_Emissions,3,FALSE)) ->  | D64: =IF($B64="","",$C35/1000000*VLOOKUP($B64,Tbl_Emissions,4,FALSE)) ->  | E64: =IF($B64="","",$C35/1000000*VLOOKUP($B64,Tbl_Emissions,5,FALSE)) -> 
B65: Utility
B66: =B37 ->  | C66: =IF($B66="","",$C37/1000000*VLOOKUP($B66,Tbl_Emissions,3,FALSE)) ->  | D66: =IF($B66="","",$C37/1000000*VLOOKUP($B66,Tbl_Emissions,4,FALSE)) ->  | E66: =IF($B66="","",$C37/1000000*VLOOKUP($B66,Tbl_Emissions,5,FALSE)) -> 
B67: =B38 ->  | C67: =IF($B67="","",$C38/1000000*VLOOKUP($B67,Tbl_Emissions,3,FALSE)) ->  | D67: =IF($B67="","",$C38/1000000*VLOOKUP($B67,Tbl_Emissions,4,FALSE)) ->  | E67: =IF($B67="","",$C38/1000000*VLOOKUP($B67,Tbl_Emissions,5,FALSE)) -> 
B68: =B39 ->  | C68: =IF($B68="","",$C39/1000000*VLOOKUP($B68,Tbl_Emissions,3,FALSE)) ->  | D68: =IF($B68="","",$C39/1000000*VLOOKUP($B68,Tbl_Emissions,4,FALSE)) ->  | E68: =IF($B68="","",$C39/1000000*VLOOKUP($B68,Tbl_Emissions,5,FALSE)) -> 
B69: =B40 ->  | C69: =IF($B69="","",$C40/1000000*VLOOKUP($B69,Tbl_Emissions,3,FALSE)) ->  | D69: =IF($B69="","",$C40/1000000*VLOOKUP($B69,Tbl_Emissions,4,FALSE)) ->  | E69: =IF($B69="","",$C40/1000000*VLOOKUP($B69,Tbl_Emissions,5,FALSE)) -> 
B70: Carbon Sequestration
B71: =B42 ->  | C71: =IF($B71="","",$C42/1000000*VLOOKUP($B71,Tbl_Emissions,3,FALSE)) ->  | D71: =IF($B71="","",$C42/1000000*VLOOKUP($B71,Tbl_Emissions,4,FALSE)) ->  | E71: =IF($B71="","",$C42/1000000*VLOOKUP($B71,Tbl_Emissions,5,FALSE)) -> 
B74: EMISSIONS
B76: Emissions Summary | D76: CO2 | E76: CH4 | F76: N2O | G76: Total GHG (CO2 eq)
B77: Total upstream emissions (kg/kg H2) | D77: =C121 -> 0.8691952705 | E77: =D121 -> 0.02876833663 | F77: =E121 -> 1.431059297e-05 | G77: =F121 -> 1.592668243
B78: Total process emissions (kg/kg H2) | D78: =D89 -> 1.809629262 | E78: =E89 -> 0 | F78: =F89 -> 0 | G78: =G89 -> 1.809629262
B80: Total well to pump emissions (kg/kg H2) | D80: =SUM(D77:D79) -> 2.678824533 | E80: =SUM(E77:E79) -> 0.02876833663 | F80: =SUM(F77:F79) -> 1.431059297e-05 | G80: =SUM(G77:G79) -> 3.402297505
B82: Production Process GHG Emissions Summary | D82: CO2 | E82: CH4 | F82: N2O | G82: Total GHG (CO2 eq)
B83: Total Process Pollutants Produced (kg /kg H2) | D83: =SUM(C95:C105) -> 20.38643445 | E83: =SUM(D95:D105) -> 0 | F83: =SUM(E95:E105) -> 0 | G83: =SUM(F95:F105) -> 20.38643445
B84: Total Process Pollutants Produced (metric tons/year) | D84: =ROUND(D83*output_kgyear/1000,-2) -> 4420000 | E84: =ROUND(E83*output_kgyear/1000,-2) -> 0 | F84: =ROUND(F83*output_kgyear/1000,-2) -> 0 | G84: =ROUND(G83*output_kgyear/1000,-2) -> 4420000
B85: Total Feedstock Pollutants Produced (kg /kg H2) | D85: =SUM(C95:C98) -> 20.38643445 | E85: =SUM(D95:D98) -> 0 | F85: =SUM(E95:E98) -> 0 | G85: =SUM(F95:F98) -> 20.38643445
B86: Total Feedstock Pollutants Produced (metric tons /year) | D86: =ROUND(D85*output_kgyear/1000,-2) -> 4420000 | E86: =ROUND(E85*output_kgyear/1000,-2) -> 0 | F86: =ROUND(F85*output_kgyear/1000,-2) -> 0 | G86: =ROUND(G85*output_kgyear/1000,-2) -> 4420000
B87: CO2 Captured (kg/kg H2)* | D87: =D85*CO2_Capture_Efficiency -> 18.57680519
B88: CO2 Captured (metric tons/year)* | D88: =ROUND(D87*output_kgyear/1000,-2) -> 4027600
B89: Total Process Emissions (kg/kg H2) | D89: =D83-D87 -> 1.809629262 | E89: =E83-E87 -> 0 | F89: =F83-F87 -> 0 | G89: =D89*GHG_CO2_factor + E89*GHG_CH4_factor + F89*GHG_N2O_factor -> 1.809629262
B90: Total Process Emissions (metric tons/year) | D90: =ROUND(D89*output_kgyear/1000,-2) -> 392300 | E90: =ROUND(E89*output_kgyear/1000,-2) -> 0 | F90: =ROUND(F89*output_kgyear/1000,-2) -> 0 | G90: =ROUND(G89*output_kgyear/1000,-2) -> 392300
B91: *Carbon sequestration values are only calculated if the detailed Carbon Sequestration sheet is used.
B93: Production Process GHG Emissions (/kg H2)
B94: Feedstock | C94: CO2 | D94: CH4 | E94: N2O | F94: Total GHG (CO2 eq)
B95: =B32 -> Electric Utility Steam Coal | C95: =IF($B95="","",VLOOKUP($B95,MASTER_PROPERTY_TABLE,MATCH("CO2 Emissions Factor (kg CO2 produced/GJ feed)",key_MPTable,0),FALSE)*$E32*$F32) -> 20.38643445 | D95: =IF($B95="","",VLOOKUP($B95,MASTER_PROPERTY_TABLE,MATCH("CH4 Emissions Factor (kg CH4 produced/GJ or mmBtu feed)",key_MPTable,0),FALSE)*$E32*$F32) -> 0 | E95: =IF($B95="","",VLOOKUP($B95,MASTER_PROPERTY_TABLE,MATCH("N2O Emissions Factor (kg N2O produced/GJ or mmBtu feed)",key_MPTable,0),FALSE)*$E32*$F32) -> 0 | F95: =IF($B95="","",$C95*GHG_CO2_factor+$D95*GHG_CH4_factor+$E95*GHG_N2O_factor) -> 20.38643445
B96: =B33 -> Industrial Electricity | C96: =IF($B96="","",VLOOKUP($B96,MASTER_PROPERTY_TABLE,MATCH("CO2 Emissions Factor (kg CO2 produced/GJ feed)",key_MPTable,0),FALSE)*$E33*$F33) -> 0 | D96: =IF($B96="","",VLOOKUP($B96,MASTER_PROPERTY_TABLE,MATCH("CH4 Emissions Factor (kg CH4 produced/GJ or mmBtu feed)",key_MPTable,0),FALSE)*$E33*$F33) -> 0 | E96: =IF($B96="","",VLOOKUP($B96,MASTER_PROPERTY_TABLE,MATCH("N2O Emissions Factor (kg N2O produced/GJ or mmBtu feed)",key_MPTable,0),FALSE)*$E33*$F33) -> 0 | F96: =IF($B96="","",$C96*GHG_CO2_factor+$D96*GHG_CH4_factor+$E96*GHG_N2O_factor) -> 0
B97: =B34 ->  | C97: =IF($B97="","",VLOOKUP($B97,MASTER_PROPERTY_TABLE,MATCH("CO2 Emissions Factor (kg CO2 produced/GJ feed)",key_MPTable,0),FALSE)*$E34*$F34) ->  | D97: =IF($B97="","",VLOOKUP($B97,MASTER_PROPERTY_TABLE,MATCH("CH4 Emissions Factor (kg CH4 produced/GJ or mmBtu feed)",key_MPTable,0),FALSE)*$E34*$F34) ->  | E97: =IF($B97="","",VLOOKUP($B97,MASTER_PROPERTY_TABLE,MATCH("N2O Emissions Factor (kg N2O produced/GJ or mmBtu feed)",key_MPTable,0),FALSE)*$E34*$F34) ->  | F97: =IF($B97="","",$C97*GHG_CO2_factor+$D97*GHG_CH4_factor+$E97*GHG_N2O_factor) -> 
B98: =B35 ->  | C98: =IF($B98="","",VLOOKUP($B98,MASTER_PROPERTY_TABLE,MATCH("CO2 Emissions Factor (kg CO2 produced/GJ feed)",key_MPTable,0),FALSE)*$E35*$F35) ->  | D98: =IF($B98="","",VLOOKUP($B98,MASTER_PROPERTY_TABLE,MATCH("CH4 Emissions Factor (kg CH4 produced/GJ or mmBtu feed)",key_MPTable,0),FALSE)*$E35*$F35) ->  | E98: =IF($B98="","",VLOOKUP($B98,MASTER_PROPERTY_TABLE,MATCH("N2O Emissions Factor (kg N2O produced/GJ or mmBtu feed)",key_MPTable,0),FALSE)*$E35*$F35) ->  | F98: =IF($B98="","",$C98*GHG_CO2_factor+$D98*GHG_CH4_factor+$E98*GHG_N2O_factor) -> 
B99: Utility
B100: =B37 ->  | C100: =IF($B100="","",VLOOKUP($B100,MASTER_PROPERTY_TABLE,MATCH("CO2 Emissions Factor (kg CO2 produced/GJ feed)",key_MPTable,0),FALSE)*$E37*$F37) ->  | D100: =IF($B100="","",VLOOKUP($B100,MASTER_PROPERTY_TABLE,MATCH("CH4 Emissions Factor (kg CH4 produced/GJ or mmBtu feed)",key_MPTable,0),FALSE)*$E37*$F37) ->  | E100: =IF($B100="","",VLOOKUP($B100,MASTER_PROPERTY_TABLE,MATCH("N2O Emissions Factor (kg N2O produced/GJ or mmBtu feed)",key_MPTable,0),FALSE)*$E37*$F37) ->  | F100: =IF($B100="","",$C100*GHG_CO2_factor+$D100*GHG_CH4_factor+$E100*GHG_N2O_factor) -> 
B101: =B38 ->  | C101: =IF($B101="","",VLOOKUP($B101,MASTER_PROPERTY_TABLE,MATCH("CO2 Emissions Factor (kg CO2 produced/GJ feed)",key_MPTable,0),FALSE)*$E38*$F38) ->  | D101: =IF($B101="","",VLOOKUP($B101,MASTER_PROPERTY_TABLE,MATCH("CH4 Emissions Factor (kg CH4 produced/GJ or mmBtu feed)",key_MPTable,0),FALSE)*$E38*$F38) ->  | E101: =IF($B101="","",VLOOKUP($B101,MASTER_PROPERTY_TABLE,MATCH("N2O Emissions Factor (kg N2O produced/GJ or mmBtu feed)",key_MPTable,0),FALSE)*$E38*$F38) ->  | F101: =IF($B101="","",$C101*GHG_CO2_factor+$D101*GHG_CH4_factor+$E101*GHG_N2O_factor) -> 
B102: =B39 ->  | C102: =IF($B102="","",VLOOKUP($B102,MASTER_PROPERTY_TABLE,MATCH("CO2 Emissions Factor (kg CO2 produced/GJ feed)",key_MPTable,0),FALSE)*$E39*$F39) ->  | D102: =IF($B102="","",VLOOKUP($B102,MASTER_PROPERTY_TABLE,MATCH("CH4 Emissions Factor (kg CH4 produced/GJ or mmBtu feed)",key_MPTable,0),FALSE)*$E39*$F39) ->  | E102: =IF($B102="","",VLOOKUP($B102,MASTER_PROPERTY_TABLE,MATCH("N2O Emissions Factor (kg N2O produced/GJ or mmBtu feed)",key_MPTable,0),FALSE)*$E39*$F39) ->  | F102: =IF($B102="","",$C102*GHG_CO2_factor+$D102*GHG_CH4_factor+$E102*GHG_N2O_factor) -> 
B103: =B40 ->  | C103: =IF($B103="","",VLOOKUP($B103,MASTER_PROPERTY_TABLE,MATCH("CO2 Emissions Factor (kg CO2 produced/GJ feed)",key_MPTable,0),FALSE)*$E40*$F40) ->  | D103: =IF($B103="","",VLOOKUP($B103,MASTER_PROPERTY_TABLE,MATCH("CH4 Emissions Factor (kg CH4 produced/GJ or mmBtu feed)",key_MPTable,0),FALSE)*$E40*$F40) ->  | E103: =IF($B103="","",VLOOKUP($B103,MASTER_PROPERTY_TABLE,MATCH("N2O Emissions Factor (kg N2O produced/GJ or mmBtu feed)",key_MPTable,0),FALSE)*$E40*$F40) ->  | F103: =IF($B103="","",$C103*GHG_CO2_factor+$D103*GHG_CH4_factor+$E103*GHG_N2O_factor) -> 
B104: Carbon Sequestration
B105: =B42 ->  | C105: =IF($B105="","",VLOOKUP($B105,MASTER_PROPERTY_TABLE,MATCH("CO2 Emissions Factor (kg CO2 produced/GJ feed)",key_MPTable,0),FALSE)*$E42*$F42) ->  | D105: =IF($B105="","",VLOOKUP($B105,MASTER_PROPERTY_TABLE,MATCH("CH4 Emissions Factor (kg CH4 produced/GJ or mmBtu feed)",key_MPTable,0),FALSE)*$E42*$F42) ->  | E105: =IF($B105="","",VLOOKUP($B105,MASTER_PROPERTY_TABLE,MATCH("N2O Emissions Factor (kg N2O produced/GJ or mmBtu feed)",key_MPTable,0),FALSE)*$E42*$F42) ->  | F105: =IF($B105="","",$C105*GHG_CO2_factor+$D105*GHG_CH4_factor+$E105*GHG_N2O_factor) -> 
B108: Upstream GHG Emissions (kg/kg H2) based on GREET.NET 2017
B109: Feedstock | C109: CO2 | D109: CH4 | E109: N2O | F109: Total GHG (CO2 eq)
B110: =B32 -> Electric Utility Steam Coal | C110: =IF($B110="","",$C32*VLOOKUP($B110,Tbl_Emissions,6,FALSE)) -> 0.3425640865 | D110: =IF($B110="","",$C32*VLOOKUP($B110,Tbl_Emissions,7,FALSE)) -> 0.0279694244 | E110: =IF($B110="","",$C32*VLOOKUP($B110,Tbl_Emissions,8,FALSE)) -> 6.606541134e-06 | F110: =IF($B110="","",$C110*GHG_CO2_factor+$D110*GHG_CH4_factor+$E110*GHG_N2O_factor) -> 1.043768446
B111: =B33 -> Industrial Electricity | C111: =IF($B111="","",$C33*VLOOKUP($B111,Tbl_Emissions,6,FALSE)) -> 0.526631184 | D111: =IF($B111="","",$C33*VLOOKUP($B111,Tbl_Emissions,7,FALSE)) -> 0.0007989122304 | E111: =IF($B111="","",$C33*VLOOKUP($B111,Tbl_Emissions,8,FALSE)) -> 7.70405184e-06 | F111: =IF($B111="","",$C111*GHG_CO2_factor+$D111*GHG_CH4_factor+$E111*GHG_N2O_factor) -> 0.5488997972
B112: =B34 ->  | C112: =IF($B112="","",$C34*VLOOKUP($B112,Tbl_Emissions,6,FALSE)) ->  | D112: =IF($B112="","",$C34*VLOOKUP($B112,Tbl_Emissions,7,FALSE)) ->  | E112: =IF($B112="","",$C34*VLOOKUP($B112,Tbl_Emissions,8,FALSE)) ->  | F112: =IF($B112="","",$C112*GHG_CO2_factor+$D112*GHG_CH4_factor+$E112*GHG_N2O_factor) -> 
B113: =B35 ->  | C113: =IF($B113="","",$C35*VLOOKUP($B113,Tbl_Emissions,6,FALSE)) ->  | D113: =IF($B113="","",$C35*VLOOKUP($B113,Tbl_Emissions,7,FALSE)) ->  | E113: =IF($B113="","",$C35*VLOOKUP($B113,Tbl_Emissions,8,FALSE)) ->  | F113: =IF($B113="","",$C113*GHG_CO2_factor+$D113*GHG_CH4_factor+$E113*GHG_N2O_factor) -> 
B114: Utility
B115: =B37 ->  | C115: =IF($B115="","",$C37*VLOOKUP($B115,Tbl_Emissions,6,FALSE)) ->  | D115: =IF($B115="","",$C37*VLOOKUP($B115,Tbl_Emissions,7,FALSE)) ->  | E115: =IF($B115="","",$C37*VLOOKUP($B115,Tbl_Emissions,8,FALSE)) ->  | F115: =IF($B115="","",$C115*GHG_CO2_factor+$D115*GHG_CH4_factor+$E115*GHG_N2O_factor) -> 
B116: =B38 ->  | C116: =IF($B116="","",$C38*VLOOKUP($B116,Tbl_Emissions,6,FALSE)) ->  | D116: =IF($B116="","",$C38*VLOOKUP($B116,Tbl_Emissions,7,FALSE)) ->  | E116: =IF($B116="","",$C38*VLOOKUP($B116,Tbl_Emissions,8,FALSE)) ->  | F116: =IF($B116="","",$C116*GHG_CO2_factor+$D116*GHG_CH4_factor+$E116*GHG_N2O_factor) -> 
B117: =B39 ->  | C117: =IF($B117="","",$C39*VLOOKUP($B117,Tbl_Emissions,6,FALSE)) ->  | D117: =IF($B117="","",$C39*VLOOKUP($B117,Tbl_Emissions,7,FALSE)) ->  | E117: =IF($B117="","",$C39*VLOOKUP($B117,Tbl_Emissions,8,FALSE)) ->  | F117: =IF($B117="","",$C117*GHG_CO2_factor+$D117*GHG_CH4_factor+$E117*GHG_N2O_factor) -> 
B118: =B40 ->  | C118: =IF($B118="","",$C40*VLOOKUP($B118,Tbl_Emissions,6,FALSE)) ->  | D118: =IF($B118="","",$C40*VLOOKUP($B118,Tbl_Emissions,7,FALSE)) ->  | E118: =IF($B118="","",$C40*VLOOKUP($B118,Tbl_Emissions,8,FALSE)) ->  | F118: =IF($B118="","",$C118*GHG_CO2_factor+$D118*GHG_CH4_factor+$E118*GHG_N2O_factor) -> 
B119: Carbon Sequestration
B120: =B42 ->  | C120: =IF($B120="","",$C42*VLOOKUP($B120,Tbl_Emissions,6,FALSE)) ->  | D120: =IF($B120="","",$C42*VLOOKUP($B120,Tbl_Emissions,7,FALSE)) ->  | E120: =IF($B120="","",$C42*VLOOKUP($B120,Tbl_Emissions,8,FALSE)) ->  | F120: =IF($B120="","",$C120*GHG_CO2_factor+$D120*GHG_CH4_factor+$E120*GHG_N2O_factor) -> 
B121: TOTAL | C121: =SUM(C110:C120) -> 0.8691952705 | D121: =SUM(D110:D120) -> 0.02876833663 | E121: =SUM(E110:E120) -> 1.431059297e-05 | F121: =SUM(F110:F120) -> 1.592668243

Sheet Tornado Charts & Risk Analysis
B2: Parameter | C2: Nominal | D2: Enter deviation % for lowering H2 cost | E2: Enter deviation % for increasing H2 cost | F2: Price-decreasing factor | G2: Price-increasing factor | H2: Price-decreasing value | I2: Price-increasing value
B3: Operating Capacity Factor | C3: =+cap_factor -> 0.9 | D3: 0.05 | E3: 0.05 | F3: =1+D3 -> 1.05 | G3: =1-E3 -> 0.95 | H3: =+C3*F3 -> 0.945 | I3: =+C3*G3 -> 0.855
B4: =+Input_Sheet_Template!B26 -> Plant Design Capacity (kg of H2/day) | C4: =+design_cap -> 660000 | D4: 0.05 | E4: 0.05 | F4: =1+D4 -> 1.05 | G4: =1-E4 -> 0.95 | H4: 693000 | I4: 627000
B5: After-tax Real IRR | C5: =+real_irr -> 0.08 | D5: 0.05 | E5: 0.05 | F5: =1-D5 -> 0.95 | G5: =1+E5 -> 1.05 | H5: 0.076 | I5: 0.084
B6: Feedstock Consumption (% of baseline) | C6: 1 | D6: 0.05 | E6: 0.05 | F6: =1-D6 -> 0.95 | G6: =1+E6 -> 1.05 | H6: 0.95 | I6: 1.05
B7: Utilities Consumption (% of baseline) | C7: 1 | D7: 0.05 | E7: 0.05 | F7: =1-D7 -> 0.95 | G7: 1.05 | H7: 0.95 | I7: 1.05
B8: Total Capital Investment | C8: =+total_cap -> 3550786561 | D8: 0.05 | E8: 0.05 | F8: =1-D8 -> 0.95 | G8: 1.05 | H8: 3373247233 | I8: 3728325889
B9: Total Fixed Operating Cost | C9: =+fixed -> 180641599.8 | D9: 0.05 | E9: 0.05 | F9: =1-D9 -> 0.95 | G9: 1.05 | H9: 171609519.8 | I9: 189673679.8
B11: Run Risk Analysis (note: Risk analysis could take ~5 min to run)? | D11: Yes | E11: =IF(RunRiskAnalysis="Yes"," Please click Update Charts and Risk Analysis button before using results below","") -> Please click Update Charts and Risk Analysis button before using results below
P12: Risk variable to plot | R12: Cost of hydrogen ($/kg)
V13: Percentile | W13: Value
V14: 0 | W14: =+MIN(OFFSET($B$251:$B$2250,0,$C$194))*$C$198 -> 2.716302793
V15: 0.05 | W15: =+PERCENTILE(OFFSET($B$251:$B$2250,0,$C$194),V15)*$C$198 -> 2.819562799
V16: =+V15+0.05 -> 0.1 | W16: 2.839805639
V17: 0.15 | W17: 2.853922252
V18: 0.2 | W18: 2.864966254
V19: 0.25 | W19: 2.874279173
V20: 0.3 | W20: 2.882655056
V21: 0.35 | W21: 2.89159725
V22: 0.4 | W22: 2.90030054
V23: 0.45 | W23: 2.909674977
V24: 0.5 | W24: 2.917699531
V25: 0.55 | W25: 2.926067986
V26: 0.6 | W26: 2.935123168
V27: 0.65 | W27: 2.944829655
V28: 0.7 | W28: 2.953089023
V29: 0.75 | W29: 2.96483905
V30: 0.8 | W30: 2.975608114
V31: 0.85 | W31: 2.985733558
V32: 0.9 | W32: 2.999514041
V33: 0.95 | W33: 3.022642264
V34: 1 | W34: =+MAX(OFFSET($B$251:$B$2250,0,$C$194))*$C$198 -> 3.093773219
B45: No user interactions below this row
B47: Displayed case
B48: 1 | C48: =+OFFSET(C50,$B$48,0) -> 1 | D48: 1 | E48: 1 | F48: =+OFFSET(F50,$B$48,0) -> 1 | G48: =+OFFSET(G50,$B$48,0) -> 1 | H48: =+OFFSET(H50,$B$48,0) -> 1 | I48: =+OFFSET(I50,$B$48,0) -> 1 | K48: =+'Cash Flow Analysis'!F118 -> 2.917443694 | L48: =+'Cash Flow Analysis'!Q118 -> 0 | M48: =+'Cash Flow Analysis'!L118 -> 0.006321945289 | N48: =+'Cash Flow Analysis'!H117 -> 0.6381847365 | O48: =+'Cash Flow Analysis'!I117 -> 0.0815554936 | P48: =+'Cash Flow Analysis'!J117 -> 0.02345687017 | Q48: =+'Cash Flow Analysis'!K117 -> 0.006486339164 | R48: =+'Cash Flow Analysis'!M117 -> 0.006296347531 | S48: =+'Cash Flow Analysis'!N117 -> 0.8331792805 | T48: =+'Cash Flow Analysis'!O117 -> 0.5061495636 | U48: =+'Cash Flow Analysis'!P117 -> 0.04197558661 | V48: =+'Cash Flow Analysis'!R117 -> 0.3375376663 | W48: =+'Cash Flow Analysis'!S117 -> 0.3814717731 | X48: =+'Cash Flow Analysis'!X117 -> 0.05033539955 | Y48: =+'Cash Flow Analysis'!Z117 -> 0.01713658239
B50: Case | C50: Operating capacity factor | D50: Plant design capacity (kg of H2/day) | E50: After-tax real IRR (%) | F50: Feedstock consumption (% of most likely value) | G50: Utilities consumption (% of most likely value) | H50: Total capital investment ($) | I50: Total fixed operating cost ($/year) | K50: Cost of hydrogen ($/kg) | L50: Revenue from byproduct sales ($/kg) | M50: Salvage value ($/kg) | N50: Initial equity depreciable capital ($/kg) | O50: Yearly replacement costs ($/kg) | P50: Cash from working capital reserve ($/kg) | Q50: Other non-depreciable capital costs ($/kg) | R50: Decommissioning costs ($/kg) | S50: Fixed operating cost ($/kg) | T50: Feedstock cost ($/kg) | U50: Other raw material cost ($/kg) | V50: Other variable operating costs ($/kg) | W50: Debt interest ($/kg) | X50: Taxes ($/kg) | Y50: Principal payment ($/kg)
B51: 1 | C51: 1 | D51: 1 | E51: 1 | F51: 1 | G51: 1 | H51: 1 | I51: 1 | K51: 2.917814124 | L51: 0 | M51: 0.006321945289 | N51: 0.6381847365 | O51: 0.0815554936 | P51: 0.02346183454 | Q51: 0.006486339164 | R51: 0.006296347531 | S51: 0.8331792805 | T51: 0.5061495636 | U51: 0.04197558661 | V51: 0.3379014119 | W51: 0.3814717731 | X51: 0.0503371203 | Y51: 0.01713658239
B52: =+B51+1 -> 2 | C52: =+F3 -> 1.05 | D52: 1 | E52: 1 | F52: 1 | G52: 1 | H52: 1 | I52: 1 | K52: 2.812615407 | L52: 0 | M52: 0.006020900275 | N52: 0.6077949872 | O52: 0.07767189867 | P52: 0.02279675814 | Q52: 0.006177465871 | R52: 0.005996521458 | S52: 0.7935040766 | T52: 0.5061495636 | U52: 0.03997674916 | V52: 0.3308444415 | W52: 0.3633064505 | X52: 0.04809684012 | Y52: 0.01632055466
B53: =+B52+1 -> 3 | C53: =+G3 -> 0.95 | D53: 1 | E53: 1 | F53: 1 | G53: 1 | H53: 1 | I53: 1 | K53: 3.034145176 | L53: 0 | M53: 0.006654679251 | N53: 0.6717734069 | O53: 0.085847888 | P53: 0.0241977068 | Q53: 0.006827725436 | R53: 0.006627734243 | S53: 0.8770308215 | T53: 0.5061495636 | U53: 0.04418482801 | V53: 0.3457589456 | W53: 0.4015492348 | X53: 0.05281349252 | Y53: 0.01803850778
B54: 4 | C54: 1 | D54: =+F4 -> 1.05 | E54: 1 | F54: 1 | G54: 1 | H54: 1 | I54: 1 | K54: 2.875090633 | L54: 0 | M54: 0.006194250616 | N54: 0.6252835518 | O54: 0.07990681348 | P54: 0.02320495348 | Q54: 0.006382132389 | R54: 0.006169064101 | S54: 0.8185633922 | T54: 0.5061495636 | U54: 0.04197558661 | V54: 0.3336952914 | W54: 0.3737601537 | X54: 0.04940422216 | Y54: 0.01679015885
B55: 5 | C55: 1 | D55: =+G4 -> 0.95 | E55: 1 | F55: 1 | G55: 1 | H55: 1 | I55: 1 | K55: 2.964076779 | L55: 0 | M55: 0.006459951137 | N55: 0.6521281313 | O55: 0.08333736079 | P55: 0.02374066457 | Q55: 0.006597819195 | R55: 0.006433913434 | S55: 0.8489118114 | T55: 0.5061495636 | U55: 0.04197558661 | V55: 0.3425991196 | W55: 0.3898063684 | X55: 0.0513453998 | Y55: 0.01751099143
B56: 6 | C56: 1 | D56: 1 | E56: =+F5 -> 0.95 | F56: 1 | G56: 1 | H56: 1 | I56: 1 | K56: 2.873513132 | L56: 0 | M56: 0.007021011521 | N56: 0.6064751785 | O56: 0.0815554936 | P56: 0.02259090317 | Q56: 0.006164051688 | R56: 0.006992583222 | S56: 0.8331792805 | T56: 0.5066505781 | U56: 0.04197558661 | V56: 0.3379014119 | W56: 0.3753623987 | X56: 0.04265517093 | Y56: 0.01903150643
B57: 7 | C57: 1 | D57: 1 | E57: =+G5 -> 1.05 | F57: 1 | G57: 1 | H57: 1 | I57: 1 | K57: 2.963471574 | L57: 0 | M57: 0.005687847015 | N57: 0.670618776 | O57: 0.0815554936 | P57: 0.0243257814 | Q57: 0.006815990076 | R57: 0.005664816741 | S57: 0.8331792805 | T57: 0.5056595989 | U57: 0.04197558661 | V57: 0.3379014119 | W57: 0.3876044888 | X57: 0.05844043237 | Y57: 0.01541776376
B58: 8 | C58: 1 | D58: 1 | E58: 1 | F58: =+F6 -> 0.95 | G58: 1 | H58: 1 | I58: 1 | K58: 2.917814124 | L58: 0 | M58: 0.006321945289 | N58: 0.6381847365 | O58: 0.0815554936 | P58: 0.02346183454 | Q58: 0.006486339164 | R58: 0.006296347531 | S58: 0.8331792805 | T58: 0.5061495636 | U58: 0.04197558661 | V58: 0.3379014119 | W58: 0.3814717731 | X58: 0.0503371203 | Y58: 0.01713658239
B59: 9 | C59: 1 | D59: 1 | E59: 1 | F59: =+G6 -> 1.05 | G59: 1 | H59: 1 | I59: 1 | K59: 2.917814124 | L59: 0 | M59: 0.006321945289 | N59: 0.6381847365 | O59: 0.0815554936 | P59: 0.02346183454 | Q59: 0.006486339164 | R59: 0.006296347531 | S59: 0.8331792805 | T59: 0.5061495636 | U59: 0.04197558661 | V59: 0.3379014119 | W59: 0.3814717731 | X59: 0.0503371203 | Y59: 0.01713658239
B60: 10 | C60: 1 | D60: 1 | E60: 1 | F60: 1 | G60: =+F7 -> 0.95 | H60: 1 | I60: 1 | K60: 2.917814124 | L60: 0 | M60: 0.006321945289 | N60: 0.6381847365 | O60: 0.0815554936 | P60: 0.02346183454 | Q60: 0.006486339164 | R60: 0.006296347531 | S60: 0.8331792805 | T60: 0.5061495636 | U60: 0.04197558661 | V60: 0.3379014119 | W60: 0.3814717731 | X60: 0.0503371203 | Y60: 0.01713658239
B61: 11 | C61: 1 | D61: 1 | E61: 1 | F61: 1 | G61: =+G6 -> 1.05 | H61: 1 | I61: 1 | K61: 2.917814124 | L61: 0 | M61: 0.006321945289 | N61: 0.6381847365 | O61: 0.0815554936 | P61: 0.02346183454 | Q61: 0.006486339164 | R61: 0.006296347531 | S61: 0.8331792805 | T61: 0.5061495636 | U61: 0.04197558661 | V61: 0.3379014119 | W61: 0.3814717731 | X61: 0.0503371203 | Y61: 0.01713658239
B62: 12 | C62: 1 | D62: 1 | E62: 1 | F62: 1 | G62: 1 | H62: =+F8 -> 0.95 | I62: 1 | K62: 2.847789631 | L62: 0 | M62: 0.006005848024 | N62: 0.6061457729 | O62: 0.0815554936 | P62: 0.02323831712 | Q62: 0.006486339164 | R62: 0.005980250267 | S62: 0.8168018691 | T62: 0.5061495636 | U62: 0.04197558661 | V62: 0.3379014119 | W62: 0.3623206409 | X62: 0.04896396397 | Y62: 0.01627626984
B63: 13 | C63: 1 | D63: 1 | E63: 1 | F63: 1 | G63: 1 | H63: =+G8 -> 1.05 | I63: 1 | K63: 2.987838618 | L63: 0 | M63: 0.006638042553 | N63: 0.6702237001 | O63: 0.0815554936 | P63: 0.02368535196 | Q63: 0.006486339164 | R63: 0.006612444795 | S63: 0.8495566918 | T63: 0.5061495636 | U63: 0.04197558661 | V63: 0.3379014119 | W63: 0.4006229053 | X63: 0.05171027663 | Y63: 0.01799689494
B64: 14 | C64: 1 | D64: 1 | E64: 1 | F64: 1 | G64: 1 | H64: 1 | I64: =+F9 -> 0.95 | K64: 2.875389529 | L64: 0 | M64: 0.006321945289 | N64: 0.6381847365 | O64: 0.0815554936 | P64: 0.0228932768 | Q64: 0.006486339164 | R64: 0.006296347531 | S64: 0.7915203164 | T64: 0.5061495636 | U64: 0.04197558661 | V64: 0.3379014119 | W64: 0.3814717731 | X64: 0.05014004683 | Y64: 0.01713658239
B65: 15 | C65: 1 | D65: 1 | E65: 1 | F65: 1 | G65: 1 | H65: 1 | I65: =+G9 -> 1.05 | K65: 2.96023872 | L65: 0 | M65: 0.006321945289 | N65: 0.6381847365 | O65: 0.0815554936 | P65: 0.02403039228 | Q65: 0.006486339164 | R65: 0.006296347531 | S65: 0.8748382445 | T65: 0.5061495636 | U65: 0.04197558661 | V65: 0.3379014119 | W65: 0.3814717731 | X65: 0.05053419378 | Y65: 0.01713658239
B66: 16 | C66: =(C$72=1)*$F$3 +(C$72=2) +(C$72=3) +(C$72=4) +(C$72=5) -> 1.05 | D66: 1 | E66: 1 | F66: =(F$72=1)*$F$6 +(F$72=2) +(F$72=3) +(F$72=4) +(F$72=5) -> 1 | G66: =(G$72=1)*$F$7 +(G$72=2) +(G$72=3) +(G$72=4) +(G$72=5) -> 1 | H66: =(H$72=1)*$F$8 +(H$72=2) +(H$72=3) +(H$72=4) +(H$72=5) -> 1 | I66: =(I$72=1)*$F$9 +(I$72=2) +(I$72=3) +(I$72=4) +(I$72=5) -> 1 | K66: 2.812615407 | L66: 0 | M66: 0.006020900275 | N66: 0.6077949872 | O66: 0.07767189867 | P66: 0.02279675814 | Q66: 0.006177465871 | R66: 0.005996521458 | S66: 0.7935040766 | T66: 0.5061495636 | U66: 0.03997674916 | V66: 0.3308444415 | W66: 0.3633064505 | X66: 0.04809684012 | Y66: 0.01632055466
B67: 17 | C67: =(C$72=1)*$F$3 +(C$72=2)*$F$3 +(C$72=3) +(C$72=4) +(C$72=5) -> 1.05 | D67: 1 | E67: 1 | F67: =(F$72=1)*$F$6 +(F$72=2)*$F$6 +(F$72=3) +(F$72=4) +(F$72=5) -> 1 | G67: =(G$72=1)*$F$7 +(G$72=2)*$F$7 +(G$72=3) +(G$72=4) +(G$72=5) -> 1 | H67: =(H$72=1)*$F$8 +(H$72=2)*$F$8 +(H$72=3) +(H$72=4) +(H$72=5) -> 0.95 | I67: =(I$72=1)*$F$9 +(I$72=2)*$F$9 +(I$72=3) +(I$72=4) +(I$72=5) -> 1 | K67: 2.745925413 | L67: 0 | M67: 0.005719855261 | N67: 0.5772816885 | O67: 0.07767189867 | P67: 0.02258388441 | Q67: 0.006177465871 | R67: 0.005695476444 | S67: 0.777906542 | T67: 0.5061495636 | U67: 0.03997674916 | V67: 0.3308444415 | W67: 0.345067277 | X67: 0.04678907219 | Y67: 0.01550120937
B68: 18 | C68: =(C$72=1)*$F$3 +(C$72=2)*$F$3 +(C$72=3)*$F$3 +(C$72=4) +(C$72=5) -> 1.05 | D68: 1 | E68: 1 | F68: =(F$72=1)*$F$6 +(F$72=2)*$F$6 +(F$72=3)*$F$6 +(F$72=4) +(F$72=5) -> 1 | G68: =(G$72=1)*$F$7 +(G$72=2)*$F$7 +(G$72=3)*$F$7 +(G$72=4) +(G$72=5) -> 1 | H68: =(H$72=1)*$F$8 +(H$72=2)*$F$8 +(H$72=3)*$F$8 +(H$72=4) +(H$72=5) -> 0.95 | I68: =(I$72=1)*$F$9 +(I$72=2)*$F$9 +(I$72=3)*$F$9 +(I$72=4) +(I$72=5) -> 0.95 | K68: 2.706315247 | L68: 0 | M68: 0.005719855261 | N68: 0.5772816885 | O68: 0.07767189867 | P68: 0.02205304454 | Q68: 0.006177465871 | R68: 0.005695476444 | S68: 0.7390112149 | T68: 0.5061495636 | U68: 0.03997674916 | V68: 0.3308444415 | W68: 0.345067277 | X68: 0.04660507248 | Y68: 0.01550120937
B69: 19 | C69: =(C$72=1)*$F$3 +(C$72=2)*$F$3 +(C$72=3)*$F$3 +(C$72=4)*$F$3 +(C$72=5) -> 1.05 | D69: 1 | E69: 1 | F69: =(F$72=1)*$F$6 +(F$72=2)*$F$6 +(F$72=3)*$F$6 +(F$72=4)*$F$6 +(F$72=5) -> 1 | G69: =(G$72=1)*$F$7 +(G$72=2)*$F$7 +(G$72=3)*$F$7 +(G$72=4)*$F$7 +(G$72=5) -> 1 | H69: =(H$72=1)*$F$8 +(H$72=2)*$F$8 +(H$72=3)*$F$8 +(H$72=4)*$F$8 +(H$72=5) -> 0.95 | I69: =(I$72=1)*$F$9 +(I$72=2)*$F$9 +(I$72=3)*$F$9 +(I$72=4)*$F$9 +(I$72=5) -> 0.95 | K69: 2.706315247 | L69: 0 | M69: 0.005719855261 | N69: 0.5772816885 | O69: 0.07767189867 | P69: 0.02205304454 | Q69: 0.006177465871 | R69: 0.005695476444 | S69: 0.7390112149 | T69: 0.5061495636 | U69: 0.03997674916 | V69: 0.3308444415 | W69: 0.345067277 | X69: 0.04660507248 | Y69: 0.01550120937
B70: 20 | C70: =(C$72=1)*$F$3 +(C$72=2)*$F$3 +(C$72=3)*$F$3 +(C$72=4)*$F$3 +(C$72=5)*$F$3 -> 1.05 | D70: 1 | E70: 1 | F70: =(F$72=1)*$F$6 +(F$72=2)*$F$6 +(F$72=3)*$F$6 +(F$72=4)*$F$6 +(F$72=5)*$F$6 -> 0.95 | G70: =(G$72=1)*$F$7 +(G$72=2)*$F$7 +(G$72=3)*$F$7 +(G$72=4)*$F$7 +(G$72=5)*$F$7 -> 0.95 | H70: =(H$72=1)*$F$8 +(H$72=2)*$F$8 +(H$72=3)*$F$8 +(H$72=4)*$F$8 +(H$72=5)*$F$8 -> 0.95 | I70: =(I$72=1)*$F$9 +(I$72=2)*$F$9 +(I$72=3)*$F$9 +(I$72=4)*$F$9 +(I$72=5)*$F$9 -> 0.95 | K70: 2.706315247 | L70: 0 | M70: 0.005719855261 | N70: 0.5772816885 | O70: 0.07767189867 | P70: 0.02205304454 | Q70: 0.006177465871 | R70: 0.005695476444 | S70: 0.7390112149 | T70: 0.5061495636 | U70: 0.03997674916 | V70: 0.3308444415 | W70: 0.345067277 | X70: 0.04660507248 | Y70: 0.01550120937
B72: Waterfall Chart Priority | C72: =6-RANK($N$101,($N$101,$N$104:$N$107)) -> 1 | F72: =6-RANK($N$104,($N$101,$N$104:$N$107)) -> 5 | G72: =6-RANK($N$105,($N$101,$N$104:$N$107)) -> 5 | H72: =6-RANK($N$106,($N$101,$N$104:$N$107)) -> 2 | I72: =6-RANK($N$107,($N$101,$N$104:$N$107)) -> 3
B74: Visualization data formatting
B76: parameter | C76: level | D76: Chart titles | E76: Revenue from Hydrogen Sales | F76: Revenue from Byproduct Sales | G76: Salvage Value | H76: Initial Equity Depreciable Capital | I76: Yearly Replacement Costs | J76: Cash for Working Capital Reserve | K76: Other Non-Depreciable Capital Costs | L76: Decommissioning Costs | M76: Fixed Operating Cost | N76: Feedstock Cost | O76: Other Raw Material Cost | P76: Other Variable Operating Costs | Q76: Debt Interest | R76: Taxes | S76: Principal Payment
B77: =+$B$3 -> Operating Capacity Factor | C77: =+H3 -> 0.945 | D77: =+B77&" = "&C77*100&"%" -> Operating Capacity Factor = 94.5% | E77: =+K52 -> 2.812615407 | F77: 0 | G77: 0.006020900275 | H77: 0.6077949872 | I77: 0.07767189867 | J77: 0.02279675814 | K77: 0.006177465871 | L77: 0.005996521458 | M77: 0.7935040766 | N77: 0.5061495636 | O77: 0.03997674916 | P77: 0.3308444415 | Q77: 0.3633064505 | R77: 0.04809684012 | S77: 0.01632055466
B78: =+$B$3 -> Operating Capacity Factor | C78: =+C3 -> 0.9 | D78: =+B78&" = "&C78*100&"%" -> Operating Capacity Factor = 90% | E78: =+K$51 -> 2.917814124 | F78: 0 | G78: 0.006321945289 | H78: 0.6381847365 | I78: 0.0815554936 | J78: 0.02346183454 | K78: 0.006486339164 | L78: 0.006296347531 | M78: 0.8331792805 | N78: 0.5061495636 | O78: 0.04197558661 | P78: 0.3379014119 | Q78: 0.3814717731 | R78: 0.0503371203 | S78: 0.01713658239
B79: Operating Capacity Factor | C79: =+I3 -> 0.855 | D79: Operating Capacity Factor = 85.5% | E79: =+K53 -> 3.034145176 | F79: 0 | G79: 0.006654679251 | H79: 0.6717734069 | I79: 0.085847888 | J79: 0.0241977068 | K79: 0.006827725436 | L79: 0.006627734243 | M79: 0.8770308215 | N79: 0.5061495636 | O79: 0.04418482801 | P79: 0.3457589456 | Q79: 0.4015492348 | R79: 0.05281349252 | S79: 0.01803850778
B80: =+$B$4 -> Plant Design Capacity (kg of H2/day) | C80: =ROUND(H4,0) -> 693000 | D80: =+B80&" = "&TEXT(C80,"0,000") -> Plant Design Capacity (kg of H2/day) = 693,000 | E80: 2.875090633 | F80: 0 | G80: 0.006194250616 | H80: 0.6252835518 | I80: 0.07990681348 | J80: 0.02320495348 | K80: 0.006382132389 | L80: 0.006169064101 | M80: 0.8185633922 | N80: 0.5061495636 | O80: 0.04197558661 | P80: 0.3336952914 | Q80: 0.3737601537 | R80: 0.04940422216 | S80: 0.01679015885
B81: =+$B$4 -> Plant Design Capacity (kg of H2/day) | C81: =+ROUND(C4,0) -> 660000 | D81: =+B81&" = "&TEXT(C81,"0,000") -> Plant Design Capacity (kg of H2/day) = 660,000 | E81: =+K$51 -> 2.917814124 | F81: 0 | G81: 0.006321945289 | H81: 0.6381847365 | I81: 0.0815554936 | J81: 0.02346183454 | K81: 0.006486339164 | L81: 0.006296347531 | M81: 0.8331792805 | N81: 0.5061495636 | O81: 0.04197558661 | P81: 0.3379014119 | Q81: 0.3814717731 | R81: 0.0503371203 | S81: 0.01713658239
B82: Plant Design Capacity (kg of H2/day) | C82: =ROUND(I4,0) -> 627000 | D82: Plant Design Capacity (kg of H2/day) = 627,000 | E82: =+K55 -> 2.964076779 | F82: 0 | G82: 0.006459951137 | H82: 0.6521281313 | I82: 0.08333736079 | J82: 0.02374066457 | K82: 0.006597819195 | L82: 0.006433913434 | M82: 0.8489118114 | N82: 0.5061495636 | O82: 0.04197558661 | P82: 0.3425991196 | Q82: 0.3898063684 | R82: 0.0513453998 | S82: 0.01751099143
B83: =+$B$5 -> After-tax Real IRR | C83: =+ROUND(H5,2) -> 0.08 | D83: =+B83&" = "&C83*100&"%" -> After-tax Real IRR = 8% | E83: 2.873513132 | F83: 0 | G83: 0.007021011521 | H83: 0.6064751785 | I83: 0.0815554936 | J83: 0.02259090317 | K83: 0.006164051688 | L83: 0.006992583222 | M83: 0.8331792805 | N83: 0.5066505781 | O83: 0.04197558661 | P83: 0.3379014119 | Q83: 0.3753623987 | R83: 0.04265517093 | S83: 0.01903150643
B84: =+$B$5 -> After-tax Real IRR | C84: =ROUND(C5,2) -> 0.08 | D84: After-tax Real IRR = 8% | E84: =+K$51 -> 2.917814124 | F84: 0 | G84: 0.006321945289 | H84: 0.6381847365 | I84: 0.0815554936 | J84: 0.02346183454 | K84: 0.006486339164 | L84: 0.006296347531 | M84: 0.8331792805 | N84: 0.5061495636 | O84: 0.04197558661 | P84: 0.3379014119 | Q84: 0.3814717731 | R84: 0.0503371203 | S84: 0.01713658239
B85: After-tax Real IRR | C85: =ROUND(I5,2) -> 0.08 | D85: After-tax Real IRR = 8% | E85: =+K57 -> 2.963471574 | F85: 0 | G85: 0.005687847015 | H85: 0.670618776 | I85: 0.0815554936 | J85: 0.0243257814 | K85: 0.006815990076 | L85: 0.005664816741 | M85: 0.8331792805 | N85: 0.5056595989 | O85: 0.04197558661 | P85: 0.3379014119 | Q85: 0.3876044888 | R85: 0.05844043237 | S85: 0.01541776376
B86: =+$B$6 -> Feedstock Consumption (% of baseline) | C86: =+ROUND(H6,3) -> 0.95 | D86: =+B86&" = "&C86*100&"%" -> Feedstock Consumption (% of baseline) = 95% | E86: 2.917814124 | F86: 0 | G86: 0.006321945289 | H86: 0.6381847365 | I86: 0.0815554936 | J86: 0.02346183454 | K86: 0.006486339164 | L86: 0.006296347531 | M86: 0.8331792805 | N86: 0.5061495636 | O86: 0.04197558661 | P86: 0.3379014119 | Q86: 0.3814717731 | R86: 0.0503371203 | S86: 0.01713658239
B87: =+$B$6 -> Feedstock Consumption (% of baseline) | C87: =+ROUND(C6,3) -> 1 | D87: =+B87&" = "&C87*100&"%" -> Feedstock Consumption (% of baseline) = 100% | E87: =+K$51 -> 2.917814124 | F87: 0 | G87: 0.006321945289 | H87: 0.6381847365 | I87: 0.0815554936 | J87: 0.02346183454 | K87: 0.006486339164 | L87: 0.006296347531 | M87: 0.8331792805 | N87: 0.5061495636 | O87: 0.04197558661 | P87: 0.3379014119 | Q87: 0.3814717731 | R87: 0.0503371203 | S87: 0.01713658239
B88: Feedstock Consumption (% of baseline) | C88: =+ROUND(I6,3) -> 1.05 | D88: =+B88&" = "&C88*100&"%" -> Feedstock Consumption (% of baseline) = 105% | E88: =+K59 -> 2.917814124 | F88: 0 | G88: 0.006321945289 | H88: 0.6381847365 | I88: 0.0815554936 | J88: 0.02346183454 | K88: 0.006486339164 | L88: 0.006296347531 | M88: 0.8331792805 | N88: 0.5061495636 | O88: 0.04197558661 | P88: 0.3379014119 | Q88: 0.3814717731 | R88: 0.0503371203 | S88: 0.01713658239
B89: =+$B$7 -> Utilities Consumption (% of baseline) | C89: =+ROUND(H7,3) -> 0.95 | D89: =+B89&" = "&C89*100&"%" -> Utilities Consumption (% of baseline) = 95% | E89: 2.917814124 | F89: 0 | G89: 0.006321945289 | H89: 0.6381847365 | I89: 0.0815554936 | J89: 0.02346183454 | K89: 0.006486339164 | L89: 0.006296347531 | M89: 0.8331792805 | N89: 0.5061495636 | O89: 0.04197558661 | P89: 0.3379014119 | Q89: 0.3814717731 | R89: 0.0503371203 | S89: 0.01713658239
B90: =+$B$7 -> Utilities Consumption (% of baseline) | C90: =+ROUND(C7,3) -> 1 | D90: Utilities Consumption (% of baseline) = 100% | E90: =+K$51 -> 2.917814124 | F90: =+L$51 -> 0 | G90: 0.006321945289 | H90: 0.6381847365 | I90: 0.0815554936 | J90: 0.02346183454 | K90: 0.006486339164 | L90: 0.006296347531 | M90: 0.8331792805 | N90: 0.5061495636 | O90: 0.04197558661 | P90: 0.3379014119 | Q90: 0.3814717731 | R90: 0.0503371203 | S90: 0.01713658239
B91: Utilities Consumption (% of baseline) | C91: =+ROUND(I7,3) -> 1.05 | D91: Utilities Consumption (% of baseline) = 105% | E91: =+K61 -> 2.917814124 | F91: 0 | G91: 0.006321945289 | H91: 0.6381847365 | I91: 0.0815554936 | J91: 0.02346183454 | K91: 0.006486339164 | L91: 0.006296347531 | M91: 0.8331792805 | N91: 0.5061495636 | O91: 0.04197558661 | P91: 0.3379014119 | Q91: 0.3814717731 | R91: 0.0503371203 | S91: 0.01713658239
B92: =+$B$8 -> Total Capital Investment | C92: =+ROUND(H8,0) -> 3373247233 | D92: =+B92&" = "&TEXT(C92/1000,"$0,000K") -> Total Capital Investment = $3,373,247K | E92: 2.847789631 | F92: 0 | G92: 0.006005848024 | H92: 0.6061457729 | I92: 0.0815554936 | J92: 0.02323831712 | K92: 0.006486339164 | L92: 0.005980250267 | M92: 0.8168018691 | N92: 0.5061495636 | O92: 0.04197558661 | P92: 0.3379014119 | Q92: 0.3623206409 | R92: 0.04896396397 | S92: 0.01627626984
B93: =+$B$8 -> Total Capital Investment | C93: =+ROUND(C8,0) -> 3550786561 | D93: Total Capital Investment = $3,550,787K | E93: =+K$51 -> 2.917814124 | F93: 0 | G93: 0.006321945289 | H93: 0.6381847365 | I93: 0.0815554936 | J93: 0.02346183454 | K93: 0.006486339164 | L93: 0.006296347531 | M93: 0.8331792805 | N93: 0.5061495636 | O93: 0.04197558661 | P93: 0.3379014119 | Q93: 0.3814717731 | R93: 0.0503371203 | S93: 0.01713658239
B94: Total Capital Investment | C94: =+ROUND(I8,0) -> 3728325889 | D94: Total Capital Investment = $3,728,326K | E94: =+K63 -> 2.987838618 | F94: 0 | G94: 0.006638042553 | H94: 0.6702237001 | I94: 0.0815554936 | J94: 0.02368535196 | K94: 0.006486339164 | L94: 0.006612444795 | M94: 0.8495566918 | N94: 0.5061495636 | O94: 0.04197558661 | P94: 0.3379014119 | Q94: 0.4006229053 | R94: 0.05171027663 | S94: 0.01799689494
B95: =+$B$9 -> Total Fixed Operating Cost | C95: =+ROUND(H9,0) -> 171609520 | D95: Total Fixed Operating Cost = $171,610K | E95: 2.875389529 | F95: 0 | G95: 0.006321945289 | H95: 0.6381847365 | I95: 0.0815554936 | J95: 0.0228932768 | K95: 0.006486339164 | L95: 0.006296347531 | M95: 0.7915203164 | N95: 0.5061495636 | O95: 0.04197558661 | P95: 0.3379014119 | Q95: 0.3814717731 | R95: 0.05014004683 | S95: 0.01713658239
B96: =+$B$9 -> Total Fixed Operating Cost | C96: =+ROUND(C9,0) -> 180641600 | D96: Total Fixed Operating Cost = $180,642K | E96: =+K$51 -> 2.917814124 | F96: 0 | G96: 0.006321945289 | H96: 0.6381847365 | I96: 0.0815554936 | J96: 0.02346183454 | K96: 0.006486339164 | L96: 0.006296347531 | M96: 0.8331792805 | N96: 0.5061495636 | O96: 0.04197558661 | P96: 0.3379014119 | Q96: 0.3814717731 | R96: 0.0503371203 | S96: 0.01713658239
B97: Total Fixed Operating Cost | C97: =+ROUND(I9,0) -> 189673680 | D97: Total Fixed Operating Cost = $189,674K | E97: =+K65 -> 2.96023872 | F97: 0 | G97: 0.006321945289 | H97: 0.6381847365 | I97: 0.0815554936 | J97: 0.02403039228 | K97: 0.006486339164 | L97: 0.006296347531 | M97: 0.8748382445 | N97: 0.5061495636 | O97: 0.04197558661 | P97: 0.3379014119 | Q97: 0.3814717731 | R97: 0.05053419378 | S97: 0.01713658239
B100: Standard Toranado | C100: Rank | D100: Titles | E100: Low cost price | F100: Default price | G100: High price | H100: dL0 | I100: dL1 | J100: dL2 | L100: Unsorted titles | M100: Results spread ($/kg) | N100: Importance ranking
C101: 1 | D101: =OFFSET(L$100,MATCH($C101,$N$101:$N$107,0),0) -> Operating Capacity Factor (95%, 90%, 86%) | E101: =OFFSET(E$76,MATCH($C101,$N$101:$N$107,0)*3-2,0) -> 2.812615407 | F101: =+$K$51 -> 2.917814124 | G101: =OFFSET(E$76,MATCH($C101,$N$101:$N$107,0)*3,0) -> 3.034145176 | H101: =+E101 -> 2.812615407 | I101: =+F101-E101 -> 0.1051987172 | J101: =+G101-F101 -> 0.1163310516 | L101: =+B3&" ("&TEXT(H3,"0%, ")&TEXT(C3,"0%, ")&TEXT(I3,"0%)") -> Operating Capacity Factor (95%, 90%, 86%) | M101: =ABS(K52-K53)+0.000000001 -> 0.2215297698 | N101: =+RANK(M101,$M$101:$M$107) -> 1
C102: 2 | D102: Total Capital Investment ($3,373,247K, $3,550,787K, $3,728,326K) | E102: 2.847789631 | F102: 2.917814124 | G102: 2.987838618 | H102: =+E102 -> 2.847789631 | I102: =+F102-E102 -> 0.07002449348 | J102: =+G102-F102 -> 0.07002449348 | L102: =+B4&" ("&TEXT(H4,"0,000")&", "&TEXT(C4,"0,000")&", "&TEXT(I4,"0,000")&") " -> Plant Design Capacity (kg of H2/day) (693,000, 660,000, 627,000) | M102: =+ABS(K54-K55)+0.000000002 -> 0.08898614787 | N102: 4
C103: 3 | D103: After-tax Real IRR (8%, 8%, 8%) | E103: 2.873513132 | F103: 2.917814124 | G103: 2.963471574 | H103: 2.873513132 | I103: 0.04430099264 | J103: 0.0456574492 | L103: =+B5&" ("&TEXT(H5,"0%, ")&TEXT(C5,"0%, ")&TEXT(I5,"0%)") -> After-tax Real IRR (8%, 8%, 8%) | M103: =+ABS(K56-K57)+0.000000003 -> 0.08995844485 | N103: 3
C104: 4 | D104: Plant Design Capacity (kg of H2/day) (693,000, 660,000, 627,000) | E104: 2.875090633 | F104: 2.917814124 | G104: 2.964076779 | H104: 2.875090633 | I104: 0.0427234912 | J104: 0.04626265467 | L104: =+B6&" ("&TEXT(H6,"0%, ")&TEXT(C6,"0%, ")&TEXT(I6,"0%)") -> Feedstock Consumption (% of baseline) (95%, 100%, 105%) | M104: =+ABS(K58-K59)+0.000000004 -> 4e-09 | N104: 6
C105: 5 | D105: Total Fixed Operating Cost ($171,610K, $180,642K, $189,674K) | E105: 2.875389529 | F105: 2.917814124 | G105: 2.96023872 | H105: =+E105 -> 2.875389529 | I105: =+F105-E105 -> 0.04242459523 | J105: =+G105-F105 -> 0.04242459523 | L105: =+B7&" ("&TEXT(H7,"0%, ")&TEXT(C7,"0%, ")&TEXT(I7,"0%)") -> Utilities Consumption (% of baseline) (95%, 100%, 105%) | M105: =+ABS(K60-K61)+0.000000004 -> 4e-09 | N105: 6
C106: 6 | D106: Feedstock Consumption (% of baseline) (95%, 100%, 105%) | E106: 2.917814124 | F106: 2.917814124 | G106: 2.917814124 | H106: 2.917814124 | I106: 0 | J106: 0 | L106: =+B8&" ("&TEXT(H8/1000,"$0,000K")&", "&TEXT(C8/1000,"$0,000K")&", "&TEXT(I8/1000,"$0,000K")&") " -> Total Capital Investment ($3,373,247K, $3,550,787K, $3,728,326K) | M106: =+ABS(K62-K63)+0.000000006 -> 0.140048993 | N106: 2
C107: 7 | F107: 2.917814124 | L107: =+B9&" ("&TEXT(H9/1000,"$0,000K")&", "&TEXT(C9/1000,"$0,000K")&", "&TEXT(I9/1000,"$0,000K")&") " -> Total Fixed Operating Cost ($171,610K, $180,642K, $189,674K) | M107: =+ABS(K64-K65)+0.00000007 -> 0.08484926047 | N107: 5
B110: Simple bar chart | C110: Rank | D110: =+D76 -> Chart titles | E110: Hydrogen Sales | F110: Byproduct Sales | G110: Salvage Value | H110: =+H76 -> Initial Equity Depreciable Capital | I110: Yearly Replacement Costs | J110: Cash for Working Capital Reserve | K110: Other Non-Depreciable Capital Costs | L110: Decommissioning Costs | M110: Fixed Operating Cost | N110: Feedstock Cost | O110: Other Raw Material Cost | P110: Other Variable Operating Costs | Q110: Debt Interest | R110: Taxes | S110: Principal Payment
C111: 1 | D111: Base case | E111: =OFFSET(E$76,MATCH($C111,$N$101:$N$107,0)*3-1,0) -> 2.917814124 | F111: =OFFSET(F$76,MATCH($C111,$N$101:$N$107,0)*3-1,0) -> 0 | G111: =OFFSET(G$76,MATCH($C111,$N$101:$N$107,0)*3-1,0) -> 0.006321945289
H112: =OFFSET(H$76,MATCH($C111,$N$101:$N$107,0)*3-1,0) -> 0.6381847365 | I112: 0.0815554936 | J112: 0.02346183454 | K112: 0.006486339164 | L112: 0.006296347531 | M112: 0.8331792805 | N112: 0.5061495636 | O112: 0.04197558661 | P112: 0.3379014119 | Q112: 0.3814717731 | R112: 0.0503371203 | S112: 0.01713658239
C115: 1 | D115: =OFFSET(D$76,MATCH($C115,$N$101:$N$107,0)*3-2,0) -> Operating Capacity Factor = 94.5% | E115: 2.812615407 | F115: 0 | G115: 0.006020900275
H116: =OFFSET(H$76,MATCH($C115,$N$101:$N$107,0)*3-2,0) -> 0.6077949872 | I116: 0.07767189867 | J116: 0.02279675814 | K116: 0.006177465871 | L116: 0.005996521458 | M116: 0.7935040766 | N116: 0.5061495636 | O116: 0.03997674916 | P116: 0.3308444415 | Q116: 0.3633064505 | R116: 0.04809684012 | S116: 0.01632055466
C117: 1 | D117: =OFFSET(D$76,MATCH($C117,$N$101:$N$107,0)*3,0) -> Operating Capacity Factor = 85.5% | E117: 3.034145176 | F117: 0 | G117: 0.006654679251
H118: =OFFSET(H$76,MATCH($C117,$N$101:$N$107,0)*3,0) -> 0.6717734069 | I118: 0.085847888 | J118: 0.0241977068 | K118: 0.006827725436 | L118: 0.006627734243 | M118: 0.8770308215 | N118: 0.5061495636 | O118: 0.04418482801 | P118: 0.3457589456 | Q118: 0.4015492348 | R118: 0.05281349252 | S118: 0.01803850778
C120: 2 | D120: =OFFSET(D$76,MATCH($C120,$N$101:$N$107,0)*3-2,0) -> Total Capital Investment = $3,373,247K | E120: 2.847789631 | F120: 0 | G120: 0.006005848024
H121: =OFFSET(H$76,MATCH($C120,$N$101:$N$107,0)*3-2,0) -> 0.6061457729 | I121: 0.0815554936 | J121: 0.02323831712 | K121: 0.006486339164 | L121: 0.005980250267 | M121: 0.8168018691 | N121: 0.5061495636 | O121: 0.04197558661 | P121: 0.3379014119 | Q121: 0.3623206409 | R121: 0.04896396397 | S121: 0.01627626984
C122: 2 | D122: =OFFSET(D$76,MATCH($C122,$N$101:$N$107,0)*3,0) -> Total Capital Investment = $3,728,326K | E122: 2.987838618 | F122: 0 | G122: 0.006638042553
H123: =OFFSET(H$76,MATCH($C122,$N$101:$N$107,0)*3,0) -> 0.6702237001 | I123: 0.0815554936 | J123: 0.02368535196 | K123: 0.006486339164 | L123: 0.006612444795 | M123: 0.8495566918 | N123: 0.5061495636 | O123: 0.04197558661 | P123: 0.3379014119 | Q123: 0.4006229053 | R123: 0.05171027663 | S123: 0.01799689494
C125: 3 | D125: =OFFSET(D$76,MATCH($C125,$N$101:$N$107,0)*3-2,0) -> After-tax Real IRR = 8% | E125: 2.873513132 | F125: 0 | G125: 0.007021011521
H126: =OFFSET(H$76,MATCH($C125,$N$101:$N$107,0)*3-2,0) -> 0.6064751785 | I126: 0.0815554936 | J126: 0.02259090317 | K126: 0.006164051688 | L126: 0.006992583222 | M126: 0.8331792805 | N126: 0.5066505781 | O126: 0.04197558661 | P126: 0.3379014119 | Q126: 0.3753623987 | R126: 0.04265517093 | S126: 0.01903150643
C127: 3 | D127: =OFFSET(D$76,MATCH($C127,$N$101:$N$107,0)*3,0) -> After-tax Real IRR = 8% | E127: 2.963471574 | F127: 0 | G127: 0.005687847015
H128: =OFFSET(H$76,MATCH($C127,$N$101:$N$107,0)*3,0) -> 0.670618776 | I128: 0.0815554936 | J128: 0.0243257814 | K128: 0.006815990076 | L128: 0.005664816741 | M128: 0.8331792805 | N128: 0.5056595989 | O128: 0.04197558661 | P128: 0.3379014119 | Q128: 0.3876044888 | R128: 0.05844043237 | S128: 0.01541776376
C130: 4 | D130: =OFFSET(D$76,MATCH($C130,$N$101:$N$107,0)*3-2,0) -> Plant Design Capacity (kg of H2/day) = 693,000 | E130: 2.875090633 | F130: 0 | G130: 0.006194250616
H131: =OFFSET(H$76,MATCH($C130,$N$101:$N$107,0)*3-2,0) -> 0.6252835518 | I131: 0.07990681348 | J131: 0.02320495348 | K131: 0.006382132389 | L131: 0.006169064101 | M131: 0.8185633922 | N131: 0.5061495636 | O131: 0.04197558661 | P131: 0.3336952914 | Q131: 0.3737601537 | R131: 0.04940422216 | S131: 0.01679015885
C132: 4 | D132: =OFFSET(D$76,MATCH($C132,$N$101:$N$107,0)*3,0) -> Plant Design Capacity (kg of H2/day) = 627,000 | E132: 2.964076779 | F132: 0 | G132: 0.006459951137
H133: =OFFSET(H$76,MATCH($C132,$N$101:$N$107,0)*3,0) -> 0.6521281313 | I133: 0.08333736079 | J133: 0.02374066457 | K133: 0.006597819195 | L133: 0.006433913434 | M133: 0.8489118114 | N133: 0.5061495636 | O133: 0.04197558661 | P133: 0.3425991196 | Q133: 0.3898063684 | R133: 0.0513453998 | S133: 0.01751099143
C135: 5 | D135: =OFFSET(D$76,MATCH($C135,$N$101:$N$107,0)*3-2,0) -> Total Fixed Operating Cost = $171,610K | E135: 2.875389529 | F135: 0 | G135: 0.006321945289
H136: =OFFSET(H$76,MATCH($C135,$N$101:$N$107,0)*3-2,0) -> 0.6381847365 | I136: 0.0815554936 | J136: 0.0228932768 | K136: 0.006486339164 | L136: 0.006296347531 | M136: 0.7915203164 | N136: 0.5061495636 | O136: 0.04197558661 | P136: 0.3379014119 | Q136: 0.3814717731 | R136: 0.05014004683 | S136: 0.01713658239
C137: 5 | D137: =OFFSET(D$76,MATCH($C137,$N$101:$N$107,0)*3,0) -> Total Fixed Operating Cost = $189,674K | E137: 2.96023872 | F137: 0 | G137: 0.006321945289
H138: =OFFSET(H$76,MATCH($C137,$N$101:$N$107,0)*3,0) -> 0.6381847365 | I138: 0.0815554936 | J138: 0.02403039228 | K138: 0.006486339164 | L138: 0.006296347531 | M138: 0.8748382445 | N138: 0.5061495636 | O138: 0.04197558661 | P138: 0.3379014119 | Q138: 0.3814717731 | R138: 0.05053419378 | S138: 0.01713658239
C140: 6 | D140: =OFFSET(D$76,MATCH($C140,$N$101:$N$107,0)*3-2,0) -> Feedstock Consumption (% of baseline) = 95% | E140: 2.917814124 | F140: 0 | G140: 0.006321945289
H141: =OFFSET(H$76,MATCH($C140,$N$101:$N$107,0)*3-2,0) -> 0.6381847365 | I141: 0.0815554936 | J141: 0.02346183454 | K141: 0.006486339164 | L141: 0.006296347531 | M141: 0.8331792805 | N141: 0.5061495636 | O141: 0.04197558661 | P141: 0.3379014119 | Q141: 0.3814717731 | R141: 0.0503371203 | S141: 0.01713658239
C142: 6 | D142: =OFFSET(D$76,MATCH($C142,$N$101:$N$107,0)*3,0) -> Feedstock Consumption (% of baseline) = 105% | E142: 2.917814124 | F142: 0 | G142: 0.006321945289
H143: =OFFSET(H$76,MATCH($C142,$N$101:$N$107,0)*3,0) -> 0.6381847365 | I143: 0.0815554936 | J143: 0.02346183454 | K143: 0.006486339164 | L143: 0.006296347531 | M143: 0.8331792805 | N143: 0.5061495636 | O143: 0.04197558661 | P143: 0.3379014119 | Q143: 0.3814717731 | R143: 0.0503371203 | S143: 0.01713658239
C145: 7 | D145: =OFFSET(D$76,MATCH($C145,$N$101:$N$107,0)*3-2,0) -> 
H146: =OFFSET(H$76,MATCH($C145,$N$101:$N$107,0)*3-2,0) -> 
C147: 7 | D147: =OFFSET(D$76,MATCH($C147,$N$101:$N$107,0)*3,0) -> 
H148: =OFFSET(H$76,MATCH($C147,$N$101:$N$107,0)*3,0) -> 
B152: Parado chart
D153: Unsorted
D154: Title | E154: Unsorted values | F154: Unsorted Ranking | G154: Sorted ranking | H154: Sorted titles | I154: Sorted values | K154: Grayed Titles | L154: Revenues $/kg H2 | M154: Expenses $/kg H2 | N154: Colored titles
B155: Revenues | C155: 1 | D155: Cost of Hydrogen | E155: =+K48+C155/10000000000 -> 2.917443694 | F155: =+RANK(E155,$E$155:$E$157) -> 1 | G155: 1 | H155: =OFFSET($D$154,MATCH($G155,$F$155:$F$157,0),0) -> Cost of Hydrogen | I155: =OFFSET($E$154,MATCH($G155,$F$155:$F$157,0),0)-OFFSET($C$154,MATCH($G155,$F$155:$F$157,0),0)/10000000000 -> 2.917443694 | K155: =+H155 -> Cost of Hydrogen | L155: =+I155 -> 2.917443694 | N155: =+IF(L155>0,K155,"") -> Cost of Hydrogen
C156: 2 | D156: =+F110 -> Byproduct Sales | E156: =+L48+C156/10000000000 -> 2e-10 | F156: =+RANK(E156,$E$155:$E$157) -> 3 | G156: 2 | H156: =OFFSET($D$154,MATCH($G156,$F$155:$F$157,0),0) -> Salvage Value | I156: =OFFSET($E$154,MATCH($G156,$F$155:$F$157,0),0)-OFFSET($C$154,MATCH($G156,$F$155:$F$157,0),0)/10000000000 -> 0.006321945289 | K156: =+H156 -> Salvage Value | L156: =+I156 -> 0.006321945289 | N156: =+IF(L156>0,K156,"") -> Salvage Value
C157: 3 | D157: =+G110 -> Salvage Value | E157: =+M48+C157/10000000000 -> 0.006321945589 | F157: =+RANK(E157,$E$155:$E$157) -> 2 | G157: 3 | H157: =OFFSET($D$154,MATCH($G157,$F$155:$F$157,0),0) -> Byproduct Sales | I157: =OFFSET($E$154,MATCH($G157,$F$155:$F$157,0),0)-OFFSET($C$154,MATCH($G157,$F$155:$F$157,0),0)/10000000000 -> 0 | K157: Byproduct Sales | L157: 0
N158: =+IF(L158>0.01,K158,"") -> 
B159: Expenses | C159: 1 | D159: =+H110 -> Initial Equity Depreciable Capital | E159: =+N48+C159/10000000000 -> 0.6381847366 | F159: =+RANK(E159,$E$159:$E$170) -> 2 | G159: 1 | H159: =OFFSET($D$158,MATCH($G159,$F$159:$F$170,0),0) -> Fixed Operating Cost | I159: =OFFSET($E$158,MATCH($G159,$F$159:$F$170,0),0)-OFFSET($C$158,MATCH($G159,$F$159:$F$170,0),0)/10000000000 -> 0.8331792805 | K159: Fixed Operating Cost | M159: =+I159 -> 0.8331792805 | N159: =+IF(M159>0,K159,"") -> Fixed Operating Cost
C160: =+C159+1 -> 2 | D160: =+I110 -> Yearly Replacement Costs | E160: =+O48+C160/10000000000 -> 0.0815554938 | F160: 6 | G160: 2 | H160: Initial Equity Depreciable Capital | I160: 0.6381847365 | K160: Initial Equity Depreciable Capital | M160: =+I160 -> 0.6381847365 | N160: =+IF(M160>0,K160,"") -> Initial Equity Depreciable Capital
C161: =+C160+1 -> 3 | D161: =+J110 -> Cash for Working Capital Reserve | E161: =+P48+C161/10000000000 -> 0.02345687047 | F161: 9 | G161: 3 | H161: Feedstock Cost | I161: 0.5061495636 | K161: Feedstock Cost | M161: 0.5061495636 | N161: Feedstock Cost
C162: 4 | D162: =+K110 -> Other Non-Depreciable Capital Costs | E162: =+Q48+C162/10000000000 -> 0.006486339564 | F162: 11 | G162: 4 | H162: Debt Interest | I162: 0.3814717731 | K162: Debt Interest | M162: 0.3814717731 | N162: Debt Interest
C163: 5 | D163: =+L110 -> Decommissioning Costs | E163: =+R48+C163/10000000000 -> 0.006296348031 | F163: 12 | G163: 5 | H163: Other Variable Operating Costs | I163: 0.3375376663 | K163: Other Variable Operating Costs | M163: 0.3375376663 | N163: Other Variable Operating Costs
C164: 6 | D164: =+M110 -> Fixed Operating Cost | E164: =+S48+C164/10000000000 -> 0.8331792811 | F164: 1 | G164: 6 | H164: Yearly Replacement Costs | I164: 0.0815554936 | K164: Yearly Replacement Costs | M164: 0.0815554936 | N164: Yearly Replacement Costs
C165: 7 | D165: =+N110 -> Feedstock Cost | E165: =+T48+C165/10000000000 -> 0.5061495643 | F165: 3 | G165: 7 | H165: Taxes | I165: 0.05033539955 | K165: Taxes | M165: 0.05033539955 | N165: Taxes
C166: 8 | D166: =+O110 -> Other Raw Material Cost | E166: =+U48+C166/10000000000 -> 0.04197558741 | F166: 8 | G166: 8 | H166: Other Raw Material Cost | I166: 0.04197558661 | K166: Other Raw Material Cost | M166: 0.04197558661 | N166: Other Raw Material Cost
C167: 9 | D167: =+P110 -> Other Variable Operating Costs | E167: =+V48+C167/10000000000 -> 0.3375376672 | F167: 5 | G167: 9 | H167: Cash for Working Capital Reserve | I167: 0.02345687017 | K167: Cash for Working Capital Reserve | M167: 0.02345687017 | N167: Cash for Working Capital Reserve
C168: 10 | D168: =+Q110 -> Debt Interest | E168: =+W48+C168/10000000000 -> 0.3814717741 | F168: 4 | G168: 10 | H168: Principal Payment | I168: 0.01713658239 | K168: Principal Payment | M168: 0.01713658239 | N168: Principal Payment
C169: 11 | D169: =+R110 -> Taxes | E169: =+X48+C169/10000000000 -> 0.05033540065 | F169: 7 | G169: 11 | H169: Other Non-Depreciable Capital Costs | I169: 0.006486339164 | K169: Other Non-Depreciable Capital Costs | M169: 0.006486339164 | N169: Other Non-Depreciable Capital Costs
C170: 12 | D170: =+S110 -> Principal Payment | E170: =+Y48+C170/10000000000 -> 0.01713658359 | F170: 10 | G170: 12 | H170: Decommissioning Costs | I170: 0.006296347531 | K170: Decommissioning Costs | M170: 0.006296347531 | N170: Decommissioning Costs
K171: Total | L171: =+SUM(L155:L170) -> 2.923765639 | M171: =+SUM(M155:M170) -> 2.923765639 | N171: =+IF(M171<0.01,K171,"") -> 
B174: Waterfall Chart | D174: Values | E174: Base | F174: Decrease | G174: Increase
B175: 0 | C175: Baseline | D175: =+K51 -> 2.917814124 | E175: =+D175 -> 2.917814124
B176: 1 | C176: =OFFSET($B$50,0,MATCH($B176,$C$72:$I$72,0))& IF(OFFSET($F$2,MATCH($B176,$C$72:$I$72,0),0)<1, " = "&OFFSET($F$2,MATCH($B176,$C$72:$I$72,0),0)*100-100, " = +"&OFFSET($F$2,MATCH($B176,$C$72:$I$72,0),0)*100-100) &"%" -> Operating capacity factor = +5% | D176: =+K66 -> 2.812615407 | E176: =+E175+G175-F176 -> 2.812615407 | F176: =+MAX(D175-D176,0) -> 0.1051987172 | G176: =+MAX(D176-D175,0) -> 0
B177: 2 | C177: =OFFSET($B$50,0,MATCH($B177,$C$72:$I$72,0))& IF(OFFSET($F$2,MATCH($B177,$C$72:$I$72,0),0)<1, " = "&OFFSET($F$2,MATCH($B177,$C$72:$I$72,0),0)*100-100, " = +"&OFFSET($F$2,MATCH($B177,$C$72:$I$72,0),0)*100-100) &"%" -> Total capital investment ($) = -5% | D177: =+K67 -> 2.745925413 | E177: 2.745925413 | F177: =+MAX(D176-D177,0) -> 0.06668999379 | G177: =+MAX(D177-D176,0) -> 0
B178: 3 | C178: =OFFSET($B$50,0,MATCH($B178,$C$72:$I$72,0))& IF(OFFSET($F$2,MATCH($B178,$C$72:$I$72,0),0)<1, " = "&OFFSET($F$2,MATCH($B178,$C$72:$I$72,0),0)*100-100, " = +"&OFFSET($F$2,MATCH($B178,$C$72:$I$72,0),0)*100-100) &"%" -> Total fixed operating cost ($/year) = -5% | D178: =+K68 -> 2.706315247 | E178: 2.706315247 | F178: =+MAX(D177-D178,0) -> 0.03961016668 | G178: =+MAX(D178-D177,0) -> 0
B179: 4 | C179: =OFFSET($B$50,0,MATCH($B179,$C$72:$I$72,0))& IF(OFFSET($F$2,MATCH($B179,$C$72:$I$72,0),0)<1, " = "&OFFSET($F$2,MATCH($B179,$C$72:$I$72,0),0)*100-100, " = +"&OFFSET($F$2,MATCH($B179,$C$72:$I$72,0),0)*100-100) &"%" ->  | D179: =+K69 -> 2.706315247 | E179: 2.706315247 | F179: =+MAX(D178-D179,0) -> 0 | G179: =+MAX(D179-D178,0) -> 0
B180: 5 | C180: =OFFSET($B$50,0,MATCH($B180,$C$72:$I$72,0))& IF(OFFSET($F$2,MATCH($B180,$C$72:$I$72,0),0)<1, " = "&OFFSET($F$2,MATCH($B180,$C$72:$I$72,0),0)*100-100, " = +"&OFFSET($F$2,MATCH($B180,$C$72:$I$72,0),0)*100-100) &"%" -> Feedstock consumption (% of most likely value) = -5% | D180: =+K70 -> 2.706315247 | E180: 2.706315247 | F180: =+MAX(D179-D180,0) -> 0 | G180: =+MAX(D180-D179,0) -> 0
B181: 6 | C181: Adjusted | D181: =+K70 -> 2.706315247 | E181: 2.706315247
B189: Min factor | C189: =+MIN(F3:G3) -> 0.95 | D189: =+MIN(F4:G4) -> 0.95 | E189: =+MIN(F5:G5) -> 0.95 | F189: =+MIN(F6:G6) -> 0.95 | G189: =+MIN(F7:G7) -> 0.95 | H189: =+MIN(F8:G8) -> 0.95 | I189: =+MIN(F9:G9) -> 0.95
B190: Nominal factor | C190: 1 | D190: 1 | E190: 1 | F190: 1 | G190: 1 | H190: 1 | I190: 1
B191: Max factor | C191: =+MAX(F3:G3) -> 1.05 | D191: =+MAX(F4:G4) -> 1.05 | E191: =+MAX(F5:G5) -> 1.05 | F191: =+MAX(F6:G6) -> 1.05 | G191: =+MAX(F7:G7) -> 1.05 | H191: =+MAX(F8:G8) -> 1.05 | I191: =+MAX(F9:G9) -> 1.05
B194: Variable | C194: =+MATCH(R12,C50:Y50,0) -> 9
B195: Min | C195: =+MIN(OFFSET($B$251:$B$2250,0,C194)) -> 2.716302793
B196: max | C196: =+MAX(OFFSET($B$251:$B$2250,0,C194)) -> 3.093773219
B197: max-min | C197: =+C196-C195 -> 0.3774704253
B198: gain | C198: =+OFFSET(B199,0,C194) -> 1
B199: gain | C199: =+C3 -> 0.9 | D199: =+C4 -> 660000 | E199: =+C5 -> 0.08 | F199: =+C6 -> 1 | G199: =+C7 -> 1 | H199: =+C8 -> 3550786561 | I199: =+C9 -> 180641599.8 | K199: 1 | L199: 1 | M199: 1 | N199: 1 | O199: 1 | P199: 1 | Q199: 1 | R199: 1 | S199: 1 | T199: 1 | U199: 1 | V199: 1 | W199: 1 | X199: 1
B200: Range to plot
B201: Min | C201: Max | E201: Min*gain | F201: Max*gain | G201: Average | H201: Probability | I201: Cumulative probability
B202: =+C195 -> 2.716302793 | C202: =+B202+($C$197/20) -> 2.735176315 | D202: =+COUNTIFS(OFFSET(B$251:B$2250,0,$C$194),">="&$B202, OFFSET(B$251:B$2250,0,$C$194),"<="&$C202) -> 1 | E202: =+B202*$C$198 -> 2.716302793 | F202: =+C202*$C$198 -> 2.735176315 | G202: =+AVERAGE(E202:F202) -> 2.725739554 | H202: =+D202/$D$223 -> 0.0005 | I202: =+H202 -> 0.0005
B203: =+C202 -> 2.735176315 | C203: =+B203+($C$197/20) -> 2.754049836 | D203: 3 | E203: =+B203*$C$198 -> 2.735176315 | F203: =+C203*$C$198 -> 2.754049836 | G203: =+AVERAGE(E203:F203) -> 2.744613075 | H203: =+D203/$D$223 -> 0.0015 | I203: =+I202+H203 -> 0.002
B204: =+C203 -> 2.754049836 | C204: 2.772923357 | D204: 7 | E204: 2.754049836 | F204: 2.772923357 | G204: 2.763486597 | H204: 0.0035 | I204: =+I203+H204 -> 0.0055
B205: 2.772923357 | C205: 2.791796879 | D205: 27 | E205: 2.772923357 | F205: 2.791796879 | G205: 2.782360118 | H205: 0.0135 | I205: 0.019
B206: 2.791796879 | C206: 2.8106704 | D206: 39 | E206: 2.791796879 | F206: 2.8106704 | G206: 2.801233639 | H206: 0.0195 | I206: 0.0385
B207: 2.8106704 | C207: 2.829543921 | D207: 65 | E207: 2.8106704 | F207: 2.829543921 | G207: 2.82010716 | H207: 0.0325 | I207: 0.071
B208: 2.829543921 | C208: 2.848417442 | D208: 123 | E208: 2.829543921 | F208: 2.848417442 | G208: 2.838980682 | H208: 0.0615 | I208: 0.1325
B209: 2.848417442 | C209: 2.867290964 | D209: 159 | E209: 2.848417442 | F209: 2.867290964 | G209: 2.857854203 | H209: 0.0795 | I209: 0.212
B210: 2.867290964 | C210: 2.886164485 | D210: 222 | E210: 2.867290964 | F210: 2.886164485 | G210: 2.876727724 | H210: 0.111 | I210: 0.323
B211: 2.886164485 | C211: 2.905038006 | D211: 206 | E211: 2.886164485 | F211: 2.905038006 | G211: 2.895601245 | H211: 0.103 | I211: 0.426
B212: 2.905038006 | C212: 2.923911527 | D212: 226 | E212: 2.905038006 | F212: 2.923911527 | G212: 2.914474767 | H212: 0.113 | I212: 0.539
B213: 2.923911527 | C213: 2.942785049 | D213: 198 | E213: 2.923911527 | F213: 2.942785049 | G213: 2.933348288 | H213: 0.099 | I213: 0.638
B214: 2.942785049 | C214: 2.96165857 | D214: 203 | E214: 2.942785049 | F214: 2.96165857 | G214: 2.952221809 | H214: 0.1015 | I214: 0.7395
B215: 2.96165857 | C215: 2.980532091 | D215: 176 | E215: 2.96165857 | F215: 2.980532091 | G215: 2.971095331 | H215: 0.088 | I215: 0.8275
B216: 2.980532091 | C216: 2.999405612 | D216: 143 | E216: 2.980532091 | F216: 2.999405612 | G216: 2.989968852 | H216: 0.0715 | I216: 0.899
B217: 2.999405612 | C217: 3.018279134 | D217: 83 | E217: 2.999405612 | F217: 3.018279134 | G217: 3.008842373 | H217: 0.0415 | I217: 0.9405
B218: 3.018279134 | C218: 3.037152655 | D218: 60 | E218: 3.018279134 | F218: 3.037152655 | G218: 3.027715894 | H218: 0.03 | I218: 0.9705
B219: 3.037152655 | C219: 3.056026176 | D219: 33 | E219: 3.037152655 | F219: 3.056026176 | G219: 3.046589416 | H219: 0.0165 | I219: 0.987
B220: 3.056026176 | C220: 3.074899698 | D220: 19 | E220: 3.056026176 | F220: 3.074899698 | G220: 3.065462937 | H220: 0.0095 | I220: 0.9965
B221: 3.074899698 | C221: =+B221+($C$197/20)+0.000001 -> 3.093774219 | D221: 7 | E221: 3.074899698 | F221: 3.093774219 | G221: 3.084336958 | H221: 0.0035 | I221: 1
F222: 0 | G222: 0
B223: Variable to plot | D223: =+SUM(D202:D221) -> 2000
B224: =+TRANSPOSE(Sensitivity_output) -> Cost of hydrogen ($/kg)
B225: Revenue from byproduct sales ($/kg)
B226: Salvage value ($/kg)
B227: Initial equity depreciable capital ($/kg)
B228: Yearly replacement costs ($/kg)
B229: Cash from working capital reserve ($/kg)
B230: Other non-depreciable capital costs ($/kg)
B231: Decommissioning costs ($/kg)
B232: Fixed operating cost ($/kg)
B233: Feedstock cost ($/kg)
B234: Other raw material cost ($/kg)
B235: Other variable operating costs ($/kg)
B236: Debt interest ($/kg)
B237: Taxes ($/kg)
B238: Principal payment ($/kg)
B239: =+TRANSPOSE(C50:I50) -> Operating capacity factor
B240: Plant design capacity (kg of H2/day)
B241: After-tax real IRR (%)
B242: Feedstock consumption (% of most likely value)
B243: Utilities consumption (% of most likely value)
... 2004 more rows

Sheet Cash Flow Analysis
A2: TABLE OF CONTENTS
A3: DCF Calculations
A4: Yearly Cash Flow Calculations
A5: Specific Item Cost Calculation
A6: Feedstock, Utility, and Byproduct Cost Information
A15: DCF CALCULATION INPUTS: | D15: DCF CALCULATION OUTPUTS:
A16: Process | D16: ="Hydrogen Cost (Year "&TEXT(ref_year,"0")&" Real $/kg)" -> Hydrogen Cost (Year 2016 Real $/kg) | E16: =H2_price_nominal/INFLATION_FACTOR -> 2.917443694
A17: Actual Hydrogen Produced (kg/yr) | B17: =output_kgyear -> 216810000 | D17: Hydrogen Cost (Start-up Year Nominal $/kg) | E17: =+SUM(X57:AB57)/AC57*(1+inflation_rate)^construct -> 2.863045823
A18: Actual Hydrogen Energy Produced (MMBtu(LHV)/yr) | B18: =B17*H2_LHV_MJ_p_kg/1000/mmBTU_to_GJ -> 24704346.25 | D18: After Tax Real IRR | E18: =((E20+1)/(1+B30))-1 -> 0.08
A19: Actual Hydrogen Energy Produced (MJ(LHV)/yr) | B19: =B17*H2_LHV_MJ_p_kg -> 2.60630853e+10 | D19: Pre Tax Real IRR | E19: =((E21+1)/(1+B30))-1 -> 0.08533973591
A20: Design Capacity (kg/day) | B20: =design_cap -> 660000 | D20: After Tax Nominal IRR | E20: =IRR(AA65:AA113) -> 0.10052
A21: Design Capacity (kg/yr) | B21: =B20*365 -> 240900000 | D21: Pre Tax Nominal IRR | E21: =IRR(AC65:AC113) -> 0.1059611909
A22: Capacity Factor | B22: =cap_factor -> 0.9 | D22: After Tax Real Capital Recovery Factor | E22: =(real_irr*(1+real_irr)^anal_period)/(((1+real_irr)^anal_period)-1) -> 0.0838601615
D23: After Tax Nominal Capital Recovery Factor | E23: =(nominal_irr*(1+nominal_irr)^anal_period)/(((1+nominal_irr)^anal_period)-1) -> 0.1027476886
A24: Financial | D24: Total Real Fixed Charge Rate | E24: =(E22*(1-total_tax_rate*INDEX(Depreciation!B12:H37,MATCH("NPV - Real IRR",Depreciation!B12:B37,0),MATCH(depr_length,recovery_period,0))))/(1-total_tax_rate) -> 0.09821253181
A25: Start-up Year | B25: =startup_year -> 2015 | D25: Total Nominal Fixed Charge Rate | E25: =(E23*(1-total_tax_rate*INDEX(Depreciation!B12:H37,MATCH("NPV - Nominal IRR",Depreciation!B12:B37,0),MATCH(depr_length,recovery_period,0))))/(1-total_tax_rate) -> 0.1226581394
A26: After-Tax Real IRR | B26: =real_irr -> 0.08 | D26: NPV | E26: =NPV(nominal_irr,AA65:AA113) -> 3.25639631e-06
A27: After-Tax Nominal IRR | B27: =((1+B26)*(1+B30))-1 -> 0.10052
A28: Analysis Period (yrs) | B28: =anal_period -> 40
A29: Plant Life (yrs) | B29: =plant_life -> 40
A30: Inflation Rate | B30: =inflation_rate -> 0.019
A31: Debt Financing | B31: =100%-equity -> 0.6
A32: Equity Financing | B32: =equity -> 0.4
A33: Total Tax Rate | B33: =total_tax_rate -> 0.2574
A35: Cost of Debt Financing
A36: Debt Financing Period (yrs) | B36: =debt_period -> 0
A37: Interest Rate on Debt | B37: =debt_interest -> 0.037
A39: Construction/Start Up Information
A40: Construction Period (yrs) | B40: =construct -> 3
A41: Start-up Period (yrs) | B41: =start_time -> 1
A42: % Revenue During Start-up | B42: =percnt_revs -> 1
A43: % Variable Costs During Start-up | B43: =percnt_var -> 1
A44: % Fixed Costs During Start-up | B44: =percnt_fixed -> 1
A46: Depreciation Parameters
A47: Depreciation Type | B47: =depr_type -> MACRS
A48: Depreciation Period (yrs) | B48: =depr_length -> 20
A50: Plant Costs (Inflated to Start-up Year $)
A51: Total Depreciable Capital Costs | B51: =(total_cap-non_dep_cap)*INFLATION_FACTOR -> 3470470376
A52: Total Non-Depreciable Capital Costs | B52: =non_dep_cap*INFLATION_FACTOR -> 14109173.49
A53: Total Capital Investment | B53: =SUM(B51:B52) -> 3484579550 | W53: Closed form formulas for calculating price of hydrogen.
A54: Decommissioning | B54: =decom_percent*depr_cap_infl -> 347047037.6 | X54: Capital Costs | Y54: Depr | Z54: Principal | AA54: Op costs | AB54: Tax incentives | AC54: H2 sales (kg)
A55: Salvage Value | B55: =salvage_perct*B53 -> 348457955 | W55: Discounted values | X55: =-SUM(H116:K116) -> 1541193914 | Y55: =-U116 -> 1277885405 | Z55: =-Z116 -> 35229264.91 | AA55: =-SUM(L116:S116) -> 4317757779 | AB55: =+AF116 -> 0 | AC55: =+AE116 -> 2216542710
A56: Fixed Operating Costs ($/year) | B56: =fixed*INFLATION_FACTOR -> 177273405.1 | W56: Tax coefficient | X56: 1 | Y56: =-total_tax_rate -> -0.2574 | Z56: 1 | AA56: =1-total_tax_rate -> 0.7426 | AB56: -1 | AC56: =1-total_tax_rate -> 0.7426
A57: Other Raw Material ($/year) | B57: =total_other_raw*INFLATION_FACTOR -> 8931037.226 | W57: LCOE cost contribution factors | X57: =+X55*X56 -> 1541193914 | Y57: -328927703.2 | Z57: 35229264.91 | AA57: =+AA55*AA56 -> 3206366927 | AB57: =+AB55*AB56 -> 0 | AC57: =+AC55*AC56 -> 1646004616
A58: Other Variable O&M Costs (not including tax credits and incentives) | B58: =(var_misc+royalties+operator_profit+CO2_OandMcost+waste_treat+solidwaste_treat)*INFLATION_FACTOR -> 67806125.35
W59: Target after-tax nominal IRR | X59: =+(1+real_irr)*(1+inflation_rate)-1 -> 0.10052
W60: =+D16 -> Hydrogen Cost (Year 2016 Real $/kg) | X60: =+SUM(X57:AB57)/AC57*(1+inflation_rate)^construct/INFLATION_FACTOR -> 2.917443694
A63: CASH FLOW ANALYSIS
A64: Actual Year (beginning of year) | B64: Analysis Year | C64: Operation Year | D64: Plant Life | E64: Inflation Price Increase Factor | F64: Revenue from Hydrogen Sales | G64: Portion of Initial Depreciable Capital Investment Financed with Debt (value ONLY used in debt financing calculations) | H64: Initial Equity Depreciable Capital | I64: Yearly Replacement Costs | J64: Cash from Working Capital Reserve | K64: Other Non-Depreciable Capital Costs | L64: Salvage Value | M64: Decommissioning Costs | N64: Fixed Operating Cost | O64: Feedstock Cost | P64: Other Raw Material Cost | Q64: Revenue from Byproduct Sales | R64: Other Variable Operating Costs | S64: Debt Interest | T64: Pre-Depreciation Income | U64: Depreciation Charge | V64: Taxable Income | W64: Tax Rate | X64: Total Taxes | Y64: After-Tax Income | Z64: Principal Payment | AA64: After-Tax Post-Depreciation Cash Flow | AB64: Cumulative Cash Flow | AC64: Pre-Tax Cash Flow | AE64: H2 sales (kg/year) | AF64: Tax Credit
A65: =startup_year-construct -> 2012 | B65: 1 | C65: =IF(construct=0,1,-construct) -> -3 | D65: =IF(C65="","",IF(C65<=plant_life,C65,IF(D64=plant_life,1,D64+1))) -> -3 | E65: =IF(C65="","",(1+inflation_rate)^(A65-$B$25)) -> 0.9450993141 | F65: =IF(C65="","",IF(C65<0,0,IF(AND(C65=1,start_time<1),E65*(H2_price_nominal*output_kgyear*start_time*percnt_revs+H2_price_nominal*output_kgyear*(1-start_time)),IF(C65<=start_time,H2_price_nominal*E65*output_kgyear*percnt_revs,H2_price_nominal*output_kgyear*E65)))) -> 0 | G65: =-$B$31*depr_cap_infl*E65 -> -1967963503 | H65: =IF(C65<0,-E65*equity*depr_cap_infl*percent_cap1,IF(C65=1,-E65*equity*depr_cap_infl,0)) -> -1311975669 | I65: =IF(OR(C65<0,C65=""),"",-E65*INDEX('Replacement Costs'!$A$16:$H$57,MATCH(C65,'Replacement Costs'!$C$16:$C$57,0),MATCH("Total Yearly Replacement Costs",'Replacement Costs'!$A$16:$H$16,0))) ->  | J65: =IF(AND(C65>=1,C65<anal_period),WorkingCap*SUM(N65:R65)-WorkingCap*SUM(N64:R64),0) -> 0 | K65: =IF(C65=-construct,-E65*non_dep_infl,"") -> -13334570.19 | L65: =IF(C65=anal_period,salvage*E65,"") ->  | M65: =IF(D65=plant_life,-E65*decom,"") ->  | N65: =IF(C65="","",IF(C65<0,0,IF(AND(C65=1,start_time<1),-(inflated_fixed*percnt_fixed*start_time+(inflated_fixed*(1-start_time))),IF(C65<=start_time,-inflated_fixed*percnt_fixed*E65,-inflated_fixed*E65)))) -> 0 | O65: =IF(C65="","",IF(C65<0,0,IF(AND(C65=1,start_time<1),-(SUM(B139:E139)*output_kgyear*E65*percnt_var*start_time+SUM(B139:E139)*output_kgyear*E65*(1-start_time)),IF(C65<=start_time,-SUM(B139:E139)*output_kgyear*E65*percnt_var,-SUM(B139:E139)*output_kgyear*E65)))) -> 0 | P65: =IF(C65="","",IF(C65<0,0,IF(AND(C65=1,start_time<1),-(inflated_otherraw*E65*percnt_var*start_time+inflated_otherraw*E65*(1-start_time)),IF(C65<=start_time,-inflated_otherraw*E65*percnt_var,-(inflated_otherraw*E65))))) -> 0 | Q65: =IF(C65="","",IF(C65<0,0,IF(AND(C65=1,start_time<1),SUM(K139:N139,T139:V139)*output_kgyear*E65*percnt_revs*start_time+SUM(K139:N139,T139:V139)*output_kgyear*E65*(1-start_time),IF(C65<=start_time,SUM(K139:N139,T139:V139)*output_kgyear*E65*percnt_revs,SUM(K139:N139,T139:V139)*output_kgyear*E65)))) -> 0 | R65: =IF(C65="","",IF(C65<0,0,IF(AND(C65=1,start_time<1),-((SUM(F139:J139,P139:R139)*output_kgyear+inflated_othervar)*E65*percnt_var*start_time+(SUM(F139:J139,P139:R139)*output_kgyear+inflated_othervar)*E65*(1-start_time)),IF(C65<=start_time,-(SUM(F139:J139,P139:R139)*output_kgyear+inflated_othervar)*E65*percnt_var,-E65*(SUM(F139:J139,P139:R139)*output_kgyear+inflated_othervar))))) -> 0 | S65: =IF(B65="","",IF($B$31=0,"",-'Debt Financing Calculations'!E14)) -> -72814649.62 | T65: =IF(C65="","",F65+SUM(L65:S65)) -> -72814649.62 | U65: =IF(C65="","",IF(C65<-1,0,IF(C65=anal_period,-LOOKUP(C65,depr_yr,depr_cost)-Depreciation!$C$141-Depreciation!$B$166,-LOOKUP(C65,depr_yr,depr_cost)))) -> 0 | V65: =IF(C65="","",SUM(T65:U65)) -> -72814649.62 | W65: =IF(C65="","",$B$33) -> 0.2574 | X65: =IF(C65="","",tax_credit-(V65*W65 +Upstream_CO2_taxpYear + Proc_CO2_taxpYear)) -> 18742490.81 | Y65: =IF(C65="","",SUM(T65,X65)) -> -54072158.81 | Z65: =IF(C65="","",IF($B$31=0,"",-'Debt Financing Calculations'!F14)) -> 0 | AA65: =IF(C65="","",SUM(H65,I65,J65,K65,T65,X65,Z65)) -> -1379382398 | AB65: =AA65 -> -1379382398 | AC65: =IF(C65="","",SUM(H65,I65,J65,K65,T65,Z65)) -> -1398124889 | AE65: =IF(C65="","",IF(C65<0,0,IF(AND(C65=1,start_time<1),(output_kgyear*start_time*percnt_revs+output_kgyear*(1-start_time)),IF(C65<=start_time,output_kgyear*percnt_revs,output_kgyear)))) -> 0 | AF65: =IF(C65="","",tax_credit) -> 0
A66: =IF(B66<>"",A65+1,"") -> 2013 | B66: =IF(MAX($B$65:B65)<(construct+anal_period),B65+1,"") -> 2 | C66: =IF(B66="","",IF(C65=-1,1,C65+1)) -> -2 | D66: -2 | E66: 0.9630562011 | F66: 0 | H66: =IF(C66<0,-E66*equity*depr_cap_infl*percent_cap2,0) -> 0 | I66: =IF(OR(C66<0,C66=""),"",-E66*INDEX('Replacement Costs'!$A$16:$H$57,MATCH(C66,'Replacement Costs'!$C$16:$C$57,0),MATCH("Total Yearly Replacement Costs",'Replacement Costs'!$A$16:$H$16,0))) ->  | J66: =IF(AND(C66>=1,C66<anal_period),WorkingCap*SUM(N66:R66)-WorkingCap*SUM(N65:R65),IF(C66<0,0,IF(B66="","",-SUM(J$65:J65)))) -> 0 | N66: 0 | O66: 0 | P66: 0 | Q66: 0 | R66: 0 | S66: =IF(B66="","",IF($B$31=0,"",-'Debt Financing Calculations'!E15)) -> -72814649.62 | T66: -72814649.62 | U66: =IF(C66="","",IF(C66<-1,0,IF(C66=anal_period,-LOOKUP(C66,depr_yr,depr_cost)-Depreciation!$C$141-Depreciation!$B$166,-LOOKUP(C66,depr_yr,depr_cost)))) -> 0 | V66: -72814649.62 | W66: 0.2574 | X66: 18742490.81 | Y66: -54072158.81 | Z66: =IF(C66="","",IF($B$31=0,"",-'Debt Financing Calculations'!F15)) -> 0 | AA66: -54072158.81 | AB66: =IF(C66="","",AB65+AA66) -> -1433454557 | AC66: -72814649.62 | AE66: 0 | AF66: 0
A67: 2014 | B67: =IF(MAX($B$65:B66)<(construct+anal_period),B66+1,"") -> 3 | C67: -1 | D67: -1 | E67: 0.9813542689 | F67: 0 | H67: =IF(C67<0,-E67*equity*depr_cap_infl*percent_cap3,0) -> 0 | I67: =IF(OR(C67<0,C67=""),"",-E67*INDEX('Replacement Costs'!$A$16:$H$57,MATCH(C67,'Replacement Costs'!$C$16:$C$57,0),MATCH("Total Yearly Replacement Costs",'Replacement Costs'!$A$16:$H$16,0))) ->  | J67: =IF(AND(C67>=1,C67<anal_period),WorkingCap*SUM(N67:R67)-WorkingCap*SUM(N66:R66),IF(C67<0,0,IF(B67="","",-SUM(J$65:J66)))) -> 0 | N67: 0 | O67: 0 | P67: 0 | Q67: 0 | R67: 0 | S67: =IF(B67="","",IF($B$31=0,"",-'Debt Financing Calculations'!E16)) -> -72814649.62 | T67: -72814649.62 | U67: =IF(C67="","",IF(C67<-1,0,IF(C67=anal_period,-LOOKUP(C67,depr_yr,depr_cost)-Depreciation!$C$141-Depreciation!$B$166,-LOOKUP(C67,depr_yr,depr_cost)))) -> 0 | V67: -72814649.62 | W67: 0.2574 | X67: 18742490.81 | Y67: -54072158.81 | Z67: =IF(C67="","",IF($B$31=0,"",-'Debt Financing Calculations'!F16)) -> 0 | AA67: -54072158.81 | AB67: -1487526716 | AC67: -72814649.62 | AE67: 0 | AF67: 0
A68: 2015 | B68: =IF(MAX($B$65:B67)<(construct+anal_period),B67+1,"") -> 4 | C68: 1 | D68: 1 | E68: 1 | F68: 620736964.9 | H68: =IF(C68<0,-E68*equity*depr_cap_infl*percent_cap4,0) -> 0 | I68: =IF(OR(C68<0,C68=""),"",-E68*INDEX('Replacement Costs'!$A$16:$H$57,MATCH(C68,'Replacement Costs'!$C$16:$C$57,0),MATCH("Total Yearly Replacement Costs",'Replacement Costs'!$A$16:$H$16,0))) -> -17352351.88 | J68: =IF(AND(C68>=1,C68<anal_period),WorkingCap*SUM(N68:R68)-WorkingCap*SUM(N67:R67),IF(C68<0,0,IF(B68="","",-SUM(J$65:J67)))) -> -54281791.64 | N68: -177273405.1 | O68: -103857150.5 | P68: -8931037.226 | Q68: 0 | R68: -71817018.09 | S68: =IF(B68="","",IF($B$31=0,"",-'Debt Financing Calculations'!E17)) -> -72814649.62 | T68: 186043704.3 | U68: =IF(C68="","",IF(C68<-1,0,IF(C68=anal_period,-LOOKUP(C68,depr_yr,depr_cost)-Depreciation!$C$141-Depreciation!$B$166,-LOOKUP(C68,depr_yr,depr_cost)))) -> -123648432.2 | V68: 62395272.19 | W68: 0.2574 | X68: -16060543.06 | Y68: =IF(C68="","",SUM(T68,X68)) -> 169983161.3 | Z68: =IF(C68="","",IF($B$31=0,"",-'Debt Financing Calculations'!F17)) -> 0 | AA68: 98349017.76 | AB68: -1389177698 | AC68: 114409560.8 | AE68: 216810000 | AF68: 0
A69: 2016 | B69: =IF(MAX($B$65:B68)<(construct+anal_period),B68+1,"") -> 5 | C69: 2 | D69: 2 | E69: 1.019 | F69: 632530967.2 | H69: =IF(C69="","",0) -> 0 | I69: =IF(OR(C69<0,C69=""),"",-E69*INDEX('Replacement Costs'!$A$16:$H$57,MATCH(C69,'Replacement Costs'!$C$16:$C$57,0),MATCH("Total Yearly Replacement Costs",'Replacement Costs'!$A$16:$H$16,0))) -> -17682046.57 | J69: =IF(AND(C69>=1,C69<anal_period),WorkingCap*SUM(N69:R69)-WorkingCap*SUM(N68:R68),IF(C69<0,0,IF(B69="","",-SUM(J$65:J68)))) -> -167416.2909 | N69: -180641599.8 | O69: -100070851.4 | P69: -9100726.934 | Q69: 0 | R69: -73181541.43 | S69: =IF(B69="","",IF($B$31=0,"",-'Debt Financing Calculations'!E18)) -> -72814649.62 | T69: 196721598.1 | U69: =IF(C69="","",IF(C69<-1,0,IF(C69=anal_period,-LOOKUP(C69,depr_yr,depr_cost)-Depreciation!$C$141-Depreciation!$B$166,-LOOKUP(C69,depr_yr,depr_cost)))) -> -238694551.9 | V69: -41972953.8 | W69: 0.2574 | X69: 10803838.31 | Y69: 207525436.4 | Z69: =IF(C69="","",IF($B$31=0,"",-'Debt Financing Calculations'!F18)) -> 0 | AA69: 189675973.5 | AB69: -1199501724 | AC69: 178872135.2 | AE69: 216810000 | AF69: 0
A70: 2017 | B70: =IF(MAX($B$65:B69)<(construct+anal_period),B69+1,"") -> 6 | C70: 3 | D70: 3 | E70: 1.038361 | F70: 644549055.6 | H70: 0 | I70: =IF(OR(C70<0,C70=""),"",-E70*INDEX('Replacement Costs'!$A$16:$H$57,MATCH(C70,'Replacement Costs'!$C$16:$C$57,0),MATCH("Total Yearly Replacement Costs",'Replacement Costs'!$A$16:$H$16,0))) -> -18018005.45 | J70: =IF(AND(C70>=1,C70<anal_period),WorkingCap*SUM(N70:R70)-WorkingCap*SUM(N69:R69),IF(C70<0,0,IF(B70="","",-SUM(J$65:J69)))) -> -1766478.04 | N70: -184073790.2 | O70: -106851818.1 | P70: -9273640.745 | Q70: 0 | R70: -74571990.72 | S70: =IF(B70="","",IF($B$31=0,"",-'Debt Financing Calculations'!E19)) -> -72814649.62 | T70: 196963166.2 | U70: =IF(C70="","",IF(C70<-1,0,IF(C70=anal_period,-LOOKUP(C70,depr_yr,depr_cost)-Depreciation!$C$141-Depreciation!$B$166,-LOOKUP(C70,depr_yr,depr_cost)))) -> -222112297.2 | V70: -25149131.03 | W70: 0.2574 | X70: 6473386.327 | Y70: 203436552.5 | Z70: =IF(C70="","",IF($B$31=0,"",-'Debt Financing Calculations'!F19)) -> 0 | AA70: 183652069 | AB70: -1015849655 | AC70: 177178682.7 | AE70: 216810000 | AF70: 0
A71: 2018 | B71: =IF(MAX($B$65:B70)<(construct+anal_period),B70+1,"") -> 7 | C71: 4 | D71: 4 | E71: 1.058089859 | F71: 656795487.7 | H71: 0 | I71: =IF(OR(C71<0,C71=""),"",-E71*INDEX('Replacement Costs'!$A$16:$H$57,MATCH(C71,'Replacement Costs'!$C$16:$C$57,0),MATCH("Total Yearly Replacement Costs",'Replacement Costs'!$A$16:$H$16,0))) -> -18360347.56 | J71: =IF(AND(C71>=1,C71<anal_period),WorkingCap*SUM(N71:R71)-WorkingCap*SUM(N70:R70),IF(C71<0,0,IF(B71="","",-SUM(J$65:J70)))) -> -1324635.324 | N71: -187571192.2 | O71: -110592251.3 | P71: -9449839.919 | Q71: 0 | R71: -75988858.54 | S71: =IF(B71="","",IF($B$31=0,"",-'Debt Financing Calculations'!E20)) -> -72814649.62 | T71: 200378696.1 | U71: =IF(C71="","",IF(C71<-1,0,IF(C71=anal_period,-LOOKUP(C71,depr_yr,depr_cost)-Depreciation!$C$141-Depreciation!$B$166,-LOOKUP(C71,depr_yr,depr_cost)))) -> -206843560.5 | V71: -6464864.461 | W71: 0.2574 | X71: 1664056.112 | Y71: 202042752.2 | Z71: =IF(C71="","",IF($B$31=0,"",-'Debt Financing Calculations'!F20)) -> 0 | AA71: 182357769.3 | AB71: -833491885.9 | AC71: 180693713.2 | AE71: 216810000 | AF71: 0
A72: 2019 | B72: =IF(MAX($B$65:B71)<(construct+anal_period),B71+1,"") -> 8 | C72: 5 | D72: 5 | E72: 1.078193566 | F72: 669274601.9 | H72: 0 | I72: =IF(OR(C72<0,C72=""),"",-E72*INDEX('Replacement Costs'!$A$16:$H$57,MATCH(C72,'Replacement Costs'!$C$16:$C$57,0),MATCH("Total Yearly Replacement Costs",'Replacement Costs'!$A$16:$H$16,0))) -> -18709194.16 | J72: =IF(AND(C72>=1,C72<anal_period),WorkingCap*SUM(N72:R72)-WorkingCap*SUM(N71:R71),IF(C72<0,0,IF(B72="","",-SUM(J$65:J71)))) -> -1419480.174 | N72: -191135044.9 | O72: -114868264.5 | P72: -9629386.878 | Q72: 0 | R72: -77432646.85 | S72: =IF(B72="","",IF($B$31=0,"",-'Debt Financing Calculations'!E21)) -> -72814649.62 | T72: 203394609.2 | U72: =IF(C72="","",IF(C72<-1,0,IF(C72=anal_period,-LOOKUP(C72,depr_yr,depr_cost)-Depreciation!$C$141-Depreciation!$B$166,-LOOKUP(C72,depr_yr,depr_cost)))) -> -192696575.3 | V72: 10698033.9 | W72: 0.2574 | X72: -2753673.927 | Y72: 200640935.3 | Z72: =IF(C72="","",IF($B$31=0,"",-'Debt Financing Calculations'!F21)) -> 0 | AA72: 180512260.9 | AB72: -652979625 | AC72: 183265934.9 | AE72: 216810000 | AF72: 0
A73: 2020 | B73: =IF(MAX($B$65:B72)<(construct+anal_period),B72+1,"") -> 9 | C73: 6 | D73: 6 | E73: 1.098679244 | F73: 681990819.4 | H73: 0 | I73: =IF(OR(C73<0,C73=""),"",-E73*INDEX('Replacement Costs'!$A$16:$H$57,MATCH(C73,'Replacement Costs'!$C$16:$C$57,0),MATCH("Total Yearly Replacement Costs",'Replacement Costs'!$A$16:$H$16,0))) -> -19064668.85 | J73: =IF(AND(C73>=1,C73<anal_period),WorkingCap*SUM(N73:R73)-WorkingCap*SUM(N72:R72),IF(C73<0,0,IF(B73="","",-SUM(J$65:J72)))) -> -1394731.472 | N73: -194766610.7 | O73: -118880729.9 | P73: -9812345.229 | Q73: 0 | R73: -78903867.14 | S73: =IF(B73="","",IF($B$31=0,"",-'Debt Financing Calculations'!E22)) -> -72814649.62 | T73: 206812616.8 | U73: =IF(C73="","",IF(C73<-1,0,IF(C73=anal_period,-LOOKUP(C73,depr_yr,depr_cost)-Depreciation!$C$141-Depreciation!$B$166,-LOOKUP(C73,depr_yr,depr_cost)))) -> -179676466.8 | V73: 27136150.03 | W73: 0.2574 | X73: -6984845.017 | Y73: 199827771.8 | Z73: =IF(C73="","",IF($B$31=0,"",-'Debt Financing Calculations'!F22)) -> 0 | AA73: 179368371.5 | AB73: -473611253.5 | AC73: 186353216.5 | AE73: 216810000 | AF73: 0
A74: 2021 | B74: =IF(MAX($B$65:B73)<(construct+anal_period),B73+1,"") -> 10 | C74: 7 | D74: 7 | E74: 1.11955415 | F74: 694948644.9 | H74: 0 | I74: =IF(OR(C74<0,C74=""),"",-E74*INDEX('Replacement Costs'!$A$16:$H$57,MATCH(C74,'Replacement Costs'!$C$16:$C$57,0),MATCH("Total Yearly Replacement Costs",'Replacement Costs'!$A$16:$H$16,0))) -> -19426897.56 | J74: =IF(AND(C74>=1,C74<anal_period),WorkingCap*SUM(N74:R74)-WorkingCap*SUM(N73:R73),IF(C74<0,0,IF(B74="","",-SUM(J$65:J73)))) -> -1182244.129 | N74: -198467176.3 | O74: -121376183.7 | P74: -9998779.788 | Q74: 0 | R74: -80403040.62 | S74: =IF(B74="","",IF($B$31=0,"",-'Debt Financing Calculations'!E23)) -> -72814649.62 | T74: 211888814.9 | U74: =IF(C74="","",IF(C74<-1,0,IF(C74=anal_period,-LOOKUP(C74,depr_yr,depr_cost)-Depreciation!$C$141-Depreciation!$B$166,-LOOKUP(C74,depr_yr,depr_cost)))) -> -167623593.2 | V74: 44265221.67 | W74: 0.2574 | X74: -11393868.06 | Y74: 200494946.8 | Z74: =IF(C74="","",IF($B$31=0,"",-'Debt Financing Calculations'!F23)) -> 0 | AA74: 179885805.1 | AB74: -293725448.4 | AC74: 191279673.2 | AE74: 216810000 | AF74: 0
A75: 2022 | B75: =IF(MAX($B$65:B74)<(construct+anal_period),B74+1,"") -> 11 | C75: 8 | D75: 8 | E75: 1.140825679 | F75: 708152669.2 | H75: 0 | I75: =IF(OR(C75<0,C75=""),"",-E75*INDEX('Replacement Costs'!$A$16:$H$57,MATCH(C75,'Replacement Costs'!$C$16:$C$57,0),MATCH("Total Yearly Replacement Costs",'Replacement Costs'!$A$16:$H$16,0))) -> -19796008.61 | J75: =IF(AND(C75>=1,C75<anal_period),WorkingCap*SUM(N75:R75)-WorkingCap*SUM(N74:R74),IF(C75<0,0,IF(B75="","",-SUM(J$65:J74)))) -> -1328031.675 | N75: -202238052.7 | O75: -124741217.3 | P75: -10188756.6 | Q75: 0 | R75: -81930698.39 | S75: =IF(B75="","",IF($B$31=0,"",-'Debt Financing Calculations'!E24)) -> -72814649.62 | T75: 216239294.6 | U75: =IF(C75="","",IF(C75<-1,0,IF(C75=anal_period,-LOOKUP(C75,depr_yr,depr_cost)-Depreciation!$C$141-Depreciation!$B$166,-LOOKUP(C75,depr_yr,depr_cost)))) -> -156542392.3 | V75: 59696902.28 | W75: 0.2574 | X75: -15365982.65 | Y75: 200873312 | Z75: =IF(C75="","",IF($B$31=0,"",-'Debt Financing Calculations'!F24)) -> 0 | AA75: 179749271.7 | AB75: -113976176.7 | AC75: 195115254.3 | AE75: 216810000 | AF75: 0
A76: 2023 | B76: =IF(MAX($B$65:B75)<(construct+anal_period),B75+1,"") -> 12 | C76: 9 | D76: 9 | E76: 1.162501366 | F76: 721607569.9 | H76: 0 | I76: =IF(OR(C76<0,C76=""),"",-E76*INDEX('Replacement Costs'!$A$16:$H$57,MATCH(C76,'Replacement Costs'!$C$16:$C$57,0),MATCH("Total Yearly Replacement Costs",'Replacement Costs'!$A$16:$H$16,0))) -> -20172132.77 | J76: =IF(AND(C76>=1,C76<anal_period),WorkingCap*SUM(N76:R76)-WorkingCap*SUM(N75:R75),IF(C76<0,0,IF(B76="","",-SUM(J$65:J75)))) -> -1249236.937 | N76: -206080575.7 | O76: -127476670.9 | P76: -10382342.98 | Q76: 0 | R76: -83487381.66 | S76: =IF(B76="","",IF($B$31=0,"",-'Debt Financing Calculations'!E25)) -> -72814649.62 | T76: 221365949.1 | U76: =IF(C76="","",IF(C76<-1,0,IF(C76=anal_period,-LOOKUP(C76,depr_yr,depr_cost)-Depreciation!$C$141-Depreciation!$B$166,-LOOKUP(C76,depr_yr,depr_cost)))) -> -155504938.1 | V76: 65861011 | W76: 0.2574 | X76: -16952624.23 | Y76: 204413324.8 | Z76: =IF(C76="","",IF($B$31=0,"",-'Debt Financing Calculations'!F25)) -> 0 | AA76: 182991955.1 | AB76: 69015778.4 | AC76: 199944579.4 | AE76: 216810000 | AF76: 0
A77: 2024 | B77: =IF(MAX($B$65:B76)<(construct+anal_period),B76+1,"") -> 13 | C77: 10 | D77: 10 | E77: 1.184588892 | F77: 735318113.7 | H77: 0 | I77: =IF(OR(C77<0,C77=""),"",-E77*INDEX('Replacement Costs'!$A$16:$H$57,MATCH(C77,'Replacement Costs'!$C$16:$C$57,0),MATCH("Total Yearly Replacement Costs",'Replacement Costs'!$A$16:$H$16,0))) -> -20555403.3 | J77: =IF(AND(C77>=1,C77<anal_period),WorkingCap*SUM(N77:R77)-WorkingCap*SUM(N76:R76),IF(C77<0,0,IF(B77="","",-SUM(J$65:J76)))) -> -1212111.104 | N77: -209996106.6 | O77: -129858355.9 | P77: -10579607.5 | Q77: 0 | R77: -85073641.91 | S77: =IF(B77="","",IF($B$31=0,"",-'Debt Financing Calculations'!E26)) -> -72814649.62 | T77: 226995752.2 | U77: =IF(C77="","",IF(C77<-1,0,IF(C77=anal_period,-LOOKUP(C77,depr_yr,depr_cost)-Depreciation!$C$141-Depreciation!$B$166,-LOOKUP(C77,depr_yr,depr_cost)))) -> -156420154.1 | V77: 70575598.12 | W77: 0.2574 | X77: -18166158.96 | Y77: 208829593.3 | Z77: =IF(C77="","",IF($B$31=0,"",-'Debt Financing Calculations'!F26)) -> 0 | AA77: 187062078.9 | AB77: 256077857.3 | AC77: 205228237.8 | AE77: 216810000 | AF77: 0
A78: 2025 | B78: =IF(MAX($B$65:B77)<(construct+anal_period),B77+1,"") -> 14 | C78: 11 | D78: 11 | E78: 1.207096081 | F78: 749289157.9 | H78: 0 | I78: =IF(OR(C78<0,C78=""),"",-E78*INDEX('Replacement Costs'!$A$16:$H$57,MATCH(C78,'Replacement Costs'!$C$16:$C$57,0),MATCH("Total Yearly Replacement Costs",'Replacement Costs'!$A$16:$H$16,0))) -> -20945955.96 | J78: =IF(AND(C78>=1,C78<anal_period),WorkingCap*SUM(N78:R78)-WorkingCap*SUM(N77:R77),IF(C78<0,0,IF(B78="","",-SUM(J$65:J77)))) -> -1302329.666 | N78: -213986032.6 | O78: -132733215.9 | P78: -10780620.04 | Q78: 0 | R78: -86690041.11 | S78: =IF(B78="","",IF($B$31=0,"",-'Debt Financing Calculations'!E27)) -> -72814649.62 | T78: 232284598.6 | U78: =IF(C78="","",IF(C78<-1,0,IF(C78=anal_period,-LOOKUP(C78,depr_yr,depr_cost)-Depreciation!$C$141-Depreciation!$B$166,-LOOKUP(C78,depr_yr,depr_cost)))) -> -157419154.7 | V78: 74865443.89 | W78: 0.2574 | X78: -19270365.26 | Y78: 213014233.3 | Z78: =IF(C78="","",IF($B$31=0,"",-'Debt Financing Calculations'!F27)) -> 0 | AA78: 190765947.7 | AB78: 446843805 | AC78: 210036313 | AE78: 216810000 | AF78: 0
A79: 2026 | B79: =IF(MAX($B$65:B78)<(construct+anal_period),B78+1,"") -> 15 | C79: 12 | D79: 12 | E79: 1.230030907 | F79: 763525651.9 | H79: 0 | I79: =IF(OR(C79<0,C79=""),"",-E79*INDEX('Replacement Costs'!$A$16:$H$57,MATCH(C79,'Replacement Costs'!$C$16:$C$57,0),MATCH("Total Yearly Replacement Costs",'Replacement Costs'!$A$16:$H$16,0))) -> -21343929.12 | J79: =IF(AND(C79>=1,C79<anal_period),WorkingCap*SUM(N79:R79)-WorkingCap*SUM(N78:R78),IF(C79<0,0,IF(B79="","",-SUM(J$65:J78)))) -> -1286096.913 | N79: -218051767.2 | O79: -135389518.1 | P79: -10985451.82 | Q79: 0 | R79: -88337151.89 | S79: =IF(B79="","",IF($B$31=0,"",-'Debt Financing Calculations'!E28)) -> -72814649.62 | T79: 237947113.2 | U79: =IF(C79="","",IF(C79<-1,0,IF(C79=anal_period,-LOOKUP(C79,depr_yr,depr_cost)-Depreciation!$C$141-Depreciation!$B$166,-LOOKUP(C79,depr_yr,depr_cost)))) -> -158370740.8 | V79: 79576372.34 | W79: 0.2574 | X79: -20482958.24 | Y79: 217464154.9 | Z79: =IF(C79="","",IF($B$31=0,"",-'Debt Financing Calculations'!F28)) -> 0 | AA79: 194834128.9 | AB79: 641677933.9 | AC79: 215317087.1 | AE79: 216810000 | AF79: 0
A80: 2027 | B80: =IF(MAX($B$65:B79)<(construct+anal_period),B79+1,"") -> 16 | C80: 13 | D80: 13 | E80: 1.253401494 | F80: 778032639.3 | H80: 0 | I80: =IF(OR(C80<0,C80=""),"",-E80*INDEX('Replacement Costs'!$A$16:$H$57,MATCH(C80,'Replacement Costs'!$C$16:$C$57,0),MATCH("Total Yearly Replacement Costs",'Replacement Costs'!$A$16:$H$16,0))) -> -21749463.78 | J80: =IF(AND(C80>=1,C80<anal_period),WorkingCap*SUM(N80:R80)-WorkingCap*SUM(N79:R79),IF(C80<0,0,IF(B80="","",-SUM(J$65:J79)))) -> -1253201.779 | N80: -222194750.8 | O80: -137714083.6 | P80: -11194175.4 | Q80: 0 | R80: -90015557.77 | S80: =IF(B80="","",IF($B$31=0,"",-'Debt Financing Calculations'!E29)) -> -72814649.62 | T80: 244099422 | U80: =IF(C80="","",IF(C80<-1,0,IF(C80=anal_period,-LOOKUP(C80,depr_yr,depr_cost)-Depreciation!$C$141-Depreciation!$B$166,-LOOKUP(C80,depr_yr,depr_cost)))) -> -159406802.6 | V80: 84692619.43 | W80: 0.2574 | X80: -21799880.24 | Y80: 222299541.8 | Z80: =IF(C80="","",IF($B$31=0,"",-'Debt Financing Calculations'!F29)) -> 0 | AA80: 199296876.2 | AB80: 840974810.1 | AC80: 221096756.5 | AE80: 216810000 | AF80: 0
A81: 2028 | B81: =IF(MAX($B$65:B80)<(construct+anal_period),B80+1,"") -> 17 | C81: 14 | D81: 14 | E81: 1.277216123 | F81: 792815259.4 | H81: 0 | I81: =IF(OR(C81<0,C81=""),"",-E81*INDEX('Replacement Costs'!$A$16:$H$57,MATCH(C81,'Replacement Costs'!$C$16:$C$57,0),MATCH("Total Yearly Replacement Costs",'Replacement Costs'!$A$16:$H$16,0))) -> -22162703.59 | J81: =IF(AND(C81>=1,C81<anal_period),WorkingCap*SUM(N81:R81)-WorkingCap*SUM(N80:R80),IF(C81<0,0,IF(B81="","",-SUM(J$65:J80)))) -> -1260937.665 | N81: -226416451.1 | O81: -139975649.5 | P81: -11406864.74 | Q81: 0 | R81: -91725853.37 | S81: =IF(B81="","",IF($B$31=0,"",-'Debt Financing Calculations'!E30)) -> -72814649.62 | T81: 250475791.1 | U81: =IF(C81="","",IF(C81<-1,0,IF(C81=anal_period,-LOOKUP(C81,depr_yr,depr_cost)-Depreciation!$C$141-Depreciation!$B$166,-LOOKUP(C81,depr_yr,depr_cost)))) -> -160396154.1 | V81: 90079637.04 | W81: 0.2574 | X81: -23186498.57 | Y81: 227289292.5 | Z81: =IF(C81="","",IF($B$31=0,"",-'Debt Financing Calculations'!F30)) -> 0 | AA81: 203865651.3 | AB81: 1044840461 | AC81: 227052149.8 | AE81: 216810000 | AF81: 0
A82: 2029 | B82: =IF(MAX($B$65:B81)<(construct+anal_period),B81+1,"") -> 18 | C82: 15 | D82: 15 | E82: 1.301483229 | F82: 807878749.4 | H82: 0 | I82: =IF(OR(C82<0,C82=""),"",-E82*INDEX('Replacement Costs'!$A$16:$H$57,MATCH(C82,'Replacement Costs'!$C$16:$C$57,0),MATCH("Total Yearly Replacement Costs",'Replacement Costs'!$A$16:$H$16,0))) -> -22583794.96 | J82: =IF(AND(C82>=1,C82<anal_period),WorkingCap*SUM(N82:R82)-WorkingCap*SUM(N81:R81),IF(C82<0,0,IF(B82="","",-SUM(J$65:J81)))) -> -1265969.569 | N82: -230718363.7 | O82: -142154012.4 | P82: -11623595.17 | Q82: 0 | R82: -93468644.59 | S82: =IF(B82="","",IF($B$31=0,"",-'Debt Financing Calculations'!E31)) -> -72814649.62 | T82: 257099483.9 | U82: =IF(C82="","",IF(C82<-1,0,IF(C82=anal_period,-LOOKUP(C82,depr_yr,depr_cost)-Depreciation!$C$141-Depreciation!$B$166,-LOOKUP(C82,depr_yr,depr_cost)))) -> -161470698.7 | V82: 95628785.22 | W82: 0.2574 | X82: -24614849.32 | Y82: 232484634.6 | Z82: =IF(C82="","",IF($B$31=0,"",-'Debt Financing Calculations'!F31)) -> 0 | AA82: 208634870.1 | AB82: 1253475331 | AC82: 233249719.4 | AE82: 216810000 | AF82: 0
A83: 2030 | B83: =IF(MAX($B$65:B82)<(construct+anal_period),B82+1,"") -> 19 | C83: 16 | D83: 16 | E83: 1.32621141 | F83: 823228445.6 | H83: 0 | I83: =IF(OR(C83<0,C83=""),"",-E83*INDEX('Replacement Costs'!$A$16:$H$57,MATCH(C83,'Replacement Costs'!$C$16:$C$57,0),MATCH("Total Yearly Replacement Costs",'Replacement Costs'!$A$16:$H$16,0))) -> -23012887.06 | J83: =IF(AND(C83>=1,C83<anal_period),WorkingCap*SUM(N83:R83)-WorkingCap*SUM(N82:R82),IF(C83<0,0,IF(B83="","",-SUM(J$65:J82)))) -> -1354349.101 | N83: -235102012.6 | O83: -144802605 | P83: -11844443.47 | Q83: 0 | R83: -95244548.83 | S83: =IF(B83="","",IF($B$31=0,"",-'Debt Financing Calculations'!E32)) -> -72814649.62 | T83: 263420186.1 | U83: =IF(C83="","",IF(C83<-1,0,IF(C83=anal_period,-LOOKUP(C83,depr_yr,depr_cost)-Depreciation!$C$141-Depreciation!$B$166,-LOOKUP(C83,depr_yr,depr_cost)))) -> -162499264.1 | V83: 100920922 | W83: 0.2574 | X83: -25977045.32 | Y83: 237443140.8 | Z83: =IF(C83="","",IF($B$31=0,"",-'Debt Financing Calculations'!F32)) -> 0 | AA83: 213075904.6 | AB83: 1466551236 | AC83: 239052950 | AE83: 216810000 | AF83: 0
A84: 2031 | B84: =IF(MAX($B$65:B83)<(construct+anal_period),B83+1,"") -> 20 | C84: 17 | D84: 17 | E84: 1.351409427 | F84: 838869786.1 | H84: 0 | I84: =IF(OR(C84<0,C84=""),"",-E84*INDEX('Replacement Costs'!$A$16:$H$57,MATCH(C84,'Replacement Costs'!$C$16:$C$57,0),MATCH("Total Yearly Replacement Costs",'Replacement Costs'!$A$16:$H$16,0))) -> -23450131.91 | J84: =IF(AND(C84>=1,C84<anal_period),WorkingCap*SUM(N84:R84)-WorkingCap*SUM(N83:R83),IF(C84<0,0,IF(B84="","",-SUM(J$65:J83)))) -> -1398030.358 | N84: -239568950.8 | O84: -147621178.3 | P84: -12069487.9 | Q84: 0 | R84: -97054195.26 | S84: =IF(B84="","",IF($B$31=0,"",-'Debt Financing Calculations'!E33)) -> -72814649.62 | T84: 269741324.2 | U84: =IF(C84="","",IF(C84<-1,0,IF(C84=anal_period,-LOOKUP(C84,depr_yr,depr_cost)-Depreciation!$C$141-Depreciation!$B$166,-LOOKUP(C84,depr_yr,depr_cost)))) -> -163613767.8 | V84: 106127556.4 | W84: 0.2574 | X84: -27317233.01 | Y84: 242424091.2 | Z84: =IF(C84="","",IF($B$31=0,"",-'Debt Financing Calculations'!F33)) -> 0 | AA84: 217575928.9 | AB84: 1684127165 | AC84: 244893161.9 | AE84: 216810000 | AF84: 0
A85: 2032 | B85: =IF(MAX($B$65:B84)<(construct+anal_period),B84+1,"") -> 21 | C85: 18 | D85: 18 | E85: 1.377086206 | F85: 854808312 | H85: 0 | I85: =IF(OR(C85<0,C85=""),"",-E85*INDEX('Replacement Costs'!$A$16:$H$57,MATCH(C85,'Replacement Costs'!$C$16:$C$57,0),MATCH("Total Yearly Replacement Costs",'Replacement Costs'!$A$16:$H$16,0))) -> -23895684.42 | J85: =IF(AND(C85>=1,C85<anal_period),WorkingCap*SUM(N85:R85)-WorkingCap*SUM(N84:R84),IF(C85<0,0,IF(B85="","",-SUM(J$65:J84)))) -> -1433540.22 | N85: -244120760.9 | O85: -150552953 | P85: -12298808.17 | Q85: 0 | R85: -98898224.97 | S85: =IF(B85="","",IF($B$31=0,"",-'Debt Financing Calculations'!E34)) -> -72814649.62 | T85: 276122915.3 | U85: =IF(C85="","",IF(C85<-1,0,IF(C85=anal_period,-LOOKUP(C85,depr_yr,depr_cost)-Depreciation!$C$141-Depreciation!$B$166,-LOOKUP(C85,depr_yr,depr_cost)))) -> -164683051.6 | V85: 111439863.7 | W85: 0.2574 | X85: -28684620.92 | Y85: 247438294.4 | Z85: =IF(C85="","",IF($B$31=0,"",-'Debt Financing Calculations'!F34)) -> 0 | AA85: 222109069.8 | AB85: 1906236235 | AC85: 250793690.7 | AE85: 216810000 | AF85: 0
A86: 2033 | B86: =IF(MAX($B$65:B85)<(construct+anal_period),B85+1,"") -> 22 | C86: 19 | D86: 19 | E86: 1.403250844 | F86: 871049669.9 | H86: 0 | I86: =IF(OR(C86<0,C86=""),"",-E86*INDEX('Replacement Costs'!$A$16:$H$57,MATCH(C86,'Replacement Costs'!$C$16:$C$57,0),MATCH("Total Yearly Replacement Costs",'Replacement Costs'!$A$16:$H$16,0))) -> -24349702.42 | J86: =IF(AND(C86>=1,C86<anal_period),WorkingCap*SUM(N86:R86)-WorkingCap*SUM(N85:R85),IF(C86<0,0,IF(B86="","",-SUM(J$65:J85)))) -> -1475216.084 | N86: -248759055.3 | O86: -153636688.8 | P86: -12532485.53 | Q86: 0 | R86: -100777291.2 | S86: =IF(B86="","",IF($B$31=0,"",-'Debt Financing Calculations'!E35)) -> -72814649.62 | T86: 282529499.4 | U86: =IF(C86="","",IF(C86<-1,0,IF(C86=anal_period,-LOOKUP(C86,depr_yr,depr_cost)-Depreciation!$C$141-Depreciation!$B$166,-LOOKUP(C86,depr_yr,depr_cost)))) -> -165839047.3 | V86: 116690452.1 | W86: 0.2574 | X86: -30036122.36 | Y86: 252493377 | Z86: =IF(C86="","",IF($B$31=0,"",-'Debt Financing Calculations'!F35)) -> 0 | AA86: 226668458.5 | AB86: 2132904693 | AC86: 256704580.9 | AE86: 216810000 | AF86: 0
A87: 2034 | B87: =IF(MAX($B$65:B86)<(construct+anal_period),B86+1,"") -> 23 | C87: 20 | D87: 20 | E87: 1.42991261 | F87: 887599613.7 | H87: 0 | I87: =IF(OR(C87<0,C87=""),"",-E87*INDEX('Replacement Costs'!$A$16:$H$57,MATCH(C87,'Replacement Costs'!$C$16:$C$57,0),MATCH("Total Yearly Replacement Costs",'Replacement Costs'!$A$16:$H$16,0))) -> -24812346.77 | J87: =IF(AND(C87>=1,C87<anal_period),WorkingCap*SUM(N87:R87)-WorkingCap*SUM(N86:R86),IF(C87<0,0,IF(B87="","",-SUM(J$65:J86)))) -> -1560081.037 | N87: -253485477.4 | O87: -157157921.3 | P87: -12770602.75 | Q87: 0 | R87: -102692059.8 | S87: =IF(B87="","",IF($B$31=0,"",-'Debt Financing Calculations'!E36)) -> -72814649.62 | T87: 288678902.8 | U87: =IF(C87="","",IF(C87<-1,0,IF(C87=anal_period,-LOOKUP(C87,depr_yr,depr_cost)-Depreciation!$C$141-Depreciation!$B$166,-LOOKUP(C87,depr_yr,depr_cost)))) -> -166950611.4 | V87: 121728291.5 | W87: 0.2574 | X87: -31332862.22 | Y87: 257346040.6 | Z87: =IF(C87="","",IF($B$31=0,"",-'Debt Financing Calculations'!F36)) -> 0 | AA87: 230973612.8 | AB87: 2363878306 | AC87: 262306475 | AE87: 216810000 | AF87: 0
A88: 2035 | B88: =IF(MAX($B$65:B87)<(construct+anal_period),B87+1,"") -> 24 | C88: 21 | D88: 21 | E88: 1.45708095 | F88: 904464006.3 | H88: 0 | I88: =IF(OR(C88<0,C88=""),"",-E88*INDEX('Replacement Costs'!$A$16:$H$57,MATCH(C88,'Replacement Costs'!$C$16:$C$57,0),MATCH("Total Yearly Replacement Costs",'Replacement Costs'!$A$16:$H$16,0))) -> -25283781.36 | J88: =IF(AND(C88>=1,C88<anal_period),WorkingCap*SUM(N88:R88)-WorkingCap*SUM(N87:R87),IF(C88<0,0,IF(B88="","",-SUM(J$65:J87)))) -> -1556170.579 | N88: -258301701.5 | O88: -160522377.1 | P88: -13013244.2 | Q88: 0 | R88: -104643208.9 | S88: =IF(B88="","",IF($B$31=0,"",-'Debt Financing Calculations'!E37)) -> -72814649.62 | T88: 295168825 | U88: =IF(C88="","",IF(C88<-1,0,IF(C88=anal_period,-LOOKUP(C88,depr_yr,depr_cost)-Depreciation!$C$141-Depreciation!$B$166,-LOOKUP(C88,depr_yr,depr_cost)))) -> -94587116.8 | V88: 200581708.2 | W88: 0.2574 | X88: -51629731.69 | Y88: 243539093.3 | Z88: =IF(C88="","",IF($B$31=0,"",-'Debt Financing Calculations'!F37)) -> 0 | AA88: 216699141.4 | AB88: 2580577447 | AC88: 268328873 | AE88: 216810000 | AF88: 0
A89: 2036 | B89: =IF(MAX($B$65:B88)<(construct+anal_period),B88+1,"") -> 25 | C89: 22 | D89: 22 | E89: 1.484765488 | F89: 921648822.4 | H89: 0 | I89: =IF(OR(C89<0,C89=""),"",-E89*INDEX('Replacement Costs'!$A$16:$H$57,MATCH(C89,'Replacement Costs'!$C$16:$C$57,0),MATCH("Total Yearly Replacement Costs",'Replacement Costs'!$A$16:$H$16,0))) -> -25764173.2 | J89: =IF(AND(C89>=1,C89<anal_period),WorkingCap*SUM(N89:R89)-WorkingCap*SUM(N88:R88),IF(C89<0,0,IF(B89="","",-SUM(J$65:J88)))) -> -1690837.314 | N89: -263209433.8 | O89: -164651421 | P89: -13260495.84 | Q89: 0 | R89: -106631429.9 | S89: =IF(B89="","",IF($B$31=0,"",-'Debt Financing Calculations'!E38)) -> -72814649.62 | T89: 301081392.3 | U89: =IF(C89="","",IF(C89<-1,0,IF(C89=anal_period,-LOOKUP(C89,depr_yr,depr_cost)-Depreciation!$C$141-Depreciation!$B$166,-LOOKUP(C89,depr_yr,depr_cost)))) -> -21818495.67 | V89: 279262896.7 | W89: 0.2574 | X89: -71882269.6 | Y89: 229199122.7 | Z89: =IF(C89="","",IF($B$31=0,"",-'Debt Financing Calculations'!F38)) -> 0 | AA89: 201744112.2 | AB89: 2782321560 | AC89: 273626381.8 | AE89: 216810000 | AF89: 0
A90: 2037 | B90: =IF(MAX($B$65:B89)<(construct+anal_period),B89+1,"") -> 26 | C90: 23 | D90: 23 | E90: 1.512976032 | F90: 939160150.1 | H90: 0 | I90: =IF(OR(C90<0,C90=""),"",-E90*INDEX('Replacement Costs'!$A$16:$H$57,MATCH(C90,'Replacement Costs'!$C$16:$C$57,0),MATCH("Total Yearly Replacement Costs",'Replacement Costs'!$A$16:$H$16,0))) -> -26253692.5 | J90: =IF(AND(C90>=1,C90<anal_period),WorkingCap*SUM(N90:R90)-WorkingCap*SUM(N89:R89),IF(C90<0,0,IF(B90="","",-SUM(J$65:J89)))) -> -1585608.494 | N90: -268210413 | O90: -167943218.4 | P90: -13512445.26 | Q90: 0 | R90: -108657427.1 | S90: =IF(B90="","",IF($B$31=0,"",-'Debt Financing Calculations'!E39)) -> -72814649.62 | T90: 308021996.7 | U90: =IF(C90="","",IF(C90<-1,0,IF(C90=anal_period,-LOOKUP(C90,depr_yr,depr_cost)-Depreciation!$C$141-Depreciation!$B$166,-LOOKUP(C90,depr_yr,depr_cost)))) -> -22233047.08 | V90: 285788949.6 | W90: 0.2574 | X90: -73562075.62 | Y90: 234459921 | Z90: =IF(C90="","",IF($B$31=0,"",-'Debt Financing Calculations'!F39)) -> 0 | AA90: 206620620.1 | AB90: 2988942180 | AC90: 280182695.7 | AE90: 216810000 | AF90: 0
A91: 2038 | B91: =IF(MAX($B$65:B90)<(construct+anal_period),B90+1,"") -> 27 | C91: 24 | D91: 24 | E91: 1.541722577 | F91: 957004192.9 | H91: 0 | I91: =IF(OR(C91<0,C91=""),"",-E91*INDEX('Replacement Costs'!$A$16:$H$57,MATCH(C91,'Replacement Costs'!$C$16:$C$57,0),MATCH("Total Yearly Replacement Costs",'Replacement Costs'!$A$16:$H$16,0))) -> -26752512.65 | J91: =IF(AND(C91>=1,C91<anal_period),WorkingCap*SUM(N91:R91)-WorkingCap*SUM(N90:R90),IF(C91<0,0,IF(B91="","",-SUM(J$65:J90)))) -> -1672931.984 | N91: -273306410.9 | O91: -171678872.9 | P91: -13769181.72 | Q91: 0 | R91: -110721918.2 | S91: =IF(B91="","",IF($B$31=0,"",-'Debt Financing Calculations'!E40)) -> -72814649.62 | T91: 314713159.6 | U91: =IF(C91="","",IF(C91<-1,0,IF(C91=anal_period,-LOOKUP(C91,depr_yr,depr_cost)-Depreciation!$C$141-Depreciation!$B$166,-LOOKUP(C91,depr_yr,depr_cost)))) -> -22655474.98 | V91: 292057684.6 | W91: 0.2574 | X91: -75175648.03 | Y91: 239537511.6 | Z91: =IF(C91="","",IF($B$31=0,"",-'Debt Financing Calculations'!F40)) -> 0 | AA91: 211112067 | AB91: 3200054247 | AC91: 286287715 | AE91: 216810000 | AF91: 0
A92: 2039 | B92: =IF(MAX($B$65:B91)<(construct+anal_period),B91+1,"") -> 28 | C92: 25 | D92: 25 | E92: 1.571015306 | F92: 975187272.6 | H92: 0 | I92: =IF(OR(C92<0,C92=""),"",-E92*INDEX('Replacement Costs'!$A$16:$H$57,MATCH(C92,'Replacement Costs'!$C$16:$C$57,0),MATCH("Total Yearly Replacement Costs",'Replacement Costs'!$A$16:$H$16,0))) -> -27260810.39 | J92: =IF(AND(C92>=1,C92<anal_period),WorkingCap*SUM(N92:R92)-WorkingCap*SUM(N91:R91),IF(C92<0,0,IF(B92="","",-SUM(J$65:J91)))) -> -1687564.886 | N92: -278499232.7 | O92: -175371152.8 | P92: -14030796.18 | Q92: 0 | R92: -112825634.6 | S92: =IF(B92="","",IF($B$31=0,"",-'Debt Financing Calculations'!E41)) -> -72814649.62 | T92: 321645806.7 | U92: =IF(C92="","",IF(C92<-1,0,IF(C92=anal_period,-LOOKUP(C92,depr_yr,depr_cost)-Depreciation!$C$141-Depreciation!$B$166,-LOOKUP(C92,depr_yr,depr_cost)))) -> -23085929 | V92: 298559877.7 | W92: 0.2574 | X92: -76849312.52 | Y92: 244796494.2 | Z92: =IF(C92="","",IF($B$31=0,"",-'Debt Financing Calculations'!F41)) -> 0 | AA92: 215848118.9 | AB92: 3415902366 | AC92: 292697431.4 | AE92: 216810000 | AF92: 0
A93: 2040 | B93: =IF(MAX($B$65:B92)<(construct+anal_period),B92+1,"") -> 29 | C93: 26 | D93: 26 | E93: 1.600864596 | F93: 993715830.8 | H93: 0 | I93: =IF(OR(C93<0,C93=""),"",-E93*INDEX('Replacement Costs'!$A$16:$H$57,MATCH(C93,'Replacement Costs'!$C$16:$C$57,0),MATCH("Total Yearly Replacement Costs",'Replacement Costs'!$A$16:$H$16,0))) -> -27778765.79 | J93: =IF(AND(C93>=1,C93<anal_period),WorkingCap*SUM(N93:R93)-WorkingCap*SUM(N92:R92),IF(C93<0,0,IF(B93="","",-SUM(J$65:J92)))) -> -1777546.7 | N93: -283790718.1 | O93: -179519706.5 | P93: -14297381.3 | Q93: 0 | R93: -114969321.7 | S93: =IF(B93="","",IF($B$31=0,"",-'Debt Financing Calculations'!E42)) -> -72814649.62 | T93: 328324053.6 | U93: =IF(C93="","",IF(C93<-1,0,IF(C93=anal_period,-LOOKUP(C93,depr_yr,depr_cost)-Depreciation!$C$141-Depreciation!$B$166,-LOOKUP(C93,depr_yr,depr_cost)))) -> -23524561.66 | V93: 304799491.9 | W93: 0.2574 | X93: -78455389.22 | Y93: 249868664.3 | Z93: =IF(C93="","",IF($B$31=0,"",-'Debt Financing Calculations'!F42)) -> 0 | AA93: 220312351.9 | AB93: 3636214717 | AC93: 298767741.1 | AE93: 216810000 | AF93: 0
A94: 2041 | B94: =IF(MAX($B$65:B93)<(construct+anal_period),B93+1,"") -> 30 | C94: 27 | D94: 27 | E94: 1.631281024 | F94: 1012596432 | H94: 0 | I94: =IF(OR(C94<0,C94=""),"",-E94*INDEX('Replacement Costs'!$A$16:$H$57,MATCH(C94,'Replacement Costs'!$C$16:$C$57,0),MATCH("Total Yearly Replacement Costs",'Replacement Costs'!$A$16:$H$16,0))) -> -28306562.34 | J94: =IF(AND(C94>=1,C94<anal_period),WorkingCap*SUM(N94:R94)-WorkingCap*SUM(N93:R93),IF(C94<0,0,IF(B94="","",-SUM(J$65:J93)))) -> -1687944.623 | N94: -289182741.7 | O94: -182924579.6 | P94: -14569031.55 | Q94: 0 | R94: -117153738.8 | S94: =IF(B94="","",IF($B$31=0,"",-'Debt Financing Calculations'!E43)) -> -72814649.62 | T94: 335951690.2 | U94: =IF(C94="","",IF(C94<-1,0,IF(C94=anal_period,-LOOKUP(C94,depr_yr,depr_cost)-Depreciation!$C$141-Depreciation!$B$166,-LOOKUP(C94,depr_yr,depr_cost)))) -> -23971528.33 | V94: 311980161.9 | W94: 0.2574 | X94: -80303693.67 | Y94: 255647996.5 | Z94: =IF(C94="","",IF($B$31=0,"",-'Debt Financing Calculations'!F43)) -> 0 | AA94: 225653489.6 | AB94: 3861868207 | AC94: 305957183.2 | AE94: 216810000 | AF94: 0
A95: 2042 | B95: =IF(MAX($B$65:B94)<(construct+anal_period),B94+1,"") -> 31 | C95: 28 | D95: 28 | E95: 1.662275363 | F95: 1031835764 | H95: 0 | I95: =IF(OR(C95<0,C95=""),"",-E95*INDEX('Replacement Costs'!$A$16:$H$57,MATCH(C95,'Replacement Costs'!$C$16:$C$57,0),MATCH("Total Yearly Replacement Costs",'Replacement Costs'!$A$16:$H$16,0))) -> -28844387.02 | J95: =IF(AND(C95>=1,C95<anal_period),WorkingCap*SUM(N95:R95)-WorkingCap*SUM(N94:R94),IF(C95<0,0,IF(B95="","",-SUM(J$65:J94)))) -> -1730345.295 | N95: -294677213.8 | O95: -186463010.2 | P95: -14845843.15 | Q95: 0 | R95: -119379659.8 | S95: =IF(B95="","",IF($B$31=0,"",-'Debt Financing Calculations'!E44)) -> -72814649.62 | T95: 343655387.1 | U95: =IF(C95="","",IF(C95<-1,0,IF(C95=anal_period,-LOOKUP(C95,depr_yr,depr_cost)-Depreciation!$C$141-Depreciation!$B$166,-LOOKUP(C95,depr_yr,depr_cost)))) -> -24426987.36 | V95: 319228399.7 | W95: 0.2574 | X95: -82169390.09 | Y95: 261485997 | Z95: =IF(C95="","",IF($B$31=0,"",-'Debt Financing Calculations'!F44)) -> 0 | AA95: 230911264.7 | AB95: 4092779472 | AC95: 313080654.8 | AE95: 216810000 | AF95: 0
A96: 2043 | B96: =IF(MAX($B$65:B95)<(construct+anal_period),B95+1,"") -> 32 | C96: 29 | D96: 29 | E96: 1.693858595 | F96: 1051440643 | H96: 0 | I96: =IF(OR(C96<0,C96=""),"",-E96*INDEX('Replacement Costs'!$A$16:$H$57,MATCH(C96,'Replacement Costs'!$C$16:$C$57,0),MATCH("Total Yearly Replacement Costs",'Replacement Costs'!$A$16:$H$16,0))) -> -29392430.38 | J96: =IF(AND(C96>=1,C96<anal_period),WorkingCap*SUM(N96:R96)-WorkingCap*SUM(N95:R95),IF(C96<0,0,IF(B96="","",-SUM(J$65:J95)))) -> -1817922.344 | N96: -300276080.9 | O96: -190433340.9 | P96: -15127914.17 | Q96: 0 | R96: -121647873.4 | S96: =IF(B96="","",IF($B$31=0,"",-'Debt Financing Calculations'!E45)) -> -72814649.62 | T96: 351140784.3 | U96: =IF(C96="","",IF(C96<-1,0,IF(C96=anal_period,-LOOKUP(C96,depr_yr,depr_cost)-Depreciation!$C$141-Depreciation!$B$166,-LOOKUP(C96,depr_yr,depr_cost)))) -> -24891100.12 | V96: 326249684.2 | W96: 0.2574 | X96: -83976668.71 | Y96: 267164115.6 | Z96: =IF(C96="","",IF($B$31=0,"",-'Debt Financing Calculations'!F45)) -> 0 | AA96: 235953762.9 | AB96: 4328733235 | AC96: 319930431.6 | AE96: 216810000 | AF96: 0
A97: 2044 | B97: =IF(MAX($B$65:B96)<(construct+anal_period),B96+1,"") -> 33 | C97: 30 | D97: =IF(C97="","",IF(C97<=plant_life,C97,IF(D96=plant_life,1,D96+1))) -> 30 | E97: =IF(C97="","",(1+inflation_rate)^(A97-$B$25)) -> 1.726041908 | F97: =IF(C97="","",IF(C97<0,0,IF(AND(C97=1,start_time<1),E97*(H2_price_nominal*output_kgyear*start_time*percnt_revs+H2_price_nominal*output_kgyear*(1-start_time)),IF(C97<=start_time,H2_price_nominal*E97*output_kgyear*percnt_revs,H2_price_nominal*output_kgyear*E97)))) -> 1071418015 | H97: 0 | I97: =IF(OR(C97<0,C97=""),"",-E97*INDEX('Replacement Costs'!$A$16:$H$57,MATCH(C97,'Replacement Costs'!$C$16:$C$57,0),MATCH("Total Yearly Replacement Costs",'Replacement Costs'!$A$16:$H$16,0))) -> -29950886.56 | J97: =IF(AND(C97>=1,C97<anal_period),WorkingCap*SUM(N97:R97)-WorkingCap*SUM(N96:R96),IF(C97<0,0,IF(B97="","",-SUM(J$65:J96)))) -> -1800724.751 | K97: =IF(C97=-construct,-E97*non_dep_infl,"") ->  | L97: =IF(C97=anal_period,salvage*E97,"") ->  | M97: =IF(D97=plant_life,-E97*decom,"") ->  | N97: =IF(C97="","",IF(C97<0,0,IF(AND(C97=1,start_time<1),-(inflated_fixed*percnt_fixed*start_time+(inflated_fixed*(1-start_time))),IF(C97<=start_time,-inflated_fixed*percnt_fixed*E97,-inflated_fixed*E97)))) -> -305981326.4 | O97: =IF(C97="","",IF(C97<0,0,IF(AND(C97=1,start_time<1),-(SUM(B171:E171)*output_kgyear*E97*percnt_var*start_time+SUM(B171:E171)*output_kgyear*E97*(1-start_time)),IF(C97<=start_time,-SUM(B171:E171)*output_kgyear*E97*percnt_var,-SUM(B171:E171)*output_kgyear*E97)))) -> -194134187.1 | P97: =IF(C97="","",IF(C97<0,0,IF(AND(C97=1,start_time<1),-(inflated_otherraw*E97*percnt_var*start_time+inflated_otherraw*E97*(1-start_time)),IF(C97<=start_time,-inflated_otherraw*E97*percnt_var,-(inflated_otherraw*E97))))) -> -15415344.54 | Q97: 0 | R97: =IF(C97="","",IF(C97<0,0,IF(AND(C97=1,start_time<1),-((SUM(F171:J171,P171:R171)*output_kgyear+inflated_othervar)*E97*percnt_var*start_time+(SUM(F171:J171,P171:R171)*output_kgyear+inflated_othervar)*E97*(1-start_time)),IF(C97<=start_time,-(SUM(F171:J171,P171:R171)*output_kgyear+inflated_othervar)*E97*percnt_var,-E97*(SUM(F171:J171,P171:R171)*output_kgyear+inflated_othervar))))) -> -123959182.9 | S97: =IF(B97="","",IF($B$31=0,"",-'Debt Financing Calculations'!E46)) -> -72814649.62 | T97: =IF(C97="","",F97+SUM(L97:S97)) -> 359113324.9 | U97: =IF(C97="","",IF(C97<-1,0,IF(C97=anal_period,-LOOKUP(C97,depr_yr,depr_cost)-Depreciation!$C$141-Depreciation!$B$166,-LOOKUP(C97,depr_yr,depr_cost)))) -> -25364031.03 | V97: =IF(C97="","",SUM(T97:U97)) -> 333749293.8 | W97: =IF(C97="","",$B$33) -> 0.2574 | X97: =IF(C97="","",tax_credit-(V97*W97 +Upstream_CO2_taxpYear + Proc_CO2_taxpYear)) -> -85907068.23 | Y97: =IF(C97="","",SUM(T97,X97)) -> 273206256.6 | Z97: =IF(C97="","",IF($B$31=0,"",-'Debt Financing Calculations'!F46)) -> 0 | AA97: =IF(C97="","",SUM(H97,I97,J97,K97,T97,X97,Z97)) -> 241454645.3 | AB97: 4570187880 | AC97: =IF(C97="","",SUM(H97,I97,J97,K97,T97,Z97)) -> 327361713.6 | AE97: =IF(C97="","",IF(C97<0,0,IF(AND(C97=1,start_time<1),(output_kgyear*start_time*percnt_revs+output_kgyear*(1-start_time)),IF(C97<=start_time,output_kgyear*percnt_revs,output_kgyear)))) -> 216810000 | AF97: =IF(C97="","",tax_credit) -> 0
A98: 2045 | B98: =IF(MAX($B$65:B97)<(construct+anal_period),B97+1,"") -> 34 | C98: 31 | D98: 31 | E98: 1.758836705 | F98: 1091774958 | H98: 0 | I98: =IF(OR(C98<0,C98=""),"",-E98*INDEX('Replacement Costs'!$A$16:$H$57,MATCH(C98,'Replacement Costs'!$C$16:$C$57,0),MATCH("Total Yearly Replacement Costs",'Replacement Costs'!$A$16:$H$16,0))) -> -30519953.4 | J98: =IF(AND(C98>=1,C98<anal_period),WorkingCap*SUM(N98:R98)-WorkingCap*SUM(N97:R97),IF(C98<0,0,IF(B98="","",-SUM(J$65:J97)))) -> -1846103.228 | N98: -311794971.6 | O98: -197979780.7 | P98: -15708236.08 | Q98: 0 | R98: -126314407.4 | S98: =IF(B98="","",IF($B$31=0,"",-'Debt Financing Calculations'!E47)) -> -72814649.62 | T98: 367162912.3 | U98: =IF(C98="","",IF(C98<-1,0,IF(C98=anal_period,-LOOKUP(C98,depr_yr,depr_cost)-Depreciation!$C$141-Depreciation!$B$166,-LOOKUP(C98,depr_yr,depr_cost)))) -> -25845947.62 | V98: 341316964.7 | W98: 0.2574 | X98: -87854986.71 | Y98: 279307925.6 | Z98: =IF(C98="","",IF($B$31=0,"",-'Debt Financing Calculations'!F47)) -> 0 | AA98: 246941869 | AB98: 4817129749 | AC98: 334796855.7 | AE98: 216810000 | AF98: 0
A99: 2046 | B99: =IF(MAX($B$65:B98)<(construct+anal_period),B98+1,"") -> 35 | C99: 32 | D99: 32 | E99: 1.792254602 | F99: 1112518682 | H99: 0 | I99: =IF(OR(C99<0,C99=""),"",-E99*INDEX('Replacement Costs'!$A$16:$H$57,MATCH(C99,'Replacement Costs'!$C$16:$C$57,0),MATCH("Total Yearly Replacement Costs",'Replacement Costs'!$A$16:$H$16,0))) -> -31099832.51 | J99: =IF(AND(C99>=1,C99<anal_period),WorkingCap*SUM(N99:R99)-WorkingCap*SUM(N98:R98),IF(C99<0,0,IF(B99="","",-SUM(J$65:J98)))) -> -1811252.07 | N99: -317719076.1 | O99: -201432259.8 | P99: -16006692.57 | Q99: 0 | R99: -128714381.2 | S99: =IF(B99="","",IF($B$31=0,"",-'Debt Financing Calculations'!E48)) -> -72814649.62 | T99: 375831622.7 | U99: =IF(C99="","",IF(C99<-1,0,IF(C99=anal_period,-LOOKUP(C99,depr_yr,depr_cost)-Depreciation!$C$141-Depreciation!$B$166,-LOOKUP(C99,depr_yr,depr_cost)))) -> -26337020.62 | V99: 349494602.1 | W99: 0.2574 | X99: -89959910.57 | Y99: 285871712.1 | Z99: =IF(C99="","",IF($B$31=0,"",-'Debt Financing Calculations'!F48)) -> 0 | AA99: 252960627.5 | AB99: 5070090376 | AC99: 342920538.1 | AE99: 216810000 | AF99: 0
A100: 2047 | B100: =IF(MAX($B$65:B99)<(construct+anal_period),B99+1,"") -> 36 | C100: 33 | D100: 33 | E100: 1.826307439 | F100: 1133656537 | H100: 0 | I100: =IF(OR(C100<0,C100=""),"",-E100*INDEX('Replacement Costs'!$A$16:$H$57,MATCH(C100,'Replacement Costs'!$C$16:$C$57,0),MATCH("Total Yearly Replacement Costs",'Replacement Costs'!$A$16:$H$16,0))) -> -31690729.33 | J100: =IF(AND(C100>=1,C100<anal_period),WorkingCap*SUM(N100:R100)-WorkingCap*SUM(N99:R99),IF(C100<0,0,IF(B100="","",-SUM(J$65:J99)))) -> -1955521.36 | N100: -323755738.5 | O100: -205682706 | P100: -16310819.73 | Q100: 0 | R100: -131159954.4 | S100: =IF(B100="","",IF($B$31=0,"",-'Debt Financing Calculations'!E49)) -> -72814649.62 | T100: 383932668.6 | U100: =IF(C100="","",IF(C100<-1,0,IF(C100=anal_period,-LOOKUP(C100,depr_yr,depr_cost)-Depreciation!$C$141-Depreciation!$B$166,-LOOKUP(C100,depr_yr,depr_cost)))) -> -26837424.01 | V100: 357095244.6 | W100: 0.2574 | X100: -91916315.95 | Y100: 292016352.6 | Z100: =IF(C100="","",IF($B$31=0,"",-'Debt Financing Calculations'!F49)) -> 0 | AA100: 258370101.9 | AB100: 5328460478 | AC100: 350286417.9 | AE100: 216810000 | AF100: 0
A101: 2048 | B101: =IF(MAX($B$65:B100)<(construct+anal_period),B100+1,"") -> 37 | C101: 34 | D101: 34 | E101: 1.861007281 | F101: 1155196011 | H101: 0 | I101: =IF(OR(C101<0,C101=""),"",-E101*INDEX('Replacement Costs'!$A$16:$H$57,MATCH(C101,'Replacement Costs'!$C$16:$C$57,0),MATCH("Total Yearly Replacement Costs",'Replacement Costs'!$A$16:$H$16,0))) -> -32292853.19 | J101: =IF(AND(C101>=1,C101<anal_period),WorkingCap*SUM(N101:R101)-WorkingCap*SUM(N100:R100),IF(C101<0,0,IF(B101="","",-SUM(J$65:J100)))) -> -1958355.627 | N101: -329907097.6 | O101: -209785106.5 | P101: -16620725.3 | Q101: 0 | R101: -133651993.5 | S101: =IF(B101="","",IF($B$31=0,"",-'Debt Financing Calculations'!E50)) -> -72814649.62 | T101: 392416438.6 | U101: =IF(C101="","",IF(C101<-1,0,IF(C101=anal_period,-LOOKUP(C101,depr_yr,depr_cost)-Depreciation!$C$141-Depreciation!$B$166,-LOOKUP(C101,depr_yr,depr_cost)))) -> -27347335.07 | V101: 365069103.5 | W101: 0.2574 | X101: -93968787.25 | Y101: 298447651.4 | Z101: =IF(C101="","",IF($B$31=0,"",-'Debt Financing Calculations'!F50)) -> 0 | AA101: 264196442.5 | AB101: 5592656921 | AC101: 358165229.8 | AE101: 216810000 | AF101: 0
A102: 2049 | B102: =IF(MAX($B$65:B101)<(construct+anal_period),B101+1,"") -> 38 | C102: 35 | D102: 35 | E102: 1.896366419 | F102: 1177144735 | H102: 0 | I102: =IF(OR(C102<0,C102=""),"",-E102*INDEX('Replacement Costs'!$A$16:$H$57,MATCH(C102,'Replacement Costs'!$C$16:$C$57,0),MATCH("Total Yearly Replacement Costs",'Replacement Costs'!$A$16:$H$16,0))) -> -32906417.4 | J102: =IF(AND(C102>=1,C102<anal_period),WorkingCap*SUM(N102:R102)-WorkingCap*SUM(N101:R101),IF(C102<0,0,IF(B102="","",-SUM(J$65:J101)))) -> -2049486.806 | N102: -336175332.4 | O102: -214324935.3 | P102: -16936519.08 | Q102: 0 | R102: -136191381.4 | S102: =IF(B102="","",IF($B$31=0,"",-'Debt Financing Calculations'!E51)) -> -72814649.62 | T102: 400701917.4 | U102: =IF(C102="","",IF(C102<-1,0,IF(C102=anal_period,-LOOKUP(C102,depr_yr,depr_cost)-Depreciation!$C$141-Depreciation!$B$166,-LOOKUP(C102,depr_yr,depr_cost)))) -> -27866934.44 | V102: 372834983 | W102: 0.2574 | X102: -95967724.63 | Y102: 304734192.8 | Z102: =IF(C102="","",IF($B$31=0,"",-'Debt Financing Calculations'!F51)) -> 0 | AA102: 269778288.6 | AB102: 5862435209 | AC102: 365746013.2 | AE102: 216810000 | AF102: 0
A103: 2050 | B103: =IF(MAX($B$65:B102)<(construct+anal_period),B102+1,"") -> 39 | C103: 36 | D103: 36 | E103: 1.932397381 | F103: 1199510485 | H103: 0 | I103: =IF(OR(C103<0,C103=""),"",-E103*INDEX('Replacement Costs'!$A$16:$H$57,MATCH(C103,'Replacement Costs'!$C$16:$C$57,0),MATCH("Total Yearly Replacement Costs",'Replacement Costs'!$A$16:$H$16,0))) -> -33531639.33 | J103: =IF(AND(C103>=1,C103<anal_period),WorkingCap*SUM(N103:R103)-WorkingCap*SUM(N102:R102),IF(C103<0,0,IF(B103="","",-SUM(J$65:J102)))) -> -2050215.524 | N103: -342562663.7 | O103: -218696277.4 | P103: -17258312.95 | Q103: 0 | R103: -138779017.7 | S103: =IF(B103="","",IF($B$31=0,"",-'Debt Financing Calculations'!E52)) -> -72814649.62 | T103: 409399563.9 | U103: =IF(C103="","",IF(C103<-1,0,IF(C103=anal_period,-LOOKUP(C103,depr_yr,depr_cost)-Depreciation!$C$141-Depreciation!$B$166,-LOOKUP(C103,depr_yr,depr_cost)))) -> -28396406.19 | V103: 381003157.7 | W103: 0.2574 | X103: -98070212.8 | Y103: 311329351.1 | Z103: =IF(C103="","",IF($B$31=0,"",-'Debt Financing Calculations'!F52)) -> 0 | AA103: 275747496.3 | AB103: 6138182706 | AC103: 373817709.1 | AE103: 216810000 | AF103: 0
A104: 2051 | B104: =IF(MAX($B$65:B103)<(construct+anal_period),B103+1,"") -> 40 | C104: 37 | D104: 37 | E104: 1.969112931 | F104: 1222301185 | H104: 0 | I104: =IF(OR(C104<0,C104=""),"",-E104*INDEX('Replacement Costs'!$A$16:$H$57,MATCH(C104,'Replacement Costs'!$C$16:$C$57,0),MATCH("Total Yearly Replacement Costs",'Replacement Costs'!$A$16:$H$16,0))) -> -34168740.48 | J104: =IF(AND(C104>=1,C104<anal_period),WorkingCap*SUM(N104:R104)-WorkingCap*SUM(N103:R103),IF(C104<0,0,IF(B104="","",-SUM(J$65:J103)))) -> -2152836.094 | N104: -349071354.4 | O104: -223575118.1 | P104: -17586220.89 | Q104: 0 | R104: -141415819 | S104: =IF(B104="","",IF($B$31=0,"",-'Debt Financing Calculations'!E53)) -> -72814649.62 | T104: 417838022.5 | U104: =IF(C104="","",IF(C104<-1,0,IF(C104=anal_period,-LOOKUP(C104,depr_yr,depr_cost)-Depreciation!$C$141-Depreciation!$B$166,-LOOKUP(C104,depr_yr,depr_cost)))) -> -28935937.91 | V104: 388902084.6 | W104: 0.2574 | X104: -100103396.6 | Y104: 317734625.9 | Z104: =IF(C104="","",IF($B$31=0,"",-'Debt Financing Calculations'!F53)) -> 0 | AA104: 281413049.4 | AB104: 6419595755 | AC104: 381516446 | AE104: 216810000 | AF104: 0
A105: 2052 | B105: =IF(MAX($B$65:B104)<(construct+anal_period),B104+1,"") -> 41 | C105: 38 | D105: 38 | E105: 2.006526077 | F105: 1245524907 | H105: 0 | I105: =IF(OR(C105<0,C105=""),"",-E105*INDEX('Replacement Costs'!$A$16:$H$57,MATCH(C105,'Replacement Costs'!$C$16:$C$57,0),MATCH("Total Yearly Replacement Costs",'Replacement Costs'!$A$16:$H$16,0))) -> -34817946.55 | J105: =IF(AND(C105>=1,C105<anal_period),WorkingCap*SUM(N105:R105)-WorkingCap*SUM(N104:R104),IF(C105<0,0,IF(B105="","",-SUM(J$65:J104)))) -> -2196195.955 | N105: -355703710.1 | O105: -228563030 | P105: -17920359.09 | Q105: 0 | R105: -144102719.6 | S105: =IF(B105="","",IF($B$31=0,"",-'Debt Financing Calculations'!E54)) -> -72814649.62 | T105: 426420438.7 | U105: =IF(C105="","",IF(C105<-1,0,IF(C105=anal_period,-LOOKUP(C105,depr_yr,depr_cost)-Depreciation!$C$141-Depreciation!$B$166,-LOOKUP(C105,depr_yr,depr_cost)))) -> -29485720.73 | V105: 396934717.9 | W105: 0.2574 | X105: -102170996.4 | Y105: 324249442.3 | Z105: =IF(C105="","",IF($B$31=0,"",-'Debt Financing Calculations'!F54)) -> 0 | AA105: 287235299.8 | AB105: 6706831055 | AC105: 389406296.2 | AE105: 216810000 | AF105: 0
A106: 2053 | B106: =IF(MAX($B$65:B105)<(construct+anal_period),B105+1,"") -> 42 | C106: 39 | D106: 39 | E106: 2.044650072 | F106: 1269189880 | H106: 0 | I106: =IF(OR(C106<0,C106=""),"",-E106*INDEX('Replacement Costs'!$A$16:$H$57,MATCH(C106,'Replacement Costs'!$C$16:$C$57,0),MATCH("Total Yearly Replacement Costs",'Replacement Costs'!$A$16:$H$16,0))) -> -35479487.53 | J106: =IF(AND(C106>=1,C106<anal_period),WorkingCap*SUM(N106:R106)-WorkingCap*SUM(N105:R105),IF(C106<0,0,IF(B106="","",-SUM(J$65:J105)))) -> -2240435.261 | N106: -362462080.6 | O106: -233662456.1 | P106: -18260845.91 | Q106: 0 | R106: -146840671.2 | S106: =IF(B106="","",IF($B$31=0,"",-'Debt Financing Calculations'!E55)) -> -72814649.62 | T106: =IF(C106="","",F106+SUM(L106:S106)) -> 435149176.8 | U106: =IF(C106="","",IF(C106<-1,0,IF(C106=anal_period,-LOOKUP(C106,depr_yr,depr_cost)-Depreciation!$C$141-Depreciation!$B$166,-LOOKUP(C106,depr_yr,depr_cost)))) -> -30045949.42 | V106: 405103227.4 | W106: 0.2574 | X106: -104273570.7 | Y106: 330875606.1 | Z106: =IF(C106="","",IF($B$31=0,"",-'Debt Financing Calculations'!F55)) -> 0 | AA106: 293155683.3 | AB106: 6999986738 | AC106: =IF(C106="","",SUM(H106,I106,J106,K106,T106,Z106)) -> 397429254 | AE106: 216810000 | AF106: 0
A107: 2054 | B107: =IF(MAX($B$65:B106)<(construct+anal_period),B106+1,"") -> 43 | C107: 40 | D107: 40 | E107: 2.083498424 | F107: 1293304488 | H107: 0 | I107: =IF(OR(C107<0,C107=""),"",-E107*INDEX('Replacement Costs'!$A$16:$H$57,MATCH(C107,'Replacement Costs'!$C$16:$C$57,0),MATCH("Total Yearly Replacement Costs",'Replacement Costs'!$A$16:$H$16,0))) -> -36153597.79 | J107: =IF(AND(C107>=1,C107<anal_period),WorkingCap*SUM(N107:R107)-WorkingCap*SUM(N106:R106),IF(C107<0,0,IF(B107="","",-SUM(J$65:J106)))) -> 114183908.1 | L107: 726011600 | M107: -723071955.9 | N107: -369348860.1 | O107: -238875894.3 | P107: -18607801.98 | Q107: 0 | R107: -149630644 | S107: =IF(B107="","",IF($B$31=0,"",-'Debt Financing Calculations'!E56)) -> -72814649.62 | T107: 446966282.1 | U107: =IF(C107="","",IF(C107<-1,0,IF(C107=anal_period,-LOOKUP(C107,depr_yr,depr_cost)-Depreciation!$C$141-Depreciation!$B$166,-LOOKUP(C107,depr_yr,depr_cost)))) -> -327562825.9 | V107: 119403456.2 | W107: 0.2574 | X107: -30734449.62 | Y107: 416231832.5 | Z107: =IF(C107="","",IF($B$31=0,"",-'Debt Financing Calculations'!F56)) -> -1967963503 | AA107: -1473701361 | AB107: 5526285378 | AC107: -1442966911 | AE107: 216810000 | AF107: 0
B108: =IF(MAX($B$65:B107)<(construct+anal_period),B107+1,"") ->  | I108: =IF(OR(C108<0,C108=""),"",-E108*INDEX('Replacement Costs'!$A$16:$H$57,MATCH(C108,'Replacement Costs'!$C$16:$C$57,0),MATCH("Total Yearly Replacement Costs",'Replacement Costs'!$A$16:$H$16,0))) ->  | J108: =IF(AND(C108>=1,C108<anal_period),WorkingCap*SUM(N108:R108)-WorkingCap*SUM(N107:R107),IF(C108<0,0,IF(B108="","",-SUM(J$65:J107)))) ->  | S108: =IF(B108="","",IF($B$31=0,"",-'Debt Financing Calculations'!E57)) ->  | U108: =IF(C108="","",IF(C108<-1,0,IF(C108=anal_period,-LOOKUP(C108,depr_yr,depr_cost)-Depreciation!$C$141-Depreciation!$B$166,-LOOKUP(C108,depr_yr,depr_cost)))) ->  | Z108: =IF(C108="","",IF($B$31=0,"",-'Debt Financing Calculations'!F57)) -> 
B109: =IF(MAX($B$65:B108)<(construct+anal_period),B108+1,"") ->  | I109: =IF(OR(C109<0,C109=""),"",-E109*INDEX('Replacement Costs'!$A$16:$H$57,MATCH(C109,'Replacement Costs'!$C$16:$C$57,0),MATCH("Total Yearly Replacement Costs",'Replacement Costs'!$A$16:$H$16,0))) ->  | J109: =IF(AND(C109>=1,C109<anal_period),WorkingCap*SUM(N109:R109)-WorkingCap*SUM(N108:R108),IF(C109<0,0,IF(B109="","",-SUM(J$65:J108)))) ->  | S109: =IF(B109="","",IF($B$31=0,"",-'Debt Financing Calculations'!E58)) ->  | U109: =IF(C109="","",IF(C109<-1,0,IF(C109=anal_period,-LOOKUP(C109,depr_yr,depr_cost)-Depreciation!$C$141-Depreciation!$B$166,-LOOKUP(C109,depr_yr,depr_cost)))) ->  | Z109: =IF(C109="","",IF($B$31=0,"",-'Debt Financing Calculations'!F58)) -> 
B110: =IF(MAX($B$65:B109)<(construct+anal_period),B109+1,"") ->  | I110: =IF(OR(C110<0,C110=""),"",-E110*INDEX('Replacement Costs'!$A$16:$H$57,MATCH(C110,'Replacement Costs'!$C$16:$C$57,0),MATCH("Total Yearly Replacement Costs",'Replacement Costs'!$A$16:$H$16,0))) ->  | J110: =IF(AND(C110>=1,C110<anal_period),WorkingCap*SUM(N110:R110)-WorkingCap*SUM(N109:R109),IF(C110<0,0,IF(B110="","",-SUM(J$65:J109)))) ->  | O110: =IF(C110="","",IF(C110<0,0,IF(AND(C110=1,start_time<1),-(SUM(B185:E185)*output_kgyear*E110*percnt_var*start_time+SUM(B185:E185)*output_kgyear*E110*(1-start_time)),IF(C110<=start_time,-SUM(B185:E185)*output_kgyear*E110*percnt_var,-SUM(B185:E185)*output_kgyear*E110)))) ->  | Q110: =IF(C110="","",IF(C110<0,0,IF(AND(C110=1,start_time<1),SUM(K185:N185,T185:V185)*output_kgyear*E110*percnt_revs*start_time+SUM(K185:N185,T185:V185)*output_kgyear*E110*(1-start_time),IF(C110<=start_time,SUM(K185:N185,T185:V185)*output_kgyear*E110*percnt_revs,SUM(K185:N185,T185:V185)*output_kgyear*E110)))) ->  | R110: =IF(C110="","",IF(C110<0,0,IF(AND(C110=1,start_time<1),-((SUM(F185:J185,P185:R185)*output_kgyear+inflated_othervar)*E110*percnt_var*start_time+(SUM(F185:J185,P185:R185)*output_kgyear+inflated_othervar)*E110*(1-start_time)),IF(C110<=start_time,-(SUM(F185:J185,P185:R185)*output_kgyear+inflated_othervar)*E110*percnt_var,-E110*(SUM(F185:J185,P185:R185)*output_kgyear+inflated_othervar))))) ->  | S110: =IF(B110="","",IF($B$31=0,"",-'Debt Financing Calculations'!E59)) ->  | U110: =IF(C110="","",IF(C110<-1,0,IF(C110=anal_period,-LOOKUP(C110,depr_yr,depr_cost)-Depreciation!$C$141-Depreciation!$B$166,-LOOKUP(C110,depr_yr,depr_cost)))) ->  | Z110: =IF(C110="","",IF($B$31=0,"",-'Debt Financing Calculations'!F59)) -> 
B111: =IF(MAX($B$65:B110)<(construct+anal_period),B110+1,"") ->  | I111: =IF(OR(C111<0,C111=""),"",-E111*INDEX('Replacement Costs'!$A$16:$H$57,MATCH(C111,'Replacement Costs'!$C$16:$C$57,0),MATCH("Total Yearly Replacement Costs",'Replacement Costs'!$A$16:$H$16,0))) ->  | J111: =IF(AND(C111>=1,C111<anal_period),WorkingCap*SUM(N111:R111)-WorkingCap*SUM(N110:R110),IF(C111<0,0,IF(B111="","",-SUM(J$65:J110)))) ->  | O111: =IF(C111="","",IF(C111<0,0,IF(AND(C111=1,start_time<1),-(SUM(B278:E278)*output_kgyear*E111*percnt_var*start_time+SUM(B278:E278)*output_kgyear*E111*(1-start_time)),IF(C111<=start_time,-SUM(B278:E278)*output_kgyear*E111*percnt_var,-SUM(B278:E278)*output_kgyear*E111)))) ->  | Q111: =IF(C111="","",IF(C111<0,0,IF(AND(C111=1,start_time<1),SUM(K278:N278,T278:V278)*output_kgyear*E111*percnt_revs*start_time+SUM(K278:N278,T278:V278)*output_kgyear*E111*(1-start_time),IF(C111<=start_time,SUM(K278:N278,T278:V278)*output_kgyear*E111*percnt_revs,SUM(K278:N278,T278:V278)*output_kgyear*E111)))) ->  | R111: =IF(C111="","",IF(C111<0,0,IF(AND(C111=1,start_time<1),-((SUM(F278:J278,P278:R278)*output_kgyear+inflated_othervar)*E111*percnt_var*start_time+(SUM(F278:J278,P278:R278)*output_kgyear+inflated_othervar)*E111*(1-start_time)),IF(C111<=start_time,-(SUM(F278:J278,P278:R278)*output_kgyear+inflated_othervar)*E111*percnt_var,-E111*(SUM(F278:J278,P278:R278)*output_kgyear+inflated_othervar))))) ->  | S111: =IF(B111="","",IF($B$31=0,"",-'Debt Financing Calculations'!E60)) ->  | U111: =IF(C111="","",IF(C111<-1,0,IF(C111=anal_period,-LOOKUP(C111,depr_yr,depr_cost)-Depreciation!$C$141-Depreciation!$B$166,-LOOKUP(C111,depr_yr,depr_cost)))) ->  | Z111: =IF(C111="","",IF($B$31=0,"",-'Debt Financing Calculations'!F60)) -> 
B112: =IF(MAX($B$65:B111)<(construct+anal_period),B111+1,"") ->  | I112: =IF(OR(C112<0,C112=""),"",-E112*INDEX('Replacement Costs'!$A$16:$H$57,MATCH(C112,'Replacement Costs'!$C$16:$C$57,0),MATCH("Total Yearly Replacement Costs",'Replacement Costs'!$A$16:$H$16,0))) ->  | J112: =IF(AND(C112>=1,C112<anal_period),WorkingCap*SUM(N112:R112)-WorkingCap*SUM(N111:R111),IF(C112<0,0,IF(B112="","",-SUM(J$65:J111)))) ->  | O112: =IF(C112="","",IF(C112<0,0,IF(AND(C112=1,start_time<1),-(SUM(B279:E279)*output_kgyear*E112*percnt_var*start_time+SUM(B279:E279)*output_kgyear*E112*(1-start_time)),IF(C112<=start_time,-SUM(B279:E279)*output_kgyear*E112*percnt_var,-SUM(B279:E279)*output_kgyear*E112)))) ->  | Q112: =IF(C112="","",IF(C112<0,0,IF(AND(C112=1,start_time<1),SUM(K279:N279,T279:V279)*output_kgyear*E112*percnt_revs*start_time+SUM(K279:N279,T279:V279)*output_kgyear*E112*(1-start_time),IF(C112<=start_time,SUM(K279:N279,T279:V279)*output_kgyear*E112*percnt_revs,SUM(K279:N279,T279:V279)*output_kgyear*E112)))) ->  | R112: =IF(C112="","",IF(C112<0,0,IF(AND(C112=1,start_time<1),-((SUM(F279:J279,P279:R279)*output_kgyear+inflated_othervar)*E112*percnt_var*start_time+(SUM(F279:J279,P279:R279)*output_kgyear+inflated_othervar)*E112*(1-start_time)),IF(C112<=start_time,-(SUM(F279:J279,P279:R279)*output_kgyear+inflated_othervar)*E112*percnt_var,-E112*(SUM(F279:J279,P279:R279)*output_kgyear+inflated_othervar))))) ->  | S112: =IF(B112="","",IF($B$31=0,"",-'Debt Financing Calculations'!E61)) ->  | U112: =IF(C112="","",IF(C112<-1,0,IF(C112=anal_period,-LOOKUP(C112,depr_yr,depr_cost)-Depreciation!$C$141-Depreciation!$B$166,-LOOKUP(C112,depr_yr,depr_cost)))) ->  | Z112: =IF(C112="","",IF($B$31=0,"",-'Debt Financing Calculations'!F61)) -> 
B113: =IF(MAX($B$65:B112)<(construct+anal_period),B112+1,"") ->  | I113: =IF(OR(C113<0,C113=""),"",-E113*INDEX('Replacement Costs'!$A$16:$H$57,MATCH(C113,'Replacement Costs'!$C$16:$C$57,0),MATCH("Total Yearly Replacement Costs",'Replacement Costs'!$A$16:$H$16,0))) ->  | J113: =IF(AND(C113>=1,C113<anal_period),WorkingCap*SUM(N113:R113)-WorkingCap*SUM(N112:R112),IF(C113<0,0,IF(B113="","",-SUM(J$65:J112)))) ->  | O113: =IF(C113="","",IF(C113<0,0,IF(AND(C113=1,start_time<1),-(SUM(B280:E280)*output_kgyear*E113*percnt_var*start_time+SUM(B280:E280)*output_kgyear*E113*(1-start_time)),IF(C113<=start_time,-SUM(B280:E280)*output_kgyear*E113*percnt_var,-SUM(B280:E280)*output_kgyear*E113)))) ->  | Q113: =IF(C113="","",IF(C113<0,0,IF(AND(C113=1,start_time<1),SUM(K280:N280,T280:V280)*output_kgyear*E113*percnt_revs*start_time+SUM(K280:N280,T280:V280)*output_kgyear*E113*(1-start_time),IF(C113<=start_time,SUM(K280:N280,T280:V280)*output_kgyear*E113*percnt_revs,SUM(K280:N280,T280:V280)*output_kgyear*E113)))) ->  | R113: =IF(C113="","",IF(C113<0,0,IF(AND(C113=1,start_time<1),-((SUM(F280:J280,P280:R280)*output_kgyear+inflated_othervar)*E113*percnt_var*start_time+(SUM(F280:J280,P280:R280)*output_kgyear+inflated_othervar)*E113*(1-start_time)),IF(C113<=start_time,-(SUM(F280:J280,P280:R280)*output_kgyear+inflated_othervar)*E113*percnt_var,-E113*(SUM(F280:J280,P280:R280)*output_kgyear+inflated_othervar))))) ->  | S113: =IF(B113="","",IF($B$31=0,"",-'Debt Financing Calculations'!E62)) ->  | U113: =IF(C113="","",IF(C113<-1,0,IF(C113=anal_period,-LOOKUP(C113,depr_yr,depr_cost)-Depreciation!$C$141-Depreciation!$B$166,-LOOKUP(C113,depr_yr,depr_cost)))) ->  | Z113: =IF(C113="","",IF($B$31=0,"",-'Debt Financing Calculations'!F62)) -> 
E114: Cumulative Total | F114: =SUM(F65:F113) -> 3.669159518e+10 | G114: -1967963503 | H114: -1311975669 | I114: -1025692856 | J114: 0 | K114: -13334570.19 | L114: 726011600 | M114: -723071955.9 | N114: -1.047858333e+10 | O114: -6546530750 | P114: -527911210.3 | Q114: 0 | R114: -4245084639 | S114: -3131029934 | T114: 1.176539495e+10 | U114: -4305632029 | V114: 7459762925 | W114: 11.0682 | X114: -1920142977 | Y114: 9845251976 | Z114: -1967963503 | AA114: 5526285378 | AB114: 9.775316215e+10 | AC114: 7446428354
E115: PV of Cash Flow | F115: =NPV(nominal_irr,F65:F113) -> 5449841999 | G115: -1788212394 | H115: -1192141596 | I115: -152347260.5 | J115: -43817893.22 | K115: -12116608.69 | L115: 11809517.7 | M115: -11761700.59 | N115: -1556395225 | O115: -945497304.9 | P115: -78411218.48 | Q115: 0 | R115: -630526976.1 | S115: -712596748.6 | T115: 1526462343 | U115: -1161165090 | V115: 365297252.9 | W115: 2.519031596 | X115: -94027512.89 | Y115: 1432434830 | Z115: -32011471.76 | AA115: 3.25639631e-06 | AB115: -894271581.9 | AC115: 94027512.89
E116: Discounted Values | F116: =+F65+NPV($X$59,F66:F113) -> 5997660117 | G116: -1967963503 | H116: =+H65+NPV($X$59,H66:H113) -> -1311975669 | I116: -167661207.1 | J116: -48222467.84 | K116: -13334570.19 | L116: 12996610.42 | M116: -12943986.73 | N116: -1712844074 | O116: -1040538694 | P116: -86293114.16 | Q116: 0 | R116: -693907547.7 | S116: -784226973.8 | T116: 1679902337 | U116: -1277885405 | V116: 402016932.8 | W116: 2.772244653 | X116: -103479158.5 | Y116: 1576423179 | Z116: -35229264.91 | AA116: 3.814697266e-06 | AB116: -984163761.3 | AC116: 103479158.5 | AE116: =+AE65+NPV(real_irr,AE66:AE113) -> 2216542710 | AF116: =+AF65+NPV($X$59,AF66:AF113) -> 0
A117: Specific Item Cost Calculation | E117: Expenses $/kg H2 | H117: =-H116/$AE$116*(1+inflation_rate)^construct/INFLATION_FACTOR -> 0.6381847365 | I117: =-I116/$AE$116*(1+inflation_rate)^construct/INFLATION_FACTOR -> 0.0815554936 | J117: =-J116/$AE$116*(1+inflation_rate)^construct/INFLATION_FACTOR -> 0.02345687017 | K117: =-K116/$AE$116*(1+inflation_rate)^construct/INFLATION_FACTOR -> 0.006486339164 | M117: =-M116/$AE$116*(1+inflation_rate)^construct/INFLATION_FACTOR -> 0.006296347531 | N117: =-N116/$AE$116*(1+inflation_rate)^construct/INFLATION_FACTOR -> 0.8331792805 | O117: =-O116/$AE$116*(1+inflation_rate)^construct/INFLATION_FACTOR -> 0.5061495636 | P117: =-P116/$AE$116*(1+inflation_rate)^construct/INFLATION_FACTOR -> 0.04197558661 | R117: =-R116/$AE$116*(1+inflation_rate)^construct/INFLATION_FACTOR -> 0.3375376663 | S117: =-S116/$AE$116*(1+inflation_rate)^construct/INFLATION_FACTOR -> 0.3814717731 | X117: =-X116/$AE$116*(1+inflation_rate)^construct/INFLATION_FACTOR -> 0.05033539955 | Z117: =-Z116/$AE$116*(1+inflation_rate)^construct/INFLATION_FACTOR -> 0.01713658239 | AG117: =+SUM(F117:AC117) -> 2.923765639
A118: Cost Component | B118: After Tax Present Value | C118: % of Total | D118: $/kg of H2 | E118: Revenues $/kg H2 | F118: =F116/$AE$116*(1+inflation_rate)^construct/INFLATION_FACTOR -> 2.917443694 | L118: =L116/$AE$116*(1+inflation_rate)^construct/INFLATION_FACTOR -> 0.006321945289 | Q118: =Q116/$AE$116*(1+inflation_rate)^construct/INFLATION_FACTOR -> 0 | AG118: =+SUM(F118:AC118) -> 2.923765639
A119: Capital-Related Costs | B119: =(SUM(H115:K115)+L115*(1-total_tax_rate)+S115*(1-total_tax_rate)+U115*(-total_tax_rate)+Z115)/(1-total_tax_rate) -> -2227249574 | C119: =B119/SUM($B$118:$B$125) -> 0.4086814946 | D119: =H2_price_real*C119 -> 1.192305249
A120: Decommissioning Costs | B120: =M115 -> -11761700.59 | C120: 0.002158172768 | D120: 0.006296347531
A121: Fixed O&M | B121: =N115 -> -1556395225 | C121: 0.285585385 | D121: 0.8331792805
A122: Feedstock Costs | B122: =O115 -> -945497304.9 | C122: 0.1734907737 | D122: 0.5061495636
A123: Other Raw Material Costs | B123: =P115 -> -78411218.48 | C123: 0.01438779665 | D123: 0.04197558661
A124: Byproduct Credits | B124: =Q115 -> 0 | C124: 0 | D124: 0
A125: Other Variable Costs (including utilities) | B125: =R115 -> -630526976.1 | C125: 0.1156963773 | D125: 0.3375376663
A128: INFLATION FACTOR (1 + inflation rate)^(startup year - reference year) = | B128: =(1+inflation_rate)^(startup_year-ref_year) -> 0.9813542689
A129: Feedstock, Utility and Byproduct Cost Information (Start-Up Year $)
B130: Energy Feedstocks | F130: Energy Utilities | J130: Carbon Sequestration Electricity Usage | K130: Energy Byproducts | O130: Other Material Inputs | S130: Other Material Byproducts
A131: Feedstock Name | B131: =Input_Sheet_Template!$B$75 -> Electric Utility Steam Coal | C131: =Input_Sheet_Template!$B$77 -> Industrial Electricity | J131: =IF(CO2_CashFlow_eUse>0,'HyARC Physical Property Data'!A77,"") ->  | O131: Type | P131: =Input_Sheet_Template!$B$137 -> Process Water | S131: Type
A132: LHV (GJ or mmBtu/usage unit) | B132: =Input_Sheet_Template!$C$75 -> 0.02273503452 | C132: =Input_Sheet_Template!$C$77 -> 0.0036 | J132: =IF(J131="",0,VLOOKUP(J131,MASTER_PROPERTY_TABLE,9,FALSE)) -> 0 | O132: Usage (/kg H2) | P132: =Input_Sheet_Template!$D$137 -> 7.937454545 | S132: Usage (/kg H2)
A133: Usage (/kg H2) | B133: =feedstockElectric_Utility_Steam_Coal_Usage -> 8.726732856 | C133: =feedstockIndustrial_Electricity_Usage -> 1.044 | J133: 0 | O133: Cost (/usage unit) | P133: =Input_Sheet_Template!$C$137 -> 0.002374951095 | S133: Price (/usage unit)
A134: Price ($/ usage unit) | B134: =feedstockElectric_Utility_Steam_Coal_Price -> 0.04756253033 | C134: =feedstockIndustrial_Electricity_Price -> 0.06998061126 | O134: Lookup Price? | P134: =Input_Sheet_Template!$F$137 -> Yes | S134: Lookup Price?
A135: Lookup Price? | B135: =Input_Sheet_Template!$G$75 -> yes | C135: =Input_Sheet_Template!$G$77 -> yes | J135: =IF(J131="","","yes") -> 
A136: CO2 Emissions (kg CO2/kg H2) | B136: =IF(B131="",0,VLOOKUP(B131,MASTER_PROPERTY_TABLE,11,FALSE)*B132*B133) -> 20.38643445 | C136: =IF(C131="",0,VLOOKUP(C131,MASTER_PROPERTY_TABLE,11,FALSE)*C132*C133) -> 0 | D136: =IF(D131="",0,VLOOKUP(D131,MASTER_PROPERTY_TABLE,11,FALSE)*D132*D133) -> 0 | E136: =IF(E131="",0,VLOOKUP(E131,MASTER_PROPERTY_TABLE,11,FALSE)*E132*E133) -> 0 | F136: =IF(F131="",,VLOOKUP(F131,MASTER_PROPERTY_TABLE,11,FALSE)*F132*F133) -> 0 | G136: =IF(G131="",,VLOOKUP(G131,MASTER_PROPERTY_TABLE,11,FALSE)*G132*G133) -> 0 | H136: =IF(H131="",,VLOOKUP(H131,MASTER_PROPERTY_TABLE,11,FALSE)*H132*H133) -> 0 | I136: =IF(I131="",,VLOOKUP(I131,MASTER_PROPERTY_TABLE,11,FALSE)*I132*I133) -> 0 | J136: =IF($J$131="",0,VLOOKUP($J$131,MASTER_PROPERTY_TABLE,12,FALSE)*$J$132*$J$133) -> 0
A137: Unit System Conversion Factor | B137: =IF(B131="",0,IF(VLOOKUP(B131,MASTER_PROPERTY_TABLE,12,FALSE)="English",mmBTU_to_GJ,1)) -> 1 | C137: =IF(C131="",0,IF(VLOOKUP(C131,MASTER_PROPERTY_TABLE,12,FALSE)="English",mmBTU_to_GJ,1)) -> 1 | D137: =IF(D131="",0,IF(VLOOKUP(D131,MASTER_PROPERTY_TABLE,12,FALSE)="English",mmBTU_to_GJ,1)) -> 0 | E137: =IF(E131="",,IF(VLOOKUP(E131,MASTER_PROPERTY_TABLE,12,FALSE)="English",mmBTU_to_GJ,1)) -> 0 | F137: =IF(F131="",,IF(VLOOKUP(F131,MASTER_PROPERTY_TABLE,12,FALSE)="English",mmBTU_to_GJ,1)) -> 0 | G137: =IF(G131="",,IF(VLOOKUP(G131,MASTER_PROPERTY_TABLE,12,FALSE)="English",mmBTU_to_GJ,1)) -> 0 | H137: =IF(H131="",,IF(VLOOKUP(H131,MASTER_PROPERTY_TABLE,12,FALSE)="English",mmBTU_to_GJ,1)) -> 0 | I137: =IF(I131="",,IF(VLOOKUP(I131,MASTER_PROPERTY_TABLE,12,FALSE)="English",mmBTU_to_GJ,1)) -> 0 | J137: =IF($J$131="",0,IF(VLOOKUP($J$131,MASTER_PROPERTY_TABLE,12,FALSE)="English",mmBTU_to_GJ,1)) -> 0 | K137: =IF(K131="",,IF(VLOOKUP(K131,MASTER_PROPERTY_TABLE,12,FALSE)="English",mmBTU_to_GJ,1)) -> 0 | L137: =IF(L131="",,IF(VLOOKUP(L131,MASTER_PROPERTY_TABLE,12,FALSE)="English",mmBTU_to_GJ,1)) -> 0 | M137: =IF(M131="",,IF(VLOOKUP(M131,MASTER_PROPERTY_TABLE,12,FALSE)="English",mmBTU_to_GJ,1)) -> 0 | N137: =IF(N131="",,IF(VLOOKUP(N131,MASTER_PROPERTY_TABLE,12,FALSE)="English",mmBTU_to_GJ,1)) -> 0
A138: Actual Year | B138: =IF(B$131="","",B$131&" ($/kg of H2)") -> Electric Utility Steam Coal ($/kg of H2) | C138: Industrial Electricity ($/kg of H2) | P138: =IF(P$131="","",P$131&" ($/kg of H2)") -> Process Water ($/kg of H2) | Q138: =IF(Q$131="","",Q$131&" ($/kg of H2)") ->  | R138: =IF(R$131="","",R$131&" ($/kg of H2)") ->  | T138: =IF(T$131="","",T$131&" ($/kg of H2)") ->  | U138: =IF(U$131="","",U$131&" ($/kg of H2)") ->  | V138: =IF(V$131="","",V$131&" ($/kg of H2)") -> 
A139: =IF(A65="","",A65) -> 2012 | B139: =IF($A139="","",IF($B$131="","",IF($B$135="no",INFLATION_FACTOR*$B$133*$B$134,INFLATION_FACTOR*$B$133*$B$132*INDEX(FEEDPRICETABLE,MATCH($B$131,List_Energy_Feedstocks,0),MATCH($A139,Feedstock_Year,0))))) -> 0.4575899973 | C139: =IF($A139="","",IF($C$131="","",IF($C$135="no",INFLATION_FACTOR*$C$133*$C$134,INFLATION_FACTOR*$C$133*$C$132*INDEX(FEEDPRICETABLE,MATCH($C$131,List_Energy_Feedstocks,0),MATCH($A139,Feedstock_Year,0))))) -> 0.07236267176 | D139: =IF($A139="","",IF($D$131="","",IF($D$135="no",INFLATION_FACTOR*$D$133*$D$134,INFLATION_FACTOR*$D$133*$D$132*INDEX(FEEDPRICETABLE,MATCH($D$131,List_Energy_Feedstocks,0),MATCH($A139,Feedstock_Year,0))))) ->  | E139: =IF($A139="","",IF($E$131="","",IF($E$135="no",INFLATION_FACTOR*$E$133*$E$134,INFLATION_FACTOR*$E$133*$E$132*INDEX(FEEDPRICETABLE,MATCH($E$131,List_Energy_Feedstocks,0),MATCH($A139,Feedstock_Year,0))))) ->  | F139: =IF($A139="","",IF($F$131="","",IF($F$135="no",INFLATION_FACTOR*$F$133*$F$134,INFLATION_FACTOR*$F$133*$F$132*INDEX(FEEDPRICETABLE,MATCH($F$131,List_Energy_Feedstocks,0),MATCH($A139,Feedstock_Year,0))))) ->  | G139: =IF($A139="","",IF($G$131="","",IF($G$135="no",INFLATION_FACTOR*$G$133*$G$134,INFLATION_FACTOR*$G$133*$G$132*INDEX(FEEDPRICETABLE,MATCH($G$131,List_Energy_Feedstocks,0),MATCH($A139,Feedstock_Year,0))))) ->  | H139: =IF($A139="","",IF($H$131="","",IF($H$135="no",INFLATION_FACTOR*$H$133*$H$134,INFLATION_FACTOR*$H$133*$H$132*INDEX(FEEDPRICETABLE,MATCH(H$131,List_Energy_Feedstocks,0),MATCH($A139,Feedstock_Year,0))))) ->  | I139: =IF($A139="","",IF($I$131="","",IF($I$135="no",INFLATION_FACTOR*$I$133*$I$134,INFLATION_FACTOR*$I$133*$I$132*INDEX(FEEDPRICETABLE,MATCH($I$131,List_Energy_Feedstocks,0),MATCH($A139,Feedstock_Year,0))))) ->  | J139: =IF($A139="","",IF($J$131="","",IF($J$135="no",INFLATION_FACTOR*$J$133*$J$134,INFLATION_FACTOR*$J$133*$J$132*INDEX(FEEDPRICETABLE,MATCH($J$131,List_Energy_Feedstocks,0),MATCH($A139,Feedstock_Year,0))))) ->  | K139: =IF($A139="","",IF($K$131="","",IF($K$135="no",INFLATION_FACTOR*$K$133*$K$134,INFLATION_FACTOR*$K$133*$K$132*INDEX(FEEDPRICETABLE,MATCH($K$131,List_Energy_Feedstocks,0),MATCH($A139,Feedstock_Year,0))))) ->  | L139: =IF($A139="","",IF($L$131="","",IF($L$135="no",INFLATION_FACTOR*$L$133*$L$134,INFLATION_FACTOR*$L$133*$L$132*INDEX(FEEDPRICETABLE,MATCH($L$131,List_Energy_Feedstocks,0),MATCH($A139,Feedstock_Year,0))))) ->  | M139: =IF($A139="","",IF(M$131="","",IF($M$135="no",INFLATION_FACTOR*$M$133*$M$134,INFLATION_FACTOR*$M$133*$M$132*INDEX(FEEDPRICETABLE,MATCH($M$131,List_Energy_Feedstocks,0),MATCH($A139,Feedstock_Year,0))))) ->  | N139: =IF($A139="","",IF($N$131="","",IF($N$135="no",INFLATION_FACTOR*$N$133*$N$134,INFLATION_FACTOR*$N$133*$N$132*INDEX(FEEDPRICETABLE,MATCH($N$131,List_Energy_Feedstocks,0),MATCH($A139,Feedstock_Year,0))))) ->  | P139: =IF(OR($A139="",$P$131=""),"",IF($P$134="No",INFLATION_FACTOR*$P$132*$P$133,INFLATION_FACTOR*$P$132*INDEX(Tbl_Other_Inputs_and_Byproducts,MATCH($P$131,Other_Inputs_List,0),MATCH($A139,Other_Inputs_years,0)))) -> 0.01849957445 | Q139: =IF(OR($A139="",$Q$131=""),"",IF($Q$134="No",INFLATION_FACTOR*$Q$132*$Q$133,INFLATION_FACTOR*$Q$132*INDEX(Tbl_Other_Inputs_and_Byproducts,MATCH($Q$131,Other_Inputs_List,0),MATCH($A139,Other_Inputs_years,0)))) ->  | R139: =IF(OR($A139="",$R$131=""),"",IF($R$134="No",INFLATION_FACTOR*$R$132*$R$133,INFLATION_FACTOR*$R$132*INDEX(Tbl_Other_Inputs_and_Byproducts,MATCH($R$131,Other_Inputs_List,0),MATCH($A139,Other_Inputs_years,0)))) ->  | T139: =IF(OR($A139="",$T$131=""),"",IF($T$134="No",INFLATION_FACTOR*$T$132*$T$133,INFLATION_FACTOR*$T$132*INDEX(Tbl_Other_Inputs_and_Byproducts,MATCH($T$131,Other_Inputs_List,0),MATCH($A139,Other_Inputs_years,0)))) ->  | U139: =IF(OR($A139="",$U$131=""),"",IF($U$134="No",INFLATION_FACTOR*$U$132*$U$133,INFLATION_FACTOR*$U$132*INDEX(Tbl_Other_Inputs_and_Byproducts,MATCH($U$131,Other_Inputs_List,0),MATCH($A139,Other_Inputs_years,0)))) ->  | V139: =IF(OR($A139="",$V$131=""),"",IF($V$134="No",INFLATION_FACTOR*$V$132*$V$133,INFLATION_FACTOR*$V$132*INDEX(Tbl_Other_Inputs_and_Byproducts,MATCH($V$131,Other_Inputs_List,0),MATCH($A139,Other_Inputs_years,0)))) -> 
A140: 2013 | B140: =IF($A140="","",IF($B$131="","",IF($B$135="no",INFLATION_FACTOR*$B$133*$B$134,INFLATION_FACTOR*$B$133*$B$132*INDEX(FEEDPRICETABLE,MATCH($B$131,List_Energy_Feedstocks,0),MATCH($A140,Feedstock_Year,0))))) -> 0.4429474188 | C140: 0.07356293629 | F140: =IF($A140="","",IF($F$131="","",IF($F$135="no",INFLATION_FACTOR*$F$133*$F$134,INFLATION_FACTOR*$F$133*$F$132*INDEX(FEEDPRICETABLE,MATCH($F$131,List_Energy_Feedstocks,0),MATCH($A140,Feedstock_Year,0))))) ->  | P140: =IF(OR($A140="",$P$131=""),"",IF($P$134="No",INFLATION_FACTOR*$P$132*$P$133,INFLATION_FACTOR*$P$132*INDEX(Tbl_Other_Inputs_and_Byproducts,MATCH($P$131,Other_Inputs_List,0),MATCH($A140,Other_Inputs_years,0)))) -> 0.01849957445 | Q140: =IF(OR($A140="",$Q$131=""),"",IF($Q$134="No",INFLATION_FACTOR*$Q$132*$Q$133,INFLATION_FACTOR*$Q$132*INDEX(Tbl_Other_Inputs_and_Byproducts,MATCH($Q$131,Other_Inputs_List,0),MATCH($A140,Other_Inputs_years,0)))) -> 
A141: 2014 | B141: 0.4414274829 | C141: 0.07446974299 | P141: 0.01849957445
A142: 2015 | B142: 0.4073262965 | C142: 0.07169750555 | P142: 0.01849957445
A143: 2016 | B143: 0.3836955328 | C143: 0.06925846932 | P143: 0.01849957445
A144: 2017 | B144: 0.4025684 | C144: 0.07206056574 | P144: 0.01849957445
A145: 2018 | B145: 0.4116567742 | C145: 0.07042735862 | P145: 0.01849957445
A146: 2019 | B146: 0.4200520049 | C146: 0.07133539275 | P146: 0.01849957445
A147: 2020 | B147: 0.4264071126 | C147: 0.07266262174 | P147: 0.01849957445
A148: 2021 | B148: 0.4269821486 | C148: 0.07306282363 | P148: 0.01849957445
A149: 2022 | B149: 0.4289049023 | C149: 0.07542112333 | P149: 0.01849957445
A150: 2023 | B150: 0.4301155044 | C150: 0.07566016285 | P150: 0.01849957445
A151: 2024 | B151: 0.4301577648 | C151: 0.07546071038 | P151: 0.01849957445
A152: 2025 | B152: 0.4299030954 | C152: 0.07727263955 | P152: 0.01849957445
A153: 2026 | B153: 0.429622221 | C153: 0.0780573749 | P153: 0.01849957445
A154: 2027 | B154: 0.4282604781 | C154: 0.07850712004 | P154: 0.01849957445
A155: 2028 | B155: 0.4264683809 | C155: 0.07901722109 | P155: 0.01849957445
A156: 2029 | B156: 0.4243623761 | C156: 0.0794179893 | P156: 0.01849957445
A157: 2030 | B157: 0.4239019412 | C157: 0.07969641661 | P157: 0.01849957445
A158: 2031 | B158: 0.4240307523 | C158: 0.07979738037 | P158: 0.01849957445
A159: 2032 | B159: 0.4246380833 | C159: 0.07961532328 | P159: 0.01849957445
A160: 2033 | B160: 0.4256563917 | C160: 0.07933074677 | P160: 0.01849957445
A161: 2034 | B161: 0.4278292011 | C161: 0.07910018819 | P161: 0.01849957445
A162: 2035 | B162: 0.4287474871 | C162: 0.07937988799 | P162: 0.01849957445
A163: 2036 | B163: 0.4318110856 | C163: 0.07966850571 | P163: 0.01849957445
A164: 2037 | B164: 0.4323695128 | C164: 0.07960826864 | P164: 0.01849957445
A165: 2038 | B165: 0.433981496 | C165: 0.07962595067 | P165: 0.01849957445
A166: 2039 | B166: 0.4351834246 | C166: 0.07968757559 | P166: 0.01849957445
A167: 2040 | B167: 0.4377227365 | C167: 0.07950072918 | P167: 0.01849957445
A168: 2041 | B168: 0.4379395745 | C168: 0.07926692296 | P168: 0.01849957445
A169: 2042 | B169: 0.4380220652 | C169: 0.07935886043 | P169: 0.01849957445
A170: 2043 | B170: 0.4389440421 | C170: 0.07960104621 | P170: 0.01849957445
A171: 2044 | B171: 0.4388648732 | C171: 0.07990097301 | P171: 0.01849957445
A172: 2045 | B172: 0.4389848261 | C172: 0.08019284887 | P172: 0.01849957445
A173: 2046 | B173: 0.437892516 | C173: 0.08048960144 | P173: 0.01849957445
A174: 2047 | B174: 0.4386950936 | C174: 0.08075589813 | P174: 0.01849957445
A175: 2048 | B175: 0.4388774221 | C175: 0.08105544389 | P175: 0.01849957445
A176: 2049 | B176: 0.4399651186 | C176: 0.0813149691 | P176: 0.01849957445
A177: 2050 | B177: 0.4404275834 | C177: 0.08156657272 | P177: 0.01849957445
A178: 2051 | B178: 0.4420485507 | C178: 0.08164054996 | P178: 0.01849957445
A179: 2052 | B179: 0.4436754839 | C179: 0.0817145943 | P179: 0.01849957445
A180: 2053 | B180: 0.445308405 | C180: 0.08178870579 | P180: 0.01849957445
A181: 2054 | B181: 0.4469473359 | C181: 0.0818628845 | P181: 0.01849957445
A184: Tables to calculate equivalent price in startup year
A185: Actual Year | B185: =IF(B$131="","",B$131&" ($/year)") -> Electric Utility Steam Coal ($/year) | C185: =IF(C$131="","",C$131&" ($/year)") -> Industrial Electricity ($/year)
A186: =+A139 -> 2012 | B186: =IF($C65="","",IF($C65<0,0,IF(AND($C65=1,start_time<1),-(SUM(B139)*output_kgyear*$E65*percnt_var*start_time+SUM(B139)*output_kgyear*$E65*(1-start_time)),IF($C65<=start_time,-SUM(B139)*output_kgyear*$E65*percnt_var,-SUM(B139)*output_kgyear*$E65)))) -> 0 | C186: =IF($C65="","",IF($C65<0,0,IF(AND($C65=1,start_time<1),-(SUM(C139)*output_kgyear*$E65*percnt_var*start_time+SUM(C139)*output_kgyear*$E65*(1-start_time)),IF($C65<=start_time,-SUM(C139)*output_kgyear*$E65*percnt_var,-SUM(C139)*output_kgyear*$E65)))) -> 0 | D186: 0 | E186: 0 | F186: 0 | G186: 0 | H186: 0 | I186: 0 | J186: 0 | K186: 0 | L186: 0 | M186: 0 | N186: 0
A187: =+A140 -> 2013 | B187: =IF($C66="","",IF($C66<0,0,IF(AND($C66=1,start_time<1),-(SUM(B140)*output_kgyear*$E66*percnt_var*start_time+SUM(B140)*output_kgyear*$E66*(1-start_time)),IF($C66<=start_time,-SUM(B140)*output_kgyear*$E66*percnt_var,-SUM(B140)*output_kgyear*$E66)))) -> 0 | C187: 0 | D187: 0 | E187: 0 | F187: 0 | G187: 0 | H187: 0 | I187: 0 | J187: 0 | K187: 0 | L187: 0 | M187: 0 | N187: 0
A188: 2014 | B188: =IF($C67="","",IF($C67<0,0,IF(AND($C67=1,start_time<1),-(SUM(B141)*output_kgyear*$E67*percnt_var*start_time+SUM(B141)*output_kgyear*$E67*(1-start_time)),IF($C67<=start_time,-SUM(B141)*output_kgyear*$E67*percnt_var,-SUM(B141)*output_kgyear*$E67)))) -> 0 | C188: 0 | D188: 0 | E188: 0 | F188: 0 | G188: 0 | H188: 0 | I188: 0 | J188: 0 | K188: 0 | L188: 0 | M188: 0 | N188: 0
A189: 2015 | B189: =IF($C68="","",IF($C68<0,0,IF(AND($C68=1,start_time<1),-(SUM(B142)*output_kgyear*$E68*percnt_var*start_time+SUM(B142)*output_kgyear*$E68*(1-start_time)),IF($C68<=start_time,-SUM(B142)*output_kgyear*$E68*percnt_var,-SUM(B142)*output_kgyear*$E68)))) -> -88312414.35 | C189: -15544736.18 | D189: 0 | E189: 0 | F189: =IF($C68="","",IF($C68<0,0,IF(AND($C68=1,start_time<1),-(SUM(F142)*output_kgyear*$E68*percnt_var*start_time+SUM(F142)*output_kgyear*$E68*(1-start_time)),IF($C68<=start_time,-SUM(F142)*output_kgyear*$E68*percnt_var,-SUM(F142)*output_kgyear*$E68)))) -> 0 | G189: 0 | H189: 0 | I189: 0 | J189: 0 | K189: 0 | L189: 0 | M189: 0 | N189: 0
A190: 2016 | B190: =IF($C69="","",IF($C69<0,0,IF(AND($C69=1,start_time<1),-(SUM(B143)*output_kgyear*$E69*percnt_var*start_time+SUM(B143)*output_kgyear*$E69*(1-start_time)),IF($C69<=start_time,-SUM(B143)*output_kgyear*$E69*percnt_var,-SUM(B143)*output_kgyear*$E69)))) -> -84769620 | C190: -15301231.38 | D190: 0 | E190: 0 | F190: 0 | G190: 0 | H190: 0 | I190: 0 | J190: 0 | K190: 0 | L190: 0 | M190: 0 | N190: 0
A191: 2017 | B191: =IF($C70="","",IF($C70<0,0,IF(AND($C70=1,start_time<1),-(SUM(B144)*output_kgyear*$E70*percnt_var*start_time+SUM(B144)*output_kgyear*$E70*(1-start_time)),IF($C70<=start_time,-SUM(B144)*output_kgyear*$E70*percnt_var,-SUM(B144)*output_kgyear*$E70)))) -> -90629035.68 | C191: -16222782.47 | D191: 0 | E191: 0 | F191: 0 | G191: 0 | H191: 0 | I191: 0 | J191: 0 | K191: 0 | L191: 0 | M191: 0 | N191: 0
A192: 2018 | B192: =IF($C71="","",IF($C71<0,0,IF(AND($C71=1,start_time<1),-(SUM(B145)*output_kgyear*$E71*percnt_var*start_time+SUM(B145)*output_kgyear*$E71*(1-start_time)),IF($C71<=start_time,-SUM(B145)*output_kgyear*$E71*percnt_var,-SUM(B145)*output_kgyear*$E71)))) -> -94435900.96 | C192: -16156350.34 | D192: 0 | E192: 0 | F192: 0 | G192: 0 | H192: 0 | I192: 0 | J192: 0 | K192: 0 | L192: 0 | M192: 0 | N192: 0
A193: 2019 | B193: =IF($C72="","",IF($C72<0,0,IF(AND($C72=1,start_time<1),-(SUM(B146)*output_kgyear*$E72*percnt_var*start_time+SUM(B146)*output_kgyear*$E72*(1-start_time)),IF($C72<=start_time,-SUM(B146)*output_kgyear*$E72*percnt_var,-SUM(B146)*output_kgyear*$E72)))) -> -98192678.62 | C193: -16675585.91 | D193: 0 | E193: 0 | F193: 0 | G193: 0 | H193: 0 | I193: 0 | J193: 0 | K193: 0 | L193: 0 | M193: 0 | N193: 0
A194: 2020 | B194: =IF($C73="","",IF($C73<0,0,IF(AND($C73=1,start_time<1),-(SUM(B147)*output_kgyear*$E73*percnt_var*start_time+SUM(B147)*output_kgyear*$E73*(1-start_time)),IF($C73<=start_time,-SUM(B147)*output_kgyear*$E73*percnt_var,-SUM(B147)*output_kgyear*$E73)))) -> -101572155.7 | C194: -17308574.16 | D194: 0 | E194: 0 | F194: 0 | G194: 0 | H194: 0 | I194: 0 | J194: 0 | K194: 0 | L194: 0 | M194: 0 | N194: 0
A195: 2021 | B195: =IF($C74="","",IF($C74<0,0,IF(AND($C74=1,start_time<1),-(SUM(B148)*output_kgyear*$E74*percnt_var*start_time+SUM(B148)*output_kgyear*$E74*(1-start_time)),IF($C74<=start_time,-SUM(B148)*output_kgyear*$E74*percnt_var,-SUM(B148)*output_kgyear*$E74)))) -> -103641605.5 | C195: -17734578.28 | D195: 0 | E195: 0 | F195: 0 | G195: 0 | H195: 0 | I195: 0 | J195: 0 | K195: 0 | L195: 0 | M195: 0 | N195: 0
A196: 2022 | B196: =IF($C75="","",IF($C75<0,0,IF(AND($C75=1,start_time<1),-(SUM(B149)*output_kgyear*$E75*percnt_var*start_time+SUM(B149)*output_kgyear*$E75*(1-start_time)),IF($C75<=start_time,-SUM(B149)*output_kgyear*$E75*percnt_var,-SUM(B149)*output_kgyear*$E75)))) -> -106086374.5 | C196: -18654842.81 | D196: 0 | E196: 0 | F196: 0 | G196: 0 | H196: 0 | I196: 0 | J196: 0 | K196: 0 | L196: 0 | M196: 0 | N196: 0
A197: 2023 | B197: =IF($C76="","",IF($C76<0,0,IF(AND($C76=1,start_time<1),-(SUM(B150)*output_kgyear*$E76*percnt_var*start_time+SUM(B150)*output_kgyear*$E76*(1-start_time)),IF($C76<=start_time,-SUM(B150)*output_kgyear*$E76*percnt_var,-SUM(B150)*output_kgyear*$E76)))) -> -108407138.1 | C197: -19069532.81 | D197: 0 | E197: 0 | F197: 0 | G197: 0 | H197: 0 | I197: 0 | J197: 0 | K197: 0 | L197: 0 | M197: 0 | N197: 0
A198: 2024 | B198: =IF($C77="","",IF($C77<0,0,IF(AND($C77=1,start_time<1),-(SUM(B151)*output_kgyear*$E77*percnt_var*start_time+SUM(B151)*output_kgyear*$E77*(1-start_time)),IF($C77<=start_time,-SUM(B151)*output_kgyear*$E77*percnt_var,-SUM(B151)*output_kgyear*$E77)))) -> -110477727.5 | C198: -19380628.41 | D198: 0 | E198: 0 | F198: 0 | G198: 0 | H198: 0 | I198: 0 | J198: 0 | K198: 0 | L198: 0 | M198: 0 | N198: 0
A199: 2025 | B199: =IF($C78="","",IF($C78<0,0,IF(AND($C78=1,start_time<1),-(SUM(B152)*output_kgyear*$E78*percnt_var*start_time+SUM(B152)*output_kgyear*$E78*(1-start_time)),IF($C78<=start_time,-SUM(B152)*output_kgyear*$E78*percnt_var,-SUM(B152)*output_kgyear*$E78)))) -> -112510154.7 | C199: -20223061.24 | D199: 0 | E199: 0 | F199: 0 | G199: 0 | H199: 0 | I199: 0 | J199: 0 | K199: 0 | L199: 0 | M199: 0 | N199: 0
A200: 2026 | B200: =IF($C79="","",IF($C79<0,0,IF(AND($C79=1,start_time<1),-(SUM(B153)*output_kgyear*$E79*percnt_var*start_time+SUM(B153)*output_kgyear*$E79*(1-start_time)),IF($C79<=start_time,-SUM(B153)*output_kgyear*$E79*percnt_var,-SUM(B153)*output_kgyear*$E79)))) -> -114572943.2 | C200: -20816574.98 | D200: 0 | E200: 0 | F200: 0 | G200: 0 | H200: 0 | I200: 0 | J200: 0 | K200: 0 | L200: 0 | M200: 0 | N200: 0
A201: 2027 | B201: =IF($C80="","",IF($C80<0,0,IF(AND($C80=1,start_time<1),-(SUM(B154)*output_kgyear*$E80*percnt_var*start_time+SUM(B154)*output_kgyear*$E80*(1-start_time)),IF($C80<=start_time,-SUM(B154)*output_kgyear*$E80*percnt_var,-SUM(B154)*output_kgyear*$E80)))) -> -116379775.5 | C201: -21334308.14 | D201: 0 | E201: 0 | F201: 0 | G201: 0 | H201: 0 | I201: 0 | J201: 0 | K201: 0 | L201: 0 | M201: 0 | N201: 0
A202: 2028 | B202: =IF($C81="","",IF($C81<0,0,IF(AND($C81=1,start_time<1),-(SUM(B155)*output_kgyear*$E81*percnt_var*start_time+SUM(B155)*output_kgyear*$E81*(1-start_time)),IF($C81<=start_time,-SUM(B155)*output_kgyear*$E81*percnt_var,-SUM(B155)*output_kgyear*$E81)))) -> -118094735.8 | C202: -21880913.72 | D202: 0 | E202: 0 | F202: 0 | G202: 0 | H202: 0 | I202: 0 | J202: 0 | K202: 0 | L202: 0 | M202: 0 | N202: 0
A203: 2029 | B203: =IF($C82="","",IF($C82<0,0,IF(AND($C82=1,start_time<1),-(SUM(B156)*output_kgyear*$E82*percnt_var*start_time+SUM(B156)*output_kgyear*$E82*(1-start_time)),IF($C82<=start_time,-SUM(B156)*output_kgyear*$E82*percnt_var,-SUM(B156)*output_kgyear*$E82)))) -> -119744274.7 | C203: -22409737.68 | D203: 0 | E203: 0 | F203: 0 | G203: 0 | H203: 0 | I203: 0 | J203: 0 | K203: 0 | L203: 0 | M203: 0 | N203: 0
A204: 2030 | B204: =IF($C83="","",IF($C83<0,0,IF(AND($C83=1,start_time<1),-(SUM(B157)*output_kgyear*$E83*percnt_var*start_time+SUM(B157)*output_kgyear*$E83*(1-start_time)),IF($C83<=start_time,-SUM(B157)*output_kgyear*$E83*percnt_var,-SUM(B157)*output_kgyear*$E83)))) -> -121887024.4 | C204: -22915580.54 | D204: 0 | E204: 0 | F204: 0 | G204: 0 | H204: 0 | I204: 0 | J204: 0 | K204: 0 | L204: 0 | M204: 0 | N204: 0
A205: 2031 | B205: =IF($C84="","",IF($C84<0,0,IF(AND($C84=1,start_time<1),-(SUM(B158)*output_kgyear*$E84*percnt_var*start_time+SUM(B158)*output_kgyear*$E84*(1-start_time)),IF($C84<=start_time,-SUM(B158)*output_kgyear*$E84*percnt_var,-SUM(B158)*output_kgyear*$E84)))) -> -124240619.4 | C205: -23380558.86 | D205: 0 | E205: 0 | F205: 0 | G205: 0 | H205: 0 | I205: 0 | J205: 0 | K205: 0 | L205: 0 | M205: 0 | N205: 0
A206: 2032 | B206: =IF($C85="","",IF($C85<0,0,IF(AND($C85=1,start_time<1),-(SUM(B159)*output_kgyear*$E85*percnt_var*start_time+SUM(B159)*output_kgyear*$E85*(1-start_time)),IF($C85<=start_time,-SUM(B159)*output_kgyear*$E85*percnt_var,-SUM(B159)*output_kgyear*$E85)))) -> -126782519.6 | C206: -23770433.41 | D206: 0 | E206: 0 | F206: 0 | G206: 0 | H206: 0 | I206: 0 | J206: 0 | K206: 0 | L206: 0 | M206: 0 | N206: 0
A207: 2033 | B207: =IF($C86="","",IF($C86<0,0,IF(AND($C86=1,start_time<1),-(SUM(B160)*output_kgyear*$E86*percnt_var*start_time+SUM(B160)*output_kgyear*$E86*(1-start_time)),IF($C86<=start_time,-SUM(B160)*output_kgyear*$E86*percnt_var,-SUM(B160)*output_kgyear*$E86)))) -> -129501196.4 | C207: -24135492.43 | D207: 0 | E207: 0 | F207: 0 | G207: 0 | H207: 0 | I207: 0 | J207: 0 | K207: 0 | L207: 0 | M207: 0 | N207: 0
A208: 2034 | B208: =IF($C87="","",IF($C87<0,0,IF(AND($C87=1,start_time<1),-(SUM(B161)*output_kgyear*$E87*percnt_var*start_time+SUM(B161)*output_kgyear*$E87*(1-start_time)),IF($C87<=start_time,-SUM(B161)*output_kgyear*$E87*percnt_var,-SUM(B161)*output_kgyear*$E87)))) -> -132635332.1 | C208: -24522589.17 | D208: 0 | E208: 0 | F208: 0 | G208: 0 | H208: 0 | I208: 0 | J208: 0 | K208: 0 | L208: 0 | M208: 0 | N208: 0
A209: 2035 | B209: =IF($C88="","",IF($C88<0,0,IF(AND($C88=1,start_time<1),-(SUM(B162)*output_kgyear*$E88*percnt_var*start_time+SUM(B162)*output_kgyear*$E88*(1-start_time)),IF($C88<=start_time,-SUM(B162)*output_kgyear*$E88*percnt_var,-SUM(B162)*output_kgyear*$E88)))) -> -135445498.9 | C209: -25076878.24 | D209: 0 | E209: 0 | F209: 0 | G209: 0 | H209: 0 | I209: 0 | J209: 0 | K209: 0 | L209: 0 | M209: 0 | N209: 0
A210: 2036 | B210: =IF($C89="","",IF($C89<0,0,IF(AND($C89=1,start_time<1),-(SUM(B163)*output_kgyear*$E89*percnt_var*start_time+SUM(B163)*output_kgyear*$E89*(1-start_time)),IF($C89<=start_time,-SUM(B163)*output_kgyear*$E89*percnt_var,-SUM(B163)*output_kgyear*$E89)))) -> -139005172.5 | C210: -25646248.44 | D210: 0 | E210: 0 | F210: 0 | G210: 0 | H210: 0 | I210: 0 | J210: 0 | K210: 0 | L210: 0 | M210: 0 | N210: 0
A211: 2037 | B211: =IF($C90="","",IF($C90<0,0,IF(AND($C90=1,start_time<1),-(SUM(B164)*output_kgyear*$E90*percnt_var*start_time+SUM(B164)*output_kgyear*$E90*(1-start_time)),IF($C90<=start_time,-SUM(B164)*output_kgyear*$E90*percnt_var,-SUM(B164)*output_kgyear*$E90)))) -> -141829450.7 | C211: -26113767.7 | D211: 0 | E211: 0 | F211: 0 | G211: 0 | H211: 0 | I211: 0 | J211: 0 | K211: 0 | L211: 0 | M211: 0 | N211: 0
A212: 2038 | B212: =IF($C91="","",IF($C91<0,0,IF(AND($C91=1,start_time<1),-(SUM(B165)*output_kgyear*$E91*percnt_var*start_time+SUM(B165)*output_kgyear*$E91*(1-start_time)),IF($C91<=start_time,-SUM(B165)*output_kgyear*$E91*percnt_var,-SUM(B165)*output_kgyear*$E91)))) -> -145063033.2 | C212: -26615839.69 | D212: 0 | E212: 0 | F212: 0 | G212: 0 | H212: 0 | I212: 0 | J212: 0 | K212: 0 | L212: 0 | M212: 0 | N212: 0
A213: 2039 | B213: =IF($C92="","",IF($C92<0,0,IF(AND($C92=1,start_time<1),-(SUM(B166)*output_kgyear*$E92*percnt_var*start_time+SUM(B166)*output_kgyear*$E92*(1-start_time)),IF($C92<=start_time,-SUM(B166)*output_kgyear*$E92*percnt_var,-SUM(B166)*output_kgyear*$E92)))) -> -148228621.9 | C213: -27142530.82 | D213: 0 | E213: 0 | F213: 0 | G213: 0 | H213: 0 | I213: 0 | J213: 0 | K213: 0 | L213: 0 | M213: 0 | N213: 0
A214: 2040 | B214: =IF($C93="","",IF($C93<0,0,IF(AND($C93=1,start_time<1),-(SUM(B167)*output_kgyear*$E93*percnt_var*start_time+SUM(B167)*output_kgyear*$E93*(1-start_time)),IF($C93<=start_time,-SUM(B167)*output_kgyear*$E93*percnt_var,-SUM(B167)*output_kgyear*$E93)))) -> -151926318.9 | C214: -27593387.61 | D214: 0 | E214: 0 | F214: 0 | G214: 0 | H214: 0 | I214: 0 | J214: 0 | K214: 0 | L214: 0 | M214: 0 | N214: 0
A215: 2041 | B215: =IF($C94="","",IF($C94<0,0,IF(AND($C94=1,start_time<1),-(SUM(B168)*output_kgyear*$E94*percnt_var*start_time+SUM(B168)*output_kgyear*$E94*(1-start_time)),IF($C94<=start_time,-SUM(B168)*output_kgyear*$E94*percnt_var,-SUM(B168)*output_kgyear*$E94)))) -> -154889609.8 | C215: -28034969.85 | D215: 0 | E215: 0 | F215: 0 | G215: 0 | H215: 0 | I215: 0 | J215: 0 | K215: 0 | L215: 0 | M215: 0 | N215: 0
A216: 2042 | B216: =IF($C95="","",IF($C95<0,0,IF(AND($C95=1,start_time<1),-(SUM(B169)*output_kgyear*$E95*percnt_var*start_time+SUM(B169)*output_kgyear*$E95*(1-start_time)),IF($C95<=start_time,-SUM(B169)*output_kgyear*$E95*percnt_var,-SUM(B169)*output_kgyear*$E95)))) -> -157862241.9 | C216: -28600768.35 | D216: 0 | E216: 0 | F216: 0 | G216: 0 | H216: 0 | I216: 0 | J216: 0 | K216: 0 | L216: 0 | M216: 0 | N216: 0
A217: 2043 | B217: =IF($C96="","",IF($C96<0,0,IF(AND($C96=1,start_time<1),-(SUM(B170)*output_kgyear*$E96*percnt_var*start_time+SUM(B170)*output_kgyear*$E96*(1-start_time)),IF($C96<=start_time,-SUM(B170)*output_kgyear*$E96*percnt_var,-SUM(B170)*output_kgyear*$E96)))) -> -161200216.3 | C217: -29233124.58 | D217: 0 | E217: 0 | F217: 0 | G217: 0 | H217: 0 | I217: 0 | J217: 0 | K217: 0 | L217: 0 | M217: 0 | N217: 0
A218: 2044 | B218: =IF($C97="","",IF($C97<0,0,IF(AND($C97=1,start_time<1),-(SUM(B171)*output_kgyear*$E97*percnt_var*start_time+SUM(B171)*output_kgyear*$E97*(1-start_time)),IF($C97<=start_time,-SUM(B171)*output_kgyear*$E97*percnt_var,-SUM(B171)*output_kgyear*$E97)))) -> -164233393.6 | C218: -29900793.5 | D218: 0 | E218: 0 | F218: 0 | G218: 0 | H218: 0 | I218: 0 | J218: 0 | K218: 0 | L218: 0 | M218: 0 | N218: 0
A219: 2045 | B219: =IF($C98="","",IF($C98<0,0,IF(AND($C98=1,start_time<1),-(SUM(B172)*output_kgyear*$E98*percnt_var*start_time+SUM(B172)*output_kgyear*$E98*(1-start_time)),IF($C98<=start_time,-SUM(B172)*output_kgyear*$E98*percnt_var,-SUM(B172)*output_kgyear*$E98)))) -> -167399570.1 | C219: -30580210.59 | D219: 0 | E219: 0 | F219: 0 | G219: 0 | H219: 0 | I219: 0 | J219: 0 | K219: 0 | L219: 0 | M219: 0 | N219: 0
... 17 more rows

Sheet Energy Feed & Utility Prices
BW3: Further extrapolated to allow 2040 comission year using GCAM
A4: AEO_2009_Reference_Case | B4: ="Prices are in $(" & ref_year&")/GJ LHV" -> Prices are in $(2016)/GJ LHV | AH4: Except as noted,values are extrapolated based on PNNL mini-CAM model (see AEO Data tab)
A5: Year | B5: Source Data Year | C5: Reference year Conversion | D5: Display Units | E5: Use Category | F5: LHV (MJ/kg) | G5: HHV (MJ/kg) | H5: 2004 | I5: 2005 | J5: 2006 | K5: 2007 | L5: 2008 | M5: 2009 | N5: 2010 | O5: 2011 | P5: 2012 | Q5: 2013 | R5: 2014 | S5: 2015 | T5: 2016 | U5: 2017 | V5: 2018 | W5: 2019 | X5: 2020 | Y5: 2021 | Z5: 2022 | AA5: 2023 | AB5: 2024 | AC5: 2025 | AD5: 2026 | AE5: 2027 | AF5: 2028 | AG5: 2029 | AH5: 2030 | AI5: 2031 | AJ5: 2032 | AK5: 2033 | AL5: 2034 | AM5: 2035 | AN5: 2036 | AO5: 2037 | AP5: 2038 | AQ5: 2039 | AR5: 2040 | AS5: 2041 | AT5: 2042 | AU5: 2043 | AV5: 2044 | AW5: 2045 | AX5: 2046 | AY5: 2047 | AZ5: 2048 | BA5: 2049 | BB5: 2050 | BC5: 2051 | BD5: 2052 | BE5: 2053 | BF5: 2054 | BG5: 2055 | BH5: 2056 | BI5: 2057 | BJ5: 2058 | BK5: 2059 | BL5: 2060 | BM5: 2061 | BN5: 2062 | BO5: 2063 | BP5: 2064 | BQ5: 2065 | BR5: 2066 | BS5: 2067 | BT5: 2068 | BU5: 2069 | BV5: 2070 | BW5: =+BV5+1 -> 2071 | BX5: =+BW5+1 -> 2072 | BY5: =+BX5+1 -> 2073 | BZ5: =+BY5+1 -> 2074 | CA5: =+BZ5+1 -> 2075 | CB5: =+CA5+1 -> 2076 | CC5: =+CB5+1 -> 2077 | CD5: =+CC5+1 -> 2078 | CE5: =+CD5+1 -> 2079 | CF5: =+CE5+1 -> 2080 | CG5: =+CF5+1 -> 2081 | CH5: =+CG5+1 -> 2082 | CI5: =+CH5+1 -> 2083 | CJ5: =+CI5+1 -> 2084 | CK5: =+CJ5+1 -> 2085 | CL5: =+CK5+1 -> 2086 | CM5: =+CL5+1 -> 2087 | CN5: =+CM5+1 -> 2088 | CO5: =+CN5+1 -> 2089 | CP5: =+CO5+1 -> 2090 | CQ5: =+CP5+1 -> 2091 | CR5: =+CQ5+1 -> 2092 | CS5: =+CR5+1 -> 2093 | CT5: =+CS5+1 -> 2094 | CU5: =+CT5+1 -> 2095 | CV5: =+CU5+1 -> 2096 | CW5: =+CV5+1 -> 2097 | CX5: =+CW5+1 -> 2098 | CY5: =+CX5+1 -> 2099 | CZ5: =+CY5+1 -> 2100
A6: Feedstock Type
A7: ='HyARC Physical Property Data'!A73 -> Residential Natural Gas | B7: 2007 | C7: =VLOOKUP(ref_year,DeflatorTable,2,FALSE)/VLOOKUP(B7,DeflatorTable,2,FALSE) -> 1.141397159 | D7: ='HyARC Physical Property Data'!H73 -> mmBtu | E7: Feed Utility | F7: ='HyARC Physical Property Data'!$E$6 -> 47.14126905 | G7: ='HyARC Physical Property Data'!$I$6 -> 52.22466124 | H7: =((13.7000589370728/(mmBTU_to_GJ))*($C$7))*($G$7/$F$7) -> 16.42030142 | I7: =((13.7000589370728/(mmBTU_to_GJ))*($C$7))*($G$7/$F$7) -> 16.42030142 | J7: =((13.7000589370728/(mmBTU_to_GJ))*($C$7))*($G$7/$F$7) -> 16.42030142 | K7: =((12.6911582946777/(mmBTU_to_GJ))*($C$7))*($G$7/$F$7) -> 15.2110765 | L7: =((12.9778490066528/(mmBTU_to_GJ))*($C$7))*($G$7/$F$7) -> 15.55469166 | M7: =((10.7176141738892/(mmBTU_to_GJ))*($C$7))*($G$7/$F$7) -> 12.8456714 | N7: =((11.192774772644/(mmBTU_to_GJ))*($C$7))*($G$7/$F$7) -> 13.41517845 | O7: =((11.4872808456421/(mmBTU_to_GJ))*($C$7))*($G$7/$F$7) -> 13.76816077 | P7: =((11.3991556167603/(mmBTU_to_GJ))*($C$7))*($G$7/$F$7) -> 13.66253766 | Q7: =((11.3077983856201/(mmBTU_to_GJ))*($C$7))*($G$7/$F$7) -> 13.55304081 | R7: =((11.2896461486816/(mmBTU_to_GJ))*($C$7))*($G$7/$F$7) -> 13.53128432 | S7: =((11.3454151153564/(mmBTU_to_GJ))*($C$7))*($G$7/$F$7) -> 13.5981266 | T7: =((11.5382986068726/(mmBTU_to_GJ))*($C$7))*($G$7/$F$7) -> 13.82930846 | U7: =((11.7583208084106/(mmBTU_to_GJ))*($C$7))*($G$7/$F$7) -> 14.09301761 | V7: =((11.9751005172729/(mmBTU_to_GJ))*($C$7))*($G$7/$F$7) -> 14.35284044 | W7: =((12.23952293396/(mmBTU_to_GJ))*($C$7))*($G$7/$F$7) -> 14.66976578 | X7: =((12.557071685791/(mmBTU_to_GJ))*($C$7))*($G$7/$F$7) -> 15.05036606 | Y7: =((12.7957820892334/(mmBTU_to_GJ))*($C$7))*($G$7/$F$7) -> 15.33647408 | Z7: =((12.8716516494751/(mmBTU_to_GJ))*($C$7))*($G$7/$F$7) -> 15.42740807 | AA7: =((12.6602811813354/(mmBTU_to_GJ))*($C$7))*($G$7/$F$7) -> 15.17406852 | AB7: =((12.6240320205688/(mmBTU_to_GJ))*($C$7))*($G$7/$F$7) -> 15.13062183 | AC7: =((12.5992183685303/(mmBTU_to_GJ))*($C$7))*($G$7/$F$7) -> 15.10088126 | AD7: =((12.7868556976318/(mmBTU_to_GJ))*($C$7))*($G$7/$F$7) -> 15.32577529 | AE7: =((13.07555103302/(mmBTU_to_GJ))*($C$7))*($G$7/$F$7) -> 15.6717931 | AF7: =((13.407883644104/(mmBTU_to_GJ))*($C$7))*($G$7/$F$7) -> 16.07011268 | AG7: =((13.6725673675537/(mmBTU_to_GJ))*($C$7))*($G$7/$F$7) -> 16.3873512 | AH7: =((13.9620389938354/(mmBTU_to_GJ))*($C$7))*($G$7/$F$7) -> 16.73429945 | AI7: =($BB7-$AH7)/20+AH7 -> 16.87636443 | AJ7: =($BB7-$AH7)/20+AI7 -> 17.01842941 | AK7: 17.16049439 | AL7: 17.30255937 | AM7: 17.44462435 | AN7: 17.58668933 | AO7: 17.72875431 | AP7: 17.87081929 | AQ7: 18.01288427 | AR7: 18.15494925 | AS7: 18.29701423 | AT7: 18.43907921 | AU7: 18.58114419 | AV7: 18.72320917 | AW7: 18.86527415 | AX7: 19.00733913 | AY7: 19.14940411 | AZ7: =($BB7-$AH7)/20+AY7 -> 19.29146909 | BA7: 19.43353407 | BB7: =1.16978897829057*AH7 -> 19.57559905 | BC7: =($BQ7-$BB7)/15+BB7 -> 19.7694318 | BD7: =($BQ7-$BB7)/15+BC7 -> 19.96326456 | BE7: 20.15709731 | BF7: 20.35093006 | BG7: 20.54476281 | BH7: 20.73859556 | BI7: 20.93242832 | BJ7: 21.12626107 | BK7: 21.32009382 | BL7: 21.51392657 | BM7: 21.70775932 | BN7: 21.90159208 | BO7: 22.09542483 | BP7: 22.28925758 | BQ7: =1.14852629914794*BB7 -> 22.48309033 | BR7: =($BV7-$BQ7)/5+BQ7 -> 22.70571235 | BS7: =($BV7-$BQ7)/5+BR7 -> 22.92833436 | BT7: =($BV7-$BQ7)/5+BS7 -> 23.15095637 | BU7: =($BV7-$BQ7)/5+BT7 -> 23.37357839 | BV7: =1.04950876638265*BQ7 -> 23.5962004 | BW7: =+BV7*BW$133/BV$133 -> 23.67454672 | BX7: =+BW7*BX$133/BW$133 -> 23.75315318 | BY7: 23.83202063 | BZ7: 23.91114995 | CA7: 23.990542 | CB7: 24.04173609 | CC7: 24.09303943 | CD7: 24.14445225 | CE7: 24.19597478 | CF7: 24.24760725 | CG7: 24.26437199 | CH7: 24.28114832 | CI7: 24.29793624 | CJ7: 24.31473578 | CK7: 24.33154693 | CL7: 24.33724516 | CM7: 24.34294473 | CN7: 24.34864563 | CO7: 24.35434787 | CP7: 24.36005144 | CQ7: 24.36869575 | CR7: 24.37734313 | CS7: 24.38599358 | CT7: 24.3946471 | CU7: 24.40330369 | CV7: 24.41662622 | CW7: 24.42995602 | CX7: 24.4432931 | CY7: 24.45663745 | CZ7: 24.4699891
A8: ='HyARC Physical Property Data'!A71 -> Commercial Natural Gas | B8: 2007 | C8: =VLOOKUP(ref_year,DeflatorTable,2,FALSE)/VLOOKUP(B8,DeflatorTable,2,FALSE) -> 1.141397159 | D8: ='HyARC Physical Property Data'!H71 -> mmBtu | E8: Feed Utility | F8: ='HyARC Physical Property Data'!$E$6 -> 47.14126905 | G8: ='HyARC Physical Property Data'!$I$6 -> 52.22466124 | H8: =((11.8960943222046/(mmBTU_to_GJ))*($C$8))*($G$8/$F$8) -> 14.25814702 | I8: =((11.8960943222046/(mmBTU_to_GJ))*($C$8))*($G$8/$F$8) -> 14.25814702 | J8: =((11.8960943222046/(mmBTU_to_GJ))*($C$8))*($G$8/$F$8) -> 14.25814702 | K8: =((10.9898433685303/(mmBTU_to_GJ))*($C$8))*($G$8/$F$8) -> 13.1719536 | L8: =((11.3387994766235/(mmBTU_to_GJ))*($C$8))*($G$8/$F$8) -> 13.59019738 | M8: =((8.90759468078613/(mmBTU_to_GJ))*($C$8))*($G$8/$F$8) -> 10.67625988 | N8: =((9.46560573577881/(mmBTU_to_GJ))*($C$8))*($G$8/$F$8) -> 11.34506793 | O8: =((9.74632167816162/(mmBTU_to_GJ))*($C$8))*($G$8/$F$8) -> 11.68152198 | P8: =((9.72109222412109/(mmBTU_to_GJ))*($C$8))*($G$8/$F$8) -> 11.65128305 | Q8: =((9.67193412780762/(mmBTU_to_GJ))*($C$8))*($G$8/$F$8) -> 11.59236427 | R8: =((9.71388721466064/(mmBTU_to_GJ))*($C$8))*($G$8/$F$8) -> 11.64264743 | S8: =((9.83065605163574/(mmBTU_to_GJ))*($C$8))*($G$8/$F$8) -> 11.78260154 | T8: =((10.0382099151611/(mmBTU_to_GJ))*($C$8))*($G$8/$F$8) -> 12.03136667 | U8: =((10.2545003890991/(mmBTU_to_GJ))*($C$8))*($G$8/$F$8) -> 12.29060313 | V8: =((10.476261138916/(mmBTU_to_GJ))*($C$8))*($G$8/$F$8) -> 12.55639603 | W8: =((10.746561050415/(mmBTU_to_GJ))*($C$8))*($G$8/$F$8) -> 12.88036588 | X8: =((11.0803880691528/(mmBTU_to_GJ))*($C$8))*($G$8/$F$8) -> 13.28047658 | Y8: =((11.3143692016602/(mmBTU_to_GJ))*($C$8))*($G$8/$F$8) -> 13.56091631 | Z8: =((11.4017143249512/(mmBTU_to_GJ))*($C$8))*($G$8/$F$8) -> 13.66560441 | AA8: =((11.2125005722046/(mmBTU_to_GJ))*($C$8))*($G$8/$F$8) -> 13.43882095 | AB8: =((11.1975994110107/(mmBTU_to_GJ))*($C$8))*($G$8/$F$8) -> 13.42096106 | AC8: =((11.159740447998/(mmBTU_to_GJ))*($C$8))*($G$8/$F$8) -> 13.37558493 | AD8: =((11.3503875732422/(mmBTU_to_GJ))*($C$8))*($G$8/$F$8) -> 13.60408638 | AE8: =((11.6409521102905/(mmBTU_to_GJ))*($C$8))*($G$8/$F$8) -> 13.95234453 | AF8: =((11.9785671234131/(mmBTU_to_GJ))*($C$8))*($G$8/$F$8) -> 14.35699537 | AG8: =((12.2332496643066/(mmBTU_to_GJ))*($C$8))*($G$8/$F$8) -> 14.66224691 | AH8: =((12.5188312530518/(mmBTU_to_GJ))*($C$8))*($G$8/$F$8) -> 15.00453272 | AI8: =($BB8-$AH8)/20+AH8 -> 15.13191293 | AJ8: 15.25929315 | AK8: 15.38667336 | AL8: 15.51405357 | AM8: 15.64143379 | AN8: 15.768814 | AO8: 15.89619422 | AP8: 16.02357443 | AQ8: 16.15095464 | AR8: 16.27833486 | AS8: 16.40571507 | AT8: 16.53309529 | AU8: 16.6604755 | AV8: 16.78785571 | AW8: 16.91523593 | AX8: 17.04261614 | AY8: 17.16999636 | AZ8: 17.29737657 | BA8: 17.42475678 | BB8: =1.16978897829057*AH8 -> 17.552137 | BC8: =($BQ8-$BB8)/15+BB8 -> 17.72593393 | BD8: 17.89973086 | BE8: 18.07352779 | BF8: 18.24732472 | BG8: 18.42112165 | BH8: 18.59491858 | BI8: 18.76871551 | BJ8: 18.94251244 | BK8: 19.11630937 | BL8: 19.2901063 | BM8: 19.46390323 | BN8: 19.63770016 | BO8: 19.81149709 | BP8: 19.98529402 | BQ8: =1.14852629914794*BB8 -> 20.15909095 | BR8: =($BV8-$BQ8)/5+BQ8 -> 20.35870129 | BS8: 20.55831164 | BT8: 20.75792198 | BU8: 20.95753233 | BV8: =1.04950876638265*BQ8 -> 21.15714267 | BW8: =+BV8*BW$134/BV$134 -> 21.22739061 | BX8: =+BW8*BX$134/BW$134 -> 21.29787179 | BY8: 21.36858698 | BZ8: 21.43953698 | CA8: 21.51072254 | CB8: 21.55662488 | CC8: 21.60262517 | CD8: 21.64872362 | CE8: 21.69492045 | CF8: 21.74121585 | CG8: 21.75624767 | CH8: 21.77128989 | CI8: 21.78634251 | CJ8: 21.80140553 | CK8: 21.81647897 | CL8: 21.8215882 | CM8: 21.82669862 | CN8: 21.83181024 | CO8: 21.83692306 | CP8: 21.84203707 | CQ8: 21.84978785 | CR8: 21.85754138 | CS8: 21.86529766 | CT8: 21.8730567 | CU8: 21.88081849 | CV8: 21.89276391 | CW8: 21.90471585 | CX8: 21.91667432 | CY8: 21.92863932 | CZ8: 21.94061085
A9: ='HyARC Physical Property Data'!A72 -> Industrial Natural Gas | B9: 2007 | C9: =VLOOKUP(ref_year,DeflatorTable,2,FALSE)/VLOOKUP(B9,DeflatorTable,2,FALSE) -> 1.141397159 | D9: ='HyARC Physical Property Data'!H72 -> mmBtu | E9: Feed Utility | F9: ='HyARC Physical Property Data'!$E$6 -> 47.14126905 | G9: ='HyARC Physical Property Data'!$I$6 -> 52.22466124 | H9: =((7.95407009124756/(mmBTU_to_GJ))*($C$9))*($G$9/$F$9) -> 9.533406316 | I9: =((7.95407009124756/(mmBTU_to_GJ))*($C$9))*($G$9/$F$9) -> 9.533406316 | J9: =((7.95407009124756/(mmBTU_to_GJ))*($C$9))*($G$9/$F$9) -> 9.533406316 | K9: =((7.51525163650513/(mmBTU_to_GJ))*($C$9))*($G$9/$F$9) -> 9.007457389 | L9: =((8.80127239227294/(mmBTU_to_GJ))*($C$9))*($G$9/$F$9) -> 10.54882656 | M9: =((4.84856796264648/(mmBTU_to_GJ))*($C$9))*($G$9/$F$9) -> 5.811285028 | N9: =((5.49891996383666/(mmBTU_to_GJ))*($C$9))*($G$9/$F$9) -> 6.590768966 | O9: =((5.82616424560547/(mmBTU_to_GJ))*($C$9))*($G$9/$F$9) -> 6.982989888 | P9: =((5.87778615951538/(mmBTU_to_GJ))*($C$9))*($G$9/$F$9) -> 7.044861694 | Q9: =((5.95383930206299/(mmBTU_to_GJ))*($C$9))*($G$9/$F$9) -> 7.136015719 | R9: =((6.10985708236694/(mmBTU_to_GJ))*($C$9))*($G$9/$F$9) -> 7.323011921 | S9: =((6.32948446273804/(mmBTU_to_GJ))*($C$9))*($G$9/$F$9) -> 7.586247853 | T9: =((6.51258134841919/(mmBTU_to_GJ))*($C$9))*($G$9/$F$9) -> 7.805699905 | U9: =((6.70273017883301/(mmBTU_to_GJ))*($C$9))*($G$9/$F$9) -> 8.033604115 | V9: =((6.89887094497681/(mmBTU_to_GJ))*($C$9))*($G$9/$F$9) -> 8.268690002 | W9: =((7.15282821655273/(mmBTU_to_GJ))*($C$9))*($G$9/$F$9) -> 8.573072265 | X9: =((7.46860218048096/(mmBTU_to_GJ))*($C$9))*($G$9/$F$9) -> 8.951545357 | Y9: =((7.67867755889893/(mmBTU_to_GJ))*($C$9))*($G$9/$F$9) -> 9.203332671 | Z9: =((7.75380706787109/(mmBTU_to_GJ))*($C$9))*($G$9/$F$9) -> 9.293379669 | AA9: =((7.55847835540771/(mmBTU_to_GJ))*($C$9))*($G$9/$F$9) -> 9.059267075 | AB9: =((7.54617786407471/(mmBTU_to_GJ))*($C$9))*($G$9/$F$9) -> 9.044524235 | AC9: =((7.45927095413208/(mmBTU_to_GJ))*($C$9))*($G$9/$F$9) -> 8.940361351 | AD9: =((7.60022306442261/(mmBTU_to_GJ))*($C$9))*($G$9/$F$9) -> 9.109300488 | AE9: =((7.85960483551025/(mmBTU_to_GJ))*($C$9))*($G$9/$F$9) -> 9.420184323 | AF9: =((8.19417572021484/(mmBTU_to_GJ))*($C$9))*($G$9/$F$9) -> 9.821186596 | AG9: =((8.42161273956299/(mmBTU_to_GJ))*($C$9))*($G$9/$F$9) -> 10.09378283 | AH9: =((8.69355010986328/(mmBTU_to_GJ))*($C$9))*($G$9/$F$9) -> 10.41971526 | AI9: =($BB9-$AH9)/20+AH9 -> 10.5081729 | AJ9: 10.59663054 | AK9: 10.68508818 | AL9: 10.77354582 | AM9: 10.86200346 | AN9: 10.9504611 | AO9: 11.03891874 | AP9: 11.12737638 | AQ9: 11.21583403 | AR9: 11.30429167 | AS9: 11.39274931 | AT9: 11.48120695 | AU9: 11.56966459 | AV9: 11.65812223 | AW9: 11.74657987 | AX9: 11.83503751 | AY9: 11.92349515 | AZ9: 12.01195279 | BA9: 12.10041043 | BB9: =1.16978897829057*AH9 -> 12.18886807 | BC9: 12.30955923 | BD9: 12.4302504 | BE9: 12.55094156 | BF9: 12.67163273 | BG9: 12.79232389 | BH9: 12.91301506 | BI9: 13.03370622 | BJ9: 13.15439738 | BK9: 13.27508855 | BL9: 13.39577971 | BM9: 13.51647088 | BN9: 13.63716204 | BO9: 13.75785321 | BP9: 13.87854437 | BQ9: =1.14852629914794*BB9 -> 13.99923554 | BR9: 14.13785251 | BS9: 14.27646949 | BT9: 14.41508646 | BU9: 14.55370344 | BV9: =1.04950876638265*BQ9 -> 14.69232042 | BW9: =+BV9*BW$135/BV$135 -> 14.74110324 | BX9: =+BW9*BX$135/BW$135 -> 14.79004804 | BY9: 14.83915535 | BZ9: 14.88842571 | CA9: 14.93785966 | CB9: 14.96973598 | CC9: 15.00168032 | CD9: 15.03369283 | CE9: 15.06577365 | CF9: 15.09792293 | CG9: 15.1083616 | CH9: 15.11880748 | CI9: 15.12926059 | CJ9: 15.13972092 | CK9: 15.15018849 | CL9: 15.15373653 | CM9: 15.1572854 | CN9: 15.1608351 | CO9: 15.16438564 | CP9: 15.167937 | CQ9: 15.17331944 | CR9: 15.17870378 | CS9: 15.18409004 | CT9: 15.1894782 | CU9: 15.19486828 | CV9: 15.20316364 | CW9: 15.21146352 | CX9: 15.21976793 | CY9: 15.22807688 | CZ9: 15.23639037
A10: ='HyARC Physical Property Data'!A74 -> Electric Utility Natural Gas | B10: 2007 | C10: 1.141397159 | D10: ='HyARC Physical Property Data'!H74 -> mmBtu | E10: Feed Utility | F10: ='HyARC Physical Property Data'!$E$6 -> 47.14126905 | G10: ='HyARC Physical Property Data'!$I$6 -> 52.22466124 | H10: =((7.05463790893555/(mmBTU_to_GJ))*($C$10))*($G$10/$F$10) -> 8.455385585 | I10: =((7.05463790893555/(mmBTU_to_GJ))*($C$10))*($G$10/$F$10) -> 8.455385585 | J10: =((7.05463790893555/(mmBTU_to_GJ))*($C$10))*($G$10/$F$10) -> 8.455385585 | K10: =((7.01915979385375/(mmBTU_to_GJ))*($C$10))*($G$10/$F$10) -> 8.412863043 | L10: =((8.87161254882813/(mmBTU_to_GJ))*($C$10))*($G$10/$F$10) -> 10.63313324 | M10: =((4.55562210083008/(mmBTU_to_GJ))*($C$10))*($G$10/$F$10) -> 5.460172718 | N10: =((5.12931346893311/(mmBTU_to_GJ))*($C$10))*($G$10/$F$10) -> 6.147774518 | O10: =((5.45354604721069/(mmBTU_to_GJ))*($C$10))*($G$10/$F$10) -> 6.536385741 | P10: =((5.51876354217529/(mmBTU_to_GJ))*($C$10))*($G$10/$F$10) -> 6.614552626 | Q10: =((5.53977298736572/(mmBTU_to_GJ))*($C$10))*($G$10/$F$10) -> 6.639733643 | R10: =((5.68350362777709/(mmBTU_to_GJ))*($C$10))*($G$10/$F$10) -> 6.812003007 | S10: =((5.8920464515686/(mmBTU_to_GJ))*($C$10))*($G$10/$F$10) -> 7.061953466 | T10: =((6.08193254470825/(mmBTU_to_GJ))*($C$10))*($G$10/$F$10) -> 7.289542771 | U10: =((6.26939964294434/(mmBTU_to_GJ))*($C$10))*($G$10/$F$10) -> 7.514232772 | V10: =((6.47751331329346/(mmBTU_to_GJ))*($C$10))*($G$10/$F$10) -> 7.763668867 | W10: =((6.73541975021362/(mmBTU_to_GJ))*($C$10))*($G$10/$F$10) -> 8.07278443 | X10: =((7.02784395217896/(mmBTU_to_GJ))*($C$10))*($G$10/$F$10) -> 8.423271501 | Y10: =((7.25390911102295/(mmBTU_to_GJ))*($C$10))*($G$10/$F$10) -> 8.694223478 | Z10: =((7.3283839225769/(mmBTU_to_GJ))*($C$10))*($G$10/$F$10) -> 8.783485784 | AA10: =((7.15062761306763/(mmBTU_to_GJ))*($C$10))*($G$10/$F$10) -> 8.570434716 | AB10: =((7.19241189956665/(mmBTU_to_GJ))*($C$10))*($G$10/$F$10) -> 8.620515565 | AC10: =((7.13988399505615/(mmBTU_to_GJ))*($C$10))*($G$10/$F$10) -> 8.557557878 | AD10: =((7.28062534332275/(mmBTU_to_GJ))*($C$10))*($G$10/$F$10) -> 8.726244405 | AE10: =((7.5354790687561/(mmBTU_to_GJ))*($C$10))*($G$10/$F$10) -> 9.031701119 | AF10: =((7.86007928848267/(mmBTU_to_GJ))*($C$10))*($G$10/$F$10) -> 9.420752982 | AG10: =((8.07421207427979/(mmBTU_to_GJ))*($C$10))*($G$10/$F$10) -> 9.677403329 | AH10: =((8.33951759338379/(mmBTU_to_GJ))*($C$10))*($G$10/$F$10) -> 9.995387114 | AI10: =($BB10-$AH10)/20+AH10 -> 10.08024244 | AJ10: 10.16509777 | AK10: 10.2499531 | AL10: 10.33480843 | AM10: 10.41966376 | AN10: 10.50451908 | AO10: 10.58937441 | AP10: 10.67422974 | AQ10: 10.75908507 | AR10: 10.8439404 | AS10: 10.92879573 | AT10: 11.01365105 | AU10: 11.09850638 | AV10: 11.18336171 | AW10: 11.26821704 | AX10: 11.35307237 | AY10: 11.43792769 | AZ10: 11.52278302 | BA10: 11.60763835 | BB10: =1.16978897829057*AH10 -> 11.69249368 | BC10: 11.80826987 | BD10: 11.92404605 | BE10: 12.03982224 | BF10: 12.15559843 | BG10: 12.27137462 | BH10: 12.38715081 | BI10: 12.50292699 | BJ10: 12.61870318 | BK10: 12.73447937 | BL10: 12.85025556 | BM10: 12.96603174 | BN10: 13.08180793 | BO10: 13.19758412 | BP10: 13.31336031 | BQ10: =1.14852629914794*BB10 -> 13.42913649 | BR10: 13.56210849 | BS10: 13.69508049 | BT10: 13.82805248 | BU10: 13.96102448 | BV10: =1.04950876638265*BQ10 -> 14.09399648 | BW10: =+BV10*BW$136/BV$136 -> 14.14079269 | BX10: =+BW10*BX$136/BW$136 -> 14.18774428 | BY10: 14.23485176 | BZ10: 14.28211565 | CA10: 14.32953648 | CB10: 14.36011468 | CC10: 14.39075813 | CD10: 14.42146698 | CE10: 14.45224135 | CF10: 14.4830814 | CG10: 14.49309497 | CH10: 14.50311546 | CI10: 14.51314288 | CJ10: 14.52317723 | CK10: 14.53321852 | CL10: 14.53662207 | CM10: 14.54002642 | CN10: 14.54343156 | CO10: 14.54683751 | CP10: 14.55024425 | CQ10: 14.55540749 | CR10: 14.56057257 | CS10: 14.56573947 | CT10: 14.57090822 | CU10: 14.57607879 | CV10: 14.58403633 | CW10: 14.59199821 | CX10: 14.59996444 | CY10: 14.60793502 | CZ10: 14.61590995
A11: ='HyARC Physical Property Data'!A75 -> Bio Methane | B11: 2007 | C11: 1.141397159 | D11: ='HyARC Physical Property Data'!H75 -> mmBtu | E11: Feed Utility | F11: ='HyARC Physical Property Data'!$E$6 -> 47.14126905 | G11: ='HyARC Physical Property Data'!$I$6 -> 52.22466124 | H11: =13.11*($C$11/mmBTU_to_GJ) -> 14.18361777 | I11: 14.18361777 | J11: 14.18361777 | K11: 14.18361777 | L11: 14.18361777 | M11: 14.18361777 | N11: 14.18361777 | O11: 14.18361777 | P11: 14.18361777 | Q11: 14.18361777 | R11: 14.18361777 | S11: 14.18361777 | T11: 14.18361777 | U11: 14.18361777 | V11: 14.18361777 | W11: 14.18361777 | X11: 14.18361777 | Y11: 14.18361777 | Z11: 14.18361777 | AA11: 14.18361777 | AB11: 14.18361777 | AC11: 14.18361777 | AD11: 14.18361777 | AE11: 14.18361777 | AF11: 14.18361777 | AG11: 14.18361777 | AH11: 14.18361777 | AI11: 14.18361777 | AJ11: 14.18361777 | AK11: 14.18361777 | AL11: 14.18361777 | AM11: 14.18361777 | AN11: =13.11*($C$11/mmBTU_to_GJ) -> 14.18361777 | AO11: 14.18361777 | AP11: 14.18361777 | AQ11: 14.18361777 | AR11: 14.18361777 | AS11: 14.18361777 | AT11: 14.18361777 | AU11: 14.18361777 | AV11: 14.18361777 | AW11: 14.18361777 | AX11: 14.18361777 | AY11: 14.18361777 | AZ11: 14.18361777 | BA11: 14.18361777 | BB11: 14.18361777 | BC11: 14.18361777 | BD11: 14.18361777 | BE11: 14.18361777 | BF11: 14.18361777 | BG11: 14.18361777 | BH11: 14.18361777 | BI11: 14.18361777 | BJ11: 14.18361777 | BK11: 14.18361777 | BL11: 14.18361777 | BM11: 14.18361777 | BN11: 14.18361777 | BO11: 14.18361777 | BP11: 14.18361777 | BQ11: 14.18361777 | BR11: 14.18361777 | BS11: 14.18361777 | BT11: 14.18361777 | BU11: 14.18361777 | BV11: 14.18361777 | BW11: =+BV11*BW$136/BV$136 -> 14.23071156 | BX11: =+BW11*BX$136/BW$136 -> 14.2779617 | BY11: 14.32536873 | BZ11: 14.37293317 | CA11: 14.42065553 | CB11: 14.45142818 | CC11: 14.48226649 | CD11: 14.51317061 | CE11: 14.54414067 | CF11: 14.57517682 | CG11: 14.58525407 | CH11: 14.59533828 | CI11: 14.60542946 | CJ11: 14.61552762 | CK11: 14.62563276 | CL11: 14.62905795 | CM11: 14.63248395 | CN11: 14.63591074 | CO11: 14.63933835 | CP11: 14.64276675 | CQ11: 14.64796282 | CR11: 14.65316074 | CS11: 14.65836051 | CT11: 14.66356211 | CU11: 14.66876557 | CV11: 14.67677371 | CW11: 14.68478622 | CX11: 14.6928031 | CY11: 14.70082436 | CZ11: 14.70885
A12: ='HyARC Physical Property Data'!A85 -> Woody Biomass | B12: 2005 | C12: =VLOOKUP(ref_year,DeflatorTable,2,FALSE)/VLOOKUP(B12,DeflatorTable,2,FALSE) -> 1.208440716 | D12: =+'HyARC Physical Property Data'!$H$85 -> kg | E12: Feed | F12: ='HyARC Physical Property Data'!$E$45 -> 19.55106924 | G12: ='HyARC Physical Property Data'!$I$45 -> 20.58865638 | H12: =1.27*($C$12) -> 1.534719709 | I12: 1.534719709 | J12: 1.534719709 | K12: 1.534719709 | L12: 1.534719709 | M12: 1.534719709 | N12: 1.534719709 | O12: 1.534719709 | P12: =1.28*($C$12) -> 1.546804117 | Q12: =1.32*($C$12) -> 1.595141745 | R12: =1.32*($C$12) -> 1.595141745 | S12: =1.34*($C$12) -> 1.61931056 | T12: =1.34*($C$12) -> 1.61931056 | U12: =1.36*($C$12) -> 1.643479374 | V12: =1.36*($C$12) -> 1.643479374 | W12: =1.38*($C$12) -> 1.667648188 | X12: =1.4*($C$12) -> 1.691817003 | Y12: =1.46*($C$12) -> 1.764323446 | Z12: =1.48*($C$12) -> 1.78849226 | AA12: =1.48*($C$12) -> 1.78849226 | AB12: =1.51*($C$12) -> 1.824745481 | AC12: =1.52*($C$12) -> 1.836829889 | AD12: =1.62*($C$12) -> 1.95767396 | AE12: =1.72*($C$12) -> 2.078518032 | AF12: =1.82*($C$12) -> 2.199362103 | AG12: =1.91*($C$12) -> 2.308121768 | AH12: =2.01*($C$12) -> 2.428965839 | AI12: =2.11*($C$12) -> 2.549809911 | AJ12: =2.2*($C$12) -> 2.658569575 | AK12: =2.3*($C$12) -> 2.779413647 | AL12: =2.4*($C$12) -> 2.900257719 | AM12: =2.5*($C$12) -> 3.02110179 | AN12: =2.57*($C$12) -> 3.10569264 | AO12: =2.64*($C$12) -> 3.190283491 | AP12: =2.71*($C$12) -> 3.274874341 | AQ12: =2.78*($C$12) -> 3.359465191 | AR12: =2.85*($C$12) -> 3.444056041 | AS12: =2.92*($C$12) -> 3.528646891 | AT12: =2.99*($C$12) -> 3.613237741 | AU12: =3.07*($C$12) -> 3.709912999 | AV12: =3.14*($C$12) -> 3.794503849 | AW12: =3.21*($C$12) -> 3.879094699 | AX12: =3.28*($C$12) -> 3.963685549 | AY12: =3.35*($C$12) -> 4.048276399 | AZ12: =3.42*($C$12) -> 4.132867249 | BA12: =3.49*($C$12) -> 4.217458099 | BB12: =3.56*($C$12) -> 4.302048949 | BC12: =3.64*($C$12) -> 4.398724207 | BD12: =3.71*($C$12) -> 4.483315057 | BE12: =3.78*($C$12) -> 4.567905907 | BF12: =3.85*($C$12) -> 4.652496757 | BG12: =3.92*($C$12) -> 4.737087607 | BH12: =3.99*($C$12) -> 4.821678457 | BI12: =4.06*($C$12) -> 4.906269307 | BJ12: =4.14*($C$12) -> 5.002944565 | BK12: =4.21*($C$12) -> 5.087535415 | BL12: =4.28*($C$12) -> 5.172126265 | BM12: =4.35*($C$12) -> 5.256717115 | BN12: =4.42*($C$12) -> 5.341307965 | BO12: =4.49*($C$12) -> 5.425898815 | BP12: =4.56*($C$12) -> 5.510489666 | BQ12: =4.63*($C$12) -> 5.595080516 | BR12: =4.71*($C$12) -> 5.691755773 | BS12: =4.78*($C$12) -> 5.776346623 | BT12: =4.85*($C$12) -> 5.860937473 | BU12: =4.92*($C$12) -> 5.945528323 | BV12: =4.99*($C$12) -> 6.030119173 | BW12: =+BV12*BW$137/BV$137 -> 6.044613208 | BX12: =+BW12*BX$137/BW$137 -> 6.05914208 | BY12: 6.073705874 | BZ12: 6.088304673 | CA12: 6.102938562 | CB12: 6.115748568 | CC12: 6.128585462 | CD12: 6.1414493 | CE12: 6.15434014 | CF12: 6.167258037 | CG12: 6.183149548 | CH12: 6.199082008 | CI12: 6.215055522 | CJ12: 6.231070196 | CK12: 6.247126135 | CL12: 6.2604976 | CM12: 6.273897685 | CN12: 6.287326452 | CO12: 6.300783962 | CP12: 6.314270276 | CQ12: 6.326614173 | CR12: 6.3389822 | CS12: 6.351374406 | CT12: 6.363790838 | CU12: 6.376231543 | CV12: 6.390919363 | CW12: 6.405641018 | CX12: 6.420396584 | CY12: 6.43518614 | CZ12: 6.450009764
A13: ='HyARC Physical Property Data'!A86 -> Woody Biomass B2A | B13: 2007 | C13: =VLOOKUP(ref_year,DeflatorTable,2,FALSE)/VLOOKUP(B13,DeflatorTable,2,FALSE) -> 1.141397159 | D13: =+'HyARC Physical Property Data'!$H$86 -> kg | E13: Feed | F13: ='HyARC Physical Property Data'!$E$45 -> 19.55106924 | G13: ='HyARC Physical Property Data'!$I$45 -> 20.58865638 | H13: =3.80872262322035*($C$13) -> 4.347265181 | I13: =3.80872262322035*($C$13) -> 4.347265181 | J13: =3.80872262322035*($C$13) -> 4.347265181 | K13: =3.80872262322035*($C$13) -> 4.347265181 | L13: =3.58036841709093*($C$13) -> 4.086622339 | M13: =3.28153451771169*($C$13) -> 3.745534175 | N13: =3.05599949931226*($C$13) -> 3.488109146 | O13: =2.9206784882726*($C$13) -> 3.333654128 | P13: =2.85865635821276*($C$13) -> 3.262862245 | Q13: 3.262862245 | R13: 3.262862245 | S13: 3.262862245 | T13: 3.262862245 | U13: 3.262862245 | V13: 3.262862245 | W13: 3.262862245 | X13: 3.262862245 | Y13: 3.262862245 | Z13: 3.262862245 | AA13: 3.262862245 | AB13: 3.262862245 | AC13: 3.262862245 | AD13: 3.262862245 | AE13: 3.262862245 | AF13: 3.262862245 | AG13: 3.262862245 | AH13: 3.262862245 | AI13: 3.262862245 | AJ13: 3.262862245 | AK13: 3.262862245 | AL13: 3.262862245 | AM13: 3.262862245 | AN13: 3.262862245 | AO13: 3.262862245 | AP13: 3.262862245 | AQ13: 3.262862245 | AR13: 3.262862245 | AS13: 3.262862245 | AT13: 3.262862245 | AU13: 3.262862245 | AV13: 3.262862245 | AW13: 3.262862245 | AX13: 3.262862245 | AY13: 3.262862245 | AZ13: 3.262862245 | BA13: 3.262862245 | BB13: 3.262862245 | BC13: 3.262862245 | BD13: 3.262862245 | BE13: 3.262862245 | BF13: 3.262862245 | BG13: 3.262862245 | BH13: 3.262862245 | BI13: 3.262862245 | BJ13: 3.262862245 | BK13: 3.262862245 | BL13: 3.262862245 | BM13: 3.262862245 | BN13: 3.262862245 | BO13: 3.262862245 | BP13: 3.262862245 | BQ13: 3.262862245 | BR13: 3.262862245 | BS13: 3.262862245 | BT13: 3.262862245 | BU13: 3.262862245 | BV13: 3.262862245 | BW13: =+BV13*BW$137/BV$137 -> 3.270704883 | BX13: =+BW13*BX$137/BW$137 -> 3.27856637 | BY13: 3.286446754 | BZ13: 3.294346079 | CA13: 3.302264391 | CB13: 3.30919581 | CC13: 3.316141779 | CD13: 3.323102326 | CE13: 3.330077484 | CF13: 3.337067283 | CG13: 3.345666087 | CH13: 3.354287048 | CI13: 3.362930223 | CJ13: 3.371595669 | CK13: 3.380283444 | CL13: 3.387518665 | CM13: 3.394769373 | CN13: 3.4020356 | CO13: 3.40931738 | CP13: 3.416614747 | CQ13: 3.423293957 | CR13: 3.429986224 | CS13: 3.436691574 | CT13: 3.443410033 | CU13: 3.450141626 | CV13: 3.45808912 | CW13: 3.466054921 | CX13: 3.474039071 | CY13: 3.482041614 | CZ13: 3.49006259
A14: ='HyARC Physical Property Data'!$A$87 -> Woody Biomass MYPP | B14: 2007 | C14: =VLOOKUP(ref_year,DeflatorTable,2,FALSE)/VLOOKUP(B14,DeflatorTable,2,FALSE) -> 1.141397159 | D14: =+'HyARC Physical Property Data'!$H$87 -> kg | E14: Feed | F14: 18.608 | H14: =4.44432502149613*$C$14 -> 5.072739952 | I14: =4.44432502149613*$C$14 -> 5.072739952 | J14: 5.072739952 | K14: 5.072739952 | L14: 5.072739952 | M14: 5.072739952 | N14: 5.072739952 | O14: =N14-($N$14-$U$14)/7 -> 4.952427775 | P14: 4.832115597 | Q14: 4.71180342 | R14: 4.591491243 | S14: 4.471179065 | T14: 4.350866888 | U14: =3.70647033533964*$C$14 -> 4.23055471 | V14: =3.70647033533964*$C$14 -> 4.23055471 | W14: 4.23055471 | X14: 4.23055471 | Y14: 4.23055471 | Z14: 4.23055471 | AA14: 4.23055471 | AB14: 4.23055471 | AC14: 4.23055471 | AD14: 4.23055471 | AE14: 4.23055471 | AF14: 4.23055471 | AG14: 4.23055471 | AH14: 4.23055471 | AI14: 4.23055471 | AJ14: 4.23055471 | AK14: 4.23055471 | AL14: 4.23055471 | AM14: 4.23055471 | AN14: 4.23055471 | AO14: 4.23055471 | AP14: 4.23055471 | AQ14: 4.23055471 | AR14: 4.23055471 | AS14: 4.23055471 | AT14: 4.23055471 | AU14: 4.23055471 | AV14: 4.23055471 | AW14: 4.23055471 | AX14: 4.23055471 | AY14: 4.23055471 | AZ14: 4.23055471 | BA14: 4.23055471 | BB14: 4.23055471 | BC14: 4.23055471 | BD14: 4.23055471 | BE14: 4.23055471 | BF14: 4.23055471 | BG14: 4.23055471 | BH14: 4.23055471 | BI14: 4.23055471 | BJ14: 4.23055471 | BK14: 4.23055471 | BL14: 4.23055471 | BM14: 4.23055471 | BN14: 4.23055471 | BO14: 4.23055471 | BP14: 4.23055471 | BQ14: 4.23055471 | BR14: 4.23055471 | BS14: 4.23055471 | BT14: 4.23055471 | BU14: 4.23055471 | BV14: 4.23055471 | BW14: =+BV14*BW$137/BV$137 -> 4.240723299 | BX14: =+BW14*BX$137/BW$137 -> 4.25091633 | BY14: 4.26113386 | BZ14: 4.27137595 | CA14: 4.281642657 | CB14: 4.290629781 | CC14: 4.299635769 | CD14: 4.308660661 | CE14: 4.317704496 | CF14: 4.326767313 | CG14: 4.337916332 | CH14: 4.349094078 | CI14: 4.360300627 | CJ14: 4.371536052 | CK14: 4.382800428 | CL14: 4.392181455 | CM14: 4.401582562 | CN14: 4.411003791 | CO14: 4.420445185 | CP14: 4.429906788 | CQ14: 4.438566903 | CR14: 4.447243949 | CS14: 4.455937957 | CT14: 4.464648961 | CU14: 4.473376995 | CV14: 4.483681539 | CW14: 4.494009819 | CX14: 4.504361892 | CY14: 4.51473781 | CZ14: 4.52513763
A15: ='HyARC Physical Property Data'!A79 -> Electric Utility Steam Coal | B15: 2007 | C15: =VLOOKUP(ref_year,DeflatorTable,2,FALSE)/VLOOKUP(B15,DeflatorTable,2,FALSE) -> 1.141397159 | D15: =+'HyARC Physical Property Data'!$H$79 -> kg | E15: Feed | F15: ='HyARC Physical Property Data'!E42 -> 22.732203 | G15: ='HyARC Physical Property Data'!I42 -> 23.96761519 | H15: =1.73552525043488*($C$15/mmBTU_to_GJ*$G$15/$F$15) -> 1.979696256 | I15: =1.73552525043488*($C$15/mmBTU_to_GJ*$G$15/$F$15) -> 1.979696256 | J15: =1.73552525043488*($C$15/mmBTU_to_GJ*$G$15/$F$15) -> 1.979696256 | K15: =1.78000020980835*($C$15/mmBTU_to_GJ*$G$15/$F$15) -> 2.030428397 | L15: =1.9310736656189*($C$15/mmBTU_to_GJ*$G$15/$F$15) -> 2.202756373 | M15: =1.98230564594269*($C$15/mmBTU_to_GJ*$G$15/$F$15) -> 2.26119618 | N15: =1.86225914955139*($C$15/mmBTU_to_GJ*$G$15/$F$15) -> 2.124260345 | O15: =1.87335216999054*($C$15/mmBTU_to_GJ*$G$15/$F$15) -> 2.136914042 | P15: =1.85759365558624*($C$15/mmBTU_to_GJ*$G$15/$F$15) -> 2.118938463 | Q15: =1.88174879550934*($C$15/mmBTU_to_GJ*$G$15/$F$15) -> 2.146491989 | R15: =1.90431761741638*($C$15/mmBTU_to_GJ*$G$15/$F$15) -> 2.172236017 | S15: =1.90719401836395*($C$15/mmBTU_to_GJ*$G$15/$F$15) -> 2.175517099 | T15: =1.91704928874969*($C$15/mmBTU_to_GJ*$G$15/$F$15) -> 2.186758907 | U15: =1.92595064640045*($C$15/mmBTU_to_GJ*$G$15/$F$15) -> 2.196912597 | V15: =1.94080138206482*($C$15/mmBTU_to_GJ*$G$15/$F$15) -> 2.213852682 | W15: =1.94636797904968*($C$15/mmBTU_to_GJ*$G$15/$F$15) -> 2.220202443 | X15: =1.95628917217255*($C$15/mmBTU_to_GJ*$G$15/$F$15) -> 2.231519449 | Y15: =1.96225011348724*($C$15/mmBTU_to_GJ*$G$15/$F$15) -> 2.238319035 | Z15: =1.97535526752472*($C$15/mmBTU_to_GJ*$G$15/$F$15) -> 2.253267953 | AA15: =1.98115420341492*($C$15/mmBTU_to_GJ*$G$15/$F$15) -> 2.259882741 | AB15: =1.98549652099609*($C$15/mmBTU_to_GJ*$G$15/$F$15) -> 2.264835979 | AC15: =1.98988306522369*($C$15/mmBTU_to_GJ*$G$15/$F$15) -> 2.269839666 | AD15: =1.99634909629822*($C$15/mmBTU_to_GJ*$G$15/$F$15) -> 2.277215403 | AE15: =2.00744533538818*($C$15/mmBTU_to_GJ*$G$15/$F$15) -> 2.289872772 | AF15: =2.02021908760071*($C$15/mmBTU_to_GJ*$G$15/$F$15) -> 2.304443663 | AG15: =2.03361201286316*($C$15/mmBTU_to_GJ*$G$15/$F$15) -> 2.319720838 | AH15: =2.04451942443848*($C$15/mmBTU_to_GJ*$G$15/$F$15) -> 2.332162813 | AI15: =(($BB$15-$AH$15)/20+AH15) -> 2.337290945 | AJ15: =(($BB$15-$AH$15)/20+AI15) -> 2.342419076 | AK15: 2.347547208 | AL15: 2.352675339 | AM15: 2.357803471 | AN15: 2.362931602 | AO15: 2.368059734 | AP15: 2.373187865 | AQ15: 2.378315997 | AR15: 2.383444128 | AS15: 2.38857226 | AT15: 2.393700391 | AU15: 2.398828522 | AV15: 2.403956654 | AW15: 2.409084785 | AX15: 2.414212917 | AY15: 2.419341048 | AZ15: 2.42446918 | BA15: 2.429597311 | BB15: =(1.04397747398165*AH15) -> 2.434725443 | BC15: =(($BQ$15-$BB$15)/15+BB15) -> 2.439343082 | BD15: =(($BQ$15-$BB$15)/15+BC15) -> 2.44396072 | BE15: 2.448578359 | BF15: 2.453195998 | BG15: 2.457813637 | BH15: 2.462431275 | BI15: 2.467048914 | BJ15: 2.471666553 | BK15: 2.476284192 | BL15: 2.48090183 | BM15: 2.485519469 | BN15: 2.490137108 | BO15: 2.494754746 | BP15: 2.499372385 | BQ15: =(1.02844862093285*BB15) -> 2.503990024 | BR15: =(($BV$15-$BQ$15)/5+BQ15) -> 2.508739028 | BS15: =(($BV$15-$BQ$15)/5+BR15) -> 2.513488032 | BT15: =(($BV$15-$BQ$15)/5+BS15) -> 2.518237037 | BU15: =(($BV$15-$BQ$15)/5+BT15) -> 2.522986041 | BV15: =(1.00948287364428*BQ15) -> 2.527735045 | BW15: =+BV15*BW$138/BV$138 -> 2.536281204 | BX15: =+BW15*BX$138/BW$138 -> 2.544856257 | BY15: 2.553460302 | BZ15: 2.562093437 | CA15: 2.570755761 | CB15: 2.578116238 | CC15: 2.58549779 | CD15: 2.592900476 | CE15: 2.600324357 | CF15: 2.607769494 | CG15: 2.613453863 | CH15: 2.619150624 | CI15: 2.624859802 | CJ15: 2.630581425 | CK15: 2.63631552 | CL15: 2.640202758 | CM15: 2.644095728 | CN15: 2.647994438 | CO15: 2.651898897 | CP15: 2.655809112 | CQ15: 2.657118582 | CR15: 2.658428698 | CS15: 2.65973946 | CT15: 2.661050868 | CU15: 2.662362923 | CV15: 2.660477217 | CW15: 2.658592847 | CX15: 2.656709812 | CY15: 2.654828111 | CZ15: 2.652947742
A16: ='HyARC Physical Property Data'!A76 -> Commercial Electricity | B16: 2007 | C16: 1.141397159 | D16: ='HyARC Physical Property Data'!$H$76 -> kWh | E16: Feed Utility Byprod | H16: =(28.3762531280518/(mmBTU_to_GJ))*($C$16) -> 30.7000708 | I16: =(28.3762531280518/(mmBTU_to_GJ))*($C$16) -> 30.7000708 | J16: =(28.3762531280518/(mmBTU_to_GJ))*($C$16) -> 30.7000708 | K16: =(28.0297355651855/(mmBTU_to_GJ))*($C$16) -> 30.32517586 | L16: =(29.057315826416/(mmBTU_to_GJ))*($C$16) -> 31.4369078 | M16: =(27.6067714691162/(mmBTU_to_GJ))*($C$16) -> 29.86757395 | N16: =(24.8355846405029/(mmBTU_to_GJ))*($C$16) -> 26.86944621 | O16: =(25.5812511444092/(mmBTU_to_GJ))*($C$16) -> 27.67617761 | P16: =(25.4402256011963/(mmBTU_to_GJ))*($C$16) -> 27.52360305 | Q16: =(25.4701290130615/(mmBTU_to_GJ))*($C$16) -> 27.55595535 | R16: =(25.6722831726074/(mmBTU_to_GJ))*($C$16) -> 27.77466453 | S16: =(25.7632827758789/(mmBTU_to_GJ))*($C$16) -> 27.87311636 | T16: =(26.1006698608398/(mmBTU_to_GJ))*($C$16) -> 28.2381331 | U16: =(26.4680442810059/(mmBTU_to_GJ))*($C$16) -> 28.63559293 | V16: =(26.885612487793/(mmBTU_to_GJ))*($C$16) -> 29.08735707 | W16: =(27.1694507598877/(mmBTU_to_GJ))*($C$16) -> 29.39443972 | X16: =(27.6201095581055/(mmBTU_to_GJ))*($C$16) -> 29.88200434 | Y16: =(28.0024471282958/(mmBTU_to_GJ))*($C$16) -> 30.29565269 | Z16: =(28.2454071044922/(mmBTU_to_GJ))*($C$16) -> 30.5585094 | AA16: =(28.1863746643066/(mmBTU_to_GJ))*($C$16) -> 30.49464262 | AB16: =(28.2032489776611/(mmBTU_to_GJ))*($C$16) -> 30.51289882 | AC16: =(28.1397113800049/(mmBTU_to_GJ))*($C$16) -> 30.44415793 | AD16: =(28.178466796875/(mmBTU_to_GJ))*($C$16) -> 30.48608715 | AE16: =(28.4951820373535/(mmBTU_to_GJ))*($C$16) -> 30.82873916 | AF16: =(28.9155654907227/(mmBTU_to_GJ))*($C$16) -> 31.2835491 | AG16: =(29.2894115447998/(mmBTU_to_GJ))*($C$16) -> 31.68801054 | AH16: =(29.6516952514648/(mmBTU_to_GJ))*($C$16) -> 32.07996276 | AI16: =($BB16-$AH16)/20+AH16 -> 32.07050429 | AJ16: 32.06104582 | AK16: 32.05158734 | AL16: 32.04212887 | AM16: 32.03267039 | AN16: 32.02321192 | AO16: 32.01375345 | AP16: 32.00429497 | AQ16: 31.9948365 | AR16: 31.98537802 | AS16: 31.97591955 | AT16: 31.96646108 | AU16: 31.9570026 | AV16: 31.94754413 | AW16: 31.93808566 | AX16: 31.92862718 | AY16: 31.91916871 | AZ16: 31.90971023 | BA16: 31.90025176 | BB16: =0.994103189054944*AH16 -> 31.89079329 | BC16: =($BQ16-$BB16)/15+BB16 -> 31.91105183 | BD16: 31.93131038 | BE16: 31.95156892 | BF16: 31.97182747 | BG16: 31.99208602 | BH16: 32.01234456 | BI16: 32.03260311 | BJ16: 32.05286165 | BK16: 32.0731202 | BL16: 32.09337875 | BM16: 32.11363729 | BN16: 32.13389584 | BO16: 32.15415438 | BP16: 32.17441293 | BQ16: =1.00952871208344*BB16 -> 32.19467147 | BR16: =($BV16-$BQ16)/5+BQ16 -> 32.21512306 | BS16: 32.23557464 | BT16: 32.25602623 | BU16: 32.27647781 | BV16: =1.00317623736115*BQ16 -> 32.29692939 | BW16: =+BV16*BW$139/BV$139 -> 32.28270893 | BX16: =+BW16*BX$139/BW$139 -> 32.26849473 | BY16: 32.25428679 | BZ16: 32.24008511 | CA16: 32.22588968 | CB16: 32.20007725 | CC16: 32.17428549 | CD16: 32.14851439 | CE16: 32.12276393 | CF16: 32.0970341 | CG16: 32.06158981 | CH16: 32.02618466 | CI16: 31.99081862 | CJ16: 31.95549162 | CK16: 31.92020364 | CL16: 31.88173112 | CM16: 31.84330496 | CN16: 31.80492512 | CO16: 31.76659154 | CP16: 31.72830416 | CQ16: 31.68395737 | CR16: 31.63967257 | CS16: 31.59544967 | CT16: 31.55128857 | CU16: 31.5071892 | CV16: 31.46414037 | CW16: 31.42115035 | CX16: 31.37821907 | CY16: 31.33534645 | CZ16: 31.29253241
A17: ='HyARC Physical Property Data'!A77 -> Industrial Electricity | B17: 2007 | C17: 1.141397159 | D17: ='HyARC Physical Property Data'!$H$77 -> kWh | E17: Feed Utility Byprod | H17: =(18.4008941650391/(mmBTU_to_GJ))*($C$17) -> 19.90779936 | I17: =(18.4008941650391/(mmBTU_to_GJ))*($C$17) -> 19.90779936 | J17: =(18.4008941650391/(mmBTU_to_GJ))*($C$17) -> 19.90779936 | K17: =(18.6226921081543/(mmBTU_to_GJ))*($C$17) -> 20.14776101 | L17: =(20.3344097137451/(mmBTU_to_GJ))*($C$17) -> 21.99965637 | M17: =(19.1594867706299/(mmBTU_to_GJ))*($C$17) -> 20.72851542 | N17: =(16.8281726837158/(mmBTU_to_GJ))*($C$17) -> 18.20628293 | O17: =(17.2643089294434/(mmBTU_to_GJ))*($C$17) -> 18.6781357 | P17: =(17.1560707092285/(mmBTU_to_GJ))*($C$17) -> 18.56103352 | Q17: =(17.0836048126221/(mmBTU_to_GJ))*($C$17) -> 18.48263317 | R17: =(17.1988334655762/(mmBTU_to_GJ))*($C$17) -> 18.60729825 | S17: =(17.3181438446045/(mmBTU_to_GJ))*($C$17) -> 18.73637932 | T17: =(17.6150741577148/(mmBTU_to_GJ))*($C$17) -> 19.05762616 | U17: =(17.9101543426514/(mmBTU_to_GJ))*($C$17) -> 19.37687136 | V17: =(18.2101707458496/(mmBTU_to_GJ))*($C$17) -> 19.70145702 | W17: =(18.456880569458/(mmBTU_to_GJ))*($C$17) -> 19.96837066 | X17: =(18.8030014038086/(mmBTU_to_GJ))*($C$17) -> 20.34283638 | Y17: =(19.0852069854736/(mmBTU_to_GJ))*($C$17) -> 20.64815263 | Z17: =(19.30615234375/(mmBTU_to_GJ))*($C$17) -> 20.88719188 | AA17: =(19.3043308258057/(mmBTU_to_GJ))*($C$17) -> 20.88522119 | AB17: =(19.3253479003906/(mmBTU_to_GJ))*($C$17) -> 20.90795942 | AC17: =(19.3248138427734/(mmBTU_to_GJ))*($C$17) -> 20.90738163 | AD17: =(19.3542194366455/(mmBTU_to_GJ))*($C$17) -> 20.93919533 | AE17: =(19.6148834228516/(mmBTU_to_GJ))*($C$17) -> 21.22120589 | AF17: =(19.97239112854/(mmBTU_to_GJ))*($C$17) -> 21.60799099 | AG17: =(20.29469871521/(mmBTU_to_GJ))*($C$17) -> 21.95669332 | AH17: =(20.5609893798828/(mmBTU_to_GJ))*($C$17) -> 22.24479134 | AI17: 22.23823267 | AJ17: 22.231674 | AK17: 22.22511534 | AL17: 22.21855667 | AM17: 22.21199801 | AN17: 22.20543934 | AO17: 22.19888067 | AP17: 22.19232201 | AQ17: 22.18576334 | AR17: 22.17920467 | AS17: 22.17264601 | AT17: 22.16608734 | AU17: 22.15952867 | AV17: 22.15297001 | AW17: 22.14641134 | AX17: 22.13985267 | AY17: 22.13329401 | AZ17: 22.12673534 | BA17: 22.12017667 | BB17: =0.994103189054944*AH17 -> 22.11361801 | BC17: 22.12766563 | BD17: 22.14171325 | BE17: 22.15576087 | BF17: 22.16980849 | BG17: 22.18385611 | BH17: 22.19790373 | BI17: 22.21195135 | BJ17: 22.22599897 | BK17: 22.24004659 | BL17: 22.25409421 | BM17: 22.26814183 | BN17: 22.28218945 | BO17: 22.29623707 | BP17: 22.31028469 | BQ17: =1.00952871208344*BB17 -> 22.32433231 | BR17: 22.33851378 | BS17: 22.35269526 | BT17: 22.36687673 | BU17: 22.38105821 | BV17: =1.00317623736115*BQ17 -> 22.39523969 | BW17: =+BV17*BW$140/BV$140 -> 22.40200662 | BX17: =+BW17*BX$140/BW$140 -> 22.40877561 | BY17: 22.41554663 | BZ17: 22.42231971 | CA17: 22.42909483 | CB17: 22.42655827 | CC17: 22.424022 | CD17: 22.42148601 | CE17: 22.41895032 | CF17: 22.41641491 | CG17: 22.40624662 | CH17: 22.39608295 | CI17: 22.38592389 | CJ17: 22.37576943 | CK17: 22.36561959 | CL17: 22.35316781 | CM17: 22.34072296 | CN17: 22.32828505 | CO17: 22.31585406 | CP17: 22.30342998 | CQ17: 22.28640839 | CR17: 22.26939978 | CS17: 22.25240416 | CT17: 22.23542151 | CU17: 22.21845181 | CV17: 22.20249708 | CW17: 22.18655381 | CX17: 22.17062199 | CY17: 22.15470161 | CZ17: 22.13879265
A18: ='HyARC Physical Property Data'!A78 -> Residential Electricity | B18: 2007 | C18: 1.141397159 | D18: ='HyARC Physical Property Data'!$H$78 -> kWh | E18: Feed Utility Byprod | H18: =(31.2067794799805/(mmBTU_to_GJ))*($C$18) -> 33.76239757 | I18: =(31.2067794799805/(mmBTU_to_GJ))*($C$18) -> 33.76239757 | J18: =(31.2067794799805/(mmBTU_to_GJ))*($C$18) -> 33.76239757 | K18: =(31.181957244873/(mmBTU_to_GJ))*($C$18) -> 33.73554257 | L18: =(31.772819519043/(mmBTU_to_GJ))*($C$18) -> 34.37479235 | M18: =(30.736837387085/(mmBTU_to_GJ))*($C$18) -> 33.25397049 | N18: =(28.6163578033447/(mmBTU_to_GJ))*($C$18) -> 30.95983838 | O18: =(29.8736190795898/(mmBTU_to_GJ))*($C$18) -> 32.32006061 | P18: =(30.101655960083/(mmBTU_to_GJ))*($C$18) -> 32.56677212 | Q18: =(30.4253902435303/(mmBTU_to_GJ))*($C$18) -> 32.91701799 | R18: =(30.7938537597656/(mmBTU_to_GJ))*($C$18) -> 33.31565611 | S18: =(30.8830280303955/(mmBTU_to_GJ))*($C$18) -> 33.41213313 | T18: =(31.1491451263428/(mmBTU_to_GJ))*($C$18) -> 33.70004336 | U18: =(31.4898681640625/(mmBTU_to_GJ))*($C$18) -> 34.06866925 | V18: =(31.8156299591064/(mmBTU_to_GJ))*($C$18) -> 34.42110867 | W18: =(32.0206985473633/(mmBTU_to_GJ))*($C$18) -> 34.64297094 | X18: =(32.4303588867188/(mmBTU_to_GJ))*($C$18) -> 35.08617961 | Y18: =(32.7907905578613/(mmBTU_to_GJ))*($C$18) -> 35.47612813 | Z18: =(32.9940071105957/(mmBTU_to_GJ))*($C$18) -> 35.69598671 | AA18: =(32.9234657287598/(mmBTU_to_GJ))*($C$18) -> 35.61966848 | AB18: =(32.9201545715332/(mmBTU_to_GJ))*($C$18) -> 35.61608616 | AC18: =(32.902271270752/(mmBTU_to_GJ))*($C$18) -> 35.59673834 | AD18: =(32.9582405090332/(mmBTU_to_GJ))*($C$18) -> 35.65729107 | AE18: =(33.321102142334/(mmBTU_to_GJ))*($C$18) -> 36.04986854 | AF18: =(33.7343635559082/(mmBTU_to_GJ))*($C$18) -> 36.49697319 | AG18: =(34.1495399475098/(mmBTU_to_GJ))*($C$18) -> 36.94614964 | AH18: =(34.4904899597167/(mmBTU_to_GJ))*($C$18) -> 37.31502109 | AI18: 37.30401911 | AJ18: 37.29301712 | AK18: 37.28201514 | AL18: 37.27101316 | AM18: 37.26001118 | AN18: 37.2490092 | AO18: 37.23800722 | AP18: 37.22700524 | AQ18: 37.21600326 | AR18: 37.20500127 | AS18: 37.19399929 | AT18: 37.18299731 | AU18: 37.17199533 | AV18: 37.16099335 | AW18: 37.14999137 | AX18: 37.13898939 | AY18: 37.12798741 | AZ18: 37.11698542 | BA18: 37.10598344 | BB18: =0.994103189054944*AH18 -> 37.09498146 | BC18: 37.11854596 | BD18: 37.14211045 | BE18: 37.16567494 | BF18: 37.18923944 | BG18: 37.21280393 | BH18: 37.23636842 | BI18: 37.25993291 | BJ18: 37.28349741 | BK18: 37.3070619 | BL18: 37.33062639 | BM18: 37.35419089 | BN18: 37.37775538 | BO18: 37.40131987 | BP18: 37.42488437 | BQ18: =1.00952871208344*BB18 -> 37.44844886 | BR18: 37.47223789 | BS18: 37.49602693 | BT18: 37.51981596 | BU18: 37.54360499 | BV18: =1.00317623736115*BQ18 -> 37.56739402 | BW18: =+BV18*BW$141/BV$141 -> 37.55085296 | BX18: =+BW18*BX$141/BW$141 -> 37.53431918 | BY18: 37.51779267 | BZ18: 37.50127345 | CA18: 37.4847615 | CB18: 37.45473679 | CC18: 37.42473613 | CD18: 37.3947595 | CE18: 37.36480688 | CF18: 37.33487825 | CG18: 37.29364989 | CH18: 37.25246706 | CI18: 37.2113297 | CJ18: 37.17023778 | CK18: 37.12919123 | CL18: 37.08444045 | CM18: 37.03974362 | CN18: 36.99510066 | CO18: 36.9505115 | CP18: 36.90597609 | CQ18: 36.85439245 | CR18: 36.80288091 | CS18: 36.75144137 | CT18: 36.70007372 | CU18: 36.64877787 | CV18: 36.598704 | CW18: 36.54869853 | CX18: 36.49876139 | CY18: 36.44889248 | CZ18: 36.39909171
A22: AEO_2013_Reference_Case | B22: ="Prices are in $(" & ref_year&")/GJ LHV" -> Prices are in $(2016)/GJ LHV | AS22: Except as noted,values are extrapolated based on PNNL mini-CAM model (see AEO Data tab)
A23: Year | B23: Source Data Year | C23: Reference year Conversion | D23: Display Units | E23: Use Category | F23: LHV (MJ/kg) | G23: HHV (MJ/kg) | H23: 2004 | I23: 2005 | J23: 2006 | K23: 2007 | L23: 2008 | M23: 2009 | N23: 2010 | O23: 2011 | P23: 2012 | Q23: 2013 | R23: 2014 | S23: 2015 | T23: 2016 | U23: 2017 | V23: 2018 | W23: 2019 | X23: 2020 | Y23: 2021 | Z23: 2022 | AA23: 2023 | AB23: 2024 | AC23: 2025 | AD23: 2026 | AE23: 2027 | AF23: 2028 | AG23: 2029 | AH23: 2030 | AI23: 2031 | AJ23: 2032 | AK23: 2033 | AL23: 2034 | AM23: 2035 | AN23: 2036 | AO23: 2037 | AP23: 2038 | AQ23: 2039 | AR23: 2040 | AS23: 2041 | AT23: 2042 | AU23: 2043 | AV23: 2044 | AW23: 2045 | AX23: 2046 | AY23: 2047 | AZ23: 2048 | BA23: 2049 | BB23: 2050 | BC23: 2051 | BD23: 2052 | BE23: 2053 | BF23: 2054 | BG23: 2055 | BH23: 2056 | BI23: 2057 | BJ23: 2058 | BK23: 2059 | BL23: 2060 | BM23: 2061 | BN23: 2062 | BO23: 2063 | BP23: 2064 | BQ23: 2065 | BR23: 2066 | BS23: 2067 | BT23: 2068 | BU23: 2069 | BV23: 2070 | BW23: =+BV23+1 -> 2071 | BX23: =+BW23+1 -> 2072 | BY23: =+BX23+1 -> 2073 | BZ23: =+BY23+1 -> 2074 | CA23: =+BZ23+1 -> 2075 | CB23: =+CA23+1 -> 2076 | CC23: =+CB23+1 -> 2077 | CD23: =+CC23+1 -> 2078 | CE23: =+CD23+1 -> 2079 | CF23: =+CE23+1 -> 2080 | CG23: =+CF23+1 -> 2081 | CH23: =+CG23+1 -> 2082 | CI23: =+CH23+1 -> 2083 | CJ23: =+CI23+1 -> 2084 | CK23: =+CJ23+1 -> 2085 | CL23: =+CK23+1 -> 2086 | CM23: =+CL23+1 -> 2087 | CN23: =+CM23+1 -> 2088 | CO23: =+CN23+1 -> 2089 | CP23: =+CO23+1 -> 2090 | CQ23: =+CP23+1 -> 2091 | CR23: =+CQ23+1 -> 2092 | CS23: =+CR23+1 -> 2093 | CT23: =+CS23+1 -> 2094 | CU23: =+CT23+1 -> 2095 | CV23: =+CU23+1 -> 2096 | CW23: =+CV23+1 -> 2097 | CX23: =+CW23+1 -> 2098 | CY23: =+CX23+1 -> 2099 | CZ23: =+CY23+1 -> 2100
A24: Feedstock Type
A25: ='HyARC Physical Property Data'!A73 -> Residential Natural Gas | B25: 2011 | C25: =VLOOKUP(ref_year,DeflatorTable,2,FALSE)/VLOOKUP(B25,DeflatorTable,2,FALSE) -> 1.077176781 | D25: ='HyARC Physical Property Data'!H73 -> mmBtu | E25: Feed Utility | F25: ='HyARC Physical Property Data'!$E$6 -> 47.14126905 | G25: ='HyARC Physical Property Data'!$I$6 -> 52.22466124 | H25: 14.38614184 | I25: 14.38614184 | J25: 14.38614184 | K25: 13.32671663 | L25: 13.62776448 | M25: 11.25433973 | N25: =((N42/(mmBTU_to_GJ))*($C25))*($G25/$F25) -> 12.84882003 | O25: 12.21875196 | P25: 11.8364762 | Q25: 11.85177348 | R25: 11.59792741 | S25: 11.48775061 | T25: 12.06088712 | U25: 12.43158699 | V25: 12.89196662 | W25: 13.14916873 | X25: 13.32035025 | Y25: 13.52820496 | Z25: 13.80326632 | AA25: 14.06239359 | AB25: 14.2346214 | AC25: 14.33618924 | AD25: 14.52574581 | AE25: 14.62921732 | AF25: 14.80136708 | AG25: 14.9696846 | AH25: 15.12194813 | AI25: 15.32339052 | AJ25: 15.52101763 | AK25: 15.76317697 | AL25: 16.11725841 | AM25: 16.51303296 | AN25: 16.99361893 | AO25: 17.43723535 | AP25: 17.91952253 | AQ25: 18.16100092 | AR25: 18.50860784 | AS25: =($BB25-$AR25)/10+AR25 -> 18.5158394 | AT25: =($BB25-$AR25)/10+AS25 -> 18.52307095 | AU25: 18.53030251 | AV25: 18.53753407 | AW25: 18.54476563 | AX25: 18.55199719 | AY25: 18.55922875 | AZ25: 18.56646031 | BA25: 18.57369187 | BB25: ='AEO Data'!$B$30*AM25 -> 18.58092342 | BC25: =($BQ25-$BB25)/15+BB25 -> 18.73232694 | BD25: =($BQ25-$BB25)/15+BC25 -> 18.88373045 | BE25: 19.03513396 | BF25: 19.18653747 | BG25: 19.33794098 | BH25: 19.48934449 | BI25: 19.64074801 | BJ25: 19.79215152 | BK25: 19.94355503 | BL25: 20.09495854 | BM25: 20.24636205 | BN25: 20.39776557 | BO25: 20.54916908 | BP25: 20.70057259 | BQ25: ='AEO Data'!$C$30*BB25 -> 20.8519761 | BR25: =($BV25-$BQ25)/5+BQ25 -> 20.97116327 | BS25: =($BV25-$BQ25)/5+BR25 -> 21.09035045 | BT25: =($BV25-$BQ25)/5+BS25 -> 21.20953762 | BU25: =($BV25-$BQ25)/5+BT25 -> 21.32872479 | BV25: ='AEO Data'!$D$30*BQ25 -> 21.44791196 | BW25: =+BV25*BW$133/BV$133 -> 21.51912534 | BX25: =+BW25*BX$133/BW$133 -> 21.59057516 | BY25: 21.66226222 | BZ25: 21.7341873 | CA25: 21.80635119 | CB25: 21.85288438 | CC25: 21.89951687 | CD25: 21.94624886 | CE25: 21.99308058 | CF25: 22.04001224 | CG25: 22.05525065 | CH25: 22.0704996 | CI25: 22.08575909 | CJ25: 22.10102913 | CK25: 22.11630973 | CL25: 22.12148917 | CM25: 22.12666983 | CN25: 22.1318517 | CO25: 22.13703478 | CP25: 22.14221908 | CQ25: 22.15007638 | CR25: 22.15793647 | CS25: 22.16579935 | CT25: 22.17366502 | CU25: 22.18153348 | CV25: 22.19364307 | CW25: 22.20575928 | CX25: 22.2178821 | CY25: 22.23001153 | CZ25: 22.24214759
A26: ='HyARC Physical Property Data'!A71 -> Commercial Natural Gas | B26: 2011 | C26: =VLOOKUP(ref_year,DeflatorTable,2,FALSE)/VLOOKUP(B26,DeflatorTable,2,FALSE) -> 1.077176781 | D26: ='HyARC Physical Property Data'!H71 -> mmBtu | E26: Feed Utility | F26: ='HyARC Physical Property Data'!$E$6 -> 47.14126905 | G26: ='HyARC Physical Property Data'!$I$6 -> 52.22466124 | H26: 12.49183679 | I26: 12.49183679 | J26: 12.49183679 | K26: 11.54020185 | L26: 11.90663327 | M26: 9.353676585 | N26: =((N43/(mmBTU_to_GJ))*($C26))*($G26/$F26) -> 10.62911136 | O26: 9.995554915 | P26: 9.131305306 | Q26: 9.572372184 | R26: 9.315073935 | S26: 9.167010257 | T26: 9.683566988 | U26: 9.981902291 | V26: 10.37495423 | W26: 10.57689884 | X26: 10.70947295 | Y26: 10.87113383 | Z26: 11.10667837 | AA26: 11.32432406 | AB26: 11.46166471 | AC26: 11.53025134 | AD26: 11.6907415 | AE26: 11.75010158 | AF26: 11.87677124 | AG26: 11.99589859 | AH26: 12.09984631 | AI26: 12.25276249 | AJ26: 12.39097524 | AK26: 12.57634101 | AL26: 12.87600538 | AM26: 13.21336208 | AN26: 13.64254993 | AO26: 14.02736845 | AP26: 14.45744083 | AQ26: 14.64675987 | AR26: 14.94540736 | AS26: =($BB26-$AR26)/10+AR26 -> 14.93767083 | AT26: 14.92993431 | AU26: 14.92219778 | AV26: 14.91446125 | AW26: 14.90672472 | AX26: 14.89898819 | AY26: 14.89125167 | AZ26: 14.88351514 | BA26: 14.87577861 | BB26: ='AEO Data'!$B$30*AM26 -> 14.86804208 | BC26: =($BQ26-$BB26)/15+BB26 -> 14.98919181 | BD26: 15.11034153 | BE26: 15.23149126 | BF26: 15.35264099 | BG26: 15.47379071 | BH26: 15.59494044 | BI26: 15.71609017 | BJ26: 15.83723989 | BK26: 15.95838962 | BL26: 16.07953934 | BM26: 16.20068907 | BN26: 16.3218388 | BO26: 16.44298852 | BP26: 16.56413825 | BQ26: ='AEO Data'!$C$30*BB26 -> 16.68528798 | BR26: =($BV26-$BQ26)/5+BQ26 -> 16.7806589 | BS26: 16.87602983 | BT26: 16.97140076 | BU26: 17.06677168 | BV26: ='AEO Data'!$D$30*BQ26 -> 17.16214261 | BW26: =+BV26*BW$134/BV$134 -> 17.21912597 | BX26: =+BW26*BX$134/BW$134 -> 17.27629853 | BY26: 17.33366092 | BZ26: 17.39121377 | CA26: 17.44895772 | CB26: 17.48619254 | CC26: 17.52350682 | CD26: 17.56090073 | CE26: 17.59837443 | CF26: 17.6359281 | CG26: 17.64812153 | CH26: 17.6603234 | CI26: 17.67253371 | CJ26: 17.68475245 | CK26: 17.69697965 | CL26: 17.70112413 | CM26: 17.70526957 | CN26: 17.70941599 | CO26: 17.71356338 | CP26: 17.71771174 | CQ26: 17.72399898 | CR26: 17.73028845 | CS26: 17.73658015 | CT26: 17.74287408 | CU26: 17.74917025 | CV26: 17.75886007 | CW26: 17.76855519 | CX26: 17.7782556 | CY26: 17.78796131 | CZ26: 17.79767231
